Workbook

Sheet DISCLAIMER
B2: This tool was provided by HDR to the Florida DOT. The software may be distributed and used by project partners in association with a specific FDOT project. The software may not be used by these entities for any other reason. Any duplication is prohibited.

Sheet CONTENT
B1: TABLE OF CONTENTS (NOT ALL WORKSHEETS INCLUDED):
B2: Index | C2: Worksheet Name | D2: Description
B3: 1 | C3: DISCLAIMER | D3: This sheet includes a Disclaimer.
B4: =B3+1 -> 2 | C4: CONTENT | D4: This sheet explains the Tab and Cell color coding and describes each sheet included in the tool.
B5: =B4+1 -> 3 | C5: HELP | D5: This sheet provides step-by-step instructions on how to use the tool.
B6: 4 | C6: PROJECT SPECIFIC INPUTS | D6: This sheet contains project specific inputs that will be entered by the user.
B7: 5 | C7: SIT DATA | D7: This sheet allows users to derive VMT and VHT estimates from the SIT data for individual projects
B8: 6 | C8: PARAMETERS | D8: This sheet contains model parameters that are consistent across all projects.
B9: 7 | C9: CONTROL PANEL | D9: This sheet allows users to edit key assumptions and view summary results, for sensitivity testing.
B10: 8 | C10: SUMMARY RESULTS | D10: This sheet provides a summary of the monetized benefits and costs calculated in the "Benefits & Costs" tab.
B11: 9 | C11: BENEFITS & COSTS | D11: This sheet provides a detailed summary of the monetized benefits and costs by year and type.
B12: 10 | C12: TRAFFIC & SPEED_CALC | D12: This sheet calculates No Build and Build VMT, VHT, speed, and volume to capacity ratios.
B13: 11 | C13: TRAVEL TIME_S&L | D13: This sheet includes a Structure & Logic diagram explaining how travel time savings are estimated.
B14: 12 | C14: TRAVEL TIME_CALC | D14: This sheet calculates travel time savings to existing users.
B15: 13 | C15: VOC_S&L | D15: This sheet includes a Structure & Logic diagram explaining how out-of-pocket cost savings are estimated.
B16: 14 | C16: VOC UNIT COSTS | D16: This sheet calculates vehicle operating costs in the no build and build cases.
B17: 15 | C17: VOC_CALC | D17: This sheet calculates out-of-pocket cost savings to exisitng users.
B18: 16 | C18: INDUCED DEMAND_S&L | D18: This sheet includes a Structure & Logic diagram explaining how the economic value of induced demand is estimated.
B19: 17 | C19: INDUCED DEMAND_CALC | D19: This sheet calculates the economic value of induced demand.
B20: 18 | C20: EMISSIONS_S&L | D20: This sheet includes a Structure & Logic diagram explaining how changes in emissions are estimated.
B21: 19 | C21: EMISSIONS_CALC | D21: This sheet calculates changes in emission costs.
B22: 20 | C22: SAFETY_S&L | D22: This sheet includes a Structure & Logic diagram explaining how safety benefits are estimated.
B23: 21 | C23: SAFETY_CALC | D23: This sheet calculates accident rates in the existing and improved conditions (based on VMT and Florida specific accident rates).
B24: 22 | C24: FREIGHT LOGISTICS_CALC | D24: This tab calculates freight logistics benefits.
B25: 23 | C25: TOLL REVENUE_CALC | D25: This sheet calculates total toll revenue to the agency.
B26: 24 | C26: RESIDUAL VALUE_CALC | D26: This sheet calculates the residual value of the investment.
B27: 25 | C27: VOCLookupData | D27: This sheet contains lookup tables used to estimate vehicle consumption rates, by components, based on speed.
B28: 26 | C28: FuelCosts | D28: This sheet contains EIA projections of future fuel prices.
B29: 27 | C29: CrashData | D29: This sheet provides crash rates by district, severity, urban/rural location, and roadway type (as provided by the FDOT Safety Office).
B30: 28 | C30: EmissionsData | D30: This sheet summarizes data from EPA's MOVES model into a form usable for calculations.
B31: 29 | C31: CPIData | D31: This sheet provides CPI data to adjust dollar values.
B32: 30 | C32: CO2Costs | D32: This sheet provides estimates for the valuation of CO2 emissions by year.
B33: 31 | C33: DIAGNOSTICS | D33: This sheet includes a few diagnostic charts to check model calculations.
B34: 32 | C34: LISTS & LOOKUP | D34: This sheet includes (a) list(s) used in drop-down menus in the tool.
B36: TAB LEGEND:
C37: Information
C38: Inputs and Assumptions
C39: Calculations
C40: Outputs and Results
C41: Supporting Data
C42: Placeholders for Project Data (not linked)
B44: CELL LEGEND:
B46: Black font on green background | C46: Project specific inputs
B48: Red font on white background | C48: Model Parameters
B50: Blue font on any background | C50: Link to a cell or group of cells in another worksheet*
B52: black font on any background | C52: Text, calculation, or link to a cell or group of cells in the same worksheet
B54: Note: | C54: * There are no dynamic links to external files in this workbook

Sheet HELP
A1: This sheet provides step-by-step instructions to use the tool. | G1: Overview of the model
B3: STEP 1 | D3: DEFINE PROJECT
D4: 1.a | E4: Project Name
D5: 1.b | E5: Project Characteristics
D6: 1.c | E6: Period of Analysis
B8: STEP 2 | D8: ENTER INVESTMENT COST DATA
D9: 2.a | E9: Capital Costs
D10: 2.b | E10: Incremental Operating & Maintenance Costs
D11: 2.c | E11: Residual Value
B13: STEP 3 | D13: ENTER TRANSPORTATION DATA
D14: 3.a | E14: Specify Modeled Years
D15: 3.b | E15: Estimate VMT & VHT with SIT DATA
D16: 3.c | E16: Enter VMT & VHT Estimates
D17: 3.d | E17: Select Method for Estimating Transportation Benefits
B19: STEP 4 | D19: ENTER SAFETY DATA
D20: 4.a | E20: Use of Safety Analysis Results
D21: 4.b | E21: Use Crash Reduction Factors
D22: 4.c | E22: Use Average Crash Rates
B24: STEP 5 | D24: REVIEW MODEL PARAMETERS & OTHER ASSUMPTIONS
D25: 5.a | E25: Model Parameters
D26: 5.b | E26: Lookup Tables
D27: 5.c | E27: Diagnostic Charts
B29: STEP 6 | D29: PRODUCE AND EXPORT RESULTS
D30: 6.a | E30: Monetized Benefits and Costs
D31: 6.b | E31: Output Summary Table and Chart
D32: 6.c | E32: Conduct Sensitivity Testing

Sheet DIAGNOSTICS MINNEOLA
A1: ='PROJECT SPECIFIC INPUTS'!C4 -> Minneola Area Economic Development Facility

Sheet PROJECT SPECIFIC INPUTS
B1: This sheet contains project specific inputs that will be entered by the user.
B2: (1.A) PROJECT NAME AND PERIOD OF ANALYSIS
B4: Project / Alternative Name: | C4: Minneola Area Economic Development Facility
B6: ITEMSEG / ProjectID | C6: n/a
B7: Select Location | C7: District 5
B8: Select Region Type | C8: Urban
B9: Project Type | C9: Interchange | D9: Not in use
B10: Roadway Type | C10: Other
B11: Existing Divided/Undivided | C11: Divided | D11: Not in use
B12: Planned Divided/Undivided | C12: Divided | D12: Not in use
B13: Existing Number of Lanes | C13: 4 | D13: Not in use
B14: Planned Number of Lanes | C14: 4 | D14: Not in use
B16: First Year of Capital Spending (year) | C16: 2012
B17: Construction End Year (year) | C17: 2016
B18: Investment Useful Life (number of years) | C18: 20
B20: First year of benefits (calculated) | C20: =C17+1 -> 2017
B21: Analysis end year (calculated) | C21: =C20+C18-1 -> 2036
B25: (1.B) DETAILED COST INFORMATION - FILL IN COST INFORMATION FOR EACH YEAR, In millions of 2012 dollars
C28: =C16 -> 2012 | D28: =IF(C28<=$C$21-1,C28+1,"") -> 2013 | E28: =IF(D28<=$C$21-1,D28+1,"") -> 2014 | F28: 2015 | G28: 2016 | H28: 2017 | I28: 2018 | J28: 2019 | K28: 2020 | L28: 2021 | M28: 2022 | N28: 2023 | O28: 2024 | P28: 2025 | Q28: 2026 | R28: 2027 | S28: 2028 | T28: 2029 | U28: 2030 | V28: 2031 | W28: 2032 | X28: 2033 | Y28: 2034 | Z28: 2035 | AA28: 2036 | BQ28: =IF(BP28<=$C$21-1,BP28+1,"") -> 
B29: Annual Capital Cost, including Right of Way | C29: 0 | D29: 12.595 | E29: 11.8975975 | F29: 34.4427925 | G29: 6.25
B30: Annual Incremental Operating & Maintenance Costs | H30: 0.358 | I30: 0.3700813501 | J30: 0.3827465362 | K30: 0.3960237726 | L30: 0.4099426367 | M30: 0.4245341355 | N30: 0.4398307743 | O30: 0.4558666293 | P30: 0.4726774234 | Q30: 0.4903006059 | R30: 0.5087754357 | S30: 0.5281430691 | T30: 0.5484466511 | U30: 0.5697314118 | V30: 0.5920447671 | W30: 0.6154364243 | X30: 0.6399584926 | Y30: 0.6656655997 | Z30: 0.6926150131 | AA30: 0.7208667676 | AB30: 0.7504837995 | AC30: 0.7815320863 | AD30: 0.814080794 | AE30: 0.8482024311 | AF30: 0.8839730099 | AG30: 0.9214722162 | AH30: 0.9607835867 | AI30: 1.001994695 | AJ30: 1.045197346 | AK30: 1.090487783
B32: Total Residual Value | C32: =7.25+1.8 -> 9.05 | D32: Fully depreciated after 20 years except ROW ($7.25M for Interchange + $1.88 for N HANCOCK ROAD)
B35: (2.A) SAFETY ANALYSIS
A37: =VLOOKUP(B37,'LISTS & LOOKUP'!$A$47:$B$50,2,FALSE) -> 3 | B37: 3- Use FDOT Historical Crash Rates
B39: Crash Modification Factors Clearinghouse
B42: Safety Analysis Results - Reduction in Crashes
B43: Fatal Crashes | C43: N/A
B44: Injury Crashes | C44: N/A
B45: Property Damage Only Accidents | C45: N/A
B47: CRF - Impact of Signalization on Intersection Crashes
B48: Fatal Crashes | C48: N/A
B49: Injury Crashes | C49: N/A
B50: Property Damage Only Accidents | C50: N/A
B51: Average Number of Crashes per Year
B52: Fatal Crashes | C52: N/A
B53: Injury Crashes | C53: N/A
B54: Property Damage Only Accidents | C54: N/A
B57: (2.B) ROADWAY TRANSPORTATION DATA
B59: Year of Current Conditions | C59: 2016 | D59: Intrapolated, based on growth between 2020 and 2035 in the Base Case
B60: First Forecast Year | C60: 2020
B61: Second Forecast Year (if available) | C61: 2035
B63: VMT vs AADT
B65: VMT - Vehicle Miles Traveled
B66: AADT (Average Annual Daily Traffic for the Project can be Calculated in the "AADT_CALC" sheet) | C66: Go to "SIT DATA" Sheet
B68: DAILY vs. PEAK and OFF-PEAK ANALYSIS
A70: 1 | B70: Peak Traffic
B71: Daily Traffic
D72: BASELINE (NO BUILD) | G72: PROJECT (BUILD) | J72: =C59 -> 2016 | K72: =C60 -> 2020 | L72: =C59 -> 2016 | M72: =C60 -> 2020 | N72: 1
B73: TRAFFIC DATA | C73: =C59 -> 2016 | D73: =C60 -> 2020 | E73: =C61 -> 2035 | F73: =C59 -> 2016 | G73: =C60 -> 2020 | H73: =C61 -> 2035 | J73: Baseline Growth Rate 1 | K73: Baseline Growth Rate 2 | L73: Alternative Growth Rate 1 | M73: Alternative Growth Rate 2 | N73: =N72+1 -> 2 | T73: Input Values Estimated from SIT DATA
B74: VEHICLE MILES TRAVELED | N74: =N73+1 -> 3
B75: GENERAL PURPOSE | N75: 4
B76: AUTO - GENERAL PURPOSE - Daily VMT, miles | C76: 2815073.567 | D76: 3034667.034 | E76: 4021989.336 | F76: 2815073.567 | G76: 3118376.601 | H76: 4039953.804 | J76: =IFERROR((D76/C76)^(1/($C$60-$C$59))-1,0) -> 0.01895575031 | K76: =IF(OR(E76=0,E76=""),J76,IFERROR((E76/D76)^(1/($C$61-$C$60))-1,0)) -> 0.01895575031 | L76: =IFERROR((G76/F76)^(1/($C$60-$C$59))-1,0) -> 0.02591104047 | M76: =IF(OR(H76=0,H76=""),L76,IFERROR((H76/G76)^(1/($C$61-$C$60))-1,0)) -> 0.01741121927 | N76: 5 | T76: ='SIT DATA'!J8 -> 0 | U76: ='SIT DATA'!J10 -> 0 | V76: ='SIT DATA'!K10 -> 0
B77: TRUCK - GENERAL PURPOSE - Daily VMT, miles | C77: 312785.9518 | D77: 337185.226 | E77: 446887.704 | F77: 312785.9518 | G77: 346486.289 | H77: 448883.756 | J77: =IFERROR((D77/C77)^(1/($C$60-$C$59))-1,0) -> 0.01895575031 | K77: =IF(OR(E77=0,E77=""),J77,IFERROR((E77/D77)^(1/($C$61-$C$60))-1,0)) -> 0.01895575031 | L77: =IFERROR((G77/F77)^(1/($C$60-$C$59))-1,0) -> 0.02591104047 | M77: =IF(OR(H77=0,H77=""),L77,IFERROR((H77/G77)^(1/($C$61-$C$60))-1,0)) -> 0.01741121927 | N77: 6 | T77: ='SIT DATA'!N8 -> 0 | U77: ='SIT DATA'!N10 -> 0 | V77: ='SIT DATA'!O10 -> 0
B78: TOLLED | N78: 7
B79: AUTO - TOLLED - Daily VMT, miles | J79: =IFERROR((D79/C79)^(1/($C$60-$C$59))-1,0) -> 0 | K79: =IF(OR(E79=0,E79=""),J79,IFERROR((E79/D79)^(1/($C$61-$C$60))-1,0)) -> 0 | L79: =IFERROR((G79/F79)^(1/($C$60-$C$59))-1,0) -> 0 | M79: =IF(OR(H79=0,H79=""),L79,IFERROR((H79/G79)^(1/($C$61-$C$60))-1,0)) -> 0 | N79: 8 | T79: n/a | U79: n/a | V79: n/a
B80: TRUCK - TOLLED - Daily VMT, miles | J80: =IFERROR((D80/C80)^(1/($C$60-$C$59))-1,0) -> 0 | K80: =IF(OR(E80=0,E80=""),J80,IFERROR((E80/D80)^(1/($C$61-$C$60))-1,0)) -> 0 | L80: =IFERROR((G80/F80)^(1/($C$60-$C$59))-1,0) -> 0 | M80: =IF(OR(H80=0,H80=""),L80,IFERROR((H80/G80)^(1/($C$61-$C$60))-1,0)) -> 0 | N80: 9 | T80: n/a | U80: n/a | V80: n/a
B81: VEHICLE HOURS TRAVELED | N81: 10
B82: GENERAL PURPOSE | N82: 11
B83: AUTO - GENERAL PURPOSE - Daily VHT, hours | C83: 55163.9146 | D83: 62250.73035 | E83: 97944.39825 | F83: 55163.9146 | G83: 60202.1652 | H83: 83695.6494 | J83: =IFERROR((D83/C83)^(1/($C$60-$C$59))-1,0) -> 0.03067642741 | K83: =IF(OR(E83=0,E83=""),J83,IFERROR((E83/D83)^(1/($C$61-$C$60))-1,0)) -> 0.03067642741 | L83: =IFERROR((G83/F83)^(1/($C$60-$C$59))-1,0) -> 0.02209028053 | M83: =IF(OR(H83=0,H83=""),L83,IFERROR((H83/G83)^(1/($C$61-$C$60))-1,0)) -> 0.02220825729 | N83: 12 | T83: ='SIT DATA'!L8 -> 0 | U83: ='SIT DATA'!L10 -> 0 | V83: ='SIT DATA'!M10 -> 0
B84: TRUCK - GENERAL PURPOSE - Daily VHT, hours | C84: 6129.323844 | D84: 6916.747817 | E84: 10882.71092 | F84: 6129.323844 | G84: 6689.129467 | H84: 9299.5166 | J84: =IFERROR((D84/C84)^(1/($C$60-$C$59))-1,0) -> 0.03067642741 | K84: =IF(OR(E84=0,E84=""),J84,IFERROR((E84/D84)^(1/($C$61-$C$60))-1,0)) -> 0.03067642741 | L84: =IFERROR((G84/F84)^(1/($C$60-$C$59))-1,0) -> 0.02209028053 | M84: =IF(OR(H84=0,H84=""),L84,IFERROR((H84/G84)^(1/($C$61-$C$60))-1,0)) -> 0.02220825729 | N84: 13 | T84: ='SIT DATA'!P8 -> 0 | U84: ='SIT DATA'!P10 -> 0 | V84: ='SIT DATA'!Q10 -> 0
B85: TOLLED | N85: 14
B86: TOLLED - Daily Auto VHT, hours | J86: =IFERROR((D86/C86)^(1/($C$60-$C$59))-1,0) -> 0 | K86: =IF(OR(E86=0,E86=""),J86,IFERROR((E86/D86)^(1/($C$61-$C$60))-1,0)) -> 0 | L86: =IFERROR((G86/F86)^(1/($C$60-$C$59))-1,0) -> 0 | M86: =IF(OR(H86=0,H86=""),L86,IFERROR((H86/G86)^(1/($C$61-$C$60))-1,0)) -> 0 | N86: 15 | T86: n/a | U86: n/a | V86: n/a
B87: TOLLED - Daily Truck VHT, hours | J87: =IFERROR((D87/C87)^(1/($C$60-$C$59))-1,0) -> 0 | K87: =IF(OR(E87=0,E87=""),J87,IFERROR((E87/D87)^(1/($C$61-$C$60))-1,0)) -> 0 | L87: =IFERROR((G87/F87)^(1/($C$60-$C$59))-1,0) -> 0 | M87: =IF(OR(H87=0,H87=""),L87,IFERROR((H87/G87)^(1/($C$61-$C$60))-1,0)) -> 0 | N87: 16 | T87: n/a | U87: n/a | V87: n/a
N88: 17
B89: Free Flow Speed, MILES PER HOUR | N89: 18
B90: Free Flow Speed - GP LANES / FREE ROADS, mph | C90: 54.31913085 | D90: 54.22536971 | E90: 53.87520456 | F90: 54.31913085 | G90: 55.82968027 | H90: 55.67742625 | J90: =IFERROR((D90/C90)^(1/($C$60-$C$59))-1,0) -> -0.0004318087022 | K90: =IF(OR(E90=0,E90=""),J90,IFERROR((E90/D90)^(1/($C$61-$C$60))-1,0)) -> -0.0004318087022 | L90: =IFERROR((G90/F90)^(1/($C$60-$C$59))-1,0) -> 0.006880852529 | M90: =IF(OR(H90=0,H90=""),L90,IFERROR((H90/G90)^(1/($C$61-$C$60))-1,0)) -> -0.0001820395265 | N90: 19
B91: Free Flow Speed - TOLLED, mph | J91: =IFERROR((D91/C91)^(1/($C$60-$C$59))-1,0) -> 0 | K91: =IF(OR(E91=0,E91=""),J91,IFERROR((E91/D91)^(1/($C$61-$C$60))-1,0)) -> 0 | L91: =IFERROR((G91/F91)^(1/($C$60-$C$59))-1,0) -> 0 | M91: =IF(OR(H91=0,H91=""),L91,IFERROR((H91/G91)^(1/($C$61-$C$60))-1,0)) -> 0 | N91: 20
N92: 21
B93: Percent Peak VMT | N93: 22
A94: =SUM(C94:E95) -> 0 | B94: GENERAL PURPOSE - Percent Peak VMT | C94: N/A | D94: N/A | E94: N/A | F94: N/A | G94: N/A | H94: N/A | J94: =IFERROR((D94/C94)^(1/($C$60-$C$59))-1,0) -> 0 | K94: =IF(OR(E94=0,E94=""),J94,IFERROR((E94/D94)^(1/($C$61-$C$60))-1,0)) -> 0 | L94: =IFERROR((G94/F94)^(1/($C$60-$C$59))-1,0) -> 0 | M94: =IF(OR(H94=0,H94=""),L94,IFERROR((H94/G94)^(1/($C$61-$C$60))-1,0)) -> 0 | N94: 23
B95: TOLLED - Percent Peak VMT | C95: N/A | D95: N/A | E95: N/A | F95: N/A | G95: N/A | H95: N/A | J95: =IFERROR((D95/C95)^(1/($C$60-$C$59))-1,0) -> 0 | K95: =IF(OR(E95=0,E95=""),J95,IFERROR((E95/D95)^(1/($C$61-$C$60))-1,0)) -> 0 | L95: =IFERROR((G95/F95)^(1/($C$60-$C$59))-1,0) -> 0 | M95: =IF(OR(H95=0,H95=""),L95,IFERROR((H95/G95)^(1/($C$61-$C$60))-1,0)) -> 0 | N95: 24
N96: 25
B97: Off Peak Average Speed, MILES PER HOUR | N97: 26
A98: =SUM(C98:E99) -> 0 | B98: Genaral PURPOSE - Off Peak Average Speed | C98: N/A | D98: N/A | E98: N/A | F98: N/A | G98: N/A | H98: N/A | J98: =IFERROR((D98/C98)^(1/($C$60-$C$59))-1,0) -> 0 | K98: =IF(OR(E98=0,E98=""),J98,IFERROR((E98/D98)^(1/($C$61-$C$60))-1,0)) -> 0 | L98: =IFERROR((G98/F98)^(1/($C$60-$C$59))-1,0) -> 0 | M98: =IF(OR(H98=0,H98=""),L98,IFERROR((H98/G98)^(1/($C$61-$C$60))-1,0)) -> 0 | N98: 27
B99: TOLLED - Off Peak Average Speed | C99: N/A | D99: N/A | E99: N/A | F99: N/A | G99: N/A | H99: N/A | J99: =IFERROR((D99/C99)^(1/($C$60-$C$59))-1,0) -> 0 | K99: =IF(OR(E99=0,E99=""),J99,IFERROR((E99/D99)^(1/($C$61-$C$60))-1,0)) -> 0 | L99: =IFERROR((G99/F99)^(1/($C$60-$C$59))-1,0) -> 0 | M99: =IF(OR(H99=0,H99=""),L99,IFERROR((H99/G99)^(1/($C$61-$C$60))-1,0)) -> 0 | N99: 28
N100: 29
B101: Toll Rates, DOLLARS PER MILE | N101: 30
B102: Daily Period Toll - AUTO, $ | J102: =IFERROR((D102/C102)^(1/($C$60-$C$59))-1,0) -> 0 | K102: =IF(OR(E102=0,E102=""),J102,IFERROR((E102/D102)^(1/($C$61-$C$60))-1,0)) -> 0 | L102: =IFERROR((G102/F102)^(1/($C$60-$C$59))-1,0) -> 0 | M102: =IF(OR(H102=0,H102=""),L102,IFERROR((H102/G102)^(1/($C$61-$C$60))-1,0)) -> 0 | N102: 31
B103: Daily Period Toll - TRUCK, $ | J103: =IFERROR((D103/C103)^(1/($C$60-$C$59))-1,0) -> 0 | K103: =IF(OR(E103=0,E103=""),J103,IFERROR((E103/D103)^(1/($C$61-$C$60))-1,0)) -> 0 | L103: =IFERROR((G103/F103)^(1/($C$60-$C$59))-1,0) -> 0 | M103: =IF(OR(H103=0,H103=""),L103,IFERROR((H103/G103)^(1/($C$61-$C$60))-1,0)) -> 0 | N103: 32
A104: =SUM(C104:E104) -> 0 | B104: Off-Daily Period Toll - AUTO, $ | C104: N/A | D104: N/A | E104: N/A | F104: N/A | G104: N/A | H104: N/A | J104: =IFERROR((D104/C104)^(1/($C$60-$C$59))-1,0) -> 0 | K104: =IF(OR(E104=0,E104=""),J104,IFERROR((E104/D104)^(1/($C$61-$C$60))-1,0)) -> 0 | L104: =IFERROR((G104/F104)^(1/($C$60-$C$59))-1,0) -> 0 | M104: =IF(OR(H104=0,H104=""),L104,IFERROR((H104/G104)^(1/($C$61-$C$60))-1,0)) -> 0 | N104: =N105+1 -> 34
A105: =SUM(C105:E105) -> 0 | B105: Off-Daily Period Toll - TRUCK, $ | C105: N/A | D105: N/A | E105: N/A | F105: N/A | G105: N/A | H105: N/A | J105: =IFERROR((D105/C105)^(1/($C$60-$C$59))-1,0) -> 0 | K105: =IF(OR(E105=0,E105=""),J105,IFERROR((E105/D105)^(1/($C$61-$C$60))-1,0)) -> 0 | L105: =IFERROR((G105/F105)^(1/($C$60-$C$59))-1,0) -> 0 | M105: =IF(OR(H105=0,H105=""),L105,IFERROR((H105/G105)^(1/($C$61-$C$60))-1,0)) -> 0 | N105: =N103+1 -> 33
B108: (4.C) METHOD FOR ESTIMATING USER BENEFITS (TRAVEL TIME & OUT-OF-POCKET COST SAVINGS)*
B110: Method 1 - Consumer Surplus
B112: Use Method 1 if there is induced demand in the Build Scenario (with Project)
B113: Use Method 2 if Project reduces Vehicle Miles Traveled
B114: Methods 1 & 2 will produce simular results if VMT_Build = VMT_No Build
B403: CRF - Impact of Signalization on Intersection Crashes | D403: Source: Crash Modification Factors Clearinghouse
B404: Fatal Crashes | D404: 1- Use the safety analysis
B405: Injury Crashes | D405: 2- Rely on the rate
B406: Property Damage Only | D406: 3- Not include Safety in BCA model
B407: Average Number of Crashes per Year
B408: Fatal Crashes
B409: Injury Crashes
B410: Property Damage Only

Sheet PARAMETERS
A1: This sheet contains model parameters that are consistent across all projects
A2: PARAMETERS
A4: General Information / Parameter | B4: Value | C4: Units | D4: Source / Comment
A5: Analysis Options
A6: Analysis Base Year | B6: 2012 | C6: year
A7: Discount Rate | B7: 0.07 | C7: percent
A8: Units for Display | B8: 1000000
A9: Annualization Factor | B9: 300 | C9: days
A11: Unit Conversions
A12: Pounds per Metric Ton | B12: 2205 | C12: lbs
A13: Pounds per Long Ton | B13: 2240 | C13: lbs
A15: Emissions Costs
A16: Nitrogen Oxides (NOx) | B16: 5870 | C16: $ per long ton | D16: NHTSA, Final Regulatory Impact Analysis, CAFE for MY 2012-MY 2016 Passenger Cars and Light Trucks, Mar 2010
A17: Volatile Organic Compounds (VOC) | B17: 1440 | C17: $ per long ton | D17: NHTSA, Final Regulatory Impact Analysis, CAFE for MY 2012-MY 2016 Passenger Cars and Light Trucks, Mar 2010
A18: Fine Particulate Matter (PM) | B18: 321120 | C18: $ per long ton | D18: NHTSA, Final Regulatory Impact Analysis, CAFE for MY 2012-MY 2016 Passenger Cars and Light Trucks, Mar 2010
A19: Sulfur Dioxide (SO2) | B19: 34330 | C19: $ per long ton | D19: NHTSA, Final Regulatory Impact Analysis, CAFE for MY 2012-MY 2016 Passenger Cars and Light Trucks, Mar 2010
A20: Carbon Monoxide (CO) | B20: 0 | C20: $ per metric ton | D20: NHTSA, Final Regulatory Impact Analysis, CAFE for MY 2012-MY 2016 Passenger Cars and Light Trucks, Mar 2010
A21: Carbon Dioxide (CO2) - Discount Rate | B21: 0.03 | C21: percent | D21: IWGSCC, Social Cost of Carbon for Regulatory Impact Analysis Under Executive Order 12866, Feb 2011
A23: Transportation Assumptions
A24: Average Vehicle Occupancy (Default National) - Auto Peak Non-Tolled | B24: 1.25 | C24: persons per vehicle | D24: Texas Transportation Institute, 2011 Urban Mobility Report (conservative assumption for daily average)
A25: Average Vehicle Occupancy (Default National) - Auto Peak Tolled | B25: =B24 -> 1.25
A26: Average Vehicle Occupancy (Default National) - Auto Off Peak Non-Tolled | B26: =B24 -> 1.25
A27: Average Vehicle Occupancy (Default National) - Auto Off Peak Tolled | B27: =B24 -> 1.25
A28: Average Vehicle Occupancy (Default National) - Truck Peak Non-Tolled | B28: 1
A29: Average Vehicle Occupancy (Default National) - Truck Peak Tolled | B29: =B28 -> 1
A30: Average Vehicle Occupancy (Default National) - Truck Off Peak Non-Tolled | B30: =B28 -> 1
A31: Average Vehicle Occupancy (Default National) - Truck Off PeakTolled | B31: =B28 -> 1
A32: Freight Logistics Premium (with induced demand) | B32: 0 | C32: % of generalized cost savings | D32: Based on Federal Highway Administration, Freight Benefit/Cost Study, Feb 2008
A33: Freight Logistics Premium (without induced demand) | B33: 0 | C33: % of generalized cost savings | D33: Based on Federal Highway Administration, Freight Benefit/Cost Study, Feb 2008
A35: Auto Maintenance Cost (Med/Lg Automobile)
A36: Auto Tire Cost | B36: 96.42367265 | C36: per tire | D36: HERS Technical Report, 2002, Updated to from 1997$ to 2012$ using BLS Series CUUR0000SETC01
A37: Auto Maintenance Cost | B37: 161.6418082 | C37: per 1,000 miles | D37: HERS Technical Report, 2002, Updated to from 1997$ to 2012$ using BLS Series CUUR0000SETD
A38: Auto Depreciation | B38: 21742.69359 | C38: per vehicle | D38: HERS Technical Report, 2002, Updated to from 1997$ to 2012$ using BLS Series CUUR0000SS45021
A39: Oil Price - Auto | B39: 9.755782141 | C39: per quart | D39: HERS Technical Report, 2002, Updated from 1997$ to 2012$ using BLS Series CUUR0000SS47021
A41: Truck Maintenance Costs (Avg. 4-5 Axle Combo)
A42: Truck Tire Cost | B42: 634.7779401 | C42: per tire
A43: Avg Truck Maint Cost | B43: 563.292413 | C43: per 1,000 miles | D43: HERS Technical Report, 2002, Updated to from 1997$ to 2012$ using BLS Series CUUR0000SETD
A44: Vehicle Depreciation | B44: 90306.29236 | C44: per vehicle | D44: HERS Technical Report, 2002, Updated to from 1997$ to 2012$ using BLS Series CUUR0000SS45021
A45: Oil Price - Truck | B45: 3.901766773 | C45: per quart | D45: HERS Technical Report, 2002, Updated to from 1997$ to 2012$ using BLS Series CUUR0000SS47021
A47: Value of Time
A48: Time Valuation - Percent of Earnings
A49: Share of personal travel in total local travel - non tolled peak | B49: 0.954 | C49: percent | D49: US DOT, Revised Departmental Guidance on VTT in Economic Analysis, Sep 2011
A50: Share of personal travel in total local travel - tolled peak | B50: =B49 -> 0.954 | C50: percent
A51: Share of personal travel in total local travel - non tolled off peak | B51: =B50 -> 0.954 | C51: percent
A52: Share of personal travel in total local travel - tolled off peak | B52: =B51 -> 0.954 | C52: percent
A53: Share of business travel in total local travel - non tolled peak | B53: 0.046 | C53: percent
A54: Share of business travel in total local travel - tolled peak | B54: =B53 -> 0.046 | C54: percent
A55: Share of business travel in total local travel - non tolled off peak | B55: =B53 -> 0.046 | C55: percent
A56: Share of business travel in total local travel - tolled off peak | B56: =B53 -> 0.046 | C56: percent
A58: Local and Intercity - Earnings | G58: LOW | H58: HIGH
A59: Hourly Earnings - Personal local | B59: 13.0477 | C59: 2012$ | D59: US DOT, Revised Departmental Guidance on VTT in Economic Analysis, Sep 2011 | F59: 13.0477 | G59: 9.133375752 | H59: 15.54848491
A60: Hourly Earnings - Local Business | B60: 24.8993 | C60: 2012$ | D60: US DOT, Revised Departmental Guidance on VTT in Economic Analysis, Sep 2011 | F60: 24.8993 | G60: 19.89771146 | H60: 29.90093252
A61: Percent Increase in VOT for Tolled Local Personal Autos | B61: 0 | C61: percent
A62: Hourly VOT - Tolled Local Personal Autos | B62: =B59*(1+B61) -> 13.0477 | C62: 2012$
A63: Hourly VOT - Tolled Local Business Autos | B63: =B60 -> 24.8993 | C63: 2012$
A64: Annual wage growth rate | B64: 0.016 | C64: percent | D64: CBO & US DOT, Revised Departmental Guidance on VTT in Economic Analysis
A65: Earnings by Transit Occupation
A66: Truck Drivers | B66: 26.85647394 | C66: 2012$ | D66: US DOT, Revised Departmental Guidance on VTT in Economic Analysis, Sep 2011
A68: Freight Transportation
A69: Average Inventory Cost, $ per truck per hour | B69: 0 | C69: 2012$ | D69: USDOT, Assessing the Full Costs of Congestion on Surface Transportation Systems and Reducing Them through Pricing, Feb 2009 (Prepared by HDR|Decision Economics)
A70: Value of Time for Trucks, $ per hour - Non-Tolled | B70: 26.8565 | C70: 2012$ | D70: Calculated
A71: Value of Time for Trucks, $ per hour - Tolled | B71: =B66+B69 -> 26.85647394 | C71: 2012$ | D71: Calculated
A73: Transportation Crash Assumptions | G73: LOW | H73: HIGH
A74: Fatal accident cost (K) | B74: 9100000 | C74: $ per accident | D74: US DOT, Revised Departmental Guidance on VTT in Economic Analysis, Sep 2011 | F74: 9100000 | G74: 5200000 | H74: 12900000
A75: Severe Injury Accident Cost (A) | B75: 435207.773 | C75: $ per accident | D75: US DOT, Revised Departmental Guidance on VTT in Economic Analysis, Sep 2011 | F75: 435207.773 | G75: 248690.156 | H75: 616942.887
A76: Moderate Injury Accident Cost (B) | B76: 118536.873 | C76: $ per accident | D76: US DOT, Revised Departmental Guidance on VTT in Economic Analysis, Sep 2011 | F76: 118536.873 | G76: 67735.356 | H76: 168035.787
A77: Minor Injury Accident Cost ( C) | B77: 60528.741 | C77: $ per accident | D77: US DOT, Revised Departmental Guidance on VTT in Economic Analysis, Sep 2011 | F77: 60528.741 | G77: 34587.852 | H77: 85804.479
A78: Pers. Inj. Accident cost - (No KABCO data) - Severity Unknown | B78: 164965.2004 | C78: $ per accident | D78: US DOT, Revised Departmental Guidance on VTT in Economic Analysis, Sep 2011 | F78: 164965.2004 | G78: 94265.8288 | H78: 233851.7676
A79: PDO accident cost () | B79: 3375.63912 | C79: $ per accident | D79: US DOT, Revised Departmental Guidance on VTT in Economic Analysis, Sep 2011 | F79: 3375.63912 | G79: 3375.63912 | H79: 3375.63912
A80: Annual increase in value of life | B80: 0.0107 | C80: percent per year | D80: US DOT, Revised Departmental Guidance on VTT in Economic Analysis, Sep 2011
A82: BPR Equation Parameters
A83: a-value | B83: 0.34
A84: b-value | B84: 4
A85: capacity | B85: 1700 | C85: vehicles per lane per hour
B112: 12.4165
B113: 24.4187
B132: 56.0317
B135: 6380000

Sheet SUMMARY TABLES
B1: TABLES FOR TECHNICAL DOCUMENTATION
B3: Benefit-Cost Analysis Results by Calendar Year
B4: Calendar Year | C4: Project Year | D4: Total Benefits in 2012 Dollars | E4: Total Costs in 2012 Dollars | F4: Undiscounted Net Benefits | G4: Discounted Net Benefit @ 7% | H4: Discounted Net Benefit @ 3%
B5: ='PROJECT SPECIFIC INPUTS'!$C$16 -> 2012 | C5: 1 | D5: =OFFSET('BENEFITS & COSTS'!$D$22,0,'SUMMARY TABLES'!$B5-'PROJECT SPECIFIC INPUTS'!$C$16) -> 0 | E5: =OFFSET('BENEFITS & COSTS'!$D$14,0,'SUMMARY TABLES'!$B5-'PROJECT SPECIFIC INPUTS'!$C$16) -> 0 | F5: =D5-E5 -> 0 | G5: =OFFSET('BENEFITS & COSTS'!$D$61,0,'SUMMARY TABLES'!$B5-'PROJECT SPECIFIC INPUTS'!$C$16)*10^6 -> 0 | H5: 0
B6: =1+B5 -> 2013 | C6: 2 | D6: =OFFSET('BENEFITS & COSTS'!$D$22,0,'SUMMARY TABLES'!$B6-'PROJECT SPECIFIC INPUTS'!$C$16) -> 0 | E6: =OFFSET('BENEFITS & COSTS'!$D$14,0,'SUMMARY TABLES'!$B6-'PROJECT SPECIFIC INPUTS'!$C$16) -> 12595000 | F6: =D6-E6 -> -12595000 | G6: =OFFSET('BENEFITS & COSTS'!$D$61,0,'SUMMARY TABLES'!$B6-'PROJECT SPECIFIC INPUTS'!$C$16)*10^6 -> -11771028.04 | H6: -12228155.34
B7: =1+B6 -> 2014 | C7: 3 | D7: =OFFSET('BENEFITS & COSTS'!$D$22,0,'SUMMARY TABLES'!$B7-'PROJECT SPECIFIC INPUTS'!$C$16) -> 0 | E7: =OFFSET('BENEFITS & COSTS'!$D$14,0,'SUMMARY TABLES'!$B7-'PROJECT SPECIFIC INPUTS'!$C$16) -> 11897597.5 | F7: -11897597.5 | G7: =OFFSET('BENEFITS & COSTS'!$D$61,0,'SUMMARY TABLES'!$B7-'PROJECT SPECIFIC INPUTS'!$C$16)*10^6 -> -10391822.43 | H7: -11214626.73
B8: 2015 | C8: 4 | D8: =OFFSET('BENEFITS & COSTS'!$D$22,0,'SUMMARY TABLES'!$B8-'PROJECT SPECIFIC INPUTS'!$C$16) -> 0 | E8: =OFFSET('BENEFITS & COSTS'!$D$14,0,'SUMMARY TABLES'!$B8-'PROJECT SPECIFIC INPUTS'!$C$16) -> 34442792.5 | F8: -34442792.5 | G8: =OFFSET('BENEFITS & COSTS'!$D$61,0,'SUMMARY TABLES'!$B8-'PROJECT SPECIFIC INPUTS'!$C$16)*10^6 -> -28115578.39 | H8: -31520034.28
B9: 2016 | C9: 5 | D9: =OFFSET('BENEFITS & COSTS'!$D$22,0,'SUMMARY TABLES'!$B9-'PROJECT SPECIFIC INPUTS'!$C$16) -> 0 | E9: =OFFSET('BENEFITS & COSTS'!$D$14,0,'SUMMARY TABLES'!$B9-'PROJECT SPECIFIC INPUTS'!$C$16) -> 6250000 | F9: -6250000 | G9: =OFFSET('BENEFITS & COSTS'!$D$61,0,'SUMMARY TABLES'!$B9-'PROJECT SPECIFIC INPUTS'!$C$16)*10^6 -> -4768095.075 | H9: -5553044.049
B10: 2017 | C10: 6 | D10: =OFFSET('BENEFITS & COSTS'!$D$22,0,'SUMMARY TABLES'!$B10-'PROJECT SPECIFIC INPUTS'!$C$16) -> 7089471.559 | E10: =OFFSET('BENEFITS & COSTS'!$D$14,0,'SUMMARY TABLES'!$B10-'PROJECT SPECIFIC INPUTS'!$C$16) -> 358000 | F10: 6731471.559 | G10: =OFFSET('BENEFITS & COSTS'!$D$61,0,'SUMMARY TABLES'!$B10-'PROJECT SPECIFIC INPUTS'!$C$16)*10^6 -> 4786637.592 | H10: 5806626.499
B11: 2018 | C11: 7 | D11: =OFFSET('BENEFITS & COSTS'!$D$22,0,'SUMMARY TABLES'!$B11-'PROJECT SPECIFIC INPUTS'!$C$16) -> 9600881.797 | E11: =OFFSET('BENEFITS & COSTS'!$D$14,0,'SUMMARY TABLES'!$B11-'PROJECT SPECIFIC INPUTS'!$C$16) -> 370081.3501 | F11: 9230800.447 | G11: =OFFSET('BENEFITS & COSTS'!$D$61,0,'SUMMARY TABLES'!$B11-'PROJECT SPECIFIC INPUTS'!$C$16)*10^6 -> 6195957.245 | H11: 7730650.051
B12: 2019 | C12: 8 | D12: =OFFSET('BENEFITS & COSTS'!$D$22,0,'SUMMARY TABLES'!$B12-'PROJECT SPECIFIC INPUTS'!$C$16) -> 11894526.9 | E12: =OFFSET('BENEFITS & COSTS'!$D$14,0,'SUMMARY TABLES'!$B12-'PROJECT SPECIFIC INPUTS'!$C$16) -> 382746.5362 | F12: 11511780.37 | G12: =OFFSET('BENEFITS & COSTS'!$D$61,0,'SUMMARY TABLES'!$B12-'PROJECT SPECIFIC INPUTS'!$C$16)*10^6 -> 7203221.815 | H12: 9360130.896
B13: 2020 | C13: 9 | D13: =OFFSET('BENEFITS & COSTS'!$D$22,0,'SUMMARY TABLES'!$B13-'PROJECT SPECIFIC INPUTS'!$C$16) -> 15062374.06 | E13: =OFFSET('BENEFITS & COSTS'!$D$14,0,'SUMMARY TABLES'!$B13-'PROJECT SPECIFIC INPUTS'!$C$16) -> 396023.7726 | F13: 14666350.29 | G13: =OFFSET('BENEFITS & COSTS'!$D$61,0,'SUMMARY TABLES'!$B13-'PROJECT SPECIFIC INPUTS'!$C$16)*10^6 -> 8554767.652 | H13: 11577752.35
B14: 2021 | C14: 10 | D14: =OFFSET('BENEFITS & COSTS'!$D$22,0,'SUMMARY TABLES'!$B14-'PROJECT SPECIFIC INPUTS'!$C$16) -> 18036425.63 | E14: =OFFSET('BENEFITS & COSTS'!$D$14,0,'SUMMARY TABLES'!$B14-'PROJECT SPECIFIC INPUTS'!$C$16) -> 409942.6367 | F14: 17626482.99 | G14: =OFFSET('BENEFITS & COSTS'!$D$61,0,'SUMMARY TABLES'!$B14-'PROJECT SPECIFIC INPUTS'!$C$16)*10^6 -> 9613601.422 | H14: 13509231.5
B15: 2022 | C15: 11 | D15: =OFFSET('BENEFITS & COSTS'!$D$22,0,'SUMMARY TABLES'!$B15-'PROJECT SPECIFIC INPUTS'!$C$16) -> 21597781.92 | E15: =OFFSET('BENEFITS & COSTS'!$D$14,0,'SUMMARY TABLES'!$B15-'PROJECT SPECIFIC INPUTS'!$C$16) -> 424534.1355 | F15: 21173247.79 | G15: =OFFSET('BENEFITS & COSTS'!$D$61,0,'SUMMARY TABLES'!$B15-'PROJECT SPECIFIC INPUTS'!$C$16)*10^6 -> 10797354.8 | H15: 15754884.84
B16: 2023 | C16: 12 | D16: =OFFSET('BENEFITS & COSTS'!$D$22,0,'SUMMARY TABLES'!$B16-'PROJECT SPECIFIC INPUTS'!$C$16) -> 25972020.26 | E16: =OFFSET('BENEFITS & COSTS'!$D$14,0,'SUMMARY TABLES'!$B16-'PROJECT SPECIFIC INPUTS'!$C$16) -> 439830.7743 | F16: 25532189.49 | G16: =OFFSET('BENEFITS & COSTS'!$D$61,0,'SUMMARY TABLES'!$B16-'PROJECT SPECIFIC INPUTS'!$C$16)*10^6 -> 12173088.96 | H16: 18444996.92
B17: 2024 | C17: 13 | D17: =OFFSET('BENEFITS & COSTS'!$D$22,0,'SUMMARY TABLES'!$B17-'PROJECT SPECIFIC INPUTS'!$C$16) -> 30098324.15 | E17: =OFFSET('BENEFITS & COSTS'!$D$14,0,'SUMMARY TABLES'!$B17-'PROJECT SPECIFIC INPUTS'!$C$16) -> 455866.6293 | F17: 29642457.52 | G17: =OFFSET('BENEFITS & COSTS'!$D$61,0,'SUMMARY TABLES'!$B17-'PROJECT SPECIFIC INPUTS'!$C$16)*10^6 -> 13214185.43 | H17: 20790623.3
B18: 2025 | C18: 14 | D18: =OFFSET('BENEFITS & COSTS'!$D$22,0,'SUMMARY TABLES'!$B18-'PROJECT SPECIFIC INPUTS'!$C$16) -> 34565510.44 | E18: =OFFSET('BENEFITS & COSTS'!$D$14,0,'SUMMARY TABLES'!$B18-'PROJECT SPECIFIC INPUTS'!$C$16) -> 472677.4234 | F18: 34092833.01 | G18: =OFFSET('BENEFITS & COSTS'!$D$61,0,'SUMMARY TABLES'!$B18-'PROJECT SPECIFIC INPUTS'!$C$16)*10^6 -> 14210595.23 | H18: 23215560.33
B19: 2026 | C19: 15 | D19: =OFFSET('BENEFITS & COSTS'!$D$22,0,'SUMMARY TABLES'!$B19-'PROJECT SPECIFIC INPUTS'!$C$16) -> 39801544.38 | E19: =OFFSET('BENEFITS & COSTS'!$D$14,0,'SUMMARY TABLES'!$B19-'PROJECT SPECIFIC INPUTS'!$C$16) -> 490300.6059 | F19: 39311243.78 | G19: =OFFSET('BENEFITS & COSTS'!$D$61,0,'SUMMARY TABLES'!$B19-'PROJECT SPECIFIC INPUTS'!$C$16)*10^6 -> 15320117.8 | H19: 25989363.23
B20: 2027 | C20: 16 | D20: =OFFSET('BENEFITS & COSTS'!$D$22,0,'SUMMARY TABLES'!$B20-'PROJECT SPECIFIC INPUTS'!$C$16) -> 45595737.52 | E20: =OFFSET('BENEFITS & COSTS'!$D$14,0,'SUMMARY TABLES'!$B20-'PROJECT SPECIFIC INPUTS'!$C$16) -> 508775.4357 | F20: 45086962.08 | G20: =OFFSET('BENEFITS & COSTS'!$D$61,0,'SUMMARY TABLES'!$B20-'PROJECT SPECIFIC INPUTS'!$C$16)*10^6 -> 16505456.07 | H20: 28939605.28
B21: 2028 | C21: 17 | D21: =OFFSET('BENEFITS & COSTS'!$D$22,0,'SUMMARY TABLES'!$B21-'PROJECT SPECIFIC INPUTS'!$C$16) -> 51438999.75 | E21: =OFFSET('BENEFITS & COSTS'!$D$14,0,'SUMMARY TABLES'!$B21-'PROJECT SPECIFIC INPUTS'!$C$16) -> 528143.0691 | F21: 50910856.68 | G21: =OFFSET('BENEFITS & COSTS'!$D$61,0,'SUMMARY TABLES'!$B21-'PROJECT SPECIFIC INPUTS'!$C$16)*10^6 -> 17245386.15 | H21: 31725962.73
B22: 2029 | C22: 18 | D22: =OFFSET('BENEFITS & COSTS'!$D$22,0,'SUMMARY TABLES'!$B22-'PROJECT SPECIFIC INPUTS'!$C$16) -> 58166233.33 | E22: =OFFSET('BENEFITS & COSTS'!$D$14,0,'SUMMARY TABLES'!$B22-'PROJECT SPECIFIC INPUTS'!$C$16) -> 548446.6511 | F22: 57617786.68 | G22: =OFFSET('BENEFITS & COSTS'!$D$61,0,'SUMMARY TABLES'!$B22-'PROJECT SPECIFIC INPUTS'!$C$16)*10^6 -> 18249039.99 | H22: 34859708.51
B23: 2030 | C23: 19 | D23: =OFFSET('BENEFITS & COSTS'!$D$22,0,'SUMMARY TABLES'!$B23-'PROJECT SPECIFIC INPUTS'!$C$16) -> 60088622.23 | E23: =OFFSET('BENEFITS & COSTS'!$D$14,0,'SUMMARY TABLES'!$B23-'PROJECT SPECIFIC INPUTS'!$C$16) -> 569731.4118 | F23: 59518890.82 | G23: =OFFSET('BENEFITS & COSTS'!$D$61,0,'SUMMARY TABLES'!$B23-'PROJECT SPECIFIC INPUTS'!$C$16)*10^6 -> 17627665.76 | H23: 34961075.52
B24: 2031 | C24: 20 | D24: =OFFSET('BENEFITS & COSTS'!$D$22,0,'SUMMARY TABLES'!$B24-'PROJECT SPECIFIC INPUTS'!$C$16) -> 68387078.16 | E24: =OFFSET('BENEFITS & COSTS'!$D$14,0,'SUMMARY TABLES'!$B24-'PROJECT SPECIFIC INPUTS'!$C$16) -> 592044.7671 | F24: 67795033.39 | G24: =OFFSET('BENEFITS & COSTS'!$D$61,0,'SUMMARY TABLES'!$B24-'PROJECT SPECIFIC INPUTS'!$C$16)*10^6 -> 18774298.25 | H24: 38662560.23
B25: 2032 | C25: 21 | D25: =OFFSET('BENEFITS & COSTS'!$D$22,0,'SUMMARY TABLES'!$B25-'PROJECT SPECIFIC INPUTS'!$C$16) -> 76892150.68 | E25: =OFFSET('BENEFITS & COSTS'!$D$14,0,'SUMMARY TABLES'!$B25-'PROJECT SPECIFIC INPUTS'!$C$16) -> 615436.4243 | F25: 76276714.25 | G25: =OFFSET('BENEFITS & COSTS'!$D$61,0,'SUMMARY TABLES'!$B25-'PROJECT SPECIFIC INPUTS'!$C$16)*10^6 -> 19750849.95 | H25: 42232567.29
B26: 2033 | C26: 22 | D26: =OFFSET('BENEFITS & COSTS'!$D$22,0,'SUMMARY TABLES'!$B26-'PROJECT SPECIFIC INPUTS'!$C$16) -> 86149109.63 | E26: =OFFSET('BENEFITS & COSTS'!$D$14,0,'SUMMARY TABLES'!$B26-'PROJECT SPECIFIC INPUTS'!$C$16) -> 639958.4926 | F26: 85509151.13 | G26: =OFFSET('BENEFITS & COSTS'!$D$61,0,'SUMMARY TABLES'!$B26-'PROJECT SPECIFIC INPUTS'!$C$16)*10^6 -> 20702789.74 | H26: 45965382.28
B27: 2034 | C27: 23 | D27: =OFFSET('BENEFITS & COSTS'!$D$22,0,'SUMMARY TABLES'!$B27-'PROJECT SPECIFIC INPUTS'!$C$16) -> 96378586.46 | E27: =OFFSET('BENEFITS & COSTS'!$D$14,0,'SUMMARY TABLES'!$B27-'PROJECT SPECIFIC INPUTS'!$C$16) -> 665665.5997 | F27: 95712920.86 | G27: =OFFSET('BENEFITS & COSTS'!$D$61,0,'SUMMARY TABLES'!$B27-'PROJECT SPECIFIC INPUTS'!$C$16)*10^6 -> 21667496.85 | H27: 49951855.63
B28: 2035 | C28: 24 | D28: =OFFSET('BENEFITS & COSTS'!$D$22,0,'SUMMARY TABLES'!$B28-'PROJECT SPECIFIC INPUTS'!$C$16) -> 106931181.3 | E28: =OFFSET('BENEFITS & COSTS'!$D$14,0,'SUMMARY TABLES'!$B28-'PROJECT SPECIFIC INPUTS'!$C$16) -> 692615.0131 | F28: 106238566.3 | G28: =OFFSET('BENEFITS & COSTS'!$D$61,0,'SUMMARY TABLES'!$B28-'PROJECT SPECIFIC INPUTS'!$C$16)*10^6 -> 22487652.2 | H28: 53830204.91
B29: 2036 | C29: 25 | D29: =OFFSET('BENEFITS & COSTS'!$D$22,0,'SUMMARY TABLES'!$B29-'PROJECT SPECIFIC INPUTS'!$C$16) -> 117990110.6 | E29: =OFFSET('BENEFITS & COSTS'!$D$14,0,'SUMMARY TABLES'!$B29-'PROJECT SPECIFIC INPUTS'!$C$16) -> 720866.7676 | F29: 117269243.8 | G29: =OFFSET('BENEFITS & COSTS'!$D$61,0,'SUMMARY TABLES'!$B29-'PROJECT SPECIFIC INPUTS'!$C$16)*10^6 -> 23197395.26 | H29: 57688697.25
B30: Total | D30: =SUM(D5:D29) -> 981736670.7 | E30: =SUM(E5:E29) -> 75467077.5 | F30: =SUM(F5:F29) -> 906269593.2 | G30: =SUM(G5:G29) -> 243231034.2 | H30: =SUM(H5:H29) -> 510481579.2
B32: Table 19: Summary of Travel Demand Projections by Calendar Year
B33: Calendar Year | C33: Project Year | D33: Daily VMT | E33: Daily VMT | F33: Daily VHT | G33: Daily VHT | H33: Average Vehicle Speed No-Build | I33: Average Vehicle Speed Build
D34: No-Build | E34: Build | F34: No-Build | G34: Build
B35: 2012 | C35: 1 | D35: =IF($B35<'PROJECT SPECIFIC INPUTS'!$C$20,0,OFFSET('TRAFFIC & SPEED_CALC'!$D$12,0,'SUMMARY TABLES'!$B35-'PROJECT SPECIFIC INPUTS'!$C$20)) -> 0 | E35: =IF($B35<'PROJECT SPECIFIC INPUTS'!$C$20,0,OFFSET('TRAFFIC & SPEED_CALC'!$D$17,0,'SUMMARY TABLES'!$B35-'PROJECT SPECIFIC INPUTS'!$C$20)) -> 0 | F35: =IF($B35<'PROJECT SPECIFIC INPUTS'!$C$20,0,OFFSET('TRAFFIC & SPEED_CALC'!$D$36,0,'SUMMARY TABLES'!$B35-'PROJECT SPECIFIC INPUTS'!$C$20)) -> 0 | G35: =IF($B35<'PROJECT SPECIFIC INPUTS'!$C$20,0,OFFSET('TRAFFIC & SPEED_CALC'!$D$41,0,'SUMMARY TABLES'!$B35-'PROJECT SPECIFIC INPUTS'!$C$20)) -> 0 | H35: =IF($B35<'PROJECT SPECIFIC INPUTS'!$C$20,0,OFFSET('TRAFFIC & SPEED_CALC'!$D$69,0,'SUMMARY TABLES'!$B35-'PROJECT SPECIFIC INPUTS'!$C$20)) -> 0 | I35: =IF($B35<'PROJECT SPECIFIC INPUTS'!$C$20,0,OFFSET('TRAFFIC & SPEED_CALC'!$D$70,0,'SUMMARY TABLES'!$B35-'PROJECT SPECIFIC INPUTS'!$C$20)) -> 0
B36: 2013 | C36: 2 | D36: =IF($B36<'PROJECT SPECIFIC INPUTS'!$C$20,0,OFFSET('TRAFFIC & SPEED_CALC'!$D$12,0,'SUMMARY TABLES'!$B36-'PROJECT SPECIFIC INPUTS'!$C$20)) -> 0 | E36: =IF($B36<'PROJECT SPECIFIC INPUTS'!$C$20,0,OFFSET('TRAFFIC & SPEED_CALC'!$D$17,0,'SUMMARY TABLES'!$B36-'PROJECT SPECIFIC INPUTS'!$C$20)) -> 0 | F36: =IF($B36<'PROJECT SPECIFIC INPUTS'!$C$20,0,OFFSET('TRAFFIC & SPEED_CALC'!$D$36,0,'SUMMARY TABLES'!$B36-'PROJECT SPECIFIC INPUTS'!$C$20)) -> 0 | G36: =IF($B36<'PROJECT SPECIFIC INPUTS'!$C$20,0,OFFSET('TRAFFIC & SPEED_CALC'!$D$41,0,'SUMMARY TABLES'!$B36-'PROJECT SPECIFIC INPUTS'!$C$20)) -> 0 | H36: =IF($B36<'PROJECT SPECIFIC INPUTS'!$C$20,0,OFFSET('TRAFFIC & SPEED_CALC'!$D$69,0,'SUMMARY TABLES'!$B36-'PROJECT SPECIFIC INPUTS'!$C$20)) -> 0 | I36: =IF($B36<'PROJECT SPECIFIC INPUTS'!$C$20,0,OFFSET('TRAFFIC & SPEED_CALC'!$D$70,0,'SUMMARY TABLES'!$B36-'PROJECT SPECIFIC INPUTS'!$C$20)) -> 0
B37: 2014 | C37: 3 | D37: =IF($B37<'PROJECT SPECIFIC INPUTS'!$C$20,0,OFFSET('TRAFFIC & SPEED_CALC'!$D$12,0,'SUMMARY TABLES'!$B37-'PROJECT SPECIFIC INPUTS'!$C$20)) -> 0 | E37: =IF($B37<'PROJECT SPECIFIC INPUTS'!$C$20,0,OFFSET('TRAFFIC & SPEED_CALC'!$D$17,0,'SUMMARY TABLES'!$B37-'PROJECT SPECIFIC INPUTS'!$C$20)) -> 0 | F37: =IF($B37<'PROJECT SPECIFIC INPUTS'!$C$20,0,OFFSET('TRAFFIC & SPEED_CALC'!$D$36,0,'SUMMARY TABLES'!$B37-'PROJECT SPECIFIC INPUTS'!$C$20)) -> 0 | G37: =IF($B37<'PROJECT SPECIFIC INPUTS'!$C$20,0,OFFSET('TRAFFIC & SPEED_CALC'!$D$41,0,'SUMMARY TABLES'!$B37-'PROJECT SPECIFIC INPUTS'!$C$20)) -> 0 | H37: =IF($B37<'PROJECT SPECIFIC INPUTS'!$C$20,0,OFFSET('TRAFFIC & SPEED_CALC'!$D$69,0,'SUMMARY TABLES'!$B37-'PROJECT SPECIFIC INPUTS'!$C$20)) -> 0 | I37: =IF($B37<'PROJECT SPECIFIC INPUTS'!$C$20,0,OFFSET('TRAFFIC & SPEED_CALC'!$D$70,0,'SUMMARY TABLES'!$B37-'PROJECT SPECIFIC INPUTS'!$C$20)) -> 0
B38: 2015 | C38: 4 | D38: =IF($B38<'PROJECT SPECIFIC INPUTS'!$C$20,0,OFFSET('TRAFFIC & SPEED_CALC'!$D$12,0,'SUMMARY TABLES'!$B38-'PROJECT SPECIFIC INPUTS'!$C$20)) -> 0 | E38: =IF($B38<'PROJECT SPECIFIC INPUTS'!$C$20,0,OFFSET('TRAFFIC & SPEED_CALC'!$D$17,0,'SUMMARY TABLES'!$B38-'PROJECT SPECIFIC INPUTS'!$C$20)) -> 0 | F38: =IF($B38<'PROJECT SPECIFIC INPUTS'!$C$20,0,OFFSET('TRAFFIC & SPEED_CALC'!$D$36,0,'SUMMARY TABLES'!$B38-'PROJECT SPECIFIC INPUTS'!$C$20)) -> 0 | G38: =IF($B38<'PROJECT SPECIFIC INPUTS'!$C$20,0,OFFSET('TRAFFIC & SPEED_CALC'!$D$41,0,'SUMMARY TABLES'!$B38-'PROJECT SPECIFIC INPUTS'!$C$20)) -> 0 | H38: =IF($B38<'PROJECT SPECIFIC INPUTS'!$C$20,0,OFFSET('TRAFFIC & SPEED_CALC'!$D$69,0,'SUMMARY TABLES'!$B38-'PROJECT SPECIFIC INPUTS'!$C$20)) -> 0 | I38: =IF($B38<'PROJECT SPECIFIC INPUTS'!$C$20,0,OFFSET('TRAFFIC & SPEED_CALC'!$D$70,0,'SUMMARY TABLES'!$B38-'PROJECT SPECIFIC INPUTS'!$C$20)) -> 0
B39: 2016 | C39: 5 | D39: =IF($B39<'PROJECT SPECIFIC INPUTS'!$C$20,0,OFFSET('TRAFFIC & SPEED_CALC'!$D$12,0,'SUMMARY TABLES'!$B39-'PROJECT SPECIFIC INPUTS'!$C$20)) -> 0 | E39: =IF($B39<'PROJECT SPECIFIC INPUTS'!$C$20,0,OFFSET('TRAFFIC & SPEED_CALC'!$D$17,0,'SUMMARY TABLES'!$B39-'PROJECT SPECIFIC INPUTS'!$C$20)) -> 0 | F39: =IF($B39<'PROJECT SPECIFIC INPUTS'!$C$20,0,OFFSET('TRAFFIC & SPEED_CALC'!$D$36,0,'SUMMARY TABLES'!$B39-'PROJECT SPECIFIC INPUTS'!$C$20)) -> 0 | G39: =IF($B39<'PROJECT SPECIFIC INPUTS'!$C$20,0,OFFSET('TRAFFIC & SPEED_CALC'!$D$41,0,'SUMMARY TABLES'!$B39-'PROJECT SPECIFIC INPUTS'!$C$20)) -> 0 | H39: =IF($B39<'PROJECT SPECIFIC INPUTS'!$C$20,0,OFFSET('TRAFFIC & SPEED_CALC'!$D$69,0,'SUMMARY TABLES'!$B39-'PROJECT SPECIFIC INPUTS'!$C$20)) -> 0 | I39: =IF($B39<'PROJECT SPECIFIC INPUTS'!$C$20,0,OFFSET('TRAFFIC & SPEED_CALC'!$D$70,0,'SUMMARY TABLES'!$B39-'PROJECT SPECIFIC INPUTS'!$C$20)) -> 0
B40: 2017 | C40: 6 | D40: =IF($B40<'PROJECT SPECIFIC INPUTS'!$C$20,0,OFFSET('TRAFFIC & SPEED_CALC'!$D$12,0,'SUMMARY TABLES'!$B40-'PROJECT SPECIFIC INPUTS'!$C$20)) -> 3127859.518 | E40: =IF($B40<'PROJECT SPECIFIC INPUTS'!$C$20,0,OFFSET('TRAFFIC & SPEED_CALC'!$D$17,0,'SUMMARY TABLES'!$B40-'PROJECT SPECIFIC INPUTS'!$C$20)) -> 3127859.518 | F40: =IF($B40<'PROJECT SPECIFIC INPUTS'!$C$20,0,OFFSET('TRAFFIC & SPEED_CALC'!$D$36,0,'SUMMARY TABLES'!$B40-'PROJECT SPECIFIC INPUTS'!$C$20)) -> 61293.23844 | G40: =IF($B40<'PROJECT SPECIFIC INPUTS'!$C$20,0,OFFSET('TRAFFIC & SPEED_CALC'!$D$41,0,'SUMMARY TABLES'!$B40-'PROJECT SPECIFIC INPUTS'!$C$20)) -> 61293.23844 | H40: =IF($B40<'PROJECT SPECIFIC INPUTS'!$C$20,0,OFFSET('TRAFFIC & SPEED_CALC'!$D$69,0,'SUMMARY TABLES'!$B40-'PROJECT SPECIFIC INPUTS'!$C$20)) -> 51.03106963 | I40: =IF($B40<'PROJECT SPECIFIC INPUTS'!$C$20,0,OFFSET('TRAFFIC & SPEED_CALC'!$D$70,0,'SUMMARY TABLES'!$B40-'PROJECT SPECIFIC INPUTS'!$C$20)) -> 51.03106963
B41: 2018 | C41: 7 | D41: =IF($B41<'PROJECT SPECIFIC INPUTS'!$C$20,0,OFFSET('TRAFFIC & SPEED_CALC'!$D$12,0,'SUMMARY TABLES'!$B41-'PROJECT SPECIFIC INPUTS'!$C$20)) -> 3187150.443 | E41: =IF($B41<'PROJECT SPECIFIC INPUTS'!$C$20,0,OFFSET('TRAFFIC & SPEED_CALC'!$D$17,0,'SUMMARY TABLES'!$B41-'PROJECT SPECIFIC INPUTS'!$C$20)) -> 3208905.613 | F41: =IF($B41<'PROJECT SPECIFIC INPUTS'!$C$20,0,OFFSET('TRAFFIC & SPEED_CALC'!$D$36,0,'SUMMARY TABLES'!$B41-'PROJECT SPECIFIC INPUTS'!$C$20)) -> 63173.49602 | G41: =IF($B41<'PROJECT SPECIFIC INPUTS'!$C$20,0,OFFSET('TRAFFIC & SPEED_CALC'!$D$41,0,'SUMMARY TABLES'!$B41-'PROJECT SPECIFIC INPUTS'!$C$20)) -> 62647.22327 | H41: =IF($B41<'PROJECT SPECIFIC INPUTS'!$C$20,0,OFFSET('TRAFFIC & SPEED_CALC'!$D$69,0,'SUMMARY TABLES'!$B41-'PROJECT SPECIFIC INPUTS'!$C$20)) -> 50.45075298 | I41: =IF($B41<'PROJECT SPECIFIC INPUTS'!$C$20,0,OFFSET('TRAFFIC & SPEED_CALC'!$D$70,0,'SUMMARY TABLES'!$B41-'PROJECT SPECIFIC INPUTS'!$C$20)) -> 51.22183307
B42: 2019 | C42: 8 | D42: =IF($B42<'PROJECT SPECIFIC INPUTS'!$C$20,0,OFFSET('TRAFFIC & SPEED_CALC'!$D$12,0,'SUMMARY TABLES'!$B42-'PROJECT SPECIFIC INPUTS'!$C$20)) -> 3247565.271 | E42: =IF($B42<'PROJECT SPECIFIC INPUTS'!$C$20,0,OFFSET('TRAFFIC & SPEED_CALC'!$D$17,0,'SUMMARY TABLES'!$B42-'PROJECT SPECIFIC INPUTS'!$C$20)) -> 3292051.696 | F42: =IF($B42<'PROJECT SPECIFIC INPUTS'!$C$20,0,OFFSET('TRAFFIC & SPEED_CALC'!$D$36,0,'SUMMARY TABLES'!$B42-'PROJECT SPECIFIC INPUTS'!$C$20)) -> 65111.43319 | G42: =IF($B42<'PROJECT SPECIFIC INPUTS'!$C$20,0,OFFSET('TRAFFIC & SPEED_CALC'!$D$41,0,'SUMMARY TABLES'!$B42-'PROJECT SPECIFIC INPUTS'!$C$20)) -> 64031.11801 | H42: =IF($B42<'PROJECT SPECIFIC INPUTS'!$C$20,0,OFFSET('TRAFFIC & SPEED_CALC'!$D$69,0,'SUMMARY TABLES'!$B42-'PROJECT SPECIFIC INPUTS'!$C$20)) -> 49.87703559 | I42: =IF($B42<'PROJECT SPECIFIC INPUTS'!$C$20,0,OFFSET('TRAFFIC & SPEED_CALC'!$D$70,0,'SUMMARY TABLES'!$B42-'PROJECT SPECIFIC INPUTS'!$C$20)) -> 51.41330963
B43: 2020 | C43: 9 | D43: =IF($B43<'PROJECT SPECIFIC INPUTS'!$C$20,0,OFFSET('TRAFFIC & SPEED_CALC'!$D$12,0,'SUMMARY TABLES'!$B43-'PROJECT SPECIFIC INPUTS'!$C$20)) -> 3309125.307 | E43: =IF($B43<'PROJECT SPECIFIC INPUTS'!$C$20,0,OFFSET('TRAFFIC & SPEED_CALC'!$D$17,0,'SUMMARY TABLES'!$B43-'PROJECT SPECIFIC INPUTS'!$C$20)) -> 3377352.181 | F43: =IF($B43<'PROJECT SPECIFIC INPUTS'!$C$20,0,OFFSET('TRAFFIC & SPEED_CALC'!$D$36,0,'SUMMARY TABLES'!$B43-'PROJECT SPECIFIC INPUTS'!$C$20)) -> 67108.81934 | G43: =IF($B43<'PROJECT SPECIFIC INPUTS'!$C$20,0,OFFSET('TRAFFIC & SPEED_CALC'!$D$41,0,'SUMMARY TABLES'!$B43-'PROJECT SPECIFIC INPUTS'!$C$20)) -> 65445.58337 | H43: =IF($B43<'PROJECT SPECIFIC INPUTS'!$C$20,0,OFFSET('TRAFFIC & SPEED_CALC'!$D$69,0,'SUMMARY TABLES'!$B43-'PROJECT SPECIFIC INPUTS'!$C$20)) -> 49.30984242 | I43: =IF($B43<'PROJECT SPECIFIC INPUTS'!$C$20,0,OFFSET('TRAFFIC & SPEED_CALC'!$D$70,0,'SUMMARY TABLES'!$B43-'PROJECT SPECIFIC INPUTS'!$C$20)) -> 51.60550196
B44: 2021 | C44: 10 | D44: =IF($B44<'PROJECT SPECIFIC INPUTS'!$C$20,0,OFFSET('TRAFFIC & SPEED_CALC'!$D$12,0,'SUMMARY TABLES'!$B44-'PROJECT SPECIFIC INPUTS'!$C$20)) -> 3371852.26 | E44: =IF($B44<'PROJECT SPECIFIC INPUTS'!$C$20,0,OFFSET('TRAFFIC & SPEED_CALC'!$D$17,0,'SUMMARY TABLES'!$B44-'PROJECT SPECIFIC INPUTS'!$C$20)) -> 3464862.89 | F44: =IF($B44<'PROJECT SPECIFIC INPUTS'!$C$20,0,OFFSET('TRAFFIC & SPEED_CALC'!$D$36,0,'SUMMARY TABLES'!$B44-'PROJECT SPECIFIC INPUTS'!$C$20)) -> 69167.47817 | G44: =IF($B44<'PROJECT SPECIFIC INPUTS'!$C$20,0,OFFSET('TRAFFIC & SPEED_CALC'!$D$41,0,'SUMMARY TABLES'!$B44-'PROJECT SPECIFIC INPUTS'!$C$20)) -> 66891.29467 | H44: =IF($B44<'PROJECT SPECIFIC INPUTS'!$C$20,0,OFFSET('TRAFFIC & SPEED_CALC'!$D$69,0,'SUMMARY TABLES'!$B44-'PROJECT SPECIFIC INPUTS'!$C$20)) -> 48.74909928 | I44: =IF($B44<'PROJECT SPECIFIC INPUTS'!$C$20,0,OFFSET('TRAFFIC & SPEED_CALC'!$D$70,0,'SUMMARY TABLES'!$B44-'PROJECT SPECIFIC INPUTS'!$C$20)) -> 51.79841274
B45: 2022 | C45: 11 | D45: =IF($B45<'PROJECT SPECIFIC INPUTS'!$C$20,0,OFFSET('TRAFFIC & SPEED_CALC'!$D$12,0,'SUMMARY TABLES'!$B45-'PROJECT SPECIFIC INPUTS'!$C$20)) -> 3435768.25 | E45: =IF($B45<'PROJECT SPECIFIC INPUTS'!$C$20,0,OFFSET('TRAFFIC & SPEED_CALC'!$D$17,0,'SUMMARY TABLES'!$B45-'PROJECT SPECIFIC INPUTS'!$C$20)) -> 3525190.378 | F45: =IF($B45<'PROJECT SPECIFIC INPUTS'!$C$20,0,OFFSET('TRAFFIC & SPEED_CALC'!$D$36,0,'SUMMARY TABLES'!$B45-'PROJECT SPECIFIC INPUTS'!$C$20)) -> 71289.28929 | G45: =IF($B45<'PROJECT SPECIFIC INPUTS'!$C$20,0,OFFSET('TRAFFIC & SPEED_CALC'!$D$41,0,'SUMMARY TABLES'!$B45-'PROJECT SPECIFIC INPUTS'!$C$20)) -> 68376.83375 | H45: =IF($B45<'PROJECT SPECIFIC INPUTS'!$C$20,0,OFFSET('TRAFFIC & SPEED_CALC'!$D$69,0,'SUMMARY TABLES'!$B45-'PROJECT SPECIFIC INPUTS'!$C$20)) -> 48.19473281 | I45: =IF($B45<'PROJECT SPECIFIC INPUTS'!$C$20,0,OFFSET('TRAFFIC & SPEED_CALC'!$D$70,0,'SUMMARY TABLES'!$B45-'PROJECT SPECIFIC INPUTS'!$C$20)) -> 51.55533218
B46: 2023 | C46: 12 | D46: =IF($B46<'PROJECT SPECIFIC INPUTS'!$C$20,0,OFFSET('TRAFFIC & SPEED_CALC'!$D$12,0,'SUMMARY TABLES'!$B46-'PROJECT SPECIFIC INPUTS'!$C$20)) -> 3500895.815 | E46: =IF($B46<'PROJECT SPECIFIC INPUTS'!$C$20,0,OFFSET('TRAFFIC & SPEED_CALC'!$D$17,0,'SUMMARY TABLES'!$B46-'PROJECT SPECIFIC INPUTS'!$C$20)) -> 3586568.24 | F46: =IF($B46<'PROJECT SPECIFIC INPUTS'!$C$20,0,OFFSET('TRAFFIC & SPEED_CALC'!$D$36,0,'SUMMARY TABLES'!$B46-'PROJECT SPECIFIC INPUTS'!$C$20)) -> 73476.19 | G46: =IF($B46<'PROJECT SPECIFIC INPUTS'!$C$20,0,OFFSET('TRAFFIC & SPEED_CALC'!$D$41,0,'SUMMARY TABLES'!$B46-'PROJECT SPECIFIC INPUTS'!$C$20)) -> 69895.36407 | H46: =IF($B46<'PROJECT SPECIFIC INPUTS'!$C$20,0,OFFSET('TRAFFIC & SPEED_CALC'!$D$69,0,'SUMMARY TABLES'!$B46-'PROJECT SPECIFIC INPUTS'!$C$20)) -> 47.6466705 | I46: =IF($B46<'PROJECT SPECIFIC INPUTS'!$C$20,0,OFFSET('TRAFFIC & SPEED_CALC'!$D$70,0,'SUMMARY TABLES'!$B46-'PROJECT SPECIFIC INPUTS'!$C$20)) -> 51.31339236
B47: 2024 | C47: 13 | D47: =IF($B47<'PROJECT SPECIFIC INPUTS'!$C$20,0,OFFSET('TRAFFIC & SPEED_CALC'!$D$12,0,'SUMMARY TABLES'!$B47-'PROJECT SPECIFIC INPUTS'!$C$20)) -> 3567257.922 | E47: =IF($B47<'PROJECT SPECIFIC INPUTS'!$C$20,0,OFFSET('TRAFFIC & SPEED_CALC'!$D$17,0,'SUMMARY TABLES'!$B47-'PROJECT SPECIFIC INPUTS'!$C$20)) -> 3649014.766 | F47: =IF($B47<'PROJECT SPECIFIC INPUTS'!$C$20,0,OFFSET('TRAFFIC & SPEED_CALC'!$D$36,0,'SUMMARY TABLES'!$B47-'PROJECT SPECIFIC INPUTS'!$C$20)) -> 75730.17701 | G47: =IF($B47<'PROJECT SPECIFIC INPUTS'!$C$20,0,OFFSET('TRAFFIC & SPEED_CALC'!$D$41,0,'SUMMARY TABLES'!$B47-'PROJECT SPECIFIC INPUTS'!$C$20)) -> 71447.61829 | H47: =IF($B47<'PROJECT SPECIFIC INPUTS'!$C$20,0,OFFSET('TRAFFIC & SPEED_CALC'!$D$69,0,'SUMMARY TABLES'!$B47-'PROJECT SPECIFIC INPUTS'!$C$20)) -> 47.10484067 | I47: =IF($B47<'PROJECT SPECIFIC INPUTS'!$C$20,0,OFFSET('TRAFFIC & SPEED_CALC'!$D$70,0,'SUMMARY TABLES'!$B47-'PROJECT SPECIFIC INPUTS'!$C$20)) -> 51.07258791
B48: 2025 | C48: 14 | D48: =IF($B48<'PROJECT SPECIFIC INPUTS'!$C$20,0,OFFSET('TRAFFIC & SPEED_CALC'!$D$12,0,'SUMMARY TABLES'!$B48-'PROJECT SPECIFIC INPUTS'!$C$20)) -> 3634877.972 | E48: =IF($B48<'PROJECT SPECIFIC INPUTS'!$C$20,0,OFFSET('TRAFFIC & SPEED_CALC'!$D$17,0,'SUMMARY TABLES'!$B48-'PROJECT SPECIFIC INPUTS'!$C$20)) -> 3712548.562 | F48: =IF($B48<'PROJECT SPECIFIC INPUTS'!$C$20,0,OFFSET('TRAFFIC & SPEED_CALC'!$D$36,0,'SUMMARY TABLES'!$B48-'PROJECT SPECIFIC INPUTS'!$C$20)) -> 78053.30829 | G48: =IF($B48<'PROJECT SPECIFIC INPUTS'!$C$20,0,OFFSET('TRAFFIC & SPEED_CALC'!$D$41,0,'SUMMARY TABLES'!$B48-'PROJECT SPECIFIC INPUTS'!$C$20)) -> 73034.34538 | H48: =IF($B48<'PROJECT SPECIFIC INPUTS'!$C$20,0,OFFSET('TRAFFIC & SPEED_CALC'!$D$69,0,'SUMMARY TABLES'!$B48-'PROJECT SPECIFIC INPUTS'!$C$20)) -> 46.56917243 | I48: =IF($B48<'PROJECT SPECIFIC INPUTS'!$C$20,0,OFFSET('TRAFFIC & SPEED_CALC'!$D$70,0,'SUMMARY TABLES'!$B48-'PROJECT SPECIFIC INPUTS'!$C$20)) -> 50.83291351
B49: 2026 | C49: 15 | D49: =IF($B49<'PROJECT SPECIFIC INPUTS'!$C$20,0,OFFSET('TRAFFIC & SPEED_CALC'!$D$12,0,'SUMMARY TABLES'!$B49-'PROJECT SPECIFIC INPUTS'!$C$20)) -> 3703779.811 | E49: =IF($B49<'PROJECT SPECIFIC INPUTS'!$C$20,0,OFFSET('TRAFFIC & SPEED_CALC'!$D$17,0,'SUMMARY TABLES'!$B49-'PROJECT SPECIFIC INPUTS'!$C$20)) -> 3777188.559 | F49: =IF($B49<'PROJECT SPECIFIC INPUTS'!$C$20,0,OFFSET('TRAFFIC & SPEED_CALC'!$D$36,0,'SUMMARY TABLES'!$B49-'PROJECT SPECIFIC INPUTS'!$C$20)) -> 80447.70493 | G49: =IF($B49<'PROJECT SPECIFIC INPUTS'!$C$20,0,OFFSET('TRAFFIC & SPEED_CALC'!$D$41,0,'SUMMARY TABLES'!$B49-'PROJECT SPECIFIC INPUTS'!$C$20)) -> 74656.31092 | H49: =IF($B49<'PROJECT SPECIFIC INPUTS'!$C$20,0,OFFSET('TRAFFIC & SPEED_CALC'!$D$69,0,'SUMMARY TABLES'!$B49-'PROJECT SPECIFIC INPUTS'!$C$20)) -> 46.03959571 | I49: =IF($B49<'PROJECT SPECIFIC INPUTS'!$C$20,0,OFFSET('TRAFFIC & SPEED_CALC'!$D$70,0,'SUMMARY TABLES'!$B49-'PROJECT SPECIFIC INPUTS'!$C$20)) -> 50.59436387
B50: 2027 | C50: 16 | D50: =IF($B50<'PROJECT SPECIFIC INPUTS'!$C$20,0,OFFSET('TRAFFIC & SPEED_CALC'!$D$12,0,'SUMMARY TABLES'!$B50-'PROJECT SPECIFIC INPUTS'!$C$20)) -> 3773987.737 | E50: =IF($B50<'PROJECT SPECIFIC INPUTS'!$C$20,0,OFFSET('TRAFFIC & SPEED_CALC'!$D$17,0,'SUMMARY TABLES'!$B50-'PROJECT SPECIFIC INPUTS'!$C$20)) -> 3842954.018 | F50: =IF($B50<'PROJECT SPECIFIC INPUTS'!$C$20,0,OFFSET('TRAFFIC & SPEED_CALC'!$D$36,0,'SUMMARY TABLES'!$B50-'PROJECT SPECIFIC INPUTS'!$C$20)) -> 82915.55311 | G50: =IF($B50<'PROJECT SPECIFIC INPUTS'!$C$20,0,OFFSET('TRAFFIC & SPEED_CALC'!$D$41,0,'SUMMARY TABLES'!$B50-'PROJECT SPECIFIC INPUTS'!$C$20)) -> 76314.29748 | H50: =IF($B50<'PROJECT SPECIFIC INPUTS'!$C$20,0,OFFSET('TRAFFIC & SPEED_CALC'!$D$69,0,'SUMMARY TABLES'!$B50-'PROJECT SPECIFIC INPUTS'!$C$20)) -> 45.51604126 | I50: =IF($B50<'PROJECT SPECIFIC INPUTS'!$C$20,0,OFFSET('TRAFFIC & SPEED_CALC'!$D$70,0,'SUMMARY TABLES'!$B50-'PROJECT SPECIFIC INPUTS'!$C$20)) -> 50.35693369
B51: 2028 | C51: 17 | D51: =IF($B51<'PROJECT SPECIFIC INPUTS'!$C$20,0,OFFSET('TRAFFIC & SPEED_CALC'!$D$12,0,'SUMMARY TABLES'!$B51-'PROJECT SPECIFIC INPUTS'!$C$20)) -> 3845526.506 | E51: =IF($B51<'PROJECT SPECIFIC INPUTS'!$C$20,0,OFFSET('TRAFFIC & SPEED_CALC'!$D$17,0,'SUMMARY TABLES'!$B51-'PROJECT SPECIFIC INPUTS'!$C$20)) -> 3909864.533 | F51: =IF($B51<'PROJECT SPECIFIC INPUTS'!$C$20,0,OFFSET('TRAFFIC & SPEED_CALC'!$D$36,0,'SUMMARY TABLES'!$B51-'PROJECT SPECIFIC INPUTS'!$C$20)) -> 85459.10606 | G51: =IF($B51<'PROJECT SPECIFIC INPUTS'!$C$20,0,OFFSET('TRAFFIC & SPEED_CALC'!$D$41,0,'SUMMARY TABLES'!$B51-'PROJECT SPECIFIC INPUTS'!$C$20)) -> 78009.10503 | H51: =IF($B51<'PROJECT SPECIFIC INPUTS'!$C$20,0,OFFSET('TRAFFIC & SPEED_CALC'!$D$69,0,'SUMMARY TABLES'!$B51-'PROJECT SPECIFIC INPUTS'!$C$20)) -> 44.99844058 | I51: =IF($B51<'PROJECT SPECIFIC INPUTS'!$C$20,0,OFFSET('TRAFFIC & SPEED_CALC'!$D$70,0,'SUMMARY TABLES'!$B51-'PROJECT SPECIFIC INPUTS'!$C$20)) -> 50.12061773
B52: 2029 | C52: 18 | D52: =IF($B52<'PROJECT SPECIFIC INPUTS'!$C$20,0,OFFSET('TRAFFIC & SPEED_CALC'!$D$12,0,'SUMMARY TABLES'!$B52-'PROJECT SPECIFIC INPUTS'!$C$20)) -> 3918421.346 | E52: =IF($B52<'PROJECT SPECIFIC INPUTS'!$C$20,0,OFFSET('TRAFFIC & SPEED_CALC'!$D$17,0,'SUMMARY TABLES'!$B52-'PROJECT SPECIFIC INPUTS'!$C$20)) -> 3977940.041 | F52: =IF($B52<'PROJECT SPECIFIC INPUTS'!$C$20,0,OFFSET('TRAFFIC & SPEED_CALC'!$D$36,0,'SUMMARY TABLES'!$B52-'PROJECT SPECIFIC INPUTS'!$C$20)) -> 88080.68612 | G52: =IF($B52<'PROJECT SPECIFIC INPUTS'!$C$20,0,OFFSET('TRAFFIC & SPEED_CALC'!$D$41,0,'SUMMARY TABLES'!$B52-'PROJECT SPECIFIC INPUTS'!$C$20)) -> 79741.55131 | H52: =IF($B52<'PROJECT SPECIFIC INPUTS'!$C$20,0,OFFSET('TRAFFIC & SPEED_CALC'!$D$69,0,'SUMMARY TABLES'!$B52-'PROJECT SPECIFIC INPUTS'!$C$20)) -> 44.48672596 | I52: =IF($B52<'PROJECT SPECIFIC INPUTS'!$C$20,0,OFFSET('TRAFFIC & SPEED_CALC'!$D$70,0,'SUMMARY TABLES'!$B52-'PROJECT SPECIFIC INPUTS'!$C$20)) -> 49.88541076
B53: 2030 | C53: 19 | D53: =IF($B53<'PROJECT SPECIFIC INPUTS'!$C$20,0,OFFSET('TRAFFIC & SPEED_CALC'!$D$12,0,'SUMMARY TABLES'!$B53-'PROJECT SPECIFIC INPUTS'!$C$20)) -> 3992697.963 | E53: =IF($B53<'PROJECT SPECIFIC INPUTS'!$C$20,0,OFFSET('TRAFFIC & SPEED_CALC'!$D$17,0,'SUMMARY TABLES'!$B53-'PROJECT SPECIFIC INPUTS'!$C$20)) -> 4047200.828 | F53: =IF($B53<'PROJECT SPECIFIC INPUTS'!$C$20,0,OFFSET('TRAFFIC & SPEED_CALC'!$D$36,0,'SUMMARY TABLES'!$B53-'PROJECT SPECIFIC INPUTS'!$C$20)) -> 90782.6869 | G53: =IF($B53<'PROJECT SPECIFIC INPUTS'!$C$20,0,OFFSET('TRAFFIC & SPEED_CALC'!$D$41,0,'SUMMARY TABLES'!$B53-'PROJECT SPECIFIC INPUTS'!$C$20)) -> 81512.4722 | H53: =IF($B53<'PROJECT SPECIFIC INPUTS'!$C$20,0,OFFSET('TRAFFIC & SPEED_CALC'!$D$69,0,'SUMMARY TABLES'!$B53-'PROJECT SPECIFIC INPUTS'!$C$20)) -> 43.98083048 | I53: =IF($B53<'PROJECT SPECIFIC INPUTS'!$C$20,0,OFFSET('TRAFFIC & SPEED_CALC'!$D$70,0,'SUMMARY TABLES'!$B53-'PROJECT SPECIFIC INPUTS'!$C$20)) -> 49.65130757
B54: 2031 | C54: 20 | D54: =IF($B54<'PROJECT SPECIFIC INPUTS'!$C$20,0,OFFSET('TRAFFIC & SPEED_CALC'!$D$12,0,'SUMMARY TABLES'!$B54-'PROJECT SPECIFIC INPUTS'!$C$20)) -> 4068382.548 | E54: =IF($B54<'PROJECT SPECIFIC INPUTS'!$C$20,0,OFFSET('TRAFFIC & SPEED_CALC'!$D$17,0,'SUMMARY TABLES'!$B54-'PROJECT SPECIFIC INPUTS'!$C$20)) -> 4117667.529 | F54: =IF($B54<'PROJECT SPECIFIC INPUTS'!$C$20,0,OFFSET('TRAFFIC & SPEED_CALC'!$D$36,0,'SUMMARY TABLES'!$B54-'PROJECT SPECIFIC INPUTS'!$C$20)) -> 93567.5754 | G54: =IF($B54<'PROJECT SPECIFIC INPUTS'!$C$20,0,OFFSET('TRAFFIC & SPEED_CALC'!$D$41,0,'SUMMARY TABLES'!$B54-'PROJECT SPECIFIC INPUTS'!$C$20)) -> 83322.72215 | H54: =IF($B54<'PROJECT SPECIFIC INPUTS'!$C$20,0,OFFSET('TRAFFIC & SPEED_CALC'!$D$69,0,'SUMMARY TABLES'!$B54-'PROJECT SPECIFIC INPUTS'!$C$20)) -> 43.48068795 | I54: =IF($B54<'PROJECT SPECIFIC INPUTS'!$C$20,0,OFFSET('TRAFFIC & SPEED_CALC'!$D$70,0,'SUMMARY TABLES'!$B54-'PROJECT SPECIFIC INPUTS'!$C$20)) -> 49.41830298
B55: 2032 | C55: 21 | D55: =IF($B55<'PROJECT SPECIFIC INPUTS'!$C$20,0,OFFSET('TRAFFIC & SPEED_CALC'!$D$12,0,'SUMMARY TABLES'!$B55-'PROJECT SPECIFIC INPUTS'!$C$20)) -> 4145501.792 | E55: =IF($B55<'PROJECT SPECIFIC INPUTS'!$C$20,0,OFFSET('TRAFFIC & SPEED_CALC'!$D$17,0,'SUMMARY TABLES'!$B55-'PROJECT SPECIFIC INPUTS'!$C$20)) -> 4189361.141 | F55: =IF($B55<'PROJECT SPECIFIC INPUTS'!$C$20,0,OFFSET('TRAFFIC & SPEED_CALC'!$D$36,0,'SUMMARY TABLES'!$B55-'PROJECT SPECIFIC INPUTS'!$C$20)) -> 96437.89434 | G55: =IF($B55<'PROJECT SPECIFIC INPUTS'!$C$20,0,OFFSET('TRAFFIC & SPEED_CALC'!$D$41,0,'SUMMARY TABLES'!$B55-'PROJECT SPECIFIC INPUTS'!$C$20)) -> 85173.1746 | H55: =IF($B55<'PROJECT SPECIFIC INPUTS'!$C$20,0,OFFSET('TRAFFIC & SPEED_CALC'!$D$69,0,'SUMMARY TABLES'!$B55-'PROJECT SPECIFIC INPUTS'!$C$20)) -> 42.98623296 | I55: =IF($B55<'PROJECT SPECIFIC INPUTS'!$C$20,0,OFFSET('TRAFFIC & SPEED_CALC'!$D$70,0,'SUMMARY TABLES'!$B55-'PROJECT SPECIFIC INPUTS'!$C$20)) -> 49.18639185
B56: 2033 | C56: 22 | D56: =IF($B56<'PROJECT SPECIFIC INPUTS'!$C$20,0,OFFSET('TRAFFIC & SPEED_CALC'!$D$12,0,'SUMMARY TABLES'!$B56-'PROJECT SPECIFIC INPUTS'!$C$20)) -> 4224082.889 | E56: =IF($B56<'PROJECT SPECIFIC INPUTS'!$C$20,0,OFFSET('TRAFFIC & SPEED_CALC'!$D$17,0,'SUMMARY TABLES'!$B56-'PROJECT SPECIFIC INPUTS'!$C$20)) -> 4262303.026 | F56: =IF($B56<'PROJECT SPECIFIC INPUTS'!$C$20,0,OFFSET('TRAFFIC & SPEED_CALC'!$D$36,0,'SUMMARY TABLES'!$B56-'PROJECT SPECIFIC INPUTS'!$C$20)) -> 99396.2644 | G56: =IF($B56<'PROJECT SPECIFIC INPUTS'!$C$20,0,OFFSET('TRAFFIC & SPEED_CALC'!$D$41,0,'SUMMARY TABLES'!$B56-'PROJECT SPECIFIC INPUTS'!$C$20)) -> 87064.72238 | H56: =IF($B56<'PROJECT SPECIFIC INPUTS'!$C$20,0,OFFSET('TRAFFIC & SPEED_CALC'!$D$69,0,'SUMMARY TABLES'!$B56-'PROJECT SPECIFIC INPUTS'!$C$20)) -> 42.49740083 | I56: =IF($B56<'PROJECT SPECIFIC INPUTS'!$C$20,0,OFFSET('TRAFFIC & SPEED_CALC'!$D$70,0,'SUMMARY TABLES'!$B56-'PROJECT SPECIFIC INPUTS'!$C$20)) -> 48.95556903
B57: 2034 | C57: 23 | D57: =IF($B57<'PROJECT SPECIFIC INPUTS'!$C$20,0,OFFSET('TRAFFIC & SPEED_CALC'!$D$12,0,'SUMMARY TABLES'!$B57-'PROJECT SPECIFIC INPUTS'!$C$20)) -> 4304153.55 | E57: =IF($B57<'PROJECT SPECIFIC INPUTS'!$C$20,0,OFFSET('TRAFFIC & SPEED_CALC'!$D$17,0,'SUMMARY TABLES'!$B57-'PROJECT SPECIFIC INPUTS'!$C$20)) -> 4336514.919 | F57: =IF($B57<'PROJECT SPECIFIC INPUTS'!$C$20,0,OFFSET('TRAFFIC & SPEED_CALC'!$D$36,0,'SUMMARY TABLES'!$B57-'PROJECT SPECIFIC INPUTS'!$C$20)) -> 102445.3867 | G57: =IF($B57<'PROJECT SPECIFIC INPUTS'!$C$20,0,OFFSET('TRAFFIC & SPEED_CALC'!$D$41,0,'SUMMARY TABLES'!$B57-'PROJECT SPECIFIC INPUTS'!$C$20)) -> 88998.27813 | H57: =IF($B57<'PROJECT SPECIFIC INPUTS'!$C$20,0,OFFSET('TRAFFIC & SPEED_CALC'!$D$69,0,'SUMMARY TABLES'!$B57-'PROJECT SPECIFIC INPUTS'!$C$20)) -> 42.01412761 | I57: =IF($B57<'PROJECT SPECIFIC INPUTS'!$C$20,0,OFFSET('TRAFFIC & SPEED_CALC'!$D$70,0,'SUMMARY TABLES'!$B57-'PROJECT SPECIFIC INPUTS'!$C$20)) -> 48.72582942
B58: 2035 | C58: 24 | D58: =IF($B58<'PROJECT SPECIFIC INPUTS'!$C$20,0,OFFSET('TRAFFIC & SPEED_CALC'!$D$12,0,'SUMMARY TABLES'!$B58-'PROJECT SPECIFIC INPUTS'!$C$20)) -> 4385742.01 | E58: =IF($B58<'PROJECT SPECIFIC INPUTS'!$C$20,0,OFFSET('TRAFFIC & SPEED_CALC'!$D$17,0,'SUMMARY TABLES'!$B58-'PROJECT SPECIFIC INPUTS'!$C$20)) -> 4412018.931 | F58: =IF($B58<'PROJECT SPECIFIC INPUTS'!$C$20,0,OFFSET('TRAFFIC & SPEED_CALC'!$D$36,0,'SUMMARY TABLES'!$B58-'PROJECT SPECIFIC INPUTS'!$C$20)) -> 105588.0452 | G58: =IF($B58<'PROJECT SPECIFIC INPUTS'!$C$20,0,OFFSET('TRAFFIC & SPEED_CALC'!$D$41,0,'SUMMARY TABLES'!$B58-'PROJECT SPECIFIC INPUTS'!$C$20)) -> 90974.77479 | H58: =IF($B58<'PROJECT SPECIFIC INPUTS'!$C$20,0,OFFSET('TRAFFIC & SPEED_CALC'!$D$69,0,'SUMMARY TABLES'!$B58-'PROJECT SPECIFIC INPUTS'!$C$20)) -> 41.53635009 | I58: =IF($B58<'PROJECT SPECIFIC INPUTS'!$C$20,0,OFFSET('TRAFFIC & SPEED_CALC'!$D$70,0,'SUMMARY TABLES'!$B58-'PROJECT SPECIFIC INPUTS'!$C$20)) -> 48.49716793
B59: 2036 | C59: 25 | D59: =IF($B59<'PROJECT SPECIFIC INPUTS'!$C$20,0,OFFSET('TRAFFIC & SPEED_CALC'!$D$12,0,'SUMMARY TABLES'!$B59-'PROJECT SPECIFIC INPUTS'!$C$20)) -> 4468877.04 | E59: =IF($B59<'PROJECT SPECIFIC INPUTS'!$C$20,0,OFFSET('TRAFFIC & SPEED_CALC'!$D$17,0,'SUMMARY TABLES'!$B59-'PROJECT SPECIFIC INPUTS'!$C$20)) -> 4488837.56 | F59: =IF($B59<'PROJECT SPECIFIC INPUTS'!$C$20,0,OFFSET('TRAFFIC & SPEED_CALC'!$D$36,0,'SUMMARY TABLES'!$B59-'PROJECT SPECIFIC INPUTS'!$C$20)) -> 108827.1092 | G59: =IF($B59<'PROJECT SPECIFIC INPUTS'!$C$20,0,OFFSET('TRAFFIC & SPEED_CALC'!$D$41,0,'SUMMARY TABLES'!$B59-'PROJECT SPECIFIC INPUTS'!$C$20)) -> 92995.166 | H59: =IF($B59<'PROJECT SPECIFIC INPUTS'!$C$20,0,OFFSET('TRAFFIC & SPEED_CALC'!$D$69,0,'SUMMARY TABLES'!$B59-'PROJECT SPECIFIC INPUTS'!$C$20)) -> 41.06400578 | I59: =IF($B59<'PROJECT SPECIFIC INPUTS'!$C$20,0,OFFSET('TRAFFIC & SPEED_CALC'!$D$70,0,'SUMMARY TABLES'!$B59-'PROJECT SPECIFIC INPUTS'!$C$20)) -> 48.26957952
B60: Total | D60: =SUM(D35:D59) -> 75213505.95 | E60: 76306204.93 | F60: 1658351.442 | G60: 1521825.194 | H60: =D60/F60 -> 45.3543827 | I60: =E60/G60 -> 50.14124173
B62: Summary of Project Benefits by Calendar Year and Benefit Category, Undiscounted
B63: Calendar Year | C63: Project Year | D63: Travel Time Benefits | E63: Vehicle Operating Cost Savings | F63: Value of Induced Travel | G63: Net Economic Value of Land Development | H63: Safety Benefits | I63: Emission Cost Savings | J63: Residual Value
B64: ='PROJECT SPECIFIC INPUTS'!$C$16 -> 2012 | C64: 1 | D64: =OFFSET('BENEFITS & COSTS'!$D$23,0,'SUMMARY TABLES'!$B64-'PROJECT SPECIFIC INPUTS'!$C$16) -> 0 | E64: =OFFSET('BENEFITS & COSTS'!$D$26,0,'SUMMARY TABLES'!$B64-'PROJECT SPECIFIC INPUTS'!$C$16) -> 0 | F64: =+OFFSET('BENEFITS & COSTS'!$D$29,0,'SUMMARY TABLES'!$B64-'PROJECT SPECIFIC INPUTS'!$C$16) -> 0 | G64: =OFFSET('BENEFITS & COSTS'!$D$37,0,'SUMMARY TABLES'!$B64-'PROJECT SPECIFIC INPUTS'!$C$16) -> 0 | H64: =OFFSET('BENEFITS & COSTS'!$D$35,0,'SUMMARY TABLES'!$B64-'PROJECT SPECIFIC INPUTS'!$C$16) -> 0 | I64: =OFFSET('BENEFITS & COSTS'!$D$32,0,'SUMMARY TABLES'!$B64-'PROJECT SPECIFIC INPUTS'!$C$16) -> 0 | J64: =OFFSET('BENEFITS & COSTS'!$D$38,0,'SUMMARY TABLES'!$B64-'PROJECT SPECIFIC INPUTS'!$C$16) -> 0
B65: =1+B64 -> 2013 | C65: 2 | D65: =OFFSET('BENEFITS & COSTS'!$D$23,0,'SUMMARY TABLES'!$B65-'PROJECT SPECIFIC INPUTS'!$C$16) -> 0 | E65: =OFFSET('BENEFITS & COSTS'!$D$26,0,'SUMMARY TABLES'!$B65-'PROJECT SPECIFIC INPUTS'!$C$16) -> 0 | F65: =+OFFSET('BENEFITS & COSTS'!$D$29,0,'SUMMARY TABLES'!$B65-'PROJECT SPECIFIC INPUTS'!$C$16) -> 0 | G65: =OFFSET('BENEFITS & COSTS'!$D$37,0,'SUMMARY TABLES'!$B65-'PROJECT SPECIFIC INPUTS'!$C$16) -> 0 | H65: =OFFSET('BENEFITS & COSTS'!$D$35,0,'SUMMARY TABLES'!$B65-'PROJECT SPECIFIC INPUTS'!$C$16) -> 0 | I65: =OFFSET('BENEFITS & COSTS'!$D$32,0,'SUMMARY TABLES'!$B65-'PROJECT SPECIFIC INPUTS'!$C$16) -> 0 | J65: =OFFSET('BENEFITS & COSTS'!$D$38,0,'SUMMARY TABLES'!$B65-'PROJECT SPECIFIC INPUTS'!$C$16) -> 0
B66: =1+B65 -> 2014 | C66: 3 | D66: =OFFSET('BENEFITS & COSTS'!$D$23,0,'SUMMARY TABLES'!$B66-'PROJECT SPECIFIC INPUTS'!$C$16) -> 0 | E66: =OFFSET('BENEFITS & COSTS'!$D$26,0,'SUMMARY TABLES'!$B66-'PROJECT SPECIFIC INPUTS'!$C$16) -> 0 | F66: =+OFFSET('BENEFITS & COSTS'!$D$29,0,'SUMMARY TABLES'!$B66-'PROJECT SPECIFIC INPUTS'!$C$16) -> 0 | G66: =OFFSET('BENEFITS & COSTS'!$D$37,0,'SUMMARY TABLES'!$B66-'PROJECT SPECIFIC INPUTS'!$C$16) -> 0 | H66: =OFFSET('BENEFITS & COSTS'!$D$35,0,'SUMMARY TABLES'!$B66-'PROJECT SPECIFIC INPUTS'!$C$16) -> 0 | I66: =OFFSET('BENEFITS & COSTS'!$D$32,0,'SUMMARY TABLES'!$B66-'PROJECT SPECIFIC INPUTS'!$C$16) -> 0 | J66: =OFFSET('BENEFITS & COSTS'!$D$38,0,'SUMMARY TABLES'!$B66-'PROJECT SPECIFIC INPUTS'!$C$16) -> 0
B67: 2015 | C67: 4 | D67: =OFFSET('BENEFITS & COSTS'!$D$23,0,'SUMMARY TABLES'!$B67-'PROJECT SPECIFIC INPUTS'!$C$16) -> 0 | E67: =OFFSET('BENEFITS & COSTS'!$D$26,0,'SUMMARY TABLES'!$B67-'PROJECT SPECIFIC INPUTS'!$C$16) -> 0 | F67: =+OFFSET('BENEFITS & COSTS'!$D$29,0,'SUMMARY TABLES'!$B67-'PROJECT SPECIFIC INPUTS'!$C$16) -> 0 | G67: =OFFSET('BENEFITS & COSTS'!$D$37,0,'SUMMARY TABLES'!$B67-'PROJECT SPECIFIC INPUTS'!$C$16) -> 0 | H67: =OFFSET('BENEFITS & COSTS'!$D$35,0,'SUMMARY TABLES'!$B67-'PROJECT SPECIFIC INPUTS'!$C$16) -> 0 | I67: =OFFSET('BENEFITS & COSTS'!$D$32,0,'SUMMARY TABLES'!$B67-'PROJECT SPECIFIC INPUTS'!$C$16) -> 0 | J67: =OFFSET('BENEFITS & COSTS'!$D$38,0,'SUMMARY TABLES'!$B67-'PROJECT SPECIFIC INPUTS'!$C$16) -> 0
B68: 2016 | C68: 5 | D68: =OFFSET('BENEFITS & COSTS'!$D$23,0,'SUMMARY TABLES'!$B68-'PROJECT SPECIFIC INPUTS'!$C$16) -> 0 | E68: =OFFSET('BENEFITS & COSTS'!$D$26,0,'SUMMARY TABLES'!$B68-'PROJECT SPECIFIC INPUTS'!$C$16) -> 0 | F68: =+OFFSET('BENEFITS & COSTS'!$D$29,0,'SUMMARY TABLES'!$B68-'PROJECT SPECIFIC INPUTS'!$C$16) -> 0 | G68: =OFFSET('BENEFITS & COSTS'!$D$37,0,'SUMMARY TABLES'!$B68-'PROJECT SPECIFIC INPUTS'!$C$16) -> 0 | H68: =OFFSET('BENEFITS & COSTS'!$D$35,0,'SUMMARY TABLES'!$B68-'PROJECT SPECIFIC INPUTS'!$C$16) -> 0 | I68: =OFFSET('BENEFITS & COSTS'!$D$32,0,'SUMMARY TABLES'!$B68-'PROJECT SPECIFIC INPUTS'!$C$16) -> 0 | J68: =OFFSET('BENEFITS & COSTS'!$D$38,0,'SUMMARY TABLES'!$B68-'PROJECT SPECIFIC INPUTS'!$C$16) -> 0
B69: 2017 | C69: 6 | D69: =OFFSET('BENEFITS & COSTS'!$D$23,0,'SUMMARY TABLES'!$B69-'PROJECT SPECIFIC INPUTS'!$C$16) -> 5552666.47 | E69: =OFFSET('BENEFITS & COSTS'!$D$26,0,'SUMMARY TABLES'!$B69-'PROJECT SPECIFIC INPUTS'!$C$16) -> -2410827.515 | F69: =+OFFSET('BENEFITS & COSTS'!$D$29,0,'SUMMARY TABLES'!$B69-'PROJECT SPECIFIC INPUTS'!$C$16) -> 10722.93941 | G69: =OFFSET('BENEFITS & COSTS'!$D$37,0,'SUMMARY TABLES'!$B69-'PROJECT SPECIFIC INPUTS'!$C$16) -> 5641804.99 | H69: =OFFSET('BENEFITS & COSTS'!$D$35,0,'SUMMARY TABLES'!$B69-'PROJECT SPECIFIC INPUTS'!$C$16) -> -1574305.699 | I69: =OFFSET('BENEFITS & COSTS'!$D$32,0,'SUMMARY TABLES'!$B69-'PROJECT SPECIFIC INPUTS'!$C$16) -> -130589.6263 | J69: =OFFSET('BENEFITS & COSTS'!$D$38,0,'SUMMARY TABLES'!$B69-'PROJECT SPECIFIC INPUTS'!$C$16) -> 0
B70: 2018 | C70: 7 | D70: =OFFSET('BENEFITS & COSTS'!$D$23,0,'SUMMARY TABLES'!$B70-'PROJECT SPECIFIC INPUTS'!$C$16) -> 11541609.93 | E70: =OFFSET('BENEFITS & COSTS'!$D$26,0,'SUMMARY TABLES'!$B70-'PROJECT SPECIFIC INPUTS'!$C$16) -> -4896369.173 | F70: =+OFFSET('BENEFITS & COSTS'!$D$29,0,'SUMMARY TABLES'!$B70-'PROJECT SPECIFIC INPUTS'!$C$16) -> 45514.5601 | G70: =OFFSET('BENEFITS & COSTS'!$D$37,0,'SUMMARY TABLES'!$B70-'PROJECT SPECIFIC INPUTS'!$C$16) -> 5641804.99 | H70: =OFFSET('BENEFITS & COSTS'!$D$35,0,'SUMMARY TABLES'!$B70-'PROJECT SPECIFIC INPUTS'!$C$16) -> -3253431.024 | I70: =OFFSET('BENEFITS & COSTS'!$D$32,0,'SUMMARY TABLES'!$B70-'PROJECT SPECIFIC INPUTS'!$C$16) -> 521752.5116 | J70: =OFFSET('BENEFITS & COSTS'!$D$38,0,'SUMMARY TABLES'!$B70-'PROJECT SPECIFIC INPUTS'!$C$16) -> 0
B71: 2019 | C71: 8 | D71: =OFFSET('BENEFITS & COSTS'!$D$23,0,'SUMMARY TABLES'!$B71-'PROJECT SPECIFIC INPUTS'!$C$16) -> 17992884.29 | E71: =OFFSET('BENEFITS & COSTS'!$D$26,0,'SUMMARY TABLES'!$B71-'PROJECT SPECIFIC INPUTS'!$C$16) -> -7184624.688 | F71: =+OFFSET('BENEFITS & COSTS'!$D$29,0,'SUMMARY TABLES'!$B71-'PROJECT SPECIFIC INPUTS'!$C$16) -> 111421.2515 | G71: =OFFSET('BENEFITS & COSTS'!$D$37,0,'SUMMARY TABLES'!$B71-'PROJECT SPECIFIC INPUTS'!$C$16) -> 5641804.99 | H71: =OFFSET('BENEFITS & COSTS'!$D$35,0,'SUMMARY TABLES'!$B71-'PROJECT SPECIFIC INPUTS'!$C$16) -> -5042633.948 | I71: =OFFSET('BENEFITS & COSTS'!$D$32,0,'SUMMARY TABLES'!$B71-'PROJECT SPECIFIC INPUTS'!$C$16) -> 375675.0066 | J71: =OFFSET('BENEFITS & COSTS'!$D$38,0,'SUMMARY TABLES'!$B71-'PROJECT SPECIFIC INPUTS'!$C$16) -> 0
B72: 2020 | C72: 9 | D72: =OFFSET('BENEFITS & COSTS'!$D$23,0,'SUMMARY TABLES'!$B72-'PROJECT SPECIFIC INPUTS'!$C$16) -> 24933944.3 | E72: =OFFSET('BENEFITS & COSTS'!$D$26,0,'SUMMARY TABLES'!$B72-'PROJECT SPECIFIC INPUTS'!$C$16) -> -9438416.784 | F72: =+OFFSET('BENEFITS & COSTS'!$D$29,0,'SUMMARY TABLES'!$B72-'PROJECT SPECIFIC INPUTS'!$C$16) -> 213717.6639 | G72: =OFFSET('BENEFITS & COSTS'!$D$37,0,'SUMMARY TABLES'!$B72-'PROJECT SPECIFIC INPUTS'!$C$16) -> 6071326.413 | H72: =OFFSET('BENEFITS & COSTS'!$D$35,0,'SUMMARY TABLES'!$B72-'PROJECT SPECIFIC INPUTS'!$C$16) -> -6947407.873 | I72: =OFFSET('BENEFITS & COSTS'!$D$32,0,'SUMMARY TABLES'!$B72-'PROJECT SPECIFIC INPUTS'!$C$16) -> 229210.3383 | J72: =OFFSET('BENEFITS & COSTS'!$D$38,0,'SUMMARY TABLES'!$B72-'PROJECT SPECIFIC INPUTS'!$C$16) -> 0
B73: 2021 | C73: 10 | D73: =OFFSET('BENEFITS & COSTS'!$D$23,0,'SUMMARY TABLES'!$B73-'PROJECT SPECIFIC INPUTS'!$C$16) -> 28911096.91 | E73: =OFFSET('BENEFITS & COSTS'!$D$26,0,'SUMMARY TABLES'!$B73-'PROJECT SPECIFIC INPUTS'!$C$16) -> -10674181.19 | F73: =+OFFSET('BENEFITS & COSTS'!$D$29,0,'SUMMARY TABLES'!$B73-'PROJECT SPECIFIC INPUTS'!$C$16) -> 237324.4778 | G73: =OFFSET('BENEFITS & COSTS'!$D$37,0,'SUMMARY TABLES'!$B73-'PROJECT SPECIFIC INPUTS'!$C$16) -> 6071326.413 | H73: =OFFSET('BENEFITS & COSTS'!$D$35,0,'SUMMARY TABLES'!$B73-'PROJECT SPECIFIC INPUTS'!$C$16) -> -6750311.423 | I73: =OFFSET('BENEFITS & COSTS'!$D$32,0,'SUMMARY TABLES'!$B73-'PROJECT SPECIFIC INPUTS'!$C$16) -> 241170.4457 | J73: =OFFSET('BENEFITS & COSTS'!$D$38,0,'SUMMARY TABLES'!$B73-'PROJECT SPECIFIC INPUTS'!$C$16) -> 0
B74: 2022 | C74: 11 | D74: =OFFSET('BENEFITS & COSTS'!$D$23,0,'SUMMARY TABLES'!$B74-'PROJECT SPECIFIC INPUTS'!$C$16) -> 33188277.15 | E74: =OFFSET('BENEFITS & COSTS'!$D$26,0,'SUMMARY TABLES'!$B74-'PROJECT SPECIFIC INPUTS'!$C$16) -> -11650576.2 | F74: =+OFFSET('BENEFITS & COSTS'!$D$29,0,'SUMMARY TABLES'!$B74-'PROJECT SPECIFIC INPUTS'!$C$16) -> 263530.7044 | G74: =OFFSET('BENEFITS & COSTS'!$D$37,0,'SUMMARY TABLES'!$B74-'PROJECT SPECIFIC INPUTS'!$C$16) -> 6071326.413 | H74: =OFFSET('BENEFITS & COSTS'!$D$35,0,'SUMMARY TABLES'!$B74-'PROJECT SPECIFIC INPUTS'!$C$16) -> -6535951.542 | I74: =OFFSET('BENEFITS & COSTS'!$D$32,0,'SUMMARY TABLES'!$B74-'PROJECT SPECIFIC INPUTS'!$C$16) -> 261175.4027 | J74: =OFFSET('BENEFITS & COSTS'!$D$38,0,'SUMMARY TABLES'!$B74-'PROJECT SPECIFIC INPUTS'!$C$16) -> 0
B75: 2023 | C75: 12 | D75: =OFFSET('BENEFITS & COSTS'!$D$23,0,'SUMMARY TABLES'!$B75-'PROJECT SPECIFIC INPUTS'!$C$16) -> 37784149.72 | E75: =OFFSET('BENEFITS & COSTS'!$D$26,0,'SUMMARY TABLES'!$B75-'PROJECT SPECIFIC INPUTS'!$C$16) -> -12155610.59 | F75: =+OFFSET('BENEFITS & COSTS'!$D$29,0,'SUMMARY TABLES'!$B75-'PROJECT SPECIFIC INPUTS'!$C$16) -> 293686.1503 | G75: =OFFSET('BENEFITS & COSTS'!$D$37,0,'SUMMARY TABLES'!$B75-'PROJECT SPECIFIC INPUTS'!$C$16) -> 6071326.413 | H75: =OFFSET('BENEFITS & COSTS'!$D$35,0,'SUMMARY TABLES'!$B75-'PROJECT SPECIFIC INPUTS'!$C$16) -> -6303491.698 | I75: =OFFSET('BENEFITS & COSTS'!$D$32,0,'SUMMARY TABLES'!$B75-'PROJECT SPECIFIC INPUTS'!$C$16) -> 281960.2689 | J75: =OFFSET('BENEFITS & COSTS'!$D$38,0,'SUMMARY TABLES'!$B75-'PROJECT SPECIFIC INPUTS'!$C$16) -> 0
B76: 2024 | C76: 13 | D76: =OFFSET('BENEFITS & COSTS'!$D$23,0,'SUMMARY TABLES'!$B76-'PROJECT SPECIFIC INPUTS'!$C$16) -> 42718440.85 | E76: =OFFSET('BENEFITS & COSTS'!$D$26,0,'SUMMARY TABLES'!$B76-'PROJECT SPECIFIC INPUTS'!$C$16) -> -13256517.21 | F76: =+OFFSET('BENEFITS & COSTS'!$D$29,0,'SUMMARY TABLES'!$B76-'PROJECT SPECIFIC INPUTS'!$C$16) -> 314773.2909 | G76: =OFFSET('BENEFITS & COSTS'!$D$37,0,'SUMMARY TABLES'!$B76-'PROJECT SPECIFIC INPUTS'!$C$16) -> 6071326.413 | H76: =OFFSET('BENEFITS & COSTS'!$D$35,0,'SUMMARY TABLES'!$B76-'PROJECT SPECIFIC INPUTS'!$C$16) -> -6052061.305 | I76: =OFFSET('BENEFITS & COSTS'!$D$32,0,'SUMMARY TABLES'!$B76-'PROJECT SPECIFIC INPUTS'!$C$16) -> 302362.1149 | J76: =OFFSET('BENEFITS & COSTS'!$D$38,0,'SUMMARY TABLES'!$B76-'PROJECT SPECIFIC INPUTS'!$C$16) -> 0
B77: 2025 | C77: 14 | D77: =OFFSET('BENEFITS & COSTS'!$D$23,0,'SUMMARY TABLES'!$B77-'PROJECT SPECIFIC INPUTS'!$C$16) -> 48011995.61 | E77: =OFFSET('BENEFITS & COSTS'!$D$26,0,'SUMMARY TABLES'!$B77-'PROJECT SPECIFIC INPUTS'!$C$16) -> -13710309.04 | F77: =+OFFSET('BENEFITS & COSTS'!$D$29,0,'SUMMARY TABLES'!$B77-'PROJECT SPECIFIC INPUTS'!$C$16) -> 339928.9375 | G77: =OFFSET('BENEFITS & COSTS'!$D$37,0,'SUMMARY TABLES'!$B77-'PROJECT SPECIFIC INPUTS'!$C$16) -> 5373809.389 | H77: =OFFSET('BENEFITS & COSTS'!$D$35,0,'SUMMARY TABLES'!$B77-'PROJECT SPECIFIC INPUTS'!$C$16) -> -5780754.453 | I77: =OFFSET('BENEFITS & COSTS'!$D$32,0,'SUMMARY TABLES'!$B77-'PROJECT SPECIFIC INPUTS'!$C$16) -> 330839.988 | J77: =OFFSET('BENEFITS & COSTS'!$D$38,0,'SUMMARY TABLES'!$B77-'PROJECT SPECIFIC INPUTS'!$C$16) -> 0
B78: 2026 | C78: 15 | D78: =OFFSET('BENEFITS & COSTS'!$D$23,0,'SUMMARY TABLES'!$B78-'PROJECT SPECIFIC INPUTS'!$C$16) -> 53686838.3 | E78: =OFFSET('BENEFITS & COSTS'!$D$26,0,'SUMMARY TABLES'!$B78-'PROJECT SPECIFIC INPUTS'!$C$16) -> -14488220.43 | F78: =+OFFSET('BENEFITS & COSTS'!$D$29,0,'SUMMARY TABLES'!$B78-'PROJECT SPECIFIC INPUTS'!$C$16) -> 358160.0005 | G78: =OFFSET('BENEFITS & COSTS'!$D$37,0,'SUMMARY TABLES'!$B78-'PROJECT SPECIFIC INPUTS'!$C$16) -> 5373809.389 | H78: =OFFSET('BENEFITS & COSTS'!$D$35,0,'SUMMARY TABLES'!$B78-'PROJECT SPECIFIC INPUTS'!$C$16) -> -5488628.586 | I78: =OFFSET('BENEFITS & COSTS'!$D$32,0,'SUMMARY TABLES'!$B78-'PROJECT SPECIFIC INPUTS'!$C$16) -> 359585.7012 | J78: =OFFSET('BENEFITS & COSTS'!$D$38,0,'SUMMARY TABLES'!$B78-'PROJECT SPECIFIC INPUTS'!$C$16) -> 0
B79: 2027 | C79: 16 | D79: =OFFSET('BENEFITS & COSTS'!$D$23,0,'SUMMARY TABLES'!$B79-'PROJECT SPECIFIC INPUTS'!$C$16) -> 59766235.9 | E79: =OFFSET('BENEFITS & COSTS'!$D$26,0,'SUMMARY TABLES'!$B79-'PROJECT SPECIFIC INPUTS'!$C$16) -> -15435011.53 | F79: =+OFFSET('BENEFITS & COSTS'!$D$29,0,'SUMMARY TABLES'!$B79-'PROJECT SPECIFIC INPUTS'!$C$16) -> 370844.3437 | G79: =OFFSET('BENEFITS & COSTS'!$D$37,0,'SUMMARY TABLES'!$B79-'PROJECT SPECIFIC INPUTS'!$C$16) -> 5373809.389 | H79: =OFFSET('BENEFITS & COSTS'!$D$35,0,'SUMMARY TABLES'!$B79-'PROJECT SPECIFIC INPUTS'!$C$16) -> -5174703.137 | I79: =OFFSET('BENEFITS & COSTS'!$D$32,0,'SUMMARY TABLES'!$B79-'PROJECT SPECIFIC INPUTS'!$C$16) -> 694562.5487 | J79: =OFFSET('BENEFITS & COSTS'!$D$38,0,'SUMMARY TABLES'!$B79-'PROJECT SPECIFIC INPUTS'!$C$16) -> 0
B80: 2028 | C80: 17 | D80: =OFFSET('BENEFITS & COSTS'!$D$23,0,'SUMMARY TABLES'!$B80-'PROJECT SPECIFIC INPUTS'!$C$16) -> 66274764.87 | E80: =OFFSET('BENEFITS & COSTS'!$D$26,0,'SUMMARY TABLES'!$B80-'PROJECT SPECIFIC INPUTS'!$C$16) -> -15734079.35 | F80: =+OFFSET('BENEFITS & COSTS'!$D$29,0,'SUMMARY TABLES'!$B80-'PROJECT SPECIFIC INPUTS'!$C$16) -> 383842.8027 | G80: =OFFSET('BENEFITS & COSTS'!$D$37,0,'SUMMARY TABLES'!$B80-'PROJECT SPECIFIC INPUTS'!$C$16) -> 5373809.389 | H80: =OFFSET('BENEFITS & COSTS'!$D$35,0,'SUMMARY TABLES'!$B80-'PROJECT SPECIFIC INPUTS'!$C$16) -> -4837958.114 | I80: =OFFSET('BENEFITS & COSTS'!$D$32,0,'SUMMARY TABLES'!$B80-'PROJECT SPECIFIC INPUTS'!$C$16) -> -21379.8434 | J80: =OFFSET('BENEFITS & COSTS'!$D$38,0,'SUMMARY TABLES'!$B80-'PROJECT SPECIFIC INPUTS'!$C$16) -> 0
B81: 2029 | C81: 18 | D81: =OFFSET('BENEFITS & COSTS'!$D$23,0,'SUMMARY TABLES'!$B81-'PROJECT SPECIFIC INPUTS'!$C$16) -> 73238381.44 | E81: =OFFSET('BENEFITS & COSTS'!$D$26,0,'SUMMARY TABLES'!$B81-'PROJECT SPECIFIC INPUTS'!$C$16) -> -16366829.21 | F81: =+OFFSET('BENEFITS & COSTS'!$D$29,0,'SUMMARY TABLES'!$B81-'PROJECT SPECIFIC INPUTS'!$C$16) -> 388166.4179 | G81: =OFFSET('BENEFITS & COSTS'!$D$37,0,'SUMMARY TABLES'!$B81-'PROJECT SPECIFIC INPUTS'!$C$16) -> 5373809.389 | H81: =OFFSET('BENEFITS & COSTS'!$D$35,0,'SUMMARY TABLES'!$B81-'PROJECT SPECIFIC INPUTS'!$C$16) -> -4477332.638 | I81: =OFFSET('BENEFITS & COSTS'!$D$32,0,'SUMMARY TABLES'!$B81-'PROJECT SPECIFIC INPUTS'!$C$16) -> 10037.92765 | J81: =OFFSET('BENEFITS & COSTS'!$D$38,0,'SUMMARY TABLES'!$B81-'PROJECT SPECIFIC INPUTS'!$C$16) -> 0
B82: 2030 | C82: 19 | D82: =OFFSET('BENEFITS & COSTS'!$D$23,0,'SUMMARY TABLES'!$B82-'PROJECT SPECIFIC INPUTS'!$C$16) -> 80684495.54 | E82: =OFFSET('BENEFITS & COSTS'!$D$26,0,'SUMMARY TABLES'!$B82-'PROJECT SPECIFIC INPUTS'!$C$16) -> -16933630.03 | F82: =+OFFSET('BENEFITS & COSTS'!$D$29,0,'SUMMARY TABLES'!$B82-'PROJECT SPECIFIC INPUTS'!$C$16) -> 386143.6475 | G82: =OFFSET('BENEFITS & COSTS'!$D$37,0,'SUMMARY TABLES'!$B82-'PROJECT SPECIFIC INPUTS'!$C$16) -> 0 | H82: =OFFSET('BENEFITS & COSTS'!$D$35,0,'SUMMARY TABLES'!$B82-'PROJECT SPECIFIC INPUTS'!$C$16) -> -4091723.423 | I82: =OFFSET('BENEFITS & COSTS'!$D$32,0,'SUMMARY TABLES'!$B82-'PROJECT SPECIFIC INPUTS'!$C$16) -> 43336.49664 | J82: =OFFSET('BENEFITS & COSTS'!$D$38,0,'SUMMARY TABLES'!$B82-'PROJECT SPECIFIC INPUTS'!$C$16) -> 0
B83: 2031 | C83: 20 | D83: =OFFSET('BENEFITS & COSTS'!$D$23,0,'SUMMARY TABLES'!$B83-'PROJECT SPECIFIC INPUTS'!$C$16) -> 88642048.57 | E83: =OFFSET('BENEFITS & COSTS'!$D$26,0,'SUMMARY TABLES'!$B83-'PROJECT SPECIFIC INPUTS'!$C$16) -> -17033660.13 | F83: =+OFFSET('BENEFITS & COSTS'!$D$29,0,'SUMMARY TABLES'!$B83-'PROJECT SPECIFIC INPUTS'!$C$16) -> 378807.8551 | G83: =OFFSET('BENEFITS & COSTS'!$D$37,0,'SUMMARY TABLES'!$B83-'PROJECT SPECIFIC INPUTS'!$C$16) -> 0 | H83: =OFFSET('BENEFITS & COSTS'!$D$35,0,'SUMMARY TABLES'!$B83-'PROJECT SPECIFIC INPUTS'!$C$16) -> -3679983.207 | I83: =OFFSET('BENEFITS & COSTS'!$D$32,0,'SUMMARY TABLES'!$B83-'PROJECT SPECIFIC INPUTS'!$C$16) -> 79865.07012 | J83: =OFFSET('BENEFITS & COSTS'!$D$38,0,'SUMMARY TABLES'!$B83-'PROJECT SPECIFIC INPUTS'!$C$16) -> 0
B84: 2032 | C84: 21 | D84: =OFFSET('BENEFITS & COSTS'!$D$23,0,'SUMMARY TABLES'!$B84-'PROJECT SPECIFIC INPUTS'!$C$16) -> 97141595.21 | E84: =OFFSET('BENEFITS & COSTS'!$D$26,0,'SUMMARY TABLES'!$B84-'PROJECT SPECIFIC INPUTS'!$C$16) -> -17487869.16 | F84: =+OFFSET('BENEFITS & COSTS'!$D$29,0,'SUMMARY TABLES'!$B84-'PROJECT SPECIFIC INPUTS'!$C$16) -> 360359.4468 | G84: =OFFSET('BENEFITS & COSTS'!$D$37,0,'SUMMARY TABLES'!$B84-'PROJECT SPECIFIC INPUTS'!$C$16) -> 0 | H84: =OFFSET('BENEFITS & COSTS'!$D$35,0,'SUMMARY TABLES'!$B84-'PROJECT SPECIFIC INPUTS'!$C$16) -> -3240919.132 | I84: =OFFSET('BENEFITS & COSTS'!$D$32,0,'SUMMARY TABLES'!$B84-'PROJECT SPECIFIC INPUTS'!$C$16) -> 118984.3168 | J84: =OFFSET('BENEFITS & COSTS'!$D$38,0,'SUMMARY TABLES'!$B84-'PROJECT SPECIFIC INPUTS'!$C$16) -> 0
B85: 2033 | C85: 22 | D85: =OFFSET('BENEFITS & COSTS'!$D$23,0,'SUMMARY TABLES'!$B85-'PROJECT SPECIFIC INPUTS'!$C$16) -> 106215389.5 | E85: =OFFSET('BENEFITS & COSTS'!$D$26,0,'SUMMARY TABLES'!$B85-'PROJECT SPECIFIC INPUTS'!$C$16) -> -17785520.91 | F85: =+OFFSET('BENEFITS & COSTS'!$D$29,0,'SUMMARY TABLES'!$B85-'PROJECT SPECIFIC INPUTS'!$C$16) -> 332436.0532 | G85: =OFFSET('BENEFITS & COSTS'!$D$37,0,'SUMMARY TABLES'!$B85-'PROJECT SPECIFIC INPUTS'!$C$16) -> 0 | H85: =OFFSET('BENEFITS & COSTS'!$D$35,0,'SUMMARY TABLES'!$B85-'PROJECT SPECIFIC INPUTS'!$C$16) -> -2773291.055 | I85: =OFFSET('BENEFITS & COSTS'!$D$32,0,'SUMMARY TABLES'!$B85-'PROJECT SPECIFIC INPUTS'!$C$16) -> 160096.0598 | J85: =OFFSET('BENEFITS & COSTS'!$D$38,0,'SUMMARY TABLES'!$B85-'PROJECT SPECIFIC INPUTS'!$C$16) -> 0
B86: 2034 | C86: 23 | D86: =OFFSET('BENEFITS & COSTS'!$D$23,0,'SUMMARY TABLES'!$B86-'PROJECT SPECIFIC INPUTS'!$C$16) -> 115897475.3 | E86: =OFFSET('BENEFITS & COSTS'!$D$26,0,'SUMMARY TABLES'!$B86-'PROJECT SPECIFIC INPUTS'!$C$16) -> -17742445.63 | F86: =+OFFSET('BENEFITS & COSTS'!$D$29,0,'SUMMARY TABLES'!$B86-'PROJECT SPECIFIC INPUTS'!$C$16) -> 294045.1124 | G86: =OFFSET('BENEFITS & COSTS'!$D$37,0,'SUMMARY TABLES'!$B86-'PROJECT SPECIFIC INPUTS'!$C$16) -> 0 | H86: =OFFSET('BENEFITS & COSTS'!$D$35,0,'SUMMARY TABLES'!$B86-'PROJECT SPECIFIC INPUTS'!$C$16) -> -2275809.808 | I86: =OFFSET('BENEFITS & COSTS'!$D$32,0,'SUMMARY TABLES'!$B86-'PROJECT SPECIFIC INPUTS'!$C$16) -> 205321.4992 | J86: =OFFSET('BENEFITS & COSTS'!$D$38,0,'SUMMARY TABLES'!$B86-'PROJECT SPECIFIC INPUTS'!$C$16) -> 0
B87: 2035 | C87: 24 | D87: =OFFSET('BENEFITS & COSTS'!$D$23,0,'SUMMARY TABLES'!$B87-'PROJECT SPECIFIC INPUTS'!$C$16) -> 126223781.6 | E87: =OFFSET('BENEFITS & COSTS'!$D$26,0,'SUMMARY TABLES'!$B87-'PROJECT SPECIFIC INPUTS'!$C$16) -> -18039802.23 | F87: =+OFFSET('BENEFITS & COSTS'!$D$29,0,'SUMMARY TABLES'!$B87-'PROJECT SPECIFIC INPUTS'!$C$16) -> 241605.2695 | G87: =OFFSET('BENEFITS & COSTS'!$D$37,0,'SUMMARY TABLES'!$B87-'PROJECT SPECIFIC INPUTS'!$C$16) -> 0 | H87: =OFFSET('BENEFITS & COSTS'!$D$35,0,'SUMMARY TABLES'!$B87-'PROJECT SPECIFIC INPUTS'!$C$16) -> -1747135.398 | I87: =OFFSET('BENEFITS & COSTS'!$D$32,0,'SUMMARY TABLES'!$B87-'PROJECT SPECIFIC INPUTS'!$C$16) -> 252732.1038 | J87: =OFFSET('BENEFITS & COSTS'!$D$38,0,'SUMMARY TABLES'!$B87-'PROJECT SPECIFIC INPUTS'!$C$16) -> 0
B88: 2036 | C88: 25 | D88: =OFFSET('BENEFITS & COSTS'!$D$23,0,'SUMMARY TABLES'!$B88-'PROJECT SPECIFIC INPUTS'!$C$16) -> 128243362.1 | E88: =OFFSET('BENEFITS & COSTS'!$D$26,0,'SUMMARY TABLES'!$B88-'PROJECT SPECIFIC INPUTS'!$C$16) -> -18039802.23 | F88: =+OFFSET('BENEFITS & COSTS'!$D$29,0,'SUMMARY TABLES'!$B88-'PROJECT SPECIFIC INPUTS'!$C$16) -> 246115.5611 | G88: =OFFSET('BENEFITS & COSTS'!$D$37,0,'SUMMARY TABLES'!$B88-'PROJECT SPECIFIC INPUTS'!$C$16) -> 0 | H88: =OFFSET('BENEFITS & COSTS'!$D$35,0,'SUMMARY TABLES'!$B88-'PROJECT SPECIFIC INPUTS'!$C$16) -> -1765712.934 | I88: =OFFSET('BENEFITS & COSTS'!$D$32,0,'SUMMARY TABLES'!$B88-'PROJECT SPECIFIC INPUTS'!$C$16) -> 256148.0909 | J88: =OFFSET('BENEFITS & COSTS'!$D$38,0,'SUMMARY TABLES'!$B88-'PROJECT SPECIFIC INPUTS'!$C$16) -> 9050000
B89: Total | D89: =SUM(D64:D88) -> 1246649433 | E89: =SUM(E64:E88) -> -270464303.2 | F89: =SUM(F64:F88) -> 5571146.486 | G89: =SUM(G64:G88) -> 74151093.98 | H89: =SUM(H64:H88) -> -87793546.4 | I89: =SUM(I64:I88) -> 4572846.422 | J89: 9050000
B91: Table 20: Summary of Annual Safety Benefits by Type
B92: Calendar Year | C92: Project Year | D92: Change in Number of PDO Accidents | E92: Change in Number of Injuries | F92: Change in Number of Fatalities | G92: Safety Benefits
B93: ='PROJECT SPECIFIC INPUTS'!$C$16 -> 2012 | C93: 1 | D93: =OFFSET(SAFETY_CALC!$D$77,0,'SUMMARY TABLES'!$B93-'PROJECT SPECIFIC INPUTS'!$C$16)*PARAMETERS!$B$9*-1 -> 0 | E93: =(OFFSET(SAFETY_CALC!$D$74,0,'SUMMARY TABLES'!$B93-'PROJECT SPECIFIC INPUTS'!$C$16)+OFFSET(SAFETY_CALC!$D$75,0,'SUMMARY TABLES'!$B93-'PROJECT SPECIFIC INPUTS'!$C$16)+OFFSET(SAFETY_CALC!$D$76,0,'SUMMARY TABLES'!$B93-'PROJECT SPECIFIC INPUTS'!$C$16))*PARAMETERS!$B$9*-1 -> 0 | F93: =OFFSET(SAFETY_CALC!$D$73,0,'SUMMARY TABLES'!$B93-'PROJECT SPECIFIC INPUTS'!$C$16)*PARAMETERS!$B$9*-1 -> 0 | G93: =H64 -> 0
B94: =1+B93 -> 2013 | C94: 2 | D94: =OFFSET(SAFETY_CALC!$D$77,0,'SUMMARY TABLES'!$B94-'PROJECT SPECIFIC INPUTS'!$C$16)*PARAMETERS!$B$9*-1 -> 0 | E94: =(OFFSET(SAFETY_CALC!$D$74,0,'SUMMARY TABLES'!$B94-'PROJECT SPECIFIC INPUTS'!$C$16)+OFFSET(SAFETY_CALC!$D$75,0,'SUMMARY TABLES'!$B94-'PROJECT SPECIFIC INPUTS'!$C$16)+OFFSET(SAFETY_CALC!$D$76,0,'SUMMARY TABLES'!$B94-'PROJECT SPECIFIC INPUTS'!$C$16))*PARAMETERS!$B$9*-1 -> 0 | F94: =OFFSET(SAFETY_CALC!$D$73,0,'SUMMARY TABLES'!$B94-'PROJECT SPECIFIC INPUTS'!$C$16)*PARAMETERS!$B$9*-1 -> 0 | G94: 0
B95: =1+B94 -> 2014 | C95: 3 | D95: =OFFSET(SAFETY_CALC!$D$77,0,'SUMMARY TABLES'!$B95-'PROJECT SPECIFIC INPUTS'!$C$16)*PARAMETERS!$B$9*-1 -> 0 | E95: =(OFFSET(SAFETY_CALC!$D$74,0,'SUMMARY TABLES'!$B95-'PROJECT SPECIFIC INPUTS'!$C$16)+OFFSET(SAFETY_CALC!$D$75,0,'SUMMARY TABLES'!$B95-'PROJECT SPECIFIC INPUTS'!$C$16)+OFFSET(SAFETY_CALC!$D$76,0,'SUMMARY TABLES'!$B95-'PROJECT SPECIFIC INPUTS'!$C$16))*PARAMETERS!$B$9*-1 -> 0 | F95: =OFFSET(SAFETY_CALC!$D$73,0,'SUMMARY TABLES'!$B95-'PROJECT SPECIFIC INPUTS'!$C$16)*PARAMETERS!$B$9*-1 -> 0 | G95: 0
B96: 2015 | C96: 4 | D96: =OFFSET(SAFETY_CALC!$D$77,0,'SUMMARY TABLES'!$B96-'PROJECT SPECIFIC INPUTS'!$C$16)*PARAMETERS!$B$9*-1 -> 0 | E96: =(OFFSET(SAFETY_CALC!$D$74,0,'SUMMARY TABLES'!$B96-'PROJECT SPECIFIC INPUTS'!$C$16)+OFFSET(SAFETY_CALC!$D$75,0,'SUMMARY TABLES'!$B96-'PROJECT SPECIFIC INPUTS'!$C$16)+OFFSET(SAFETY_CALC!$D$76,0,'SUMMARY TABLES'!$B96-'PROJECT SPECIFIC INPUTS'!$C$16))*PARAMETERS!$B$9*-1 -> 0 | F96: =OFFSET(SAFETY_CALC!$D$73,0,'SUMMARY TABLES'!$B96-'PROJECT SPECIFIC INPUTS'!$C$16)*PARAMETERS!$B$9*-1 -> 0 | G96: 0
B97: 2016 | C97: 5 | D97: =OFFSET(SAFETY_CALC!$D$77,0,'SUMMARY TABLES'!$B97-'PROJECT SPECIFIC INPUTS'!$C$16)*PARAMETERS!$B$9*-1 -> 0 | E97: =(OFFSET(SAFETY_CALC!$D$74,0,'SUMMARY TABLES'!$B97-'PROJECT SPECIFIC INPUTS'!$C$16)+OFFSET(SAFETY_CALC!$D$75,0,'SUMMARY TABLES'!$B97-'PROJECT SPECIFIC INPUTS'!$C$16)+OFFSET(SAFETY_CALC!$D$76,0,'SUMMARY TABLES'!$B97-'PROJECT SPECIFIC INPUTS'!$C$16))*PARAMETERS!$B$9*-1 -> 0 | F97: =OFFSET(SAFETY_CALC!$D$73,0,'SUMMARY TABLES'!$B97-'PROJECT SPECIFIC INPUTS'!$C$16)*PARAMETERS!$B$9*-1 -> 0 | G97: 0
B98: 2017 | C98: 6 | D98: =OFFSET(SAFETY_CALC!$D$77,0,'SUMMARY TABLES'!$B98-'PROJECT SPECIFIC INPUTS'!$C$16)*PARAMETERS!$B$9*-1 -> 3.524866122 | E98: =(OFFSET(SAFETY_CALC!$D$74,0,'SUMMARY TABLES'!$B98-'PROJECT SPECIFIC INPUTS'!$C$16)+OFFSET(SAFETY_CALC!$D$75,0,'SUMMARY TABLES'!$B98-'PROJECT SPECIFIC INPUTS'!$C$16)+OFFSET(SAFETY_CALC!$D$76,0,'SUMMARY TABLES'!$B98-'PROJECT SPECIFIC INPUTS'!$C$16))*PARAMETERS!$B$9*-1 -> 4.448330683 | F98: =OFFSET(SAFETY_CALC!$D$73,0,'SUMMARY TABLES'!$B98-'PROJECT SPECIFIC INPUTS'!$C$16)*PARAMETERS!$B$9*-1 -> 0.09921081271 | G98: -1574305.699
B99: 2018 | C99: 7 | D99: =OFFSET(SAFETY_CALC!$D$77,0,'SUMMARY TABLES'!$B99-'PROJECT SPECIFIC INPUTS'!$C$16)*PARAMETERS!$B$9*-1 -> 7.207881676 | E99: =(OFFSET(SAFETY_CALC!$D$74,0,'SUMMARY TABLES'!$B99-'PROJECT SPECIFIC INPUTS'!$C$16)+OFFSET(SAFETY_CALC!$D$75,0,'SUMMARY TABLES'!$B99-'PROJECT SPECIFIC INPUTS'!$C$16)+OFFSET(SAFETY_CALC!$D$76,0,'SUMMARY TABLES'!$B99-'PROJECT SPECIFIC INPUTS'!$C$16))*PARAMETERS!$B$9*-1 -> 9.096243687 | F99: =OFFSET(SAFETY_CALC!$D$73,0,'SUMMARY TABLES'!$B99-'PROJECT SPECIFIC INPUTS'!$C$16)*PARAMETERS!$B$9*-1 -> 0.2028728962 | G99: -3253431.024
B100: 2019 | C100: 8 | D100: =OFFSET(SAFETY_CALC!$D$77,0,'SUMMARY TABLES'!$B100-'PROJECT SPECIFIC INPUTS'!$C$16)*PARAMETERS!$B$9*-1 -> 11.05441103 | E100: =(OFFSET(SAFETY_CALC!$D$74,0,'SUMMARY TABLES'!$B100-'PROJECT SPECIFIC INPUTS'!$C$16)+OFFSET(SAFETY_CALC!$D$75,0,'SUMMARY TABLES'!$B100-'PROJECT SPECIFIC INPUTS'!$C$16)+OFFSET(SAFETY_CALC!$D$76,0,'SUMMARY TABLES'!$B100-'PROJECT SPECIFIC INPUTS'!$C$16))*PARAMETERS!$B$9*-1 -> 13.95050878 | F100: =OFFSET(SAFETY_CALC!$D$73,0,'SUMMARY TABLES'!$B100-'PROJECT SPECIFIC INPUTS'!$C$16)*PARAMETERS!$B$9*-1 -> 0.311137236 | G100: -5042633.948
B101: 2020 | C101: 9 | D101: =OFFSET(SAFETY_CALC!$D$77,0,'SUMMARY TABLES'!$B101-'PROJECT SPECIFIC INPUTS'!$C$16)*PARAMETERS!$B$9*-1 -> 15.06998157 | E101: =(OFFSET(SAFETY_CALC!$D$74,0,'SUMMARY TABLES'!$B101-'PROJECT SPECIFIC INPUTS'!$C$16)+OFFSET(SAFETY_CALC!$D$75,0,'SUMMARY TABLES'!$B101-'PROJECT SPECIFIC INPUTS'!$C$16)+OFFSET(SAFETY_CALC!$D$76,0,'SUMMARY TABLES'!$B101-'PROJECT SPECIFIC INPUTS'!$C$16))*PARAMETERS!$B$9*-1 -> 19.01810142 | F101: =OFFSET(SAFETY_CALC!$D$73,0,'SUMMARY TABLES'!$B101-'PROJECT SPECIFIC INPUTS'!$C$16)*PARAMETERS!$B$9*-1 -> 0.4241594056 | G101: -6947407.873
B102: 2021 | C102: 10 | D102: =OFFSET(SAFETY_CALC!$D$77,0,'SUMMARY TABLES'!$B102-'PROJECT SPECIFIC INPUTS'!$C$16)*PARAMETERS!$B$9*-1 -> 14.48855707 | E102: =(OFFSET(SAFETY_CALC!$D$74,0,'SUMMARY TABLES'!$B102-'PROJECT SPECIFIC INPUTS'!$C$16)+OFFSET(SAFETY_CALC!$D$75,0,'SUMMARY TABLES'!$B102-'PROJECT SPECIFIC INPUTS'!$C$16)+OFFSET(SAFETY_CALC!$D$76,0,'SUMMARY TABLES'!$B102-'PROJECT SPECIFIC INPUTS'!$C$16))*PARAMETERS!$B$9*-1 -> 18.284352 | F102: =OFFSET(SAFETY_CALC!$D$73,0,'SUMMARY TABLES'!$B102-'PROJECT SPECIFIC INPUTS'!$C$16)*PARAMETERS!$B$9*-1 -> 0.4077946429 | G102: -6750311.423
B103: 2022 | C103: 11 | D103: =OFFSET(SAFETY_CALC!$D$77,0,'SUMMARY TABLES'!$B103-'PROJECT SPECIFIC INPUTS'!$C$16)*PARAMETERS!$B$9*-1 -> 13.88101418 | E103: =(OFFSET(SAFETY_CALC!$D$74,0,'SUMMARY TABLES'!$B103-'PROJECT SPECIFIC INPUTS'!$C$16)+OFFSET(SAFETY_CALC!$D$75,0,'SUMMARY TABLES'!$B103-'PROJECT SPECIFIC INPUTS'!$C$16)+OFFSET(SAFETY_CALC!$D$76,0,'SUMMARY TABLES'!$B103-'PROJECT SPECIFIC INPUTS'!$C$16))*PARAMETERS!$B$9*-1 -> 17.51764156 | F103: =OFFSET(SAFETY_CALC!$D$73,0,'SUMMARY TABLES'!$B103-'PROJECT SPECIFIC INPUTS'!$C$16)*PARAMETERS!$B$9*-1 -> 0.3906947527 | G103: -6535951.542
B104: 2023 | C104: 12 | D104: =OFFSET(SAFETY_CALC!$D$77,0,'SUMMARY TABLES'!$B104-'PROJECT SPECIFIC INPUTS'!$C$16)*PARAMETERS!$B$9*-1 -> 13.24659495 | E104: =(OFFSET(SAFETY_CALC!$D$74,0,'SUMMARY TABLES'!$B104-'PROJECT SPECIFIC INPUTS'!$C$16)+OFFSET(SAFETY_CALC!$D$75,0,'SUMMARY TABLES'!$B104-'PROJECT SPECIFIC INPUTS'!$C$16)+OFFSET(SAFETY_CALC!$D$76,0,'SUMMARY TABLES'!$B104-'PROJECT SPECIFIC INPUTS'!$C$16))*PARAMETERS!$B$9*-1 -> 16.71701356 | F104: =OFFSET(SAFETY_CALC!$D$73,0,'SUMMARY TABLES'!$B104-'PROJECT SPECIFIC INPUTS'!$C$16)*PARAMETERS!$B$9*-1 -> 0.3728384016 | G104: -6303491.698
B105: 2024 | C105: 13 | D105: =OFFSET(SAFETY_CALC!$D$77,0,'SUMMARY TABLES'!$B105-'PROJECT SPECIFIC INPUTS'!$C$16)*PARAMETERS!$B$9*-1 -> 12.5845225 | E105: =(OFFSET(SAFETY_CALC!$D$74,0,'SUMMARY TABLES'!$B105-'PROJECT SPECIFIC INPUTS'!$C$16)+OFFSET(SAFETY_CALC!$D$75,0,'SUMMARY TABLES'!$B105-'PROJECT SPECIFIC INPUTS'!$C$16)+OFFSET(SAFETY_CALC!$D$76,0,'SUMMARY TABLES'!$B105-'PROJECT SPECIFIC INPUTS'!$C$16))*PARAMETERS!$B$9*-1 -> 15.88148758 | F105: =OFFSET(SAFETY_CALC!$D$73,0,'SUMMARY TABLES'!$B105-'PROJECT SPECIFIC INPUTS'!$C$16)*PARAMETERS!$B$9*-1 -> 0.3542037232 | G105: -6052061.305
B106: 2025 | C106: 14 | D106: =OFFSET(SAFETY_CALC!$D$77,0,'SUMMARY TABLES'!$B106-'PROJECT SPECIFIC INPUTS'!$C$16)*PARAMETERS!$B$9*-1 -> 11.89400053 | E106: =(OFFSET(SAFETY_CALC!$D$74,0,'SUMMARY TABLES'!$B106-'PROJECT SPECIFIC INPUTS'!$C$16)+OFFSET(SAFETY_CALC!$D$75,0,'SUMMARY TABLES'!$B106-'PROJECT SPECIFIC INPUTS'!$C$16)+OFFSET(SAFETY_CALC!$D$76,0,'SUMMARY TABLES'!$B106-'PROJECT SPECIFIC INPUTS'!$C$16))*PARAMETERS!$B$9*-1 -> 15.01005872 | F106: =OFFSET(SAFETY_CALC!$D$73,0,'SUMMARY TABLES'!$B106-'PROJECT SPECIFIC INPUTS'!$C$16)*PARAMETERS!$B$9*-1 -> 0.3347683054 | G106: -5780754.453
B107: 2026 | C107: 15 | D107: =OFFSET(SAFETY_CALC!$D$77,0,'SUMMARY TABLES'!$B107-'PROJECT SPECIFIC INPUTS'!$C$16)*PARAMETERS!$B$9*-1 -> 11.17421294 | E107: =(OFFSET(SAFETY_CALC!$D$74,0,'SUMMARY TABLES'!$B107-'PROJECT SPECIFIC INPUTS'!$C$16)+OFFSET(SAFETY_CALC!$D$75,0,'SUMMARY TABLES'!$B107-'PROJECT SPECIFIC INPUTS'!$C$16)+OFFSET(SAFETY_CALC!$D$76,0,'SUMMARY TABLES'!$B107-'PROJECT SPECIFIC INPUTS'!$C$16))*PARAMETERS!$B$9*-1 -> 14.10169707 | F107: =OFFSET(SAFETY_CALC!$D$73,0,'SUMMARY TABLES'!$B107-'PROJECT SPECIFIC INPUTS'!$C$16)*PARAMETERS!$B$9*-1 -> 0.3145091781 | G107: -5488628.586
B108: 2027 | C108: 16 | D108: =OFFSET(SAFETY_CALC!$D$77,0,'SUMMARY TABLES'!$B108-'PROJECT SPECIFIC INPUTS'!$C$16)*PARAMETERS!$B$9*-1 -> 10.42432333 | E108: =(OFFSET(SAFETY_CALC!$D$74,0,'SUMMARY TABLES'!$B108-'PROJECT SPECIFIC INPUTS'!$C$16)+OFFSET(SAFETY_CALC!$D$75,0,'SUMMARY TABLES'!$B108-'PROJECT SPECIFIC INPUTS'!$C$16)+OFFSET(SAFETY_CALC!$D$76,0,'SUMMARY TABLES'!$B108-'PROJECT SPECIFIC INPUTS'!$C$16))*PARAMETERS!$B$9*-1 -> 13.15534709 | F108: =OFFSET(SAFETY_CALC!$D$73,0,'SUMMARY TABLES'!$B108-'PROJECT SPECIFIC INPUTS'!$C$16)*PARAMETERS!$B$9*-1 -> 0.2934027998 | G108: -5174703.137
B109: 2028 | C109: 17 | D109: =OFFSET(SAFETY_CALC!$D$77,0,'SUMMARY TABLES'!$B109-'PROJECT SPECIFIC INPUTS'!$C$16)*PARAMETERS!$B$9*-1 -> 9.643474533 | E109: =(OFFSET(SAFETY_CALC!$D$74,0,'SUMMARY TABLES'!$B109-'PROJECT SPECIFIC INPUTS'!$C$16)+OFFSET(SAFETY_CALC!$D$75,0,'SUMMARY TABLES'!$B109-'PROJECT SPECIFIC INPUTS'!$C$16)+OFFSET(SAFETY_CALC!$D$76,0,'SUMMARY TABLES'!$B109-'PROJECT SPECIFIC INPUTS'!$C$16))*PARAMETERS!$B$9*-1 -> 12.16992707 | F109: =OFFSET(SAFETY_CALC!$D$73,0,'SUMMARY TABLES'!$B109-'PROJECT SPECIFIC INPUTS'!$C$16)*PARAMETERS!$B$9*-1 -> 0.271425045 | G109: -4837958.114
B110: 2029 | C110: 18 | D110: =OFFSET(SAFETY_CALC!$D$77,0,'SUMMARY TABLES'!$B110-'PROJECT SPECIFIC INPUTS'!$C$16)*PARAMETERS!$B$9*-1 -> 8.830788165 | E110: =(OFFSET(SAFETY_CALC!$D$74,0,'SUMMARY TABLES'!$B110-'PROJECT SPECIFIC INPUTS'!$C$16)+OFFSET(SAFETY_CALC!$D$75,0,'SUMMARY TABLES'!$B110-'PROJECT SPECIFIC INPUTS'!$C$16)+OFFSET(SAFETY_CALC!$D$76,0,'SUMMARY TABLES'!$B110-'PROJECT SPECIFIC INPUTS'!$C$16))*PARAMETERS!$B$9*-1 -> 11.14432849 | F110: =OFFSET(SAFETY_CALC!$D$73,0,'SUMMARY TABLES'!$B110-'PROJECT SPECIFIC INPUTS'!$C$16)*PARAMETERS!$B$9*-1 -> 0.2485511904 | G110: -4477332.638
B111: 2030 | C111: 19 | D111: =OFFSET(SAFETY_CALC!$D$77,0,'SUMMARY TABLES'!$B111-'PROJECT SPECIFIC INPUTS'!$C$16)*PARAMETERS!$B$9*-1 -> 7.985364097 | E111: =(OFFSET(SAFETY_CALC!$D$74,0,'SUMMARY TABLES'!$B111-'PROJECT SPECIFIC INPUTS'!$C$16)+OFFSET(SAFETY_CALC!$D$75,0,'SUMMARY TABLES'!$B111-'PROJECT SPECIFIC INPUTS'!$C$16)+OFFSET(SAFETY_CALC!$D$76,0,'SUMMARY TABLES'!$B111-'PROJECT SPECIFIC INPUTS'!$C$16))*PARAMETERS!$B$9*-1 -> 10.07741539 | F111: =OFFSET(SAFETY_CALC!$D$73,0,'SUMMARY TABLES'!$B111-'PROJECT SPECIFIC INPUTS'!$C$16)*PARAMETERS!$B$9*-1 -> 0.2247559012 | G111: -4091723.423
B112: 2031 | C112: 20 | D112: =OFFSET(SAFETY_CALC!$D$77,0,'SUMMARY TABLES'!$B112-'PROJECT SPECIFIC INPUTS'!$C$16)*PARAMETERS!$B$9*-1 -> 7.10627998 | E112: =(OFFSET(SAFETY_CALC!$D$74,0,'SUMMARY TABLES'!$B112-'PROJECT SPECIFIC INPUTS'!$C$16)+OFFSET(SAFETY_CALC!$D$75,0,'SUMMARY TABLES'!$B112-'PROJECT SPECIFIC INPUTS'!$C$16)+OFFSET(SAFETY_CALC!$D$76,0,'SUMMARY TABLES'!$B112-'PROJECT SPECIFIC INPUTS'!$C$16))*PARAMETERS!$B$9*-1 -> 8.968023799 | F112: =OFFSET(SAFETY_CALC!$D$73,0,'SUMMARY TABLES'!$B112-'PROJECT SPECIFIC INPUTS'!$C$16)*PARAMETERS!$B$9*-1 -> 0.2000132169 | G112: -3679983.207
B113: 2032 | C113: 21 | D113: =OFFSET(SAFETY_CALC!$D$77,0,'SUMMARY TABLES'!$B113-'PROJECT SPECIFIC INPUTS'!$C$16)*PARAMETERS!$B$9*-1 -> 6.192590727 | E113: =(OFFSET(SAFETY_CALC!$D$74,0,'SUMMARY TABLES'!$B113-'PROJECT SPECIFIC INPUTS'!$C$16)+OFFSET(SAFETY_CALC!$D$75,0,'SUMMARY TABLES'!$B113-'PROJECT SPECIFIC INPUTS'!$C$16)+OFFSET(SAFETY_CALC!$D$76,0,'SUMMARY TABLES'!$B113-'PROJECT SPECIFIC INPUTS'!$C$16))*PARAMETERS!$B$9*-1 -> 7.814961017 | F113: =OFFSET(SAFETY_CALC!$D$73,0,'SUMMARY TABLES'!$B113-'PROJECT SPECIFIC INPUTS'!$C$16)*PARAMETERS!$B$9*-1 -> 0.1742965371 | G113: -3240919.132
B114: 2033 | C114: 22 | D114: =OFFSET(SAFETY_CALC!$D$77,0,'SUMMARY TABLES'!$B114-'PROJECT SPECIFIC INPUTS'!$C$16)*PARAMETERS!$B$9*-1 -> 5.243327989 | E114: =(OFFSET(SAFETY_CALC!$D$74,0,'SUMMARY TABLES'!$B114-'PROJECT SPECIFIC INPUTS'!$C$16)+OFFSET(SAFETY_CALC!$D$75,0,'SUMMARY TABLES'!$B114-'PROJECT SPECIFIC INPUTS'!$C$16)+OFFSET(SAFETY_CALC!$D$76,0,'SUMMARY TABLES'!$B114-'PROJECT SPECIFIC INPUTS'!$C$16))*PARAMETERS!$B$9*-1 -> 6.617005004 | F114: =OFFSET(SAFETY_CALC!$D$73,0,'SUMMARY TABLES'!$B114-'PROJECT SPECIFIC INPUTS'!$C$16)*PARAMETERS!$B$9*-1 -> 0.1475786067 | G114: -2773291.055
B115: 2034 | C115: 23 | D115: =OFFSET(SAFETY_CALC!$D$77,0,'SUMMARY TABLES'!$B115-'PROJECT SPECIFIC INPUTS'!$C$16)*PARAMETERS!$B$9*-1 -> 4.257499621 | E115: =(OFFSET(SAFETY_CALC!$D$74,0,'SUMMARY TABLES'!$B115-'PROJECT SPECIFIC INPUTS'!$C$16)+OFFSET(SAFETY_CALC!$D$75,0,'SUMMARY TABLES'!$B115-'PROJECT SPECIFIC INPUTS'!$C$16)+OFFSET(SAFETY_CALC!$D$76,0,'SUMMARY TABLES'!$B115-'PROJECT SPECIFIC INPUTS'!$C$16))*PARAMETERS!$B$9*-1 -> 5.37290369 | F115: =OFFSET(SAFETY_CALC!$D$73,0,'SUMMARY TABLES'!$B115-'PROJECT SPECIFIC INPUTS'!$C$16)*PARAMETERS!$B$9*-1 -> 0.1198315008 | G115: -2275809.808
B116: 2035 | C116: 24 | D116: =OFFSET(SAFETY_CALC!$D$77,0,'SUMMARY TABLES'!$B116-'PROJECT SPECIFIC INPUTS'!$C$16)*PARAMETERS!$B$9*-1 -> 3.234089142 | E116: =(OFFSET(SAFETY_CALC!$D$74,0,'SUMMARY TABLES'!$B116-'PROJECT SPECIFIC INPUTS'!$C$16)+OFFSET(SAFETY_CALC!$D$75,0,'SUMMARY TABLES'!$B116-'PROJECT SPECIFIC INPUTS'!$C$16)+OFFSET(SAFETY_CALC!$D$76,0,'SUMMARY TABLES'!$B116-'PROJECT SPECIFIC INPUTS'!$C$16))*PARAMETERS!$B$9*-1 -> 4.081374288 | F116: =OFFSET(SAFETY_CALC!$D$73,0,'SUMMARY TABLES'!$B116-'PROJECT SPECIFIC INPUTS'!$C$16)*PARAMETERS!$B$9*-1 -> 0.09102660952 | G116: -1747135.398
B117: 2036 | C117: 25 | D117: =OFFSET(SAFETY_CALC!$D$77,0,'SUMMARY TABLES'!$B117-'PROJECT SPECIFIC INPUTS'!$C$16)*PARAMETERS!$B$9*-1 -> 3.234089142 | E117: =(OFFSET(SAFETY_CALC!$D$74,0,'SUMMARY TABLES'!$B117-'PROJECT SPECIFIC INPUTS'!$C$16)+OFFSET(SAFETY_CALC!$D$75,0,'SUMMARY TABLES'!$B117-'PROJECT SPECIFIC INPUTS'!$C$16)+OFFSET(SAFETY_CALC!$D$76,0,'SUMMARY TABLES'!$B117-'PROJECT SPECIFIC INPUTS'!$C$16))*PARAMETERS!$B$9*-1 -> 4.081374288 | F117: =OFFSET(SAFETY_CALC!$D$73,0,'SUMMARY TABLES'!$B117-'PROJECT SPECIFIC INPUTS'!$C$16)*PARAMETERS!$B$9*-1 -> 0.09102660952 | G117: -1765712.934
B118: Total | D118: =SUM(D93:D117) -> 180.2778693 | E118: =SUM(E93:E117) -> 227.5080952 | F118: =SUM(F93:F117) -> 5.074097371 | G118: =SUM(G93:G117) -> -87793546.4
B120: Table 4: Annual Traffic by Source
B121: Year | C121: Daily VMT in Base Case (Millions) | D121: Percent Trucks | E121: Daily VMT in Build (Millions) | F121: Percent Trucks | G121: Change in VMT (Millions)
B122: 2017 | C122: =IF($B122<'PROJECT SPECIFIC INPUTS'!$C$20,0,OFFSET('TRAFFIC & SPEED_CALC'!$D$12,0,'SUMMARY TABLES'!$B122-'PROJECT SPECIFIC INPUTS'!$C$20))/10^6 -> 3.127859518 | D122: =(IF($B122<'PROJECT SPECIFIC INPUTS'!$C$20,0,OFFSET('TRAFFIC & SPEED_CALC'!$D$15,0,'SUMMARY TABLES'!$B122-'PROJECT SPECIFIC INPUTS'!$C$20))/10^6)/C122 -> 0.1 | E122: =IF($B122<'PROJECT SPECIFIC INPUTS'!$C$20,0,OFFSET('TRAFFIC & SPEED_CALC'!$D$17,0,'SUMMARY TABLES'!$B122-'PROJECT SPECIFIC INPUTS'!$C$20))/10^6 -> 3.127859518 | F122: =(IF($B122<'PROJECT SPECIFIC INPUTS'!$C$20,0,OFFSET('TRAFFIC & SPEED_CALC'!$D$20,0,'SUMMARY TABLES'!$B122-'PROJECT SPECIFIC INPUTS'!$C$20))/10^6)/E122 -> 0.1 | G122: =C122-E122 -> 0
B123: 2018 | C123: =IF($B123<'PROJECT SPECIFIC INPUTS'!$C$20,0,OFFSET('TRAFFIC & SPEED_CALC'!$D$12,0,'SUMMARY TABLES'!$B123-'PROJECT SPECIFIC INPUTS'!$C$20))/10^6 -> 3.187150443 | D123: =(IF($B123<'PROJECT SPECIFIC INPUTS'!$C$20,0,OFFSET('TRAFFIC & SPEED_CALC'!$D$15,0,'SUMMARY TABLES'!$B123-'PROJECT SPECIFIC INPUTS'!$C$20))/10^6)/C123 -> 0.1 | E123: =IF($B123<'PROJECT SPECIFIC INPUTS'!$C$20,0,OFFSET('TRAFFIC & SPEED_CALC'!$D$17,0,'SUMMARY TABLES'!$B123-'PROJECT SPECIFIC INPUTS'!$C$20))/10^6 -> 3.208905613 | F123: =(IF($B123<'PROJECT SPECIFIC INPUTS'!$C$20,0,OFFSET('TRAFFIC & SPEED_CALC'!$D$20,0,'SUMMARY TABLES'!$B123-'PROJECT SPECIFIC INPUTS'!$C$20))/10^6)/E123 -> 0.1 | G123: =C123-E123 -> -0.02175517051
B124: 2019 | C124: =IF($B124<'PROJECT SPECIFIC INPUTS'!$C$20,0,OFFSET('TRAFFIC & SPEED_CALC'!$D$12,0,'SUMMARY TABLES'!$B124-'PROJECT SPECIFIC INPUTS'!$C$20))/10^6 -> 3.247565271 | D124: =(IF($B124<'PROJECT SPECIFIC INPUTS'!$C$20,0,OFFSET('TRAFFIC & SPEED_CALC'!$D$15,0,'SUMMARY TABLES'!$B124-'PROJECT SPECIFIC INPUTS'!$C$20))/10^6)/C124 -> 0.1 | E124: =IF($B124<'PROJECT SPECIFIC INPUTS'!$C$20,0,OFFSET('TRAFFIC & SPEED_CALC'!$D$17,0,'SUMMARY TABLES'!$B124-'PROJECT SPECIFIC INPUTS'!$C$20))/10^6 -> 3.292051696 | F124: =(IF($B124<'PROJECT SPECIFIC INPUTS'!$C$20,0,OFFSET('TRAFFIC & SPEED_CALC'!$D$20,0,'SUMMARY TABLES'!$B124-'PROJECT SPECIFIC INPUTS'!$C$20))/10^6)/E124 -> 0.1 | G124: -0.04448642571
B125: 2020 | C125: =IF($B125<'PROJECT SPECIFIC INPUTS'!$C$20,0,OFFSET('TRAFFIC & SPEED_CALC'!$D$12,0,'SUMMARY TABLES'!$B125-'PROJECT SPECIFIC INPUTS'!$C$20))/10^6 -> 3.309125307 | D125: =(IF($B125<'PROJECT SPECIFIC INPUTS'!$C$20,0,OFFSET('TRAFFIC & SPEED_CALC'!$D$15,0,'SUMMARY TABLES'!$B125-'PROJECT SPECIFIC INPUTS'!$C$20))/10^6)/C125 -> 0.1 | E125: =IF($B125<'PROJECT SPECIFIC INPUTS'!$C$20,0,OFFSET('TRAFFIC & SPEED_CALC'!$D$17,0,'SUMMARY TABLES'!$B125-'PROJECT SPECIFIC INPUTS'!$C$20))/10^6 -> 3.377352181 | F125: =(IF($B125<'PROJECT SPECIFIC INPUTS'!$C$20,0,OFFSET('TRAFFIC & SPEED_CALC'!$D$20,0,'SUMMARY TABLES'!$B125-'PROJECT SPECIFIC INPUTS'!$C$20))/10^6)/E125 -> 0.1 | G125: -0.06822687404
B126: 2025 | C126: =IF($B126<'PROJECT SPECIFIC INPUTS'!$C$20,0,OFFSET('TRAFFIC & SPEED_CALC'!$D$12,0,'SUMMARY TABLES'!$B126-'PROJECT SPECIFIC INPUTS'!$C$20))/10^6 -> 3.634877972 | D126: =(IF($B126<'PROJECT SPECIFIC INPUTS'!$C$20,0,OFFSET('TRAFFIC & SPEED_CALC'!$D$15,0,'SUMMARY TABLES'!$B126-'PROJECT SPECIFIC INPUTS'!$C$20))/10^6)/C126 -> 0.1 | E126: =IF($B126<'PROJECT SPECIFIC INPUTS'!$C$20,0,OFFSET('TRAFFIC & SPEED_CALC'!$D$17,0,'SUMMARY TABLES'!$B126-'PROJECT SPECIFIC INPUTS'!$C$20))/10^6 -> 3.712548562 | F126: =(IF($B126<'PROJECT SPECIFIC INPUTS'!$C$20,0,OFFSET('TRAFFIC & SPEED_CALC'!$D$20,0,'SUMMARY TABLES'!$B126-'PROJECT SPECIFIC INPUTS'!$C$20))/10^6)/E126 -> 0.1 | G126: -0.07767059038
B127: 2030 | C127: =IF($B127<'PROJECT SPECIFIC INPUTS'!$C$20,0,OFFSET('TRAFFIC & SPEED_CALC'!$D$12,0,'SUMMARY TABLES'!$B127-'PROJECT SPECIFIC INPUTS'!$C$20))/10^6 -> 3.992697963 | D127: =(IF($B127<'PROJECT SPECIFIC INPUTS'!$C$20,0,OFFSET('TRAFFIC & SPEED_CALC'!$D$15,0,'SUMMARY TABLES'!$B127-'PROJECT SPECIFIC INPUTS'!$C$20))/10^6)/C127 -> 0.1 | E127: =IF($B127<'PROJECT SPECIFIC INPUTS'!$C$20,0,OFFSET('TRAFFIC & SPEED_CALC'!$D$17,0,'SUMMARY TABLES'!$B127-'PROJECT SPECIFIC INPUTS'!$C$20))/10^6 -> 4.047200828 | F127: =(IF($B127<'PROJECT SPECIFIC INPUTS'!$C$20,0,OFFSET('TRAFFIC & SPEED_CALC'!$D$20,0,'SUMMARY TABLES'!$B127-'PROJECT SPECIFIC INPUTS'!$C$20))/10^6)/E127 -> 0.1 | G127: -0.05450286496
B128: 2035 | C128: =IF($B128<'PROJECT SPECIFIC INPUTS'!$C$20,0,OFFSET('TRAFFIC & SPEED_CALC'!$D$12,0,'SUMMARY TABLES'!$B128-'PROJECT SPECIFIC INPUTS'!$C$20))/10^6 -> 4.38574201 | D128: =(IF($B128<'PROJECT SPECIFIC INPUTS'!$C$20,0,OFFSET('TRAFFIC & SPEED_CALC'!$D$15,0,'SUMMARY TABLES'!$B128-'PROJECT SPECIFIC INPUTS'!$C$20))/10^6)/C128 -> 0.1 | E128: =IF($B128<'PROJECT SPECIFIC INPUTS'!$C$20,0,OFFSET('TRAFFIC & SPEED_CALC'!$D$17,0,'SUMMARY TABLES'!$B128-'PROJECT SPECIFIC INPUTS'!$C$20))/10^6 -> 4.412018931 | F128: =(IF($B128<'PROJECT SPECIFIC INPUTS'!$C$20,0,OFFSET('TRAFFIC & SPEED_CALC'!$D$20,0,'SUMMARY TABLES'!$B128-'PROJECT SPECIFIC INPUTS'!$C$20))/10^6)/E128 -> 0.1 | G128: -0.02627692145
B129: 2036 | C129: =IF($B129<'PROJECT SPECIFIC INPUTS'!$C$20,0,OFFSET('TRAFFIC & SPEED_CALC'!$D$12,0,'SUMMARY TABLES'!$B129-'PROJECT SPECIFIC INPUTS'!$C$20))/10^6 -> 4.46887704 | D129: =(IF($B129<'PROJECT SPECIFIC INPUTS'!$C$20,0,OFFSET('TRAFFIC & SPEED_CALC'!$D$15,0,'SUMMARY TABLES'!$B129-'PROJECT SPECIFIC INPUTS'!$C$20))/10^6)/C129 -> 0.1 | E129: =IF($B129<'PROJECT SPECIFIC INPUTS'!$C$20,0,OFFSET('TRAFFIC & SPEED_CALC'!$D$17,0,'SUMMARY TABLES'!$B129-'PROJECT SPECIFIC INPUTS'!$C$20))/10^6 -> 4.48883756 | F129: =(IF($B129<'PROJECT SPECIFIC INPUTS'!$C$20,0,OFFSET('TRAFFIC & SPEED_CALC'!$D$20,0,'SUMMARY TABLES'!$B129-'PROJECT SPECIFIC INPUTS'!$C$20))/10^6)/E129 -> 0.1 | G129: -0.01996052
B131: Table 6: Project Residual Value
C132: Undiscounted Benefits (Millions of $2012) | D132: Discounted at 7% (Millions of $2012) | E132: Discounted at 3% (Millions of $2012)
B133: Residual Value of Land after 2036 | C133: ='BENEFITS & COSTS'!$B$38/10^6 -> 9.05 | D133: ='BENEFITS & COSTS'!$B$57/10^6 -> 1.784176911 | E133: 4.452000314
B135: Refer to Table 8 (EIA) of Cost Model
B137: Table 6: Travel Time and Vehicle Operating Costs Savings
C138: Undiscounted Benefits (Millions of $2012) | D138: Discounted at 7% (Millions of $2012) | E138: Discounted at 3% (Millions of $2012)
B139: Travel Time Savings | C139: =('BENEFITS & COSTS'!$B$23)/10^6 -> 1246.649433 | D139: =('BENEFITS & COSTS'!B42)/10^6 -> 392.1292376 | E139: 741.3949316
B140: Vehicle Operating Costs Savings | C140: ='BENEFITS & COSTS'!$B$26/10^6 -> -270.4643032 | D140: ='BENEFITS & COSTS'!B45/10^6 -> -95.65340607 | E140: -169.1095031
B141: Economic Value of Induced Travel | C141: =('BENEFITS & COSTS'!$B$29)/10^6 -> 5.571146486 | D141: =('BENEFITS & COSTS'!B48)/10^6 -> 1.999624438 | E141: 3.515955178
B143: Table 13: Estimates of Livability Benefits
C144: Undiscounted Benefits (Millions of $2012) | D144: Discounted at 7% (Millions of $2012) | E144: Discounted at 3% (Millions of $2012)
B145: Net Economic Value of Land Development for Residential Purpose | C145: ='HOUSING DEVELOPMENT BENEFITS'!B19/10^6 -> 67.06415257 | D145: ='HOUSING DEVELOPMENT BENEFITS'!B24/10^6 -> 33.47473913 | E145: 49.13173502
B146: Net Economic Value of Land Development for Commercial or Industrial Purpose | C146: ='HOUSING DEVELOPMENT BENEFITS'!B20/10^6 -> 7.086941409 | D146: ='HOUSING DEVELOPMENT BENEFITS'!B25/10^6 -> 3.106318544 | E146: 4.916378964
B147: Total Net Economic Value of Land Development | C147: =SUM(C145:C146) -> 74.15109398 | D147: =SUM(D145:D146) -> 36.58105768 | E147: 54.04811399
B149: Table 10: Emissions Costs Savings
C150: Undiscounted Benefits (Millions of $2012) | D150: Discounted at 7% (Millions of $2012) | E150: Discounted at 3% (Millions of $2012)
B151: Emissions Costs Savings | C151: ='BENEFITS & COSTS'!$B$32/10^6 -> 4.572846422 | D151: ='BENEFITS & COSTS'!$B$51/10^6 -> 2.840506954 | E151: 3.091389899
B154: Table 9: Emissions Volumes Reduced
B155: Emission Type | C155: Per Year | D155: Over Period of Analysis
B156: Volatile Organic Chemicals (VOC) | C156: =EMISSIONS_CALC!C386*1 -> -0.5202888254 | D156: =EMISSIONS_CALC!C379*1 -> -13.00722064
B157: Carbon Monoxide (CO) | C157: =EMISSIONS_CALC!C389*1 -> -102.8223978 | D157: =EMISSIONS_CALC!C382*1 -> -2570.559945
B158: Nitrogen Oxides (NOX) | C158: =EMISSIONS_CALC!C384*1 -> -0.8461749639 | D158: =EMISSIONS_CALC!C377*1 -> -21.1543741
B159: Particulate Matter (PM) | C159: =EMISSIONS_CALC!C387*1 -> 0.1588221944 | D159: =EMISSIONS_CALC!C380*1 -> 3.970554859
B160: Carbon Dioxide (CO2) | C160: =EMISSIONS_CALC!C385*1 -> 4023.330508 | D160: =EMISSIONS_CALC!C378*1 -> 100583.2627
B163: Table 11: Accident Cost Savings
C164: Undiscounted Benefits (Millions of $2012) | D164: Discounted at 7% (Millions of $2012) | E164: Discounted at 3% (Millions of $2012)
B165: Accident Costs Savings | C165: ='BENEFITS & COSTS'!B35/10^6 -> -87.7935464 | D165: ='BENEFITS & COSTS'!B54/10^6 -> -37.57522331 | E165: -59.8417641
B168: Table 12: Avoided Accidents
B169: Accident Type | C169: Change in Number of Accidents per Year | D169: Change in Number of Accidents Over Period of Analysis
B170: Property Damage Only | C170: =D170/'CONTROL PANEL'!$D$7 -> 9.013893464 | D170: =D118 -> 180.2778693
B171: Injury | C171: =D171/'CONTROL PANEL'!$D$7 -> 11.37540476 | D171: =E118 -> 227.5080952
B172: Fatal | C172: =D172/'CONTROL PANEL'!$D$7 -> 0.2537048686 | D172: =F118 -> 5.074097371
B174: Table 13: Overall Results of the Benefit Cost Analysis
B175: Category | C175: 7% Discount Rate | D175: 3% Discount Rate
B176: Total Discounted Benefits ($ millions) | C176: ='BENEFITS & COSTS'!B41/10^6 -> 302.1059742 | D176: 577.5511238
B177: Total Discounted Costs ($ millions) | C177: ='BENEFITS & COSTS'!B17/10^6 -> 58.87493998 | D177: 67.06954466
B178: Benefit / Cost Ratio | C178: =C176/C177 -> 5.131316895 | D178: 8.611227745
B179: Net Present Value ($ millions) | C179: =C176-C177 -> 243.2310342 | D179: 510.4815792
B180: Internal Rate of Return (%) | C180: ='BENEFITS & COSTS'!$B$62 -> 0.2287331526
B182: Table 14: Benefit Estimates by Long-Term Outcome
B183: Long-Term Outcomes | C183: Benefit Categories | D183: 7% Discount Rate ($2012 Million) | E183: 3% Discount Rate ($2012 Million)
B184: Outcomes
B185: State of Good Repair | C185: Pavement Maintenance Savings | D185: Not Quantified | E185: Not Quantified
C186: Residual Value | D186: ='BENEFITS & COSTS'!B57/10^6 -> 1.784176911 | E186: 4.452000314
B187: Economic Competitiveness | C187: Travel Time Savings | D187: ='BENEFITS & COSTS'!B42/10^6 -> 392.1292376 | E187: 741.3949316
C188: Vehicle Operating Cost Savings | D188: ='BENEFITS & COSTS'!B45/10^6 -> -95.65340607 | E188: -169.1095031
C189: Economic Value of Induced Travel | D189: ='BENEFITS & COSTS'!B48/10^6 -> 1.999624438 | E189: 3.515955178
B190: Livability | C190: Net Economic Value of Mixed Land Use | D190: ='BENEFITS & COSTS'!B56/10^6 -> 36.58105768 | E190: 54.04811399
B191: Environmental Sustainability | C191: Changes in Air Emissions | D191: ='BENEFITS & COSTS'!B51/10^6 -> 2.840506954 | E191: 3.091389899
B192: Safety | C192: Changes in Accident Costs | D192: ='BENEFITS & COSTS'!B54/10^6 -> -37.57522331 | E192: -59.8417641
B193: Total Benefit Estimates | D193: =SUM(D185:D192) -> 302.1059742 | E193: =SUM(E185:E192) -> 577.5511238
B195: Table 17: Quantitative Assessment of Sensitivity, Summary, in millions of 2012 Dollars
B196: Parameters | C196: Change in Parameter Value | D196: New | E196: Change | F196: New B/C Ratio
D197: NPV | E197: in NPV
B198: Period of Analysis | C198: 30 years of operations (instead of 20 years) | D198: 407.4079007 | E198: =D198-$C$179 -> 164.1768664 | F198: 7.778159559
B199: Value of Travel Time | C199: Lower Bound of Range Recommended by US DOT | D199: 145.262808 | E199: =D199-$C$179 -> -97.9682262 | F199: 3.467311356
C200: Upper Bound of Range Recommended by US DOT | D200: 307.8742612 | E200: 64.64322702 | F200: 6.229292146
B201: Value of Statistical Life | C201: Lower Bound of Range Recommended by US DOT ($5.2 million) | D201: 259.2213177 | E201: 15.99028348 | F201: 5.402914343
C202: Upper Bound of Range Recommended by US DOT ($12.9 million) | D202: 227.650758 | E202: -15.58027621 | F202: 4.866683483
B203: Capital Cost Estimate | C203: 20% Increase | D203: 232.2217294 | E203: -11.00930479 | F203: 4.322948258
B205: Executive Summary Table
B206: Calendar Year | C206: Project Year | D206: Total Capital Costs | E206: Incremental O&M Costs | F206: Total Project Costs | G206: Total Project Benefits | H206: Net Benefits | I206: Net Benefits Discounted at 7 Percent
B208: 2012 | C208: 1 | D208: =OFFSET('BENEFITS & COSTS'!$D$15,0,'SUMMARY TABLES'!$B208-'PROJECT SPECIFIC INPUTS'!$C$16)/10^6 -> 0 | E208: =OFFSET('BENEFITS & COSTS'!$D$16,0,'SUMMARY TABLES'!$B208-'PROJECT SPECIFIC INPUTS'!$C$16)/10^6 -> 0 | F208: =OFFSET('BENEFITS & COSTS'!$D$14,0,'SUMMARY TABLES'!$B208-'PROJECT SPECIFIC INPUTS'!$C$16)/10^6 -> 0 | G208: =D5/10^6 -> 0 | H208: =F5/10^6 -> 0 | I208: =G5/10^6 -> 0
B209: 2013 | C209: 2 | D209: =OFFSET('BENEFITS & COSTS'!$D$15,0,'SUMMARY TABLES'!$B209-'PROJECT SPECIFIC INPUTS'!$C$16)/10^6 -> 12.595 | E209: =OFFSET('BENEFITS & COSTS'!$D$16,0,'SUMMARY TABLES'!$B209-'PROJECT SPECIFIC INPUTS'!$C$16)/10^6 -> 0 | F209: =OFFSET('BENEFITS & COSTS'!$D$14,0,'SUMMARY TABLES'!$B209-'PROJECT SPECIFIC INPUTS'!$C$16)/10^6 -> 12.595 | G209: =D6/10^6 -> 0 | H209: =F6/10^6 -> -12.595 | I209: -11.77102804
B210: 2014 | C210: 3 | D210: =OFFSET('BENEFITS & COSTS'!$D$15,0,'SUMMARY TABLES'!$B210-'PROJECT SPECIFIC INPUTS'!$C$16)/10^6 -> 11.8975975 | E210: =OFFSET('BENEFITS & COSTS'!$D$16,0,'SUMMARY TABLES'!$B210-'PROJECT SPECIFIC INPUTS'!$C$16)/10^6 -> 0 | F210: =OFFSET('BENEFITS & COSTS'!$D$14,0,'SUMMARY TABLES'!$B210-'PROJECT SPECIFIC INPUTS'!$C$16)/10^6 -> 11.8975975 | G210: 0 | H210: =F7/10^6 -> -11.8975975 | I210: -10.39182243
B211: 2015 | C211: 4 | D211: =OFFSET('BENEFITS & COSTS'!$D$15,0,'SUMMARY TABLES'!$B211-'PROJECT SPECIFIC INPUTS'!$C$16)/10^6 -> 34.4427925 | E211: =OFFSET('BENEFITS & COSTS'!$D$16,0,'SUMMARY TABLES'!$B211-'PROJECT SPECIFIC INPUTS'!$C$16)/10^6 -> 0 | F211: =OFFSET('BENEFITS & COSTS'!$D$14,0,'SUMMARY TABLES'!$B211-'PROJECT SPECIFIC INPUTS'!$C$16)/10^6 -> 34.4427925 | G211: 0 | H211: =F8/10^6 -> -34.4427925 | I211: -28.11557839
B212: 2016 | C212: 5 | D212: =OFFSET('BENEFITS & COSTS'!$D$15,0,'SUMMARY TABLES'!$B212-'PROJECT SPECIFIC INPUTS'!$C$16)/10^6 -> 6.25 | E212: =OFFSET('BENEFITS & COSTS'!$D$16,0,'SUMMARY TABLES'!$B212-'PROJECT SPECIFIC INPUTS'!$C$16)/10^6 -> 0 | F212: =OFFSET('BENEFITS & COSTS'!$D$14,0,'SUMMARY TABLES'!$B212-'PROJECT SPECIFIC INPUTS'!$C$16)/10^6 -> 6.25 | G212: 0 | H212: =F9/10^6 -> -6.25 | I212: -4.768095075
B213: 2017 | C213: 6 | D213: =OFFSET('BENEFITS & COSTS'!$D$15,0,'SUMMARY TABLES'!$B213-'PROJECT SPECIFIC INPUTS'!$C$16)/10^6 -> 0 | E213: =OFFSET('BENEFITS & COSTS'!$D$16,0,'SUMMARY TABLES'!$B213-'PROJECT SPECIFIC INPUTS'!$C$16)/10^6 -> 0.358 | F213: =OFFSET('BENEFITS & COSTS'!$D$14,0,'SUMMARY TABLES'!$B213-'PROJECT SPECIFIC INPUTS'!$C$16)/10^6 -> 0.358 | G213: 7.089471559 | H213: =F10/10^6 -> 6.731471559 | I213: 4.786637592
B214: 2018 | C214: 7 | D214: =OFFSET('BENEFITS & COSTS'!$D$15,0,'SUMMARY TABLES'!$B214-'PROJECT SPECIFIC INPUTS'!$C$16)/10^6 -> 0 | E214: =OFFSET('BENEFITS & COSTS'!$D$16,0,'SUMMARY TABLES'!$B214-'PROJECT SPECIFIC INPUTS'!$C$16)/10^6 -> 0.3700813501 | F214: =OFFSET('BENEFITS & COSTS'!$D$14,0,'SUMMARY TABLES'!$B214-'PROJECT SPECIFIC INPUTS'!$C$16)/10^6 -> 0.3700813501 | G214: 9.600881797 | H214: =F11/10^6 -> 9.230800447 | I214: 6.195957245
B215: 2019 | C215: 8 | D215: =OFFSET('BENEFITS & COSTS'!$D$15,0,'SUMMARY TABLES'!$B215-'PROJECT SPECIFIC INPUTS'!$C$16)/10^6 -> 0 | E215: =OFFSET('BENEFITS & COSTS'!$D$16,0,'SUMMARY TABLES'!$B215-'PROJECT SPECIFIC INPUTS'!$C$16)/10^6 -> 0.3827465362 | F215: =OFFSET('BENEFITS & COSTS'!$D$14,0,'SUMMARY TABLES'!$B215-'PROJECT SPECIFIC INPUTS'!$C$16)/10^6 -> 0.3827465362 | G215: 11.8945269 | H215: =F12/10^6 -> 11.51178037 | I215: 7.203221815
B216: 2020 | C216: 9 | D216: =OFFSET('BENEFITS & COSTS'!$D$15,0,'SUMMARY TABLES'!$B216-'PROJECT SPECIFIC INPUTS'!$C$16)/10^6 -> 0 | E216: =OFFSET('BENEFITS & COSTS'!$D$16,0,'SUMMARY TABLES'!$B216-'PROJECT SPECIFIC INPUTS'!$C$16)/10^6 -> 0.3960237726 | F216: =OFFSET('BENEFITS & COSTS'!$D$14,0,'SUMMARY TABLES'!$B216-'PROJECT SPECIFIC INPUTS'!$C$16)/10^6 -> 0.3960237726 | G216: 15.06237406 | H216: =F13/10^6 -> 14.66635029 | I216: 8.554767652
B217: 2021 | C217: 10 | D217: =OFFSET('BENEFITS & COSTS'!$D$15,0,'SUMMARY TABLES'!$B217-'PROJECT SPECIFIC INPUTS'!$C$16)/10^6 -> 0 | E217: =OFFSET('BENEFITS & COSTS'!$D$16,0,'SUMMARY TABLES'!$B217-'PROJECT SPECIFIC INPUTS'!$C$16)/10^6 -> 0.4099426367 | F217: =OFFSET('BENEFITS & COSTS'!$D$14,0,'SUMMARY TABLES'!$B217-'PROJECT SPECIFIC INPUTS'!$C$16)/10^6 -> 0.4099426367 | G217: 18.03642563 | H217: =F14/10^6 -> 17.62648299 | I217: 9.613601422
B218: 2022 | C218: 11 | D218: =OFFSET('BENEFITS & COSTS'!$D$15,0,'SUMMARY TABLES'!$B218-'PROJECT SPECIFIC INPUTS'!$C$16)/10^6 -> 0 | E218: =OFFSET('BENEFITS & COSTS'!$D$16,0,'SUMMARY TABLES'!$B218-'PROJECT SPECIFIC INPUTS'!$C$16)/10^6 -> 0.4245341355 | F218: =OFFSET('BENEFITS & COSTS'!$D$14,0,'SUMMARY TABLES'!$B218-'PROJECT SPECIFIC INPUTS'!$C$16)/10^6 -> 0.4245341355 | G218: 21.59778192 | H218: =F15/10^6 -> 21.17324779 | I218: 10.7973548
B219: 2023 | C219: 12 | D219: =OFFSET('BENEFITS & COSTS'!$D$15,0,'SUMMARY TABLES'!$B219-'PROJECT SPECIFIC INPUTS'!$C$16)/10^6 -> 0 | E219: =OFFSET('BENEFITS & COSTS'!$D$16,0,'SUMMARY TABLES'!$B219-'PROJECT SPECIFIC INPUTS'!$C$16)/10^6 -> 0.4398307743 | F219: =OFFSET('BENEFITS & COSTS'!$D$14,0,'SUMMARY TABLES'!$B219-'PROJECT SPECIFIC INPUTS'!$C$16)/10^6 -> 0.4398307743 | G219: 25.97202026 | H219: =F16/10^6 -> 25.53218949 | I219: 12.17308896
B220: 2024 | C220: 13 | D220: =OFFSET('BENEFITS & COSTS'!$D$15,0,'SUMMARY TABLES'!$B220-'PROJECT SPECIFIC INPUTS'!$C$16)/10^6 -> 0 | E220: =OFFSET('BENEFITS & COSTS'!$D$16,0,'SUMMARY TABLES'!$B220-'PROJECT SPECIFIC INPUTS'!$C$16)/10^6 -> 0.4558666293 | F220: =OFFSET('BENEFITS & COSTS'!$D$14,0,'SUMMARY TABLES'!$B220-'PROJECT SPECIFIC INPUTS'!$C$16)/10^6 -> 0.4558666293 | G220: 30.09832415 | H220: =F17/10^6 -> 29.64245752 | I220: 13.21418543
B221: 2025 | C221: 14 | D221: =OFFSET('BENEFITS & COSTS'!$D$15,0,'SUMMARY TABLES'!$B221-'PROJECT SPECIFIC INPUTS'!$C$16)/10^6 -> 0 | E221: =OFFSET('BENEFITS & COSTS'!$D$16,0,'SUMMARY TABLES'!$B221-'PROJECT SPECIFIC INPUTS'!$C$16)/10^6 -> 0.4726774234 | F221: =OFFSET('BENEFITS & COSTS'!$D$14,0,'SUMMARY TABLES'!$B221-'PROJECT SPECIFIC INPUTS'!$C$16)/10^6 -> 0.4726774234 | G221: 34.56551044 | H221: =F18/10^6 -> 34.09283301 | I221: 14.21059523
... 12 more rows

Sheet JOB CREATION
B1: TABLES FOR TECHNICAL DOCUMENTATION
B3: Cost Expenditure and Economic Impact Analysis
B4: Tables for Technical Appendix
B6: Table ES-2: Summary of Project Costs and Anticipated Funding Sources, in Millions of Dollars of 2012
B7: Funding Source | C7: Capital Costs | D7: Operation & Maintenance Costs | E7: Total Project Costs | F7: Percent of Total Cost Financed by Source
B8: Federal (TIGVER V grants) | C8: =C41 -> 18.975393 | D8: - | E8: =SUM(C8:D8) -> 18.975393 | F8: =E8/$E$12 -> 0.2905879479
B9: State (Florida Department of Transportation) | C9: =D41 -> 31 | D9: 3.8 | E9: =SUM(C9:D9) -> 34.8 | F9: =E9/$E$12 -> 0.5329249617
B10: Local (Lake County) | C10: =E41 -> 7.96 | D10: - | E10: 7.96 | F10: =E10/$E$12 -> 0.121898928
B11: Private | C11: =F41 -> 7.25 | D11: - | E11: 7.25 | F11: =E11/$E$12 -> 0.1110260337
B12: TOTAL | C12: 65.3 | D12: =SUM(D8:D11) -> 3.8 | E12: =C12 -> 65.3 | F12: =E12/$E$12 -> 1
B14: Table 9: Direct, Indirect and Induced Impacts during Project Development Phase
B15: Quarter | C15: Total Job-Year Equivalents | D15: Direct & Indirect | E15: Induced
B16: 2014 - Q3 | C16: =E46/$C$150*10^6 -> 53.74256464 | D16: =C16*$C$151 -> 34.39524137 | E16: =C16-D16 -> 19.34732327
B17: 2014 - Q4 | C17: 100.9263673 | D17: =C17*$C$151 -> 64.59287506 | E17: =C17-D17 -> 36.33349222
B18: 2015 - Q1 | C18: 115.6101374 | D18: 73.99048794 | E18: 41.61964947
B19: 2015 - Q2 | C19: 115.6101374 | D19: 73.99048794 | E19: 41.61964947
B20: 2015 - Q3 | C20: 115.6101374 | D20: 73.99048794 | E20: 41.61964947
B21: 2015 - Q4 | C21: 100.9263673 | D21: 64.59287506 | E21: 36.33349222
B22: 2016 - Q1 | C22: 56.87505688 | D22: 36.4000364 | E22: 20.47502048
B23: 2016 - Q2 | C23: 24.37502438 | D23: 15.6000156 | E23: 8.775008775
B24: Project Total | C24: =SUM(C16:C23) -> 683.6757927 | D24: =SUM(D16:D23) -> 437.5525073 | E24: 246.1232854
B26: Calculations
B28: Relevant Costs for Economic Impact Studies
B29: 2-1) New Interchange | C29: =SUM(C99:C106) -> 30000000
B30: 2-2) Segment 1&2 of N. Hancock Rd | C30: =SUM(C117:C119)+SUM(C126:C128) -> 22590393
B33: Total Amount of TIGER V Funding requested (in $ millions)
B34: Category | C34: TIGER Funds | D34: FDOT | E34: County | F34: Private Property Owner | G34: Total From All Sources
B35: Preliminary Engeineering | C35: =G35-SUM(D35:F35) -> 0 | D35: =G35 -> 1 | E35: 0 | F35: 0 | G35: =C62/10^6 -> 1
B36: Product Development and Environment | C36: =G36-SUM(D36:F36) -> 0 | D36: 0 | E36: =(D114+D123)/10^6 -> 0.65 | F36: 0 | G36: =(C114+C123)/10^6 -> 0.65
B37: DSN | C37: 0 | D37: 0 | E37: =(D115+D124)/10^6 -> 1.895 | F37: 0 | G37: =(C115+C124)/10^6 -> 1.895
B38: ROW | C38: 0 | D38: 0 | E38: =D116/10^6 -> 1.8 | F38: =$C$63/10^6 -> 7.25 | G38: =(C63+C116+C125)/10^6 -> 9.05
B39: Construction | C39: =G39-SUM(D39:F39) -> 17.09286 | D39: =C64/10^6 -> 30 | E39: =(D117+D126)/10^6 -> 3.615 | F39: 0 | G39: =(C107+SUM(C117:C118)+SUM(C126:C127))/10^6 -> 50.70786
B40: Contingency | C40: 1.882533 | D40: 0 | E40: 0 | F40: 0 | G40: =(C119+C128)/10^6 -> 1.882533
B41: Total | C41: =SUM(C35:C40) -> 18.975393 | D41: =SUM(D35:D40) -> 31 | E41: =SUM(E35:E40) -> 7.96 | F41: =SUM(F35:F40) -> 7.25 | G41: =SUM(G35:G40) -> 65.185393
B44: Economic Impact Analysis Calculation
B45: Quarter | C45: New Interchange | D45: Segment 1&2 | E45: Total
B46: 2014 - Q3 | C46: =C99/10^6 -> 1.875 | D46: =$C$30*F140/10^6 -> 2.2590393 | E46: =SUM(C46:D46) -> 4.1340393
B47: 2014 - Q4 | C47: =C100/10^6 -> 4.375 | D47: 3.38855895 | E47: =SUM(C47:D47) -> 7.76355895
B48: 2015 - Q1 | C48: 4.375 | D48: 4.5180786 | E48: 8.8930786
B49: 2015 - Q2 | C49: 4.375 | D49: 4.5180786 | E49: 8.8930786
B50: 2015 - Q3 | C50: 4.375 | D50: 4.5180786 | E50: 8.8930786
B51: 2015 - Q4 | C51: 4.375 | D51: 3.38855895 | E51: 7.76355895
B52: 2016 - Q1 | C52: 4.375 | D52: 0 | E52: 4.375
B53: 2016 - Q2 | C53: 1.875 | D53: =$C$30*F33/10^6 -> 0 | E53: 1.875
B54: Project Total | C54: =SUM(C46:C53) -> 30 | D54: =SUM(D46:D53) -> 22.590393 | E54: =SUM(E46:E53) -> 52.590393
B57: Raw Data, Received from FDOT
A59: I) | B59: Cost Estimates
B60: 1-1) New Interchange
B61: New Interchange Cost by Category | C61: Cost
B62: Preliminary Engeineering | C62: 1000000
B63: ROW | C63: 7250000
B64: Construction | C64: 30000000
B65: Total | C65: =SUM(C62:C64) -> 38250000
B68: New Interchange Expenditure Schedule
B69: Year | C69: Month | D69: Pre-Construction Activities | E69: Construction | F69: Final Construction/Post-Construction Activities
B70: 2014 | C70: Jun
C71: Jul | D71: =$C$64*0.5/8 -> 1875000
C72: Aug
C73: Sep
C74: Oct | E74: =$C$64*(7/8)/6 -> 4375000
C75: Nov
C76: Dec
B77: 2015 | C77: Jan | E77: =$C$64*(7/8)/6 -> 4375000
C78: Feb
C79: Mar
C80: Apr | E80: =$C$64*(7/8)/6 -> 4375000
C81: May
C82: Jun
C83: Jul | E83: =$C$64*(7/8)/6 -> 4375000
C84: Aug
C85: Sep
C86: Oct | E86: =$C$64*(7/8)/6 -> 4375000
C87: Nov
C88: Dec
B89: 2016 | C89: Jan | E89: =$C$64*(7/8)/6 -> 4375000
C90: Feb
C91: Mar
C92: Apr | F92: =$C$64*0.5/8 -> 1875000
C93: May
C94: Jun
B96: Non construction costs
B97: 2013 | C97: =SUM(C62:C63) -> 8250000
B98: Construction only by each quarter
B99: 2014 Q3 | C99: =D71 -> 1875000
B100: 2014 Q4 | C100: =E74 -> 4375000
B101: 2015 Q1 | C101: =E77 -> 4375000
B102: 2015 Q2 | C102: =E80 -> 4375000
B103: 2015 Q3 | C103: =E83 -> 4375000
B104: 2015 Q4 | C104: =E86 -> 4375000
B105: 2016 Q1 | C105: =E89 -> 4375000
B106: 2016 Q2 | C106: =F92 -> 1875000
B107: TOTAL | C107: =SUM(C99:C106) -> 30000000
B109: 1-2) Segment 1 and Segment 2 of NorthHancock Road
B111: North Hancock Road Total Cost Estimate
B112: Segment | C112: Cost | D112: Available Funding | E112: Notes
B113: Segment 1 | C113: Cost: Actual and Estimated | D113: Funded by County
B114: PD&E | C114: 400000 | D114: 400000 | E114: Completed
B115: DSN | C115: 660000 | D115: 660000 | E115: completed Dedc 2013
B116: ROW | C116: 1800000 | D116: 1800000 | E116: Underway Complete June 2014
B117: CST | C117: 6475325 | D117: 3100000
B118: CEI | C118: 647533
B119: Contingency | C119: 647533
B120: Subtotal | C120: 10630391 | D120: 5960000
B122: Segment 2 | C122: Cost: Actual and Estimated | D122: Available Funding | E122: Notes
B123: PD&E | C123: 250000 | D123: 250000 | E123: Update Needed
B124: DSN | C124: 1235000 | D124: 1235000
B125: ROW | C125: 0
B126: CST | C126: 12350002 | D126: 515000
B127: CEI | C127: 1235000
B128: Contingency | C128: 1235000
B129: Subtotal | C129: =SUM(C123:C128) -> 16305002 | D129: =SUM(D123:D128) -> 2000000
B130: Total of Segment 1 and Segment 2 | C130: =SUM(C120,C129) -> 26935393 | D130: =SUM(D120,D129) -> 7960000
B131: TIGER Amount Needed | D131: =C130-D130 -> 18975393
B133: Total Expenditure for EIA | C133: =C130-C125-C116 -> 25135393 | D133: =C133/$C$133 -> 1
B134: EIA portion (To be funded by County) | C134: =D131 -> 18975393 | D134: =C134/$C$133 -> 0.7549272454
B135: EIA portion (To be funded by TIGER) | C135: =C133-C134 -> 6160000 | D135: 0.2450727546
B137: The expected construction time frame is 18 months.
B138: Below is the quarterly expected expenditures
B139: Percent of CST contract expended: | E139: Segment 1 & 2 Expenditure by Quarter
B140: Quarter 1: 10% Mobilization, Grub & Clear | E140: Q3 | F140: 0.1
B141: Quarter 2: 15% Earthwork, Rough Grading, Retention Ponds | E141: Q4 | F141: 0.15
B142: Quarter 3: 20% Haul Clay for stabilization of road way | E142: Q1 | F142: 0.2
B143: Quarter 4: 20% Limerock Base, Curbing | E143: Q2 | F143: 0.2
B144: Quarter 5: 20% Structural Asphalt Course | E144: Q3 | F144: 0.2
B145: Quarter 6: 15% Sidewalks, Final Friction Course, Striping, Sod | E145: Q4 | F145: 0.15
A147: II) | B147: Economic Impact Analysis
B149: Category | C149: Value | D149: Source
B150: Cost per Employee | C150: 76923 | D150: 2013 NOFA - CEA
B151: Direct + Indirect jobs as a percentage of total # of jobs | C151: 0.64 | D151: CEA guidance

Sheet CONTROL PANEL
A1: This sheet allows users to edit key assumptions and view summary results, for sensitivity testing.
A3: MAIN ESTIMATING ASSUMPTIONS FOR SENSITIVITY TESTS
B4: Sensitivity Test
D6: CURRENT VALUE | E6: SENSITIVITY TEST | I6: CURRENT VALUE | J6: SENSITIVITY TEST
B7: Period of analysis, years | D7: ='PROJECT SPECIFIC INPUTS'!$C$18 -> 20 | E7: 20 | G7: Value of time for personal travel, local trips, $/hour | I7: =PARAMETERS!B59 -> 13.0477 | J7: 13.0477
B8: Real discount rate | D8: =PARAMETERS!$B$7 -> 0.07 | E8: 0.07 | G8: Value of time for business travel, local trips, $/hour | I8: =PARAMETERS!B60 -> 24.8993 | J8: 24.8993
B9: Value of statistical life, $million per life saved | D9: =PARAMETERS!$B$74/1000000 -> 9.1 | E9: 9.1 | G9: Value of time for trucks, $/hour | I9: =PARAMETERS!$B$70 -> 26.8565 | J9: 26.8565
A11: SUMMARY OF RESULTS
B13: BCA SUMMARY RESULTS | D13: SENSITIVITY TEST
B14: NET PRESENT VALUE (NPV), Millions of $2012 | D14: ='SUMMARY RESULTS'!C21 -> 243.2310342
B15: BENEFIT COST RATIO (B/C) | D15: ='SUMMARY RESULTS'!C22 -> 5.131316895
B16: INTERNAL RATE OF RETURN (IRR) | D16: ='SUMMARY RESULTS'!C25 -> 0.2287331526
B18: DISCOUNTED BENEFITS, Millions of $2012 | D18: SENSITIVITY TEST
B19: ='BENEFITS & COSTS'!$A$42 -> TRAVEL TIME SAVINGS FOR EXISTING USERS | D19: ='SUMMARY RESULTS'!$C$6 -> 392.1292376
B20: ='BENEFITS & COSTS'!$A$45 -> OUT-OF-POCKET COST SAVINGS FOR EXISTING USERS | D20: ='SUMMARY RESULTS'!$C$7 -> -95.65340607
B21: ='BENEFITS & COSTS'!$A$48 -> ECONOMIC VALUE OF INDUCED TRIPS | D21: ='SUMMARY RESULTS'!$C$8 -> 1.999624438
B22: ='BENEFITS & COSTS'!$A$51 -> EMISSION COST SAVINGS | D22: ='SUMMARY RESULTS'!$C$9 -> 2.840506954
B23: ='BENEFITS & COSTS'!$A$54 -> SAFETY BENEFITS | D23: ='SUMMARY RESULTS'!$C$10 -> -37.57522331
B24: ='BENEFITS & COSTS'!$A$55 -> FREIGHT LOGISTICS BENEFITS (NOT ESTIMATED) | D24: ='SUMMARY RESULTS'!$C$11 -> 0
B25: ='BENEFITS & COSTS'!$A$56 -> LAND USE DEVELOPMENT BENEFITS | D25: ='SUMMARY RESULTS'!$C$12 -> 36.58105768
B26: ='BENEFITS & COSTS'!$A$57 -> RESIDUAL VALUE | D26: ='SUMMARY RESULTS'!$C$13 -> 1.784176911
B27: TOTAL DISCOUNTED BENEFITS | D27: =SUM(D19:D26) -> 302.1059742

Sheet SUMMARY RESULTS
B1: This sheet provides a summary of the monetized benefits and costs calculated in the "Benefits & Costs" tab.
B2: ='PROJECT SPECIFIC INPUTS'!C4 -> Minneola Area Economic Development Facility
B3: Period of Analysis, years | C3: ='PROJECT SPECIFIC INPUTS'!C18 -> 20
B4: Discount Rate, percent | C4: ='BENEFITS & COSTS'!B4 -> 0.07
B5: DISCOUNTED BENEFITS | C5: Millions of 2012$
B6: ='BENEFITS & COSTS'!$A$42 -> TRAVEL TIME SAVINGS FOR EXISTING USERS | C6: ='BENEFITS & COSTS'!B42/PARAMETERS!$B$8 -> 392.1292376
B7: ='BENEFITS & COSTS'!$A$45 -> OUT-OF-POCKET COST SAVINGS FOR EXISTING USERS | C7: ='BENEFITS & COSTS'!B45/PARAMETERS!$B$8 -> -95.65340607
B8: ='BENEFITS & COSTS'!$A$48 -> ECONOMIC VALUE OF INDUCED TRIPS | C8: ='BENEFITS & COSTS'!B48/PARAMETERS!$B$8 -> 1.999624438
B9: ='BENEFITS & COSTS'!$A$51 -> EMISSION COST SAVINGS | C9: ='BENEFITS & COSTS'!B51/PARAMETERS!$B$8 -> 2.840506954
B10: ='BENEFITS & COSTS'!$A$54 -> SAFETY BENEFITS | C10: ='BENEFITS & COSTS'!B54/PARAMETERS!$B$8 -> -37.57522331
B11: ='BENEFITS & COSTS'!$A$55 -> FREIGHT LOGISTICS BENEFITS (NOT ESTIMATED) | C11: ='BENEFITS & COSTS'!B55/PARAMETERS!$B$8 -> 0
B12: ='BENEFITS & COSTS'!$A$56 -> LAND USE DEVELOPMENT BENEFITS | C12: ='BENEFITS & COSTS'!B56/PARAMETERS!$B$8 -> 36.58105768
B13: ='BENEFITS & COSTS'!$A$57 -> RESIDUAL VALUE | C13: ='BENEFITS & COSTS'!B57/PARAMETERS!$B$8 -> 1.784176911
B15: TOTAL DISCOUNTED BENEFITS | C15: =SUM(C6:C13) -> 302.1059742
B17: DISCOUNTED COSTS | C17: =SUM(C18:C19) -> -58.87493998
B18: Capital Costs | C18: ='BENEFITS & COSTS'!B18/PARAMETERS!$B$8*-1 -> -55.04652393
B19: Maintenance Costs | C19: ='BENEFITS & COSTS'!B19/PARAMETERS!$B$8*-1 -> -3.828416049
B21: Net Present Value (NPV) | C21: =C15+C17 -> 243.2310342
B22: Benefit-Cost Ratio (BCR) | C22: =C15/C17*-1 -> 5.131316895
B24: Discounted Payback Period | C24: ='BENEFITS & COSTS'!B63 -> 2023
B25: Internal Rate of Return (IRR) | C25: ='BENEFITS & COSTS'!B62 -> 0.2287331526

Sheet BENEFITS & COSTS
A1: This sheet provides a detailed summary of the monetized benefits and costs by year and type.
A2: BENEFIT-COST ANALYSIS | B2: Year | D2: ='PROJECT SPECIFIC INPUTS'!$C$16 -> 2012 | E2: =IF(D2="","",IF(D2+1<='PROJECT SPECIFIC INPUTS'!$C$21,D2+1,"")) -> 2013 | F2: =IF(E2="","",IF(E2+1<='PROJECT SPECIFIC INPUTS'!$C$21,E2+1,"")) -> 2014 | G2: =IF(F2="","",IF(F2+1<='PROJECT SPECIFIC INPUTS'!$C$21,F2+1,"")) -> 2015 | H2: =IF(G2="","",IF(G2+1<='PROJECT SPECIFIC INPUTS'!$C$21,G2+1,"")) -> 2016 | I2: =IF(H2="","",IF(H2+1<='PROJECT SPECIFIC INPUTS'!$C$21,H2+1,"")) -> 2017 | J2: =IF(I2="","",IF(I2+1<='PROJECT SPECIFIC INPUTS'!$C$21,I2+1,"")) -> 2018 | K2: =IF(J2="","",IF(J2+1<='PROJECT SPECIFIC INPUTS'!$C$21,J2+1,"")) -> 2019 | L2: =IF(K2="","",IF(K2+1<='PROJECT SPECIFIC INPUTS'!$C$21,K2+1,"")) -> 2020 | M2: =IF(L2="","",IF(L2+1<='PROJECT SPECIFIC INPUTS'!$C$21,L2+1,"")) -> 2021 | N2: =IF(M2="","",IF(M2+1<='PROJECT SPECIFIC INPUTS'!$C$21,M2+1,"")) -> 2022 | O2: =IF(N2="","",IF(N2+1<='PROJECT SPECIFIC INPUTS'!$C$21,N2+1,"")) -> 2023 | P2: =IF(O2="","",IF(O2+1<='PROJECT SPECIFIC INPUTS'!$C$21,O2+1,"")) -> 2024 | Q2: =IF(P2="","",IF(P2+1<='PROJECT SPECIFIC INPUTS'!$C$21,P2+1,"")) -> 2025 | R2: =IF(Q2="","",IF(Q2+1<='PROJECT SPECIFIC INPUTS'!$C$21,Q2+1,"")) -> 2026 | S2: =IF(R2="","",IF(R2+1<='PROJECT SPECIFIC INPUTS'!$C$21,R2+1,"")) -> 2027 | T2: =IF(S2="","",IF(S2+1<='PROJECT SPECIFIC INPUTS'!$C$21,S2+1,"")) -> 2028 | U2: =IF(T2="","",IF(T2+1<='PROJECT SPECIFIC INPUTS'!$C$21,T2+1,"")) -> 2029 | V2: =IF(U2="","",IF(U2+1<='PROJECT SPECIFIC INPUTS'!$C$21,U2+1,"")) -> 2030 | W2: =IF(V2="","",IF(V2+1<='PROJECT SPECIFIC INPUTS'!$C$21,V2+1,"")) -> 2031 | X2: =IF(W2="","",IF(W2+1<='PROJECT SPECIFIC INPUTS'!$C$21,W2+1,"")) -> 2032 | Y2: =IF(X2="","",IF(X2+1<='PROJECT SPECIFIC INPUTS'!$C$21,X2+1,"")) -> 2033 | Z2: =IF(Y2="","",IF(Y2+1<='PROJECT SPECIFIC INPUTS'!$C$21,Y2+1,"")) -> 2034 | AA2: =IF(Z2="","",IF(Z2+1<='PROJECT SPECIFIC INPUTS'!$C$21,Z2+1,"")) -> 2035 | AB2: =IF(AA2="","",IF(AA2+1<='PROJECT SPECIFIC INPUTS'!$C$21,AA2+1,"")) -> 2036 | AC2: =IF(AB2="","",IF(AB2+1<='PROJECT SPECIFIC INPUTS'!$C$21,AB2+1,"")) ->  | AD2: =IF(AC2="","",IF(AC2+1<='PROJECT SPECIFIC INPUTS'!$C$21,AC2+1,"")) ->  | AE2: =IF(AD2="","",IF(AD2+1<='PROJECT SPECIFIC INPUTS'!$C$21,AD2+1,"")) ->  | AF2: =IF(AE2="","",IF(AE2+1<='PROJECT SPECIFIC INPUTS'!$C$21,AE2+1,"")) ->  | AG2: =IF(AF2="","",IF(AF2+1<='PROJECT SPECIFIC INPUTS'!$C$21,AF2+1,"")) ->  | AH2: =IF(AG2="","",IF(AG2+1<='PROJECT SPECIFIC INPUTS'!$C$21,AG2+1,"")) ->  | AI2: =IF(AH2="","",IF(AH2+1<='PROJECT SPECIFIC INPUTS'!$C$21,AH2+1,"")) ->  | AJ2: =IF(AI2="","",IF(AI2+1<='PROJECT SPECIFIC INPUTS'!$C$21,AI2+1,"")) ->  | AK2: =IF(AJ2="","",IF(AJ2+1<='PROJECT SPECIFIC INPUTS'!$C$21,AJ2+1,"")) ->  | AL2: =IF(AK2="","",IF(AK2+1<='PROJECT SPECIFIC INPUTS'!$C$21,AK2+1,"")) ->  | AM2: =IF(AL2="","",IF(AL2+1<='PROJECT SPECIFIC INPUTS'!$C$21,AL2+1,"")) ->  | AN2: =IF(AM2="","",IF(AM2+1<='PROJECT SPECIFIC INPUTS'!$C$21,AM2+1,"")) ->  | AO2: =IF(AN2="","",IF(AN2+1<='PROJECT SPECIFIC INPUTS'!$C$21,AN2+1,"")) ->  | AP2: =IF(AO2="","",IF(AO2+1<='PROJECT SPECIFIC INPUTS'!$C$21,AO2+1,"")) ->  | AQ2: =IF(AP2="","",IF(AP2+1<='PROJECT SPECIFIC INPUTS'!$C$21,AP2+1,"")) ->  | AR2: =IF(AQ2="","",IF(AQ2+1<='PROJECT SPECIFIC INPUTS'!$C$21,AQ2+1,"")) ->  | AS2: =IF(AR2="","",IF(AR2+1<='PROJECT SPECIFIC INPUTS'!$C$21,AR2+1,"")) ->  | AT2: =IF(AS2="","",IF(AS2+1<='PROJECT SPECIFIC INPUTS'!$C$21,AS2+1,"")) ->  | AU2: =IF(AT2="","",IF(AT2+1<='PROJECT SPECIFIC INPUTS'!$C$21,AT2+1,"")) ->  | AV2: =IF(AU2="","",IF(AU2+1<='PROJECT SPECIFIC INPUTS'!$C$21,AU2+1,"")) ->  | AW2: =IF(AV2="","",IF(AV2+1<='PROJECT SPECIFIC INPUTS'!$C$21,AV2+1,"")) ->  | AX2: =IF(AW2="","",IF(AW2+1<='PROJECT SPECIFIC INPUTS'!$C$21,AW2+1,"")) ->  | AY2: =IF(AX2="","",IF(AX2+1<='PROJECT SPECIFIC INPUTS'!$C$21,AX2+1,"")) ->  | AZ2: =IF(AY2="","",IF(AY2+1<='PROJECT SPECIFIC INPUTS'!$C$21,AY2+1,"")) ->  | BA2: =IF(AZ2="","",IF(AZ2+1<='PROJECT SPECIFIC INPUTS'!$C$21,AZ2+1,"")) ->  | BB2: =IF(BA2="","",IF(BA2+1<='PROJECT SPECIFIC INPUTS'!$C$21,BA2+1,"")) ->  | BC2: =IF(BB2="","",IF(BB2+1<='PROJECT SPECIFIC INPUTS'!$C$21,BB2+1,"")) ->  | BD2: =IF(BC2="","",IF(BC2+1<='PROJECT SPECIFIC INPUTS'!$C$21,BC2+1,"")) ->  | BE2: =IF(BD2="","",IF(BD2+1<='PROJECT SPECIFIC INPUTS'!$C$21,BD2+1,"")) ->  | BF2: =IF(BE2="","",IF(BE2+1<='PROJECT SPECIFIC INPUTS'!$C$21,BE2+1,"")) ->  | BG2: =IF(BF2="","",IF(BF2+1<='PROJECT SPECIFIC INPUTS'!$C$21,BF2+1,"")) ->  | BH2: =IF(BG2="","",IF(BG2+1<='PROJECT SPECIFIC INPUTS'!$C$21,BG2+1,"")) ->  | BI2: =IF(BH2="","",IF(BH2+1<='PROJECT SPECIFIC INPUTS'!$C$21,BH2+1,"")) ->  | BJ2: =IF(BI2="","",IF(BI2+1<='PROJECT SPECIFIC INPUTS'!$C$21,BI2+1,"")) ->  | BK2: =IF(BJ2="","",IF(BJ2+1<='PROJECT SPECIFIC INPUTS'!$C$21,BJ2+1,"")) -> 
B3: Total | D3: =IF(AND(D$2>='PROJECT SPECIFIC INPUTS'!$C$20,D$2<='PROJECT SPECIFIC INPUTS'!$C$21),1,0) -> 0 | E3: =IF(AND(E$2>='PROJECT SPECIFIC INPUTS'!$C$20,E$2<='PROJECT SPECIFIC INPUTS'!$C$21),1,0) -> 0 | F3: =IF(AND(F$2>='PROJECT SPECIFIC INPUTS'!$C$20,F$2<='PROJECT SPECIFIC INPUTS'!$C$21),1,0) -> 0 | G3: =IF(AND(G$2>='PROJECT SPECIFIC INPUTS'!$C$20,G$2<='PROJECT SPECIFIC INPUTS'!$C$21),1,0) -> 0 | H3: =IF(AND(H$2>='PROJECT SPECIFIC INPUTS'!$C$20,H$2<='PROJECT SPECIFIC INPUTS'!$C$21),1,0) -> 0 | I3: =IF(AND(I$2>='PROJECT SPECIFIC INPUTS'!$C$20,I$2<='PROJECT SPECIFIC INPUTS'!$C$21),1,0) -> 1 | J3: =IF(AND(J$2>='PROJECT SPECIFIC INPUTS'!$C$20,J$2<='PROJECT SPECIFIC INPUTS'!$C$21),1,0) -> 1 | K3: =IF(AND(K$2>='PROJECT SPECIFIC INPUTS'!$C$20,K$2<='PROJECT SPECIFIC INPUTS'!$C$21),1,0) -> 1 | L3: =IF(AND(L$2>='PROJECT SPECIFIC INPUTS'!$C$20,L$2<='PROJECT SPECIFIC INPUTS'!$C$21),1,0) -> 1 | M3: =IF(AND(M$2>='PROJECT SPECIFIC INPUTS'!$C$20,M$2<='PROJECT SPECIFIC INPUTS'!$C$21),1,0) -> 1 | N3: =IF(AND(N$2>='PROJECT SPECIFIC INPUTS'!$C$20,N$2<='PROJECT SPECIFIC INPUTS'!$C$21),1,0) -> 1 | O3: =IF(AND(O$2>='PROJECT SPECIFIC INPUTS'!$C$20,O$2<='PROJECT SPECIFIC INPUTS'!$C$21),1,0) -> 1 | P3: =IF(AND(P$2>='PROJECT SPECIFIC INPUTS'!$C$20,P$2<='PROJECT SPECIFIC INPUTS'!$C$21),1,0) -> 1 | Q3: =IF(AND(Q$2>='PROJECT SPECIFIC INPUTS'!$C$20,Q$2<='PROJECT SPECIFIC INPUTS'!$C$21),1,0) -> 1 | R3: =IF(AND(R$2>='PROJECT SPECIFIC INPUTS'!$C$20,R$2<='PROJECT SPECIFIC INPUTS'!$C$21),1,0) -> 1 | S3: =IF(AND(S$2>='PROJECT SPECIFIC INPUTS'!$C$20,S$2<='PROJECT SPECIFIC INPUTS'!$C$21),1,0) -> 1 | T3: =IF(AND(T$2>='PROJECT SPECIFIC INPUTS'!$C$20,T$2<='PROJECT SPECIFIC INPUTS'!$C$21),1,0) -> 1 | U3: =IF(AND(U$2>='PROJECT SPECIFIC INPUTS'!$C$20,U$2<='PROJECT SPECIFIC INPUTS'!$C$21),1,0) -> 1 | V3: =IF(AND(V$2>='PROJECT SPECIFIC INPUTS'!$C$20,V$2<='PROJECT SPECIFIC INPUTS'!$C$21),1,0) -> 1 | W3: =IF(AND(W$2>='PROJECT SPECIFIC INPUTS'!$C$20,W$2<='PROJECT SPECIFIC INPUTS'!$C$21),1,0) -> 1 | X3: =IF(AND(X$2>='PROJECT SPECIFIC INPUTS'!$C$20,X$2<='PROJECT SPECIFIC INPUTS'!$C$21),1,0) -> 1 | Y3: =IF(AND(Y$2>='PROJECT SPECIFIC INPUTS'!$C$20,Y$2<='PROJECT SPECIFIC INPUTS'!$C$21),1,0) -> 1 | Z3: =IF(AND(Z$2>='PROJECT SPECIFIC INPUTS'!$C$20,Z$2<='PROJECT SPECIFIC INPUTS'!$C$21),1,0) -> 1 | AA3: =IF(AND(AA$2>='PROJECT SPECIFIC INPUTS'!$C$20,AA$2<='PROJECT SPECIFIC INPUTS'!$C$21),1,0) -> 1 | AB3: =IF(AND(AB$2>='PROJECT SPECIFIC INPUTS'!$C$20,AB$2<='PROJECT SPECIFIC INPUTS'!$C$21),1,0) -> 1 | AC3: =IF(AND(AC$2>='PROJECT SPECIFIC INPUTS'!$C$20,AC$2<='PROJECT SPECIFIC INPUTS'!$C$21),1,0) -> 0 | AD3: =IF(AND(AD$2>='PROJECT SPECIFIC INPUTS'!$C$20,AD$2<='PROJECT SPECIFIC INPUTS'!$C$21),1,0) -> 0 | AE3: =IF(AND(AE$2>='PROJECT SPECIFIC INPUTS'!$C$20,AE$2<='PROJECT SPECIFIC INPUTS'!$C$21),1,0) -> 0 | AF3: =IF(AND(AF$2>='PROJECT SPECIFIC INPUTS'!$C$20,AF$2<='PROJECT SPECIFIC INPUTS'!$C$21),1,0) -> 0 | AG3: =IF(AND(AG$2>='PROJECT SPECIFIC INPUTS'!$C$20,AG$2<='PROJECT SPECIFIC INPUTS'!$C$21),1,0) -> 0 | AH3: =IF(AND(AH$2>='PROJECT SPECIFIC INPUTS'!$C$20,AH$2<='PROJECT SPECIFIC INPUTS'!$C$21),1,0) -> 0 | AI3: =IF(AND(AI$2>='PROJECT SPECIFIC INPUTS'!$C$20,AI$2<='PROJECT SPECIFIC INPUTS'!$C$21),1,0) -> 0 | AJ3: =IF(AND(AJ$2>='PROJECT SPECIFIC INPUTS'!$C$20,AJ$2<='PROJECT SPECIFIC INPUTS'!$C$21),1,0) -> 0 | AK3: =IF(AND(AK$2>='PROJECT SPECIFIC INPUTS'!$C$20,AK$2<='PROJECT SPECIFIC INPUTS'!$C$21),1,0) -> 0 | AL3: =IF(AND(AL$2>='PROJECT SPECIFIC INPUTS'!$C$20,AL$2<='PROJECT SPECIFIC INPUTS'!$C$21),1,0) -> 0 | AM3: =IF(AND(AM$2>='PROJECT SPECIFIC INPUTS'!$C$20,AM$2<='PROJECT SPECIFIC INPUTS'!$C$21),1,0) -> 0 | AN3: =IF(AND(AN$2>='PROJECT SPECIFIC INPUTS'!$C$20,AN$2<='PROJECT SPECIFIC INPUTS'!$C$21),1,0) -> 0 | AO3: =IF(AND(AO$2>='PROJECT SPECIFIC INPUTS'!$C$20,AO$2<='PROJECT SPECIFIC INPUTS'!$C$21),1,0) -> 0 | AP3: =IF(AND(AP$2>='PROJECT SPECIFIC INPUTS'!$C$20,AP$2<='PROJECT SPECIFIC INPUTS'!$C$21),1,0) -> 0 | AQ3: =IF(AND(AQ$2>='PROJECT SPECIFIC INPUTS'!$C$20,AQ$2<='PROJECT SPECIFIC INPUTS'!$C$21),1,0) -> 0 | AR3: =IF(AND(AR$2>='PROJECT SPECIFIC INPUTS'!$C$20,AR$2<='PROJECT SPECIFIC INPUTS'!$C$21),1,0) -> 0 | AS3: =IF(AND(AS$2>='PROJECT SPECIFIC INPUTS'!$C$20,AS$2<='PROJECT SPECIFIC INPUTS'!$C$21),1,0) -> 0 | AT3: =IF(AND(AT$2>='PROJECT SPECIFIC INPUTS'!$C$20,AT$2<='PROJECT SPECIFIC INPUTS'!$C$21),1,0) -> 0 | AU3: =IF(AND(AU$2>='PROJECT SPECIFIC INPUTS'!$C$20,AU$2<='PROJECT SPECIFIC INPUTS'!$C$21),1,0) -> 0 | AV3: =IF(AND(AV$2>='PROJECT SPECIFIC INPUTS'!$C$20,AV$2<='PROJECT SPECIFIC INPUTS'!$C$21),1,0) -> 0 | AW3: =IF(AND(AW$2>='PROJECT SPECIFIC INPUTS'!$C$20,AW$2<='PROJECT SPECIFIC INPUTS'!$C$21),1,0) -> 0 | AX3: =IF(AND(AX$2>='PROJECT SPECIFIC INPUTS'!$C$20,AX$2<='PROJECT SPECIFIC INPUTS'!$C$21),1,0) -> 0 | AY3: =IF(AND(AY$2>='PROJECT SPECIFIC INPUTS'!$C$20,AY$2<='PROJECT SPECIFIC INPUTS'!$C$21),1,0) -> 0 | AZ3: =IF(AND(AZ$2>='PROJECT SPECIFIC INPUTS'!$C$20,AZ$2<='PROJECT SPECIFIC INPUTS'!$C$21),1,0) -> 0 | BA3: =IF(AND(BA$2>='PROJECT SPECIFIC INPUTS'!$C$20,BA$2<='PROJECT SPECIFIC INPUTS'!$C$21),1,0) -> 0 | BB3: =IF(AND(BB$2>='PROJECT SPECIFIC INPUTS'!$C$20,BB$2<='PROJECT SPECIFIC INPUTS'!$C$21),1,0) -> 0 | BC3: =IF(AND(BC$2>='PROJECT SPECIFIC INPUTS'!$C$20,BC$2<='PROJECT SPECIFIC INPUTS'!$C$21),1,0) -> 0 | BD3: =IF(AND(BD$2>='PROJECT SPECIFIC INPUTS'!$C$20,BD$2<='PROJECT SPECIFIC INPUTS'!$C$21),1,0) -> 0 | BE3: =IF(AND(BE$2>='PROJECT SPECIFIC INPUTS'!$C$20,BE$2<='PROJECT SPECIFIC INPUTS'!$C$21),1,0) -> 0 | BF3: =IF(AND(BF$2>='PROJECT SPECIFIC INPUTS'!$C$20,BF$2<='PROJECT SPECIFIC INPUTS'!$C$21),1,0) -> 0 | BG3: =IF(AND(BG$2>='PROJECT SPECIFIC INPUTS'!$C$20,BG$2<='PROJECT SPECIFIC INPUTS'!$C$21),1,0) -> 0 | BH3: =IF(AND(BH$2>='PROJECT SPECIFIC INPUTS'!$C$20,BH$2<='PROJECT SPECIFIC INPUTS'!$C$21),1,0) -> 0 | BI3: =IF(AND(BI$2>='PROJECT SPECIFIC INPUTS'!$C$20,BI$2<='PROJECT SPECIFIC INPUTS'!$C$21),1,0) -> 0 | BJ3: =IF(AND(BJ$2>='PROJECT SPECIFIC INPUTS'!$C$20,BJ$2<='PROJECT SPECIFIC INPUTS'!$C$21),1,0) -> 0 | BK3: =IF(AND(BK$2>='PROJECT SPECIFIC INPUTS'!$C$20,BK$2<='PROJECT SPECIFIC INPUTS'!$C$21),1,0) -> 0
A4: Discount Factor | B4: =PARAMETERS!B7 -> 0.07 | D4: =IF(D2="","",(1/(1+$B$4)^(D$2-2012))) -> 1 | E4: =IF(E2="","",(1/(1+$B$4)^(E$2-2012))) -> 0.9345794393 | F4: 0.8734387283 | G4: 0.8162978769 | H4: 0.762895212 | I4: 0.7129861795 | J4: 0.6663422238 | K4: 0.6227497419 | L4: 0.5820091046 | M4: 0.5439337426 | N4: 0.5083492921 | O4: 0.4750927964 | P4: 0.4440119592 | Q4: 0.4149644479 | R4: 0.387817241 | S4: 0.3624460196 | T4: 0.3387345978 | U4: 0.3165743905 | V4: 0.2958639163 | W4: 0.276508333 | X4: 0.2584190028 | Y4: 0.2415130867 | Z4: 0.2257131652 | AA4: 0.2109468833 | AB4: 0.1971466199
A6: DASHBOARD - ASSUMPTIONS ENTERING ANALYSIS
A7: Project name | B7: =IF('PROJECT SPECIFIC INPUTS'!C4=0,"",'PROJECT SPECIFIC INPUTS'!C4) -> Minneola Area Economic Development Facility
A8: ITEMSEG/ProjectID | B8: =IF('PROJECT SPECIFIC INPUTS'!C6=0,"",'PROJECT SPECIFIC INPUTS'!C6) -> n/a
A9: Region type | B9: ='PROJECT SPECIFIC INPUTS'!C8 -> Urban
A10: Roadway type | B10: ='PROJECT SPECIFIC INPUTS'!C10 -> Other
A12: PROJECT COSTS
A14: UNDISCOUNTED PROJECT COSTS | B14: =SUM(D14:BK14) -> 75467077.5 | D14: =IF(D$2="","",D15+D16) -> 0 | E14: 12595000 | F14: 11897597.5 | G14: 34442792.5 | H14: 6250000 | I14: 358000 | J14: 370081.3501 | K14: 382746.5362 | L14: 396023.7726 | M14: 409942.6367 | N14: 424534.1355 | O14: 439830.7743 | P14: 455866.6293 | Q14: 472677.4234 | R14: 490300.6059 | S14: 508775.4357 | T14: 528143.0691 | U14: 548446.6511 | V14: 569731.4118 | W14: 592044.7671 | X14: 615436.4243 | Y14: 639958.4926 | Z14: 665665.5997 | AA14: 692615.0131 | AB14: 720866.7676 | AJ14: =IF(AJ$2="","",AJ15+AJ16) -> 
A15: Capital costs | B15: =SUM(D15:BK15) -> 65185390 | D15: =IF(D$2="","",HLOOKUP(D$2,'PROJECT SPECIFIC INPUTS'!$C$28:$BD$29,2)*1000000) -> 0 | E15: =IF(E$2="","",HLOOKUP(E$2,'PROJECT SPECIFIC INPUTS'!$C$28:$BD$29,2)*1000000) -> 12595000 | F15: =IF(F$2="","",HLOOKUP(F$2,'PROJECT SPECIFIC INPUTS'!$C$28:$BD$29,2)*1000000) -> 11897597.5 | G15: =IF(G$2="","",HLOOKUP(G$2,'PROJECT SPECIFIC INPUTS'!$C$28:$BD$29,2)*1000000) -> 34442792.5 | H15: =IF(H$2="","",HLOOKUP(H$2,'PROJECT SPECIFIC INPUTS'!$C$28:$BD$29,2)*1000000) -> 6250000 | I15: =IF(I$2="","",HLOOKUP(I$2,'PROJECT SPECIFIC INPUTS'!$C$28:$BD$29,2)*1000000) -> 0 | J15: =IF(J$2="","",HLOOKUP(J$2,'PROJECT SPECIFIC INPUTS'!$C$28:$BD$29,2)*1000000) -> 0 | K15: =IF(K$2="","",HLOOKUP(K$2,'PROJECT SPECIFIC INPUTS'!$C$28:$BD$29,2)*1000000) -> 0 | L15: =IF(L$2="","",HLOOKUP(L$2,'PROJECT SPECIFIC INPUTS'!$C$28:$BD$29,2)*1000000) -> 0 | M15: =IF(M$2="","",HLOOKUP(M$2,'PROJECT SPECIFIC INPUTS'!$C$28:$BD$29,2)*1000000) -> 0 | N15: =IF(N$2="","",HLOOKUP(N$2,'PROJECT SPECIFIC INPUTS'!$C$28:$BD$29,2)*1000000) -> 0 | O15: =IF(O$2="","",HLOOKUP(O$2,'PROJECT SPECIFIC INPUTS'!$C$28:$BD$29,2)*1000000) -> 0 | P15: =IF(P$2="","",HLOOKUP(P$2,'PROJECT SPECIFIC INPUTS'!$C$28:$BD$29,2)*1000000) -> 0 | Q15: =IF(Q$2="","",HLOOKUP(Q$2,'PROJECT SPECIFIC INPUTS'!$C$28:$BD$29,2)*1000000) -> 0 | R15: =IF(R$2="","",HLOOKUP(R$2,'PROJECT SPECIFIC INPUTS'!$C$28:$BD$29,2)*1000000) -> 0 | S15: =IF(S$2="","",HLOOKUP(S$2,'PROJECT SPECIFIC INPUTS'!$C$28:$BD$29,2)*1000000) -> 0 | T15: =IF(T$2="","",HLOOKUP(T$2,'PROJECT SPECIFIC INPUTS'!$C$28:$BD$29,2)*1000000) -> 0 | U15: =IF(U$2="","",HLOOKUP(U$2,'PROJECT SPECIFIC INPUTS'!$C$28:$BD$29,2)*1000000) -> 0 | V15: =IF(V$2="","",HLOOKUP(V$2,'PROJECT SPECIFIC INPUTS'!$C$28:$BD$29,2)*1000000) -> 0 | W15: =IF(W$2="","",HLOOKUP(W$2,'PROJECT SPECIFIC INPUTS'!$C$28:$BD$29,2)*1000000) -> 0 | X15: =IF(X$2="","",HLOOKUP(X$2,'PROJECT SPECIFIC INPUTS'!$C$28:$BD$29,2)*1000000) -> 0 | Y15: =IF(Y$2="","",HLOOKUP(Y$2,'PROJECT SPECIFIC INPUTS'!$C$28:$BD$29,2)*1000000) -> 0 | Z15: =IF(Z$2="","",HLOOKUP(Z$2,'PROJECT SPECIFIC INPUTS'!$C$28:$BD$29,2)*1000000) -> 0 | AA15: =IF(AA$2="","",HLOOKUP(AA$2,'PROJECT SPECIFIC INPUTS'!$C$28:$BD$29,2)*1000000) -> 0 | AB15: =IF(AB$2="","",HLOOKUP(AB$2,'PROJECT SPECIFIC INPUTS'!$C$28:$BD$29,2)*1000000) -> 0 | AC15: =IF(AC$2="","",HLOOKUP(AC$2,'PROJECT SPECIFIC INPUTS'!$C$28:$BD$29,2)*1000000) ->  | AD15: =IF(AD$2="","",HLOOKUP(AD$2,'PROJECT SPECIFIC INPUTS'!$C$28:$BD$29,2)*1000000) ->  | AE15: =IF(AE$2="","",HLOOKUP(AE$2,'PROJECT SPECIFIC INPUTS'!$C$28:$BD$29,2)*1000000) ->  | AF15: =IF(AF$2="","",HLOOKUP(AF$2,'PROJECT SPECIFIC INPUTS'!$C$28:$BD$29,2)*1000000) ->  | AG15: =IF(AG$2="","",HLOOKUP(AG$2,'PROJECT SPECIFIC INPUTS'!$C$28:$BD$29,2)*1000000) ->  | AH15: =IF(AH$2="","",HLOOKUP(AH$2,'PROJECT SPECIFIC INPUTS'!$C$28:$BD$29,2)*1000000) ->  | AI15: =IF(AI$2="","",HLOOKUP(AI$2,'PROJECT SPECIFIC INPUTS'!$C$28:$BD$29,2)*1000000) ->  | AJ15: =IF(AJ$2="","",HLOOKUP(AJ$2,'PROJECT SPECIFIC INPUTS'!$C$28:$BD$29,2)*1000000) ->  | AK15: =IF(AK$2="","",HLOOKUP(AK$2,'PROJECT SPECIFIC INPUTS'!$C$28:$BD$29,2)*1000000) ->  | AL15: =IF(AL$2="","",HLOOKUP(AL$2,'PROJECT SPECIFIC INPUTS'!$C$28:$BD$29,2)*1000000) ->  | AM15: =IF(AM$2="","",HLOOKUP(AM$2,'PROJECT SPECIFIC INPUTS'!$C$28:$BD$29,2)*1000000) ->  | AN15: =IF(AN$2="","",HLOOKUP(AN$2,'PROJECT SPECIFIC INPUTS'!$C$28:$BD$29,2)*1000000) ->  | AO15: =IF(AO$2="","",HLOOKUP(AO$2,'PROJECT SPECIFIC INPUTS'!$C$28:$BD$29,2)*1000000) ->  | AP15: =IF(AP$2="","",HLOOKUP(AP$2,'PROJECT SPECIFIC INPUTS'!$C$28:$BD$29,2)*1000000) ->  | AQ15: =IF(AQ$2="","",HLOOKUP(AQ$2,'PROJECT SPECIFIC INPUTS'!$C$28:$BD$29,2)*1000000) ->  | AR15: =IF(AR$2="","",HLOOKUP(AR$2,'PROJECT SPECIFIC INPUTS'!$C$28:$BD$29,2)*1000000) ->  | AS15: =IF(AS$2="","",HLOOKUP(AS$2,'PROJECT SPECIFIC INPUTS'!$C$28:$BD$29,2)*1000000) ->  | AT15: =IF(AT$2="","",HLOOKUP(AT$2,'PROJECT SPECIFIC INPUTS'!$C$28:$BD$29,2)*1000000) ->  | AU15: =IF(AU$2="","",HLOOKUP(AU$2,'PROJECT SPECIFIC INPUTS'!$C$28:$BD$29,2)*1000000) ->  | AV15: =IF(AV$2="","",HLOOKUP(AV$2,'PROJECT SPECIFIC INPUTS'!$C$28:$BD$29,2)*1000000) ->  | AW15: =IF(AW$2="","",HLOOKUP(AW$2,'PROJECT SPECIFIC INPUTS'!$C$28:$BD$29,2)*1000000) ->  | AX15: =IF(AX$2="","",HLOOKUP(AX$2,'PROJECT SPECIFIC INPUTS'!$C$28:$BD$29,2)*1000000) ->  | AY15: =IF(AY$2="","",HLOOKUP(AY$2,'PROJECT SPECIFIC INPUTS'!$C$28:$BD$29,2)*1000000) ->  | AZ15: =IF(AZ$2="","",HLOOKUP(AZ$2,'PROJECT SPECIFIC INPUTS'!$C$28:$BD$29,2)*1000000) ->  | BA15: =IF(BA$2="","",HLOOKUP(BA$2,'PROJECT SPECIFIC INPUTS'!$C$28:$BD$29,2)*1000000) ->  | BB15: =IF(BB$2="","",HLOOKUP(BB$2,'PROJECT SPECIFIC INPUTS'!$C$28:$BD$29,2)*1000000) ->  | BC15: =IF(BC$2="","",HLOOKUP(BC$2,'PROJECT SPECIFIC INPUTS'!$C$28:$BD$29,2)*1000000) ->  | BD15: =IF(BD$2="","",HLOOKUP(BD$2,'PROJECT SPECIFIC INPUTS'!$C$28:$BD$29,2)*1000000) ->  | BE15: =IF(BE$2="","",HLOOKUP(BE$2,'PROJECT SPECIFIC INPUTS'!$C$28:$BD$29,2)*1000000) ->  | BF15: =IF(BF$2="","",HLOOKUP(BF$2,'PROJECT SPECIFIC INPUTS'!$C$28:$BD$29,2)*1000000) ->  | BG15: =IF(BG$2="","",HLOOKUP(BG$2,'PROJECT SPECIFIC INPUTS'!$C$28:$BD$29,2)*1000000) ->  | BH15: =IF(BH$2="","",HLOOKUP(BH$2,'PROJECT SPECIFIC INPUTS'!$C$28:$BD$29,2)*1000000) ->  | BI15: =IF(BI$2="","",HLOOKUP(BI$2,'PROJECT SPECIFIC INPUTS'!$C$28:$BD$29,2)*1000000) ->  | BJ15: =IF(BJ$2="","",HLOOKUP(BJ$2,'PROJECT SPECIFIC INPUTS'!$C$28:$BD$29,2)*1000000) ->  | BK15: =IF(BK$2="","",HLOOKUP(BK$2,'PROJECT SPECIFIC INPUTS'!$C$28:$BD$29,2)*1000000) -> 
A16: O&M costs | B16: 10281687.5 | D16: =IF(D2="","",'PROJECT SPECIFIC INPUTS'!C30*1000000) -> 0 | E16: =IF(E2="","",'PROJECT SPECIFIC INPUTS'!D30*1000000) -> 0 | F16: =IF(F2="","",'PROJECT SPECIFIC INPUTS'!E30*1000000) -> 0 | G16: =IF(G2="","",'PROJECT SPECIFIC INPUTS'!F30*1000000) -> 0 | H16: =IF(H2="","",'PROJECT SPECIFIC INPUTS'!G30*1000000) -> 0 | I16: =IF(I2="","",'PROJECT SPECIFIC INPUTS'!H30*1000000) -> 358000 | J16: =IF(J2="","",'PROJECT SPECIFIC INPUTS'!I30*1000000) -> 370081.3501 | K16: =IF(K2="","",'PROJECT SPECIFIC INPUTS'!J30*1000000) -> 382746.5362 | L16: =IF(L2="","",'PROJECT SPECIFIC INPUTS'!K30*1000000) -> 396023.7726 | M16: =IF(M2="","",'PROJECT SPECIFIC INPUTS'!L30*1000000) -> 409942.6367 | N16: =IF(N2="","",'PROJECT SPECIFIC INPUTS'!M30*1000000) -> 424534.1355 | O16: =IF(O2="","",'PROJECT SPECIFIC INPUTS'!N30*1000000) -> 439830.7743 | P16: =IF(P2="","",'PROJECT SPECIFIC INPUTS'!O30*1000000) -> 455866.6293 | Q16: =IF(Q2="","",'PROJECT SPECIFIC INPUTS'!P30*1000000) -> 472677.4234 | R16: =IF(R2="","",'PROJECT SPECIFIC INPUTS'!Q30*1000000) -> 490300.6059 | S16: =IF(S2="","",'PROJECT SPECIFIC INPUTS'!R30*1000000) -> 508775.4357 | T16: =IF(T2="","",'PROJECT SPECIFIC INPUTS'!S30*1000000) -> 528143.0691 | U16: =IF(U2="","",'PROJECT SPECIFIC INPUTS'!T30*1000000) -> 548446.6511 | V16: =IF(V2="","",'PROJECT SPECIFIC INPUTS'!U30*1000000) -> 569731.4118 | W16: =IF(W2="","",'PROJECT SPECIFIC INPUTS'!V30*1000000) -> 592044.7671 | X16: =IF(X2="","",'PROJECT SPECIFIC INPUTS'!W30*1000000) -> 615436.4243 | Y16: =IF(Y2="","",'PROJECT SPECIFIC INPUTS'!X30*1000000) -> 639958.4926 | Z16: =IF(Z2="","",'PROJECT SPECIFIC INPUTS'!Y30*1000000) -> 665665.5997 | AA16: =IF(AA2="","",'PROJECT SPECIFIC INPUTS'!Z30*1000000) -> 692615.0131 | AB16: =IF(AB2="","",'PROJECT SPECIFIC INPUTS'!AA30*1000000) -> 720866.7676 | AC16: =IF(AC2="","",'PROJECT SPECIFIC INPUTS'!AB30*1000000) ->  | AD16: =IF(AD2="","",'PROJECT SPECIFIC INPUTS'!AC30*1000000) ->  | AE16: =IF(AE2="","",'PROJECT SPECIFIC INPUTS'!AD30*1000000) ->  | AF16: =IF(AF2="","",'PROJECT SPECIFIC INPUTS'!AE30*1000000) ->  | AG16: =IF(AG2="","",'PROJECT SPECIFIC INPUTS'!AF30*1000000) ->  | AH16: =IF(AH2="","",'PROJECT SPECIFIC INPUTS'!AG30*1000000) ->  | AI16: =IF(AI2="","",'PROJECT SPECIFIC INPUTS'!AH30*1000000) ->  | AJ16: =IF(AJ2="","",'PROJECT SPECIFIC INPUTS'!AI30*1000000) ->  | AK16: =IF(AK2="","",'PROJECT SPECIFIC INPUTS'!AJ30*1000000) ->  | AL16: =IF(AL2="","",'PROJECT SPECIFIC INPUTS'!AK30*1000000) ->  | AM16: =IF(AM2="","",'PROJECT SPECIFIC INPUTS'!AL30*1000000) ->  | AN16: =IF(AN2="","",'PROJECT SPECIFIC INPUTS'!AM30*1000000) ->  | AO16: =IF(AO2="","",'PROJECT SPECIFIC INPUTS'!AN30*1000000) ->  | AP16: =IF(AP2="","",'PROJECT SPECIFIC INPUTS'!AO30*1000000) ->  | AQ16: =IF(AQ2="","",'PROJECT SPECIFIC INPUTS'!AP30*1000000) ->  | AR16: =IF(AR2="","",'PROJECT SPECIFIC INPUTS'!AQ30*1000000) ->  | AS16: =IF(AS2="","",'PROJECT SPECIFIC INPUTS'!AR30*1000000) ->  | AT16: =IF(AT2="","",'PROJECT SPECIFIC INPUTS'!AS30*1000000) ->  | AU16: =IF(AU2="","",'PROJECT SPECIFIC INPUTS'!AT30*1000000) ->  | AV16: =IF(AV2="","",'PROJECT SPECIFIC INPUTS'!AU30*1000000) ->  | AW16: =IF(AW2="","",'PROJECT SPECIFIC INPUTS'!AV30*1000000) ->  | AX16: =IF(AX2="","",'PROJECT SPECIFIC INPUTS'!AW30*1000000) ->  | AY16: =IF(AY2="","",'PROJECT SPECIFIC INPUTS'!AX30*1000000) ->  | AZ16: =IF(AZ2="","",'PROJECT SPECIFIC INPUTS'!AY30*1000000) ->  | BA16: =IF(BA2="","",'PROJECT SPECIFIC INPUTS'!AZ30*1000000) ->  | BB16: =IF(BB2="","",'PROJECT SPECIFIC INPUTS'!BA30*1000000) ->  | BC16: =IF(BC2="","",'PROJECT SPECIFIC INPUTS'!BB30*1000000) ->  | BD16: =IF(BD2="","",'PROJECT SPECIFIC INPUTS'!BC30*1000000) ->  | BE16: =IF(BE2="","",'PROJECT SPECIFIC INPUTS'!BD30*1000000) ->  | BF16: =IF(BF2="","",'PROJECT SPECIFIC INPUTS'!BE30*1000000) ->  | BG16: =IF(BG2="","",'PROJECT SPECIFIC INPUTS'!BF30*1000000) ->  | BH16: =IF(BH2="","",'PROJECT SPECIFIC INPUTS'!BG30*1000000) ->  | BI16: =IF(BI2="","",'PROJECT SPECIFIC INPUTS'!BH30*1000000) ->  | BJ16: =IF(BJ2="","",'PROJECT SPECIFIC INPUTS'!BI30*1000000) ->  | BK16: =IF(BK2="","",'PROJECT SPECIFIC INPUTS'!BJ30*1000000) -> 
A17: DISCOUNTED PROJECT COSTS | B17: 58874939.98 | D17: =IF(D2="","",D14*D4) -> 0 | E17: 11771028.04 | F17: 10391822.43 | G17: 28115578.39 | H17: 4768095.075 | I17: 255249.0523 | J17: 246600.8298 | K17: 238355.3066 | L17: 230489.4413 | M17: 222981.6326 | N17: 215811.6273 | O17: 208960.4325 | P17: 202410.2352 | Q17: 196144.326 | R17: 190147.0282 | S17: 184403.6316 | T17: 178900.3301 | U17: 173624.1643 | V17: 168562.9668 | W17: 163705.3116 | X17: 159040.4671 | Y17: 154558.3509 | Z17: 150249.4895 | AA17: 146104.9784 | AB17: 142116.4467 | AJ17: =IF(AJ2="","",AJ14*AJ4) -> 
A18: Capital costs | B18: 55046523.93 | D18: =IF(D$2="","",D15*D$4) -> 0 | E18: =IF(E$2="","",E15*E$4) -> 11771028.04 | F18: 10391822.43 | G18: 28115578.39 | H18: 4768095.075 | I18: 0 | J18: 0 | K18: 0 | L18: 0 | M18: 0 | N18: 0 | O18: 0 | P18: 0 | Q18: 0 | R18: 0 | S18: 0 | T18: 0 | U18: 0 | V18: 0 | W18: 0 | X18: 0 | Y18: 0 | Z18: 0 | AA18: 0 | AB18: 0
A19: O&M costs | B19: 3828416.049 | D19: =IF(D$2="","",D16*D$4) -> 0 | E19: =IF(E$2="","",E16*E$4) -> 0 | F19: 0 | G19: 0 | H19: 0 | I19: 255249.0523 | J19: 246600.8298 | K19: 238355.3066 | L19: 230489.4413 | M19: 222981.6326 | N19: 215811.6273 | O19: 208960.4325 | P19: 202410.2352 | Q19: 196144.326 | R19: 190147.0282 | S19: 184403.6316 | T19: 178900.3301 | U19: 173624.1643 | V19: 168562.9668 | W19: 163705.3116 | X19: 159040.4671 | Y19: 154558.3509 | Z19: 150249.4895 | AA19: 146104.9784 | AB19: 142116.4467
A21: BENEFITS IN CONSTANT DOLLARS BEFORE DISCOUNTING
A22: TOTAL UNDISCOUNTED BENEFITS | B22: =SUM(D22:BK22) -> 981736670.7 | D22: =IF(D$2="","",D23+D26+D29+D32+D35+D36+D37+D38) -> 0 | E22: =IF(E$2="","",E23+E26+E29+E32+E35+E36+E37+E38) -> 0 | F22: 0 | G22: 0 | H22: 0 | I22: =IF(I$2="","",I23+I26+I29+I32+I35+I36+I37+I38) -> 7089471.559 | J22: =IF(J$2="","",J23+J26+J29+J32+J35+J36+J37+J38) -> 9600881.797 | K22: 11894526.9 | L22: 15062374.06 | M22: 18036425.63 | N22: 21597781.92 | O22: 25972020.26 | P22: 30098324.15 | Q22: 34565510.44 | R22: 39801544.38 | S22: 45595737.52 | T22: 51438999.75 | U22: 58166233.33 | V22: 60088622.23 | W22: 68387078.16 | X22: 76892150.68 | Y22: 86149109.63 | Z22: 96378586.46 | AA22: 106931181.3 | AB22: 117990110.6
A23: TRAVEL TIME SAVINGS FOR EXISTING USERS | B23: =SUM(D23:BK23) -> 1246649433 | D23: =IF(D$2="","",SUM(D24:D25)) -> 0 | E23: =IF(E$2="","",SUM(E24:E25)) -> 0 | F23: 0 | G23: 0 | H23: 0 | I23: 5552666.47 | J23: 11541609.93 | K23: 17992884.29 | L23: 24933944.3 | M23: 28911096.91 | N23: 33188277.15 | O23: 37784149.72 | P23: 42718440.85 | Q23: 48011995.61 | R23: 53686838.3 | S23: 59766235.9 | T23: 66274764.87 | U23: 73238381.44 | V23: 80684495.54 | W23: 88642048.57 | X23: 97141595.21 | Y23: 106215389.5 | Z23: 115897475.3 | AA23: 126223781.6 | AB23: 128243362.1
A24: AUTO | D24: =IF(D$2="","",'TRAVEL TIME_CALC'!D256*PARAMETERS!$B$9*D$3) -> 0 | E24: =IF(E$2="","",'TRAVEL TIME_CALC'!E256*PARAMETERS!$B$9*E$3) -> 0 | F24: =IF(F$2="","",'TRAVEL TIME_CALC'!F256*PARAMETERS!$B$9*F$3) -> 0 | G24: =IF(G$2="","",'TRAVEL TIME_CALC'!G256*PARAMETERS!$B$9*G$3) -> 0 | H24: =IF(H$2="","",'TRAVEL TIME_CALC'!H256*PARAMETERS!$B$9*H$3) -> 0 | I24: =IF(I$2="","",'TRAVEL TIME_CALC'!I256*PARAMETERS!$B$9*I$3) -> 4723162.448 | J24: =IF(J$2="","",'TRAVEL TIME_CALC'!J256*PARAMETERS!$B$9*J$3) -> 9817427.162 | K24: =IF(K$2="","",'TRAVEL TIME_CALC'!K256*PARAMETERS!$B$9*K$3) -> 15304955.89 | L24: =IF(L$2="","",'TRAVEL TIME_CALC'!L256*PARAMETERS!$B$9*L$3) -> 21209101.98 | M24: =IF(M$2="","",'TRAVEL TIME_CALC'!M256*PARAMETERS!$B$9*M$3) -> 24592114.07 | N24: =IF(N$2="","",'TRAVEL TIME_CALC'!N256*PARAMETERS!$B$9*N$3) -> 28230333.16 | O24: =IF(O$2="","",'TRAVEL TIME_CALC'!O256*PARAMETERS!$B$9*O$3) -> 32139635.63 | P24: =IF(P$2="","",'TRAVEL TIME_CALC'!P256*PARAMETERS!$B$9*P$3) -> 36336800.84 | Q24: =IF(Q$2="","",'TRAVEL TIME_CALC'!Q256*PARAMETERS!$B$9*Q$3) -> 40839559.87 | R24: =IF(R$2="","",'TRAVEL TIME_CALC'!R256*PARAMETERS!$B$9*R$3) -> 45666646.83 | S24: =IF(S$2="","",'TRAVEL TIME_CALC'!S256*PARAMETERS!$B$9*S$3) -> 50837852.88 | T24: =IF(T$2="","",'TRAVEL TIME_CALC'!T256*PARAMETERS!$B$9*T$3) -> 56374083.05 | U24: =IF(U$2="","",'TRAVEL TIME_CALC'!U256*PARAMETERS!$B$9*U$3) -> 62297416.01 | V24: =IF(V$2="","",'TRAVEL TIME_CALC'!V256*PARAMETERS!$B$9*V$3) -> 68631166.95 | W24: =IF(W$2="","",'TRAVEL TIME_CALC'!W256*PARAMETERS!$B$9*W$3) -> 75399953.77 | X24: =IF(X$2="","",'TRAVEL TIME_CALC'!X256*PARAMETERS!$B$9*X$3) -> 82629766.64 | Y24: =IF(Y$2="","",'TRAVEL TIME_CALC'!Y256*PARAMETERS!$B$9*Y$3) -> 90348041.21 | Z24: =IF(Z$2="","",'TRAVEL TIME_CALC'!Z256*PARAMETERS!$B$9*Z$3) -> 98583735.6 | AA24: =IF(AA$2="","",'TRAVEL TIME_CALC'!AA256*PARAMETERS!$B$9*AA$3) -> 107367411.4 | AB24: =IF(AB$2="","",'TRAVEL TIME_CALC'!AB256*PARAMETERS!$B$9*AB$3) -> 109085290 | AC24: =IF(AC$2="","",'TRAVEL TIME_CALC'!AC256*PARAMETERS!$B$9*AC$3) ->  | AD24: =IF(AD$2="","",'TRAVEL TIME_CALC'!AD256*PARAMETERS!$B$9*AD$3) ->  | AE24: =IF(AE$2="","",'TRAVEL TIME_CALC'!AE256*PARAMETERS!$B$9*AE$3) ->  | AF24: =IF(AF$2="","",'TRAVEL TIME_CALC'!AF256*PARAMETERS!$B$9*AF$3) ->  | AG24: =IF(AG$2="","",'TRAVEL TIME_CALC'!AG256*PARAMETERS!$B$9*AG$3) ->  | AH24: =IF(AH$2="","",'TRAVEL TIME_CALC'!AH256*PARAMETERS!$B$9*AH$3) ->  | AI24: =IF(AI$2="","",'TRAVEL TIME_CALC'!AI256*PARAMETERS!$B$9*AI$3) ->  | AJ24: =IF(AJ$2="","",'TRAVEL TIME_CALC'!AJ256*PARAMETERS!$B$9*AJ$3) ->  | AK24: =IF(AK$2="","",'TRAVEL TIME_CALC'!AK256*PARAMETERS!$B$9*AK$3) ->  | AL24: =IF(AL$2="","",'TRAVEL TIME_CALC'!AL256*PARAMETERS!$B$9*AL$3) ->  | AM24: =IF(AM$2="","",'TRAVEL TIME_CALC'!AM256*PARAMETERS!$B$9*AM$3) ->  | AN24: =IF(AN$2="","",'TRAVEL TIME_CALC'!AN256*PARAMETERS!$B$9*AN$3) ->  | AO24: =IF(AO$2="","",'TRAVEL TIME_CALC'!AO256*PARAMETERS!$B$9*AO$3) ->  | AP24: =IF(AP$2="","",'TRAVEL TIME_CALC'!AP256*PARAMETERS!$B$9*AP$3) ->  | AQ24: =IF(AQ$2="","",'TRAVEL TIME_CALC'!AQ256*PARAMETERS!$B$9*AQ$3) ->  | AR24: =IF(AR$2="","",'TRAVEL TIME_CALC'!AR256*PARAMETERS!$B$9*AR$3) ->  | AS24: =IF(AS$2="","",'TRAVEL TIME_CALC'!AS256*PARAMETERS!$B$9*AS$3) ->  | AT24: =IF(AT$2="","",'TRAVEL TIME_CALC'!AT256*PARAMETERS!$B$9*AT$3) ->  | AU24: =IF(AU$2="","",'TRAVEL TIME_CALC'!AU256*PARAMETERS!$B$9*AU$3) ->  | AV24: =IF(AV$2="","",'TRAVEL TIME_CALC'!AV256*PARAMETERS!$B$9*AV$3) ->  | AW24: =IF(AW$2="","",'TRAVEL TIME_CALC'!AW256*PARAMETERS!$B$9*AW$3) ->  | AX24: =IF(AX$2="","",'TRAVEL TIME_CALC'!AX256*PARAMETERS!$B$9*AX$3) ->  | AY24: =IF(AY$2="","",'TRAVEL TIME_CALC'!AY256*PARAMETERS!$B$9*AY$3) ->  | AZ24: =IF(AZ$2="","",'TRAVEL TIME_CALC'!AZ256*PARAMETERS!$B$9*AZ$3) ->  | BA24: =IF(BA$2="","",'TRAVEL TIME_CALC'!BA256*PARAMETERS!$B$9*BA$3) ->  | BB24: =IF(BB$2="","",'TRAVEL TIME_CALC'!BB256*PARAMETERS!$B$9*BB$3) ->  | BC24: =IF(BC$2="","",'TRAVEL TIME_CALC'!BC256*PARAMETERS!$B$9*BC$3) ->  | BD24: =IF(BD$2="","",'TRAVEL TIME_CALC'!BD256*PARAMETERS!$B$9*BD$3) ->  | BE24: =IF(BE$2="","",'TRAVEL TIME_CALC'!BE256*PARAMETERS!$B$9*BE$3) ->  | BF24: =IF(BF$2="","",'TRAVEL TIME_CALC'!BF256*PARAMETERS!$B$9*BF$3) ->  | BG24: =IF(BG$2="","",'TRAVEL TIME_CALC'!BG256*PARAMETERS!$B$9*BG$3) ->  | BH24: =IF(BH$2="","",'TRAVEL TIME_CALC'!BH256*PARAMETERS!$B$9*BH$3) ->  | BI24: =IF(BI$2="","",'TRAVEL TIME_CALC'!BI256*PARAMETERS!$B$9*BI$3) ->  | BJ24: =IF(BJ$2="","",'TRAVEL TIME_CALC'!BJ256*PARAMETERS!$B$9*BJ$3) ->  | BK24: =IF(BK$2="","",'TRAVEL TIME_CALC'!BK256*PARAMETERS!$B$9*BK$3) -> 
A25: TRUCK | D25: =IF(D$2="","",'TRAVEL TIME_CALC'!D257*PARAMETERS!$B$9*D$3) -> 0 | E25: =IF(E$2="","",'TRAVEL TIME_CALC'!E257*PARAMETERS!$B$9*E$3) -> 0 | F25: =IF(F$2="","",'TRAVEL TIME_CALC'!F257*PARAMETERS!$B$9*F$3) -> 0 | G25: =IF(G$2="","",'TRAVEL TIME_CALC'!G257*PARAMETERS!$B$9*G$3) -> 0 | H25: =IF(H$2="","",'TRAVEL TIME_CALC'!H257*PARAMETERS!$B$9*H$3) -> 0 | I25: =IF(I$2="","",'TRAVEL TIME_CALC'!I257*PARAMETERS!$B$9*I$3) -> 829504.0215 | J25: =IF(J$2="","",'TRAVEL TIME_CALC'!J257*PARAMETERS!$B$9*J$3) -> 1724182.77 | K25: =IF(K$2="","",'TRAVEL TIME_CALC'!K257*PARAMETERS!$B$9*K$3) -> 2687928.396 | L25: =IF(L$2="","",'TRAVEL TIME_CALC'!L257*PARAMETERS!$B$9*L$3) -> 3724842.322 | M25: =IF(M$2="","",'TRAVEL TIME_CALC'!M257*PARAMETERS!$B$9*M$3) -> 4318982.831 | N25: =IF(N$2="","",'TRAVEL TIME_CALC'!N257*PARAMETERS!$B$9*N$3) -> 4957943.991 | O25: =IF(O$2="","",'TRAVEL TIME_CALC'!O257*PARAMETERS!$B$9*O$3) -> 5644514.093 | P25: =IF(P$2="","",'TRAVEL TIME_CALC'!P257*PARAMETERS!$B$9*P$3) -> 6381640.004 | Q25: =IF(Q$2="","",'TRAVEL TIME_CALC'!Q257*PARAMETERS!$B$9*Q$3) -> 7172435.74 | R25: =IF(R$2="","",'TRAVEL TIME_CALC'!R257*PARAMETERS!$B$9*R$3) -> 8020191.473 | S25: =IF(S$2="","",'TRAVEL TIME_CALC'!S257*PARAMETERS!$B$9*S$3) -> 8928383.021 | T25: =IF(T$2="","",'TRAVEL TIME_CALC'!T257*PARAMETERS!$B$9*T$3) -> 9900681.823 | U25: =IF(U$2="","",'TRAVEL TIME_CALC'!U257*PARAMETERS!$B$9*U$3) -> 10940965.44 | V25: =IF(V$2="","",'TRAVEL TIME_CALC'!V257*PARAMETERS!$B$9*V$3) -> 12053328.59 | W25: =IF(W$2="","",'TRAVEL TIME_CALC'!W257*PARAMETERS!$B$9*W$3) -> 13242094.8 | X25: =IF(X$2="","",'TRAVEL TIME_CALC'!X257*PARAMETERS!$B$9*X$3) -> 14511828.56 | Y25: =IF(Y$2="","",'TRAVEL TIME_CALC'!Y257*PARAMETERS!$B$9*Y$3) -> 15867348.27 | Z25: =IF(Z$2="","",'TRAVEL TIME_CALC'!Z257*PARAMETERS!$B$9*Z$3) -> 17313739.69 | AA25: =IF(AA$2="","",'TRAVEL TIME_CALC'!AA257*PARAMETERS!$B$9*AA$3) -> 18856370.17 | AB25: =IF(AB$2="","",'TRAVEL TIME_CALC'!AB257*PARAMETERS!$B$9*AB$3) -> 19158072.1 | AC25: =IF(AC$2="","",'TRAVEL TIME_CALC'!AC257*PARAMETERS!$B$9*AC$3) ->  | AD25: =IF(AD$2="","",'TRAVEL TIME_CALC'!AD257*PARAMETERS!$B$9*AD$3) ->  | AE25: =IF(AE$2="","",'TRAVEL TIME_CALC'!AE257*PARAMETERS!$B$9*AE$3) ->  | AF25: =IF(AF$2="","",'TRAVEL TIME_CALC'!AF257*PARAMETERS!$B$9*AF$3) ->  | AG25: =IF(AG$2="","",'TRAVEL TIME_CALC'!AG257*PARAMETERS!$B$9*AG$3) ->  | AH25: =IF(AH$2="","",'TRAVEL TIME_CALC'!AH257*PARAMETERS!$B$9*AH$3) ->  | AI25: =IF(AI$2="","",'TRAVEL TIME_CALC'!AI257*PARAMETERS!$B$9*AI$3) ->  | AJ25: =IF(AJ$2="","",'TRAVEL TIME_CALC'!AJ257*PARAMETERS!$B$9*AJ$3) ->  | AK25: =IF(AK$2="","",'TRAVEL TIME_CALC'!AK257*PARAMETERS!$B$9*AK$3) ->  | AL25: =IF(AL$2="","",'TRAVEL TIME_CALC'!AL257*PARAMETERS!$B$9*AL$3) ->  | AM25: =IF(AM$2="","",'TRAVEL TIME_CALC'!AM257*PARAMETERS!$B$9*AM$3) ->  | AN25: =IF(AN$2="","",'TRAVEL TIME_CALC'!AN257*PARAMETERS!$B$9*AN$3) ->  | AO25: =IF(AO$2="","",'TRAVEL TIME_CALC'!AO257*PARAMETERS!$B$9*AO$3) ->  | AP25: =IF(AP$2="","",'TRAVEL TIME_CALC'!AP257*PARAMETERS!$B$9*AP$3) ->  | AQ25: =IF(AQ$2="","",'TRAVEL TIME_CALC'!AQ257*PARAMETERS!$B$9*AQ$3) ->  | AR25: =IF(AR$2="","",'TRAVEL TIME_CALC'!AR257*PARAMETERS!$B$9*AR$3) ->  | AS25: =IF(AS$2="","",'TRAVEL TIME_CALC'!AS257*PARAMETERS!$B$9*AS$3) ->  | AT25: =IF(AT$2="","",'TRAVEL TIME_CALC'!AT257*PARAMETERS!$B$9*AT$3) ->  | AU25: =IF(AU$2="","",'TRAVEL TIME_CALC'!AU257*PARAMETERS!$B$9*AU$3) ->  | AV25: =IF(AV$2="","",'TRAVEL TIME_CALC'!AV257*PARAMETERS!$B$9*AV$3) ->  | AW25: =IF(AW$2="","",'TRAVEL TIME_CALC'!AW257*PARAMETERS!$B$9*AW$3) ->  | AX25: =IF(AX$2="","",'TRAVEL TIME_CALC'!AX257*PARAMETERS!$B$9*AX$3) ->  | AY25: =IF(AY$2="","",'TRAVEL TIME_CALC'!AY257*PARAMETERS!$B$9*AY$3) ->  | AZ25: =IF(AZ$2="","",'TRAVEL TIME_CALC'!AZ257*PARAMETERS!$B$9*AZ$3) ->  | BA25: =IF(BA$2="","",'TRAVEL TIME_CALC'!BA257*PARAMETERS!$B$9*BA$3) ->  | BB25: =IF(BB$2="","",'TRAVEL TIME_CALC'!BB257*PARAMETERS!$B$9*BB$3) ->  | BC25: =IF(BC$2="","",'TRAVEL TIME_CALC'!BC257*PARAMETERS!$B$9*BC$3) ->  | BD25: =IF(BD$2="","",'TRAVEL TIME_CALC'!BD257*PARAMETERS!$B$9*BD$3) ->  | BE25: =IF(BE$2="","",'TRAVEL TIME_CALC'!BE257*PARAMETERS!$B$9*BE$3) ->  | BF25: =IF(BF$2="","",'TRAVEL TIME_CALC'!BF257*PARAMETERS!$B$9*BF$3) ->  | BG25: =IF(BG$2="","",'TRAVEL TIME_CALC'!BG257*PARAMETERS!$B$9*BG$3) ->  | BH25: =IF(BH$2="","",'TRAVEL TIME_CALC'!BH257*PARAMETERS!$B$9*BH$3) ->  | BI25: =IF(BI$2="","",'TRAVEL TIME_CALC'!BI257*PARAMETERS!$B$9*BI$3) ->  | BJ25: =IF(BJ$2="","",'TRAVEL TIME_CALC'!BJ257*PARAMETERS!$B$9*BJ$3) ->  | BK25: =IF(BK$2="","",'TRAVEL TIME_CALC'!BK257*PARAMETERS!$B$9*BK$3) -> 
A26: OUT-OF-POCKET COST SAVINGS FOR EXISTING USERS | B26: =SUM(D26:BK26) -> -270464303.2 | D26: =IF(D$2="","",SUM(D27:D28)) -> 0 | E26: =IF(E$2="","",SUM(E27:E28)) -> 0 | F26: 0 | G26: 0 | H26: 0 | I26: -2410827.515 | J26: -4896369.173 | K26: -7184624.688 | L26: -9438416.784 | M26: -10674181.19 | N26: -11650576.2 | O26: -12155610.59 | P26: -13256517.21 | Q26: -13710309.04 | R26: -14488220.43 | S26: -15435011.53 | T26: -15734079.35 | U26: -16366829.21 | V26: -16933630.03 | W26: -17033660.13 | X26: -17487869.16 | Y26: -17785520.91 | Z26: -17742445.63 | AA26: -18039802.23 | AB26: -18039802.23
A27: AUTO | D27: =IF(D$2="","",VOC_CALC!D112*PARAMETERS!$B$9*D$3) -> 0 | E27: =IF(E$2="","",VOC_CALC!E112*PARAMETERS!$B$9*E$3) -> 0 | F27: =IF(F$2="","",VOC_CALC!F112*PARAMETERS!$B$9*F$3) -> 0 | G27: =IF(G$2="","",VOC_CALC!G112*PARAMETERS!$B$9*G$3) -> 0 | H27: =IF(H$2="","",VOC_CALC!H112*PARAMETERS!$B$9*H$3) -> 0 | I27: =IF(I$2="","",VOC_CALC!I112*PARAMETERS!$B$9*I$3) -> -1886479.286 | J27: =IF(J$2="","",VOC_CALC!J112*PARAMETERS!$B$9*J$3) -> -3831713.638 | K27: =IF(K$2="","",VOC_CALC!K112*PARAMETERS!$B$9*K$3) -> -5624639.765 | L27: =IF(L$2="","",VOC_CALC!L112*PARAMETERS!$B$9*L$3) -> -7373250.345 | M27: =IF(M$2="","",VOC_CALC!M112*PARAMETERS!$B$9*M$3) -> -8323451.853 | N27: =IF(N$2="","",VOC_CALC!N112*PARAMETERS!$B$9*N$3) -> -9079329.944 | O27: =IF(O$2="","",VOC_CALC!O112*PARAMETERS!$B$9*O$3) -> -9450374.156 | P27: =IF(P$2="","",VOC_CALC!P112*PARAMETERS!$B$9*P$3) -> -10282007.89 | Q27: =IF(Q$2="","",VOC_CALC!Q112*PARAMETERS!$B$9*Q$3) -> -10613045.85 | R27: =IF(R$2="","",VOC_CALC!R112*PARAMETERS!$B$9*R$3) -> -11187452.71 | S27: =IF(S$2="","",VOC_CALC!S112*PARAMETERS!$B$9*S$3) -> -11879686.52 | T27: =IF(T$2="","",VOC_CALC!T112*PARAMETERS!$B$9*T$3) -> -12065697.38 | U27: =IF(U$2="","",VOC_CALC!U112*PARAMETERS!$B$9*U$3) -> -12504706.41 | V27: =IF(V$2="","",VOC_CALC!V112*PARAMETERS!$B$9*V$3) -> -12883723.06 | W27: =IF(W$2="","",VOC_CALC!W112*PARAMETERS!$B$9*W$3) -> -12888583.63 | X27: =IF(X$2="","",VOC_CALC!X112*PARAMETERS!$B$9*X$3) -> -13171590.03 | Y27: =IF(Y$2="","",VOC_CALC!Y112*PARAMETERS!$B$9*Y$3) -> -13339921.11 | Z27: =IF(Z$2="","",VOC_CALC!Z112*PARAMETERS!$B$9*Z$3) -> -13225299.24 | AA27: =IF(AA$2="","",VOC_CALC!AA112*PARAMETERS!$B$9*AA$3) -> -13367519.93 | AB27: =IF(AB$2="","",VOC_CALC!AB112*PARAMETERS!$B$9*AB$3) -> -13367519.93 | AC27: =IF(AC$2="","",VOC_CALC!AC112*PARAMETERS!$B$9*AC$3) ->  | AD27: =IF(AD$2="","",VOC_CALC!AD112*PARAMETERS!$B$9*AD$3) ->  | AE27: =IF(AE$2="","",VOC_CALC!AE112*PARAMETERS!$B$9*AE$3) ->  | AF27: =IF(AF$2="","",VOC_CALC!AF112*PARAMETERS!$B$9*AF$3) ->  | AG27: =IF(AG$2="","",VOC_CALC!AG112*PARAMETERS!$B$9*AG$3) ->  | AH27: =IF(AH$2="","",VOC_CALC!AH112*PARAMETERS!$B$9*AH$3) ->  | AI27: =IF(AI$2="","",VOC_CALC!AI112*PARAMETERS!$B$9*AI$3) ->  | AJ27: =IF(AJ$2="","",VOC_CALC!AJ112*PARAMETERS!$B$9*AJ$3) ->  | AK27: =IF(AK$2="","",VOC_CALC!AK112*PARAMETERS!$B$9*AK$3) ->  | AL27: =IF(AL$2="","",VOC_CALC!AL112*PARAMETERS!$B$9*AL$3) ->  | AM27: =IF(AM$2="","",VOC_CALC!AM112*PARAMETERS!$B$9*AM$3) ->  | AN27: =IF(AN$2="","",VOC_CALC!AN112*PARAMETERS!$B$9*AN$3) ->  | AO27: =IF(AO$2="","",VOC_CALC!AO112*PARAMETERS!$B$9*AO$3) ->  | AP27: =IF(AP$2="","",VOC_CALC!AP112*PARAMETERS!$B$9*AP$3) ->  | AQ27: =IF(AQ$2="","",VOC_CALC!AQ112*PARAMETERS!$B$9*AQ$3) ->  | AR27: =IF(AR$2="","",VOC_CALC!AR112*PARAMETERS!$B$9*AR$3) ->  | AS27: =IF(AS$2="","",VOC_CALC!AS112*PARAMETERS!$B$9*AS$3) ->  | AT27: =IF(AT$2="","",VOC_CALC!AT112*PARAMETERS!$B$9*AT$3) ->  | AU27: =IF(AU$2="","",VOC_CALC!AU112*PARAMETERS!$B$9*AU$3) ->  | AV27: =IF(AV$2="","",VOC_CALC!AV112*PARAMETERS!$B$9*AV$3) ->  | AW27: =IF(AW$2="","",VOC_CALC!AW112*PARAMETERS!$B$9*AW$3) ->  | AX27: =IF(AX$2="","",VOC_CALC!AX112*PARAMETERS!$B$9*AX$3) ->  | AY27: =IF(AY$2="","",VOC_CALC!AY112*PARAMETERS!$B$9*AY$3) ->  | AZ27: =IF(AZ$2="","",VOC_CALC!AZ112*PARAMETERS!$B$9*AZ$3) ->  | BA27: =IF(BA$2="","",VOC_CALC!BA112*PARAMETERS!$B$9*BA$3) ->  | BB27: =IF(BB$2="","",VOC_CALC!BB112*PARAMETERS!$B$9*BB$3) ->  | BC27: =IF(BC$2="","",VOC_CALC!BC112*PARAMETERS!$B$9*BC$3) ->  | BD27: =IF(BD$2="","",VOC_CALC!BD112*PARAMETERS!$B$9*BD$3) ->  | BE27: =IF(BE$2="","",VOC_CALC!BE112*PARAMETERS!$B$9*BE$3) ->  | BF27: =IF(BF$2="","",VOC_CALC!BF112*PARAMETERS!$B$9*BF$3) ->  | BG27: =IF(BG$2="","",VOC_CALC!BG112*PARAMETERS!$B$9*BG$3) ->  | BH27: =IF(BH$2="","",VOC_CALC!BH112*PARAMETERS!$B$9*BH$3) ->  | BI27: =IF(BI$2="","",VOC_CALC!BI112*PARAMETERS!$B$9*BI$3) ->  | BJ27: =IF(BJ$2="","",VOC_CALC!BJ112*PARAMETERS!$B$9*BJ$3) ->  | BK27: =IF(BK$2="","",VOC_CALC!BK112*PARAMETERS!$B$9*BK$3) -> 
A28: TRUCK | D28: =IF(D$2="","",VOC_CALC!D113*PARAMETERS!$B$9*D$3) -> 0 | E28: =IF(E$2="","",VOC_CALC!E113*PARAMETERS!$B$9*E$3) -> 0 | F28: =IF(F$2="","",VOC_CALC!F113*PARAMETERS!$B$9*F$3) -> 0 | G28: =IF(G$2="","",VOC_CALC!G113*PARAMETERS!$B$9*G$3) -> 0 | H28: =IF(H$2="","",VOC_CALC!H113*PARAMETERS!$B$9*H$3) -> 0 | I28: =IF(I$2="","",VOC_CALC!I113*PARAMETERS!$B$9*I$3) -> -524348.2291 | J28: =IF(J$2="","",VOC_CALC!J113*PARAMETERS!$B$9*J$3) -> -1064655.535 | K28: =IF(K$2="","",VOC_CALC!K113*PARAMETERS!$B$9*K$3) -> -1559984.923 | L28: =IF(L$2="","",VOC_CALC!L113*PARAMETERS!$B$9*L$3) -> -2065166.438 | M28: =IF(M$2="","",VOC_CALC!M113*PARAMETERS!$B$9*M$3) -> -2350729.335 | N28: =IF(N$2="","",VOC_CALC!N113*PARAMETERS!$B$9*N$3) -> -2571246.257 | O28: =IF(O$2="","",VOC_CALC!O113*PARAMETERS!$B$9*O$3) -> -2705236.436 | P28: =IF(P$2="","",VOC_CALC!P113*PARAMETERS!$B$9*P$3) -> -2974509.321 | Q28: =IF(Q$2="","",VOC_CALC!Q113*PARAMETERS!$B$9*Q$3) -> -3097263.187 | R28: =IF(R$2="","",VOC_CALC!R113*PARAMETERS!$B$9*R$3) -> -3300767.719 | S28: =IF(S$2="","",VOC_CALC!S113*PARAMETERS!$B$9*S$3) -> -3555325.012 | T28: =IF(T$2="","",VOC_CALC!T113*PARAMETERS!$B$9*T$3) -> -3668381.971 | U28: =IF(U$2="","",VOC_CALC!U113*PARAMETERS!$B$9*U$3) -> -3862122.806 | V28: =IF(V$2="","",VOC_CALC!V113*PARAMETERS!$B$9*V$3) -> -4049906.971 | W28: =IF(W$2="","",VOC_CALC!W113*PARAMETERS!$B$9*W$3) -> -4145076.495 | X28: =IF(X$2="","",VOC_CALC!X113*PARAMETERS!$B$9*X$3) -> -4316279.132 | Y28: =IF(Y$2="","",VOC_CALC!Y113*PARAMETERS!$B$9*Y$3) -> -4445599.799 | Z28: =IF(Z$2="","",VOC_CALC!Z113*PARAMETERS!$B$9*Z$3) -> -4517146.39 | AA28: =IF(AA$2="","",VOC_CALC!AA113*PARAMETERS!$B$9*AA$3) -> -4672282.293 | AB28: =IF(AB$2="","",VOC_CALC!AB113*PARAMETERS!$B$9*AB$3) -> -4672282.293 | AC28: =IF(AC$2="","",VOC_CALC!AC113*PARAMETERS!$B$9*AC$3) ->  | AD28: =IF(AD$2="","",VOC_CALC!AD113*PARAMETERS!$B$9*AD$3) ->  | AE28: =IF(AE$2="","",VOC_CALC!AE113*PARAMETERS!$B$9*AE$3) ->  | AF28: =IF(AF$2="","",VOC_CALC!AF113*PARAMETERS!$B$9*AF$3) ->  | AG28: =IF(AG$2="","",VOC_CALC!AG113*PARAMETERS!$B$9*AG$3) ->  | AH28: =IF(AH$2="","",VOC_CALC!AH113*PARAMETERS!$B$9*AH$3) ->  | AI28: =IF(AI$2="","",VOC_CALC!AI113*PARAMETERS!$B$9*AI$3) ->  | AJ28: =IF(AJ$2="","",VOC_CALC!AJ113*PARAMETERS!$B$9*AJ$3) ->  | AK28: =IF(AK$2="","",VOC_CALC!AK113*PARAMETERS!$B$9*AK$3) ->  | AL28: =IF(AL$2="","",VOC_CALC!AL113*PARAMETERS!$B$9*AL$3) ->  | AM28: =IF(AM$2="","",VOC_CALC!AM113*PARAMETERS!$B$9*AM$3) ->  | AN28: =IF(AN$2="","",VOC_CALC!AN113*PARAMETERS!$B$9*AN$3) ->  | AO28: =IF(AO$2="","",VOC_CALC!AO113*PARAMETERS!$B$9*AO$3) ->  | AP28: =IF(AP$2="","",VOC_CALC!AP113*PARAMETERS!$B$9*AP$3) ->  | AQ28: =IF(AQ$2="","",VOC_CALC!AQ113*PARAMETERS!$B$9*AQ$3) ->  | AR28: =IF(AR$2="","",VOC_CALC!AR113*PARAMETERS!$B$9*AR$3) ->  | AS28: =IF(AS$2="","",VOC_CALC!AS113*PARAMETERS!$B$9*AS$3) ->  | AT28: =IF(AT$2="","",VOC_CALC!AT113*PARAMETERS!$B$9*AT$3) ->  | AU28: =IF(AU$2="","",VOC_CALC!AU113*PARAMETERS!$B$9*AU$3) ->  | AV28: =IF(AV$2="","",VOC_CALC!AV113*PARAMETERS!$B$9*AV$3) ->  | AW28: =IF(AW$2="","",VOC_CALC!AW113*PARAMETERS!$B$9*AW$3) ->  | AX28: =IF(AX$2="","",VOC_CALC!AX113*PARAMETERS!$B$9*AX$3) ->  | AY28: =IF(AY$2="","",VOC_CALC!AY113*PARAMETERS!$B$9*AY$3) ->  | AZ28: =IF(AZ$2="","",VOC_CALC!AZ113*PARAMETERS!$B$9*AZ$3) ->  | BA28: =IF(BA$2="","",VOC_CALC!BA113*PARAMETERS!$B$9*BA$3) ->  | BB28: =IF(BB$2="","",VOC_CALC!BB113*PARAMETERS!$B$9*BB$3) ->  | BC28: =IF(BC$2="","",VOC_CALC!BC113*PARAMETERS!$B$9*BC$3) ->  | BD28: =IF(BD$2="","",VOC_CALC!BD113*PARAMETERS!$B$9*BD$3) ->  | BE28: =IF(BE$2="","",VOC_CALC!BE113*PARAMETERS!$B$9*BE$3) ->  | BF28: =IF(BF$2="","",VOC_CALC!BF113*PARAMETERS!$B$9*BF$3) ->  | BG28: =IF(BG$2="","",VOC_CALC!BG113*PARAMETERS!$B$9*BG$3) ->  | BH28: =IF(BH$2="","",VOC_CALC!BH113*PARAMETERS!$B$9*BH$3) ->  | BI28: =IF(BI$2="","",VOC_CALC!BI113*PARAMETERS!$B$9*BI$3) ->  | BJ28: =IF(BJ$2="","",VOC_CALC!BJ113*PARAMETERS!$B$9*BJ$3) ->  | BK28: =IF(BK$2="","",VOC_CALC!BK113*PARAMETERS!$B$9*BK$3) -> 
A29: ECONOMIC VALUE OF INDUCED TRIPS | B29: 5571146.486 | D29: =IF(D$2="","",SUM(D30:D31)) -> 0 | E29: =IF(E$2="","",SUM(E30:E31)) -> 0 | F29: 0 | G29: 0 | H29: 0 | I29: 10722.93941 | J29: 45514.5601 | K29: 111421.2515 | L29: 213717.6639 | M29: 237324.4778 | N29: 263530.7044 | O29: 293686.1503 | P29: 314773.2909 | Q29: 339928.9375 | R29: 358160.0005 | S29: 370844.3437 | T29: 383842.8027 | U29: 388166.4179 | V29: 386143.6475 | W29: 378807.8551 | X29: 360359.4468 | Y29: 332436.0532 | Z29: 294045.1124 | AA29: 241605.2695 | AB29: 246115.5611
A30: AUTO | C30: 1 | D30: =IF(D$2="","",IF('INDUCED DEMAND_CALC'!D95>=0,1,$C$30)*'INDUCED DEMAND_CALC'!D95*PARAMETERS!$B$9*D$3) -> 0 | E30: =IF(E$2="","",IF('INDUCED DEMAND_CALC'!E95>=0,1,$C$30)*'INDUCED DEMAND_CALC'!E95*PARAMETERS!$B$9*E$3) -> 0 | F30: =IF(F$2="","",IF('INDUCED DEMAND_CALC'!F95>=0,1,$C$30)*'INDUCED DEMAND_CALC'!F95*PARAMETERS!$B$9*F$3) -> 0 | G30: =IF(G$2="","",IF('INDUCED DEMAND_CALC'!G95>=0,1,$C$30)*'INDUCED DEMAND_CALC'!G95*PARAMETERS!$B$9*G$3) -> 0 | H30: =IF(H$2="","",IF('INDUCED DEMAND_CALC'!H95>=0,1,$C$30)*'INDUCED DEMAND_CALC'!H95*PARAMETERS!$B$9*H$3) -> 0 | I30: =IF(I$2="","",IF('INDUCED DEMAND_CALC'!I95>=0,1,$C$30)*'INDUCED DEMAND_CALC'!I95*PARAMETERS!$B$9*I$3) -> 9681.457935 | J30: =IF(J$2="","",IF('INDUCED DEMAND_CALC'!J95>=0,1,$C$30)*'INDUCED DEMAND_CALC'!J95*PARAMETERS!$B$9*J$3) -> 40997.32844 | K30: =IF(K$2="","",IF('INDUCED DEMAND_CALC'!K95>=0,1,$C$30)*'INDUCED DEMAND_CALC'!K95*PARAMETERS!$B$9*K$3) -> 99793.39673 | L30: =IF(L$2="","",IF('INDUCED DEMAND_CALC'!L95>=0,1,$C$30)*'INDUCED DEMAND_CALC'!L95*PARAMETERS!$B$9*L$3) -> 190827.0555 | M30: =IF(M$2="","",IF('INDUCED DEMAND_CALC'!M95>=0,1,$C$30)*'INDUCED DEMAND_CALC'!M95*PARAMETERS!$B$9*M$3) -> 211710.7863 | N30: =IF(N$2="","",IF('INDUCED DEMAND_CALC'!N95>=0,1,$C$30)*'INDUCED DEMAND_CALC'!N95*PARAMETERS!$B$9*N$3) -> 234327.5812 | O30: =IF(O$2="","",IF('INDUCED DEMAND_CALC'!O95>=0,1,$C$30)*'INDUCED DEMAND_CALC'!O95*PARAMETERS!$B$9*O$3) -> 260003.9675 | P30: =IF(P$2="","",IF('INDUCED DEMAND_CALC'!P95>=0,1,$C$30)*'INDUCED DEMAND_CALC'!P95*PARAMETERS!$B$9*P$3) -> 278371.264 | Q30: =IF(Q$2="","",IF('INDUCED DEMAND_CALC'!Q95>=0,1,$C$30)*'INDUCED DEMAND_CALC'!Q95*PARAMETERS!$B$9*Q$3) -> 299544.0698 | R30: =IF(R$2="","",IF('INDUCED DEMAND_CALC'!R95>=0,1,$C$30)*'INDUCED DEMAND_CALC'!R95*PARAMETERS!$B$9*R$3) -> 315038.3573 | S30: =IF(S$2="","",IF('INDUCED DEMAND_CALC'!S95>=0,1,$C$30)*'INDUCED DEMAND_CALC'!S95*PARAMETERS!$B$9*S$3) -> 325897.0588 | T30: =IF(T$2="","",IF('INDUCED DEMAND_CALC'!T95>=0,1,$C$30)*'INDUCED DEMAND_CALC'!T95*PARAMETERS!$B$9*T$3) -> 336510.1752 | U30: =IF(U$2="","",IF('INDUCED DEMAND_CALC'!U95>=0,1,$C$30)*'INDUCED DEMAND_CALC'!U95*PARAMETERS!$B$9*U$3) -> 339851.0672 | V30: =IF(V$2="","",IF('INDUCED DEMAND_CALC'!V95>=0,1,$C$30)*'INDUCED DEMAND_CALC'!V95*PARAMETERS!$B$9*V$3) -> 337666.3383 | W30: =IF(W$2="","",IF('INDUCED DEMAND_CALC'!W95>=0,1,$C$30)*'INDUCED DEMAND_CALC'!W95*PARAMETERS!$B$9*W$3) -> 330684.6943 | X30: =IF(X$2="","",IF('INDUCED DEMAND_CALC'!X95>=0,1,$C$30)*'INDUCED DEMAND_CALC'!X95*PARAMETERS!$B$9*X$3) -> 314234.0145 | Y30: =IF(Y$2="","",IF('INDUCED DEMAND_CALC'!Y95>=0,1,$C$30)*'INDUCED DEMAND_CALC'!Y95*PARAMETERS!$B$9*Y$3) -> 289498.0613 | Z30: =IF(Z$2="","",IF('INDUCED DEMAND_CALC'!Z95>=0,1,$C$30)*'INDUCED DEMAND_CALC'!Z95*PARAMETERS!$B$9*Z$3) -> 255710.0854 | AA30: =IF(AA$2="","",IF('INDUCED DEMAND_CALC'!AA95>=0,1,$C$30)*'INDUCED DEMAND_CALC'!AA95*PARAMETERS!$B$9*AA$3) -> 209928.2098 | AB30: =IF(AB$2="","",IF('INDUCED DEMAND_CALC'!AB95>=0,1,$C$30)*'INDUCED DEMAND_CALC'!AB95*PARAMETERS!$B$9*AB$3) -> 213764.7161 | AC30: =IF(AC$2="","",'INDUCED DEMAND_CALC'!AC95*PARAMETERS!$B$9*AC$3) ->  | AD30: =IF(AD$2="","",'INDUCED DEMAND_CALC'!AD95*PARAMETERS!$B$9*AD$3) ->  | AE30: =IF(AE$2="","",'INDUCED DEMAND_CALC'!AE95*PARAMETERS!$B$9*AE$3) ->  | AF30: =IF(AF$2="","",'INDUCED DEMAND_CALC'!AF95*PARAMETERS!$B$9*AF$3) ->  | AG30: =IF(AG$2="","",'INDUCED DEMAND_CALC'!AG95*PARAMETERS!$B$9*AG$3) ->  | AH30: =IF(AH$2="","",'INDUCED DEMAND_CALC'!AH95*PARAMETERS!$B$9*AH$3) ->  | AI30: =IF(AI$2="","",'INDUCED DEMAND_CALC'!AI95*PARAMETERS!$B$9*AI$3) ->  | AJ30: =IF(AJ$2="","",'INDUCED DEMAND_CALC'!AJ95*PARAMETERS!$B$9*AJ$3) ->  | AK30: =IF(AK$2="","",'INDUCED DEMAND_CALC'!AK95*PARAMETERS!$B$9*AK$3) ->  | AL30: =IF(AL$2="","",'INDUCED DEMAND_CALC'!AL95*PARAMETERS!$B$9*AL$3) ->  | AM30: =IF(AM$2="","",'INDUCED DEMAND_CALC'!AM95*PARAMETERS!$B$9*AM$3) ->  | AN30: =IF(AN$2="","",'INDUCED DEMAND_CALC'!AN95*PARAMETERS!$B$9*AN$3) ->  | AO30: =IF(AO$2="","",'INDUCED DEMAND_CALC'!AO95*PARAMETERS!$B$9*AO$3) ->  | AP30: =IF(AP$2="","",'INDUCED DEMAND_CALC'!AP95*PARAMETERS!$B$9*AP$3) ->  | AQ30: =IF(AQ$2="","",'INDUCED DEMAND_CALC'!AQ95*PARAMETERS!$B$9*AQ$3) ->  | AR30: =IF(AR$2="","",'INDUCED DEMAND_CALC'!AR95*PARAMETERS!$B$9*AR$3) ->  | AS30: =IF(AS$2="","",'INDUCED DEMAND_CALC'!AS95*PARAMETERS!$B$9*AS$3) ->  | AT30: =IF(AT$2="","",'INDUCED DEMAND_CALC'!AT95*PARAMETERS!$B$9*AT$3) ->  | AU30: =IF(AU$2="","",'INDUCED DEMAND_CALC'!AU95*PARAMETERS!$B$9*AU$3) ->  | AV30: =IF(AV$2="","",'INDUCED DEMAND_CALC'!AV95*PARAMETERS!$B$9*AV$3) ->  | AW30: =IF(AW$2="","",'INDUCED DEMAND_CALC'!AW95*PARAMETERS!$B$9*AW$3) ->  | AX30: =IF(AX$2="","",'INDUCED DEMAND_CALC'!AX95*PARAMETERS!$B$9*AX$3) ->  | AY30: =IF(AY$2="","",'INDUCED DEMAND_CALC'!AY95*PARAMETERS!$B$9*AY$3) ->  | AZ30: =IF(AZ$2="","",'INDUCED DEMAND_CALC'!AZ95*PARAMETERS!$B$9*AZ$3) ->  | BA30: =IF(BA$2="","",'INDUCED DEMAND_CALC'!BA95*PARAMETERS!$B$9*BA$3) ->  | BB30: =IF(BB$2="","",'INDUCED DEMAND_CALC'!BB95*PARAMETERS!$B$9*BB$3) ->  | BC30: =IF(BC$2="","",'INDUCED DEMAND_CALC'!BC95*PARAMETERS!$B$9*BC$3) ->  | BD30: =IF(BD$2="","",'INDUCED DEMAND_CALC'!BD95*PARAMETERS!$B$9*BD$3) ->  | BE30: =IF(BE$2="","",'INDUCED DEMAND_CALC'!BE95*PARAMETERS!$B$9*BE$3) ->  | BF30: =IF(BF$2="","",'INDUCED DEMAND_CALC'!BF95*PARAMETERS!$B$9*BF$3) ->  | BG30: =IF(BG$2="","",'INDUCED DEMAND_CALC'!BG95*PARAMETERS!$B$9*BG$3) ->  | BH30: =IF(BH$2="","",'INDUCED DEMAND_CALC'!BH95*PARAMETERS!$B$9*BH$3) ->  | BI30: =IF(BI$2="","",'INDUCED DEMAND_CALC'!BI95*PARAMETERS!$B$9*BI$3) ->  | BJ30: =IF(BJ$2="","",'INDUCED DEMAND_CALC'!BJ95*PARAMETERS!$B$9*BJ$3) ->  | BK30: =IF(BK$2="","",'INDUCED DEMAND_CALC'!BK95*PARAMETERS!$B$9*BK$3) -> 
A31: TRUCK | C31: 1 | D31: =IF(D$2="","",IF('INDUCED DEMAND_CALC'!D96>=0,1,$C$31)*'INDUCED DEMAND_CALC'!D96*PARAMETERS!$B$9*D$3) -> 0 | E31: =IF(E$2="","",IF('INDUCED DEMAND_CALC'!E96>=0,1,$C$31)*'INDUCED DEMAND_CALC'!E96*PARAMETERS!$B$9*E$3) -> 0 | F31: =IF(F$2="","",IF('INDUCED DEMAND_CALC'!F96>=0,1,$C$31)*'INDUCED DEMAND_CALC'!F96*PARAMETERS!$B$9*F$3) -> 0 | G31: =IF(G$2="","",IF('INDUCED DEMAND_CALC'!G96>=0,1,$C$31)*'INDUCED DEMAND_CALC'!G96*PARAMETERS!$B$9*G$3) -> 0 | H31: =IF(H$2="","",IF('INDUCED DEMAND_CALC'!H96>=0,1,$C$31)*'INDUCED DEMAND_CALC'!H96*PARAMETERS!$B$9*H$3) -> 0 | I31: =IF(I$2="","",IF('INDUCED DEMAND_CALC'!I96>=0,1,$C$31)*'INDUCED DEMAND_CALC'!I96*PARAMETERS!$B$9*I$3) -> 1041.481476 | J31: =IF(J$2="","",IF('INDUCED DEMAND_CALC'!J96>=0,1,$C$31)*'INDUCED DEMAND_CALC'!J96*PARAMETERS!$B$9*J$3) -> 4517.231659 | K31: =IF(K$2="","",IF('INDUCED DEMAND_CALC'!K96>=0,1,$C$31)*'INDUCED DEMAND_CALC'!K96*PARAMETERS!$B$9*K$3) -> 11627.85481 | L31: =IF(L$2="","",IF('INDUCED DEMAND_CALC'!L96>=0,1,$C$31)*'INDUCED DEMAND_CALC'!L96*PARAMETERS!$B$9*L$3) -> 22890.60843 | M31: =IF(M$2="","",IF('INDUCED DEMAND_CALC'!M96>=0,1,$C$31)*'INDUCED DEMAND_CALC'!M96*PARAMETERS!$B$9*M$3) -> 25613.6915 | N31: =IF(N$2="","",IF('INDUCED DEMAND_CALC'!N96>=0,1,$C$31)*'INDUCED DEMAND_CALC'!N96*PARAMETERS!$B$9*N$3) -> 29203.12325 | O31: =IF(O$2="","",IF('INDUCED DEMAND_CALC'!O96>=0,1,$C$31)*'INDUCED DEMAND_CALC'!O96*PARAMETERS!$B$9*O$3) -> 33682.18279 | P31: =IF(P$2="","",IF('INDUCED DEMAND_CALC'!P96>=0,1,$C$31)*'INDUCED DEMAND_CALC'!P96*PARAMETERS!$B$9*P$3) -> 36402.02693 | Q31: =IF(Q$2="","",IF('INDUCED DEMAND_CALC'!Q96>=0,1,$C$31)*'INDUCED DEMAND_CALC'!Q96*PARAMETERS!$B$9*Q$3) -> 40384.86776 | R31: =IF(R$2="","",IF('INDUCED DEMAND_CALC'!R96>=0,1,$C$31)*'INDUCED DEMAND_CALC'!R96*PARAMETERS!$B$9*R$3) -> 43121.64319 | S31: =IF(S$2="","",IF('INDUCED DEMAND_CALC'!S96>=0,1,$C$31)*'INDUCED DEMAND_CALC'!S96*PARAMETERS!$B$9*S$3) -> 44947.28488 | T31: =IF(T$2="","",IF('INDUCED DEMAND_CALC'!T96>=0,1,$C$31)*'INDUCED DEMAND_CALC'!T96*PARAMETERS!$B$9*T$3) -> 47332.62752 | U31: =IF(U$2="","",IF('INDUCED DEMAND_CALC'!U96>=0,1,$C$31)*'INDUCED DEMAND_CALC'!U96*PARAMETERS!$B$9*U$3) -> 48315.35063 | V31: =IF(V$2="","",IF('INDUCED DEMAND_CALC'!V96>=0,1,$C$31)*'INDUCED DEMAND_CALC'!V96*PARAMETERS!$B$9*V$3) -> 48477.30917 | W31: =IF(W$2="","",IF('INDUCED DEMAND_CALC'!W96>=0,1,$C$31)*'INDUCED DEMAND_CALC'!W96*PARAMETERS!$B$9*W$3) -> 48123.16079 | X31: =IF(X$2="","",IF('INDUCED DEMAND_CALC'!X96>=0,1,$C$31)*'INDUCED DEMAND_CALC'!X96*PARAMETERS!$B$9*X$3) -> 46125.43236 | Y31: =IF(Y$2="","",IF('INDUCED DEMAND_CALC'!Y96>=0,1,$C$31)*'INDUCED DEMAND_CALC'!Y96*PARAMETERS!$B$9*Y$3) -> 42937.99194 | Z31: =IF(Z$2="","",IF('INDUCED DEMAND_CALC'!Z96>=0,1,$C$31)*'INDUCED DEMAND_CALC'!Z96*PARAMETERS!$B$9*Z$3) -> 38335.02702 | AA31: =IF(AA$2="","",IF('INDUCED DEMAND_CALC'!AA96>=0,1,$C$31)*'INDUCED DEMAND_CALC'!AA96*PARAMETERS!$B$9*AA$3) -> 31677.05973 | AB31: =IF(AB$2="","",IF('INDUCED DEMAND_CALC'!AB96>=0,1,$C$31)*'INDUCED DEMAND_CALC'!AB96*PARAMETERS!$B$9*AB$3) -> 32350.84502 | AC31: =IF(AC$2="","",'INDUCED DEMAND_CALC'!AC96*PARAMETERS!$B$9*AC$3) ->  | AD31: =IF(AD$2="","",'INDUCED DEMAND_CALC'!AD96*PARAMETERS!$B$9*AD$3) ->  | AE31: =IF(AE$2="","",'INDUCED DEMAND_CALC'!AE96*PARAMETERS!$B$9*AE$3) ->  | AF31: =IF(AF$2="","",'INDUCED DEMAND_CALC'!AF96*PARAMETERS!$B$9*AF$3) ->  | AG31: =IF(AG$2="","",'INDUCED DEMAND_CALC'!AG96*PARAMETERS!$B$9*AG$3) ->  | AH31: =IF(AH$2="","",'INDUCED DEMAND_CALC'!AH96*PARAMETERS!$B$9*AH$3) ->  | AI31: =IF(AI$2="","",'INDUCED DEMAND_CALC'!AI96*PARAMETERS!$B$9*AI$3) ->  | AJ31: =IF(AJ$2="","",'INDUCED DEMAND_CALC'!AJ96*PARAMETERS!$B$9*AJ$3) ->  | AK31: =IF(AK$2="","",'INDUCED DEMAND_CALC'!AK96*PARAMETERS!$B$9*AK$3) ->  | AL31: =IF(AL$2="","",'INDUCED DEMAND_CALC'!AL96*PARAMETERS!$B$9*AL$3) ->  | AM31: =IF(AM$2="","",'INDUCED DEMAND_CALC'!AM96*PARAMETERS!$B$9*AM$3) ->  | AN31: =IF(AN$2="","",'INDUCED DEMAND_CALC'!AN96*PARAMETERS!$B$9*AN$3) ->  | AO31: =IF(AO$2="","",'INDUCED DEMAND_CALC'!AO96*PARAMETERS!$B$9*AO$3) ->  | AP31: =IF(AP$2="","",'INDUCED DEMAND_CALC'!AP96*PARAMETERS!$B$9*AP$3) ->  | AQ31: =IF(AQ$2="","",'INDUCED DEMAND_CALC'!AQ96*PARAMETERS!$B$9*AQ$3) ->  | AR31: =IF(AR$2="","",'INDUCED DEMAND_CALC'!AR96*PARAMETERS!$B$9*AR$3) ->  | AS31: =IF(AS$2="","",'INDUCED DEMAND_CALC'!AS96*PARAMETERS!$B$9*AS$3) ->  | AT31: =IF(AT$2="","",'INDUCED DEMAND_CALC'!AT96*PARAMETERS!$B$9*AT$3) ->  | AU31: =IF(AU$2="","",'INDUCED DEMAND_CALC'!AU96*PARAMETERS!$B$9*AU$3) ->  | AV31: =IF(AV$2="","",'INDUCED DEMAND_CALC'!AV96*PARAMETERS!$B$9*AV$3) ->  | AW31: =IF(AW$2="","",'INDUCED DEMAND_CALC'!AW96*PARAMETERS!$B$9*AW$3) ->  | AX31: =IF(AX$2="","",'INDUCED DEMAND_CALC'!AX96*PARAMETERS!$B$9*AX$3) ->  | AY31: =IF(AY$2="","",'INDUCED DEMAND_CALC'!AY96*PARAMETERS!$B$9*AY$3) ->  | AZ31: =IF(AZ$2="","",'INDUCED DEMAND_CALC'!AZ96*PARAMETERS!$B$9*AZ$3) ->  | BA31: =IF(BA$2="","",'INDUCED DEMAND_CALC'!BA96*PARAMETERS!$B$9*BA$3) ->  | BB31: =IF(BB$2="","",'INDUCED DEMAND_CALC'!BB96*PARAMETERS!$B$9*BB$3) ->  | BC31: =IF(BC$2="","",'INDUCED DEMAND_CALC'!BC96*PARAMETERS!$B$9*BC$3) ->  | BD31: =IF(BD$2="","",'INDUCED DEMAND_CALC'!BD96*PARAMETERS!$B$9*BD$3) ->  | BE31: =IF(BE$2="","",'INDUCED DEMAND_CALC'!BE96*PARAMETERS!$B$9*BE$3) ->  | BF31: =IF(BF$2="","",'INDUCED DEMAND_CALC'!BF96*PARAMETERS!$B$9*BF$3) ->  | BG31: =IF(BG$2="","",'INDUCED DEMAND_CALC'!BG96*PARAMETERS!$B$9*BG$3) ->  | BH31: =IF(BH$2="","",'INDUCED DEMAND_CALC'!BH96*PARAMETERS!$B$9*BH$3) ->  | BI31: =IF(BI$2="","",'INDUCED DEMAND_CALC'!BI96*PARAMETERS!$B$9*BI$3) ->  | BJ31: =IF(BJ$2="","",'INDUCED DEMAND_CALC'!BJ96*PARAMETERS!$B$9*BJ$3) ->  | BK31: =IF(BK$2="","",'INDUCED DEMAND_CALC'!BK96*PARAMETERS!$B$9*BK$3) -> 
A32: EMISSION COST SAVINGS | B32: 4572846.422 | D32: =IF(D$2="","",SUM(D33:D34)) -> 0 | E32: =IF(E$2="","",SUM(E33:E34)) -> 0 | F32: 0 | G32: 0 | H32: 0 | I32: -130589.6263 | J32: 521752.5116 | K32: 375675.0066 | L32: 229210.3383 | M32: 241170.4457 | N32: 261175.4027 | O32: 281960.2689 | P32: 302362.1149 | Q32: 330839.988 | R32: 359585.7012 | S32: 694562.5487 | T32: -21379.8434 | U32: 10037.92765 | V32: 43336.49664 | W32: 79865.07012 | X32: 118984.3168 | Y32: 160096.0598 | Z32: 205321.4992 | AA32: 252732.1038 | AB32: 256148.0909
A33: AUTO | D33: =IF(D$2="","",EMISSIONS_CALC!D349*PARAMETERS!$B$9*D$3) -> 0 | E33: =IF(E$2="","",EMISSIONS_CALC!E349*PARAMETERS!$B$9*E$3) -> 0 | F33: =IF(F$2="","",EMISSIONS_CALC!F349*PARAMETERS!$B$9*F$3) -> 0 | G33: =IF(G$2="","",EMISSIONS_CALC!G349*PARAMETERS!$B$9*G$3) -> 0 | H33: =IF(H$2="","",EMISSIONS_CALC!H349*PARAMETERS!$B$9*H$3) -> 0 | I33: =IF(I$2="","",EMISSIONS_CALC!I349*PARAMETERS!$B$9*I$3) -> -59994.37371 | J33: =IF(J$2="","",EMISSIONS_CALC!J349*PARAMETERS!$B$9*J$3) -> 97178.22505 | K33: =IF(K$2="","",EMISSIONS_CALC!K349*PARAMETERS!$B$9*K$3) -> 38365.27561 | L33: =IF(L$2="","",EMISSIONS_CALC!L349*PARAMETERS!$B$9*L$3) -> -22354.02007 | M33: =IF(M$2="","",EMISSIONS_CALC!M349*PARAMETERS!$B$9*M$3) -> -6881.749128 | N33: =IF(N$2="","",EMISSIONS_CALC!N349*PARAMETERS!$B$9*N$3) -> 8230.536974 | O33: =IF(O$2="","",EMISSIONS_CALC!O349*PARAMETERS!$B$9*O$3) -> 24208.0281 | P33: =IF(P$2="","",EMISSIONS_CALC!P349*PARAMETERS!$B$9*P$3) -> 40740.9547 | Q33: =IF(Q$2="","",EMISSIONS_CALC!Q349*PARAMETERS!$B$9*Q$3) -> 58350.67281 | R33: =IF(R$2="","",EMISSIONS_CALC!R349*PARAMETERS!$B$9*R$3) -> 76638.35317 | S33: =IF(S$2="","",EMISSIONS_CALC!S349*PARAMETERS!$B$9*S$3) -> 225744.3535 | T33: =IF(T$2="","",EMISSIONS_CALC!T349*PARAMETERS!$B$9*T$3) -> -38899.44717 | U33: =IF(U$2="","",EMISSIONS_CALC!U349*PARAMETERS!$B$9*U$3) -> -21135.84389 | V33: =IF(V$2="","",EMISSIONS_CALC!V349*PARAMETERS!$B$9*V$3) -> -2059.25046 | W33: =IF(W$2="","",EMISSIONS_CALC!W349*PARAMETERS!$B$9*W$3) -> 18208.83811 | X33: =IF(X$2="","",EMISSIONS_CALC!X349*PARAMETERS!$B$9*X$3) -> 40090.03569 | Y33: =IF(Y$2="","",EMISSIONS_CALC!Y349*PARAMETERS!$B$9*Y$3) -> 63077.53431 | Z33: =IF(Z$2="","",EMISSIONS_CALC!Z349*PARAMETERS!$B$9*Z$3) -> 88038.71238 | AA33: =IF(AA$2="","",EMISSIONS_CALC!AA349*PARAMETERS!$B$9*AA$3) -> 114153.4878 | AB33: =IF(AB$2="","",EMISSIONS_CALC!AB349*PARAMETERS!$B$9*AB$3) -> 117318.1021 | AC33: =IF(AC$2="","",EMISSIONS_CALC!AC349*PARAMETERS!$B$9*AC$3) ->  | AD33: =IF(AD$2="","",EMISSIONS_CALC!AD349*PARAMETERS!$B$9*AD$3) ->  | AE33: =IF(AE$2="","",EMISSIONS_CALC!AE349*PARAMETERS!$B$9*AE$3) ->  | AF33: =IF(AF$2="","",EMISSIONS_CALC!AF349*PARAMETERS!$B$9*AF$3) ->  | AG33: =IF(AG$2="","",EMISSIONS_CALC!AG349*PARAMETERS!$B$9*AG$3) ->  | AH33: =IF(AH$2="","",EMISSIONS_CALC!AH349*PARAMETERS!$B$9*AH$3) ->  | AI33: =IF(AI$2="","",EMISSIONS_CALC!AI349*PARAMETERS!$B$9*AI$3) ->  | AJ33: =IF(AJ$2="","",EMISSIONS_CALC!AJ349*PARAMETERS!$B$9*AJ$3) ->  | AK33: =IF(AK$2="","",EMISSIONS_CALC!AK349*PARAMETERS!$B$9*AK$3) ->  | AL33: =IF(AL$2="","",EMISSIONS_CALC!AL349*PARAMETERS!$B$9*AL$3) ->  | AM33: =IF(AM$2="","",EMISSIONS_CALC!AM349*PARAMETERS!$B$9*AM$3) ->  | AN33: =IF(AN$2="","",EMISSIONS_CALC!AN349*PARAMETERS!$B$9*AN$3) ->  | AO33: =IF(AO$2="","",EMISSIONS_CALC!AO349*PARAMETERS!$B$9*AO$3) ->  | AP33: =IF(AP$2="","",EMISSIONS_CALC!AP349*PARAMETERS!$B$9*AP$3) ->  | AQ33: =IF(AQ$2="","",EMISSIONS_CALC!AQ349*PARAMETERS!$B$9*AQ$3) ->  | AR33: =IF(AR$2="","",EMISSIONS_CALC!AR349*PARAMETERS!$B$9*AR$3) ->  | AS33: =IF(AS$2="","",EMISSIONS_CALC!AS349*PARAMETERS!$B$9*AS$3) ->  | AT33: =IF(AT$2="","",EMISSIONS_CALC!AT349*PARAMETERS!$B$9*AT$3) ->  | AU33: =IF(AU$2="","",EMISSIONS_CALC!AU349*PARAMETERS!$B$9*AU$3) ->  | AV33: =IF(AV$2="","",EMISSIONS_CALC!AV349*PARAMETERS!$B$9*AV$3) ->  | AW33: =IF(AW$2="","",EMISSIONS_CALC!AW349*PARAMETERS!$B$9*AW$3) ->  | AX33: =IF(AX$2="","",EMISSIONS_CALC!AX349*PARAMETERS!$B$9*AX$3) ->  | AY33: =IF(AY$2="","",EMISSIONS_CALC!AY349*PARAMETERS!$B$9*AY$3) ->  | AZ33: =IF(AZ$2="","",EMISSIONS_CALC!AZ349*PARAMETERS!$B$9*AZ$3) ->  | BA33: =IF(BA$2="","",EMISSIONS_CALC!BA349*PARAMETERS!$B$9*BA$3) ->  | BB33: =IF(BB$2="","",EMISSIONS_CALC!BB349*PARAMETERS!$B$9*BB$3) ->  | BC33: =IF(BC$2="","",EMISSIONS_CALC!BC349*PARAMETERS!$B$9*BC$3) ->  | BD33: =IF(BD$2="","",EMISSIONS_CALC!BD349*PARAMETERS!$B$9*BD$3) ->  | BE33: =IF(BE$2="","",EMISSIONS_CALC!BE349*PARAMETERS!$B$9*BE$3) ->  | BF33: =IF(BF$2="","",EMISSIONS_CALC!BF349*PARAMETERS!$B$9*BF$3) ->  | BG33: =IF(BG$2="","",EMISSIONS_CALC!BG349*PARAMETERS!$B$9*BG$3) ->  | BH33: =IF(BH$2="","",EMISSIONS_CALC!BH349*PARAMETERS!$B$9*BH$3) ->  | BI33: =IF(BI$2="","",EMISSIONS_CALC!BI349*PARAMETERS!$B$9*BI$3) ->  | BJ33: =IF(BJ$2="","",EMISSIONS_CALC!BJ349*PARAMETERS!$B$9*BJ$3) ->  | BK33: =IF(BK$2="","",EMISSIONS_CALC!BK349*PARAMETERS!$B$9*BK$3) -> 
A34: TRUCK | D34: =IF(D$2="","",EMISSIONS_CALC!D352*PARAMETERS!$B$9*D$3) -> 0 | E34: =IF(E$2="","",EMISSIONS_CALC!E352*PARAMETERS!$B$9*E$3) -> 0 | F34: =IF(F$2="","",EMISSIONS_CALC!F352*PARAMETERS!$B$9*F$3) -> 0 | G34: =IF(G$2="","",EMISSIONS_CALC!G352*PARAMETERS!$B$9*G$3) -> 0 | H34: =IF(H$2="","",EMISSIONS_CALC!H352*PARAMETERS!$B$9*H$3) -> 0 | I34: =IF(I$2="","",EMISSIONS_CALC!I352*PARAMETERS!$B$9*I$3) -> -70595.25258 | J34: =IF(J$2="","",EMISSIONS_CALC!J352*PARAMETERS!$B$9*J$3) -> 424574.2866 | K34: =IF(K$2="","",EMISSIONS_CALC!K352*PARAMETERS!$B$9*K$3) -> 337309.731 | L34: =IF(L$2="","",EMISSIONS_CALC!L352*PARAMETERS!$B$9*L$3) -> 251564.3584 | M34: =IF(M$2="","",EMISSIONS_CALC!M352*PARAMETERS!$B$9*M$3) -> 248052.1948 | N34: =IF(N$2="","",EMISSIONS_CALC!N352*PARAMETERS!$B$9*N$3) -> 252944.8657 | O34: =IF(O$2="","",EMISSIONS_CALC!O352*PARAMETERS!$B$9*O$3) -> 257752.2408 | P34: =IF(P$2="","",EMISSIONS_CALC!P352*PARAMETERS!$B$9*P$3) -> 261621.1602 | Q34: =IF(Q$2="","",EMISSIONS_CALC!Q352*PARAMETERS!$B$9*Q$3) -> 272489.3152 | R34: =IF(R$2="","",EMISSIONS_CALC!R352*PARAMETERS!$B$9*R$3) -> 282947.3481 | S34: =IF(S$2="","",EMISSIONS_CALC!S352*PARAMETERS!$B$9*S$3) -> 468818.1952 | T34: =IF(T$2="","",EMISSIONS_CALC!T352*PARAMETERS!$B$9*T$3) -> 17519.60377 | U34: =IF(U$2="","",EMISSIONS_CALC!U352*PARAMETERS!$B$9*U$3) -> 31173.77154 | V34: =IF(V$2="","",EMISSIONS_CALC!V352*PARAMETERS!$B$9*V$3) -> 45395.7471 | W34: =IF(W$2="","",EMISSIONS_CALC!W352*PARAMETERS!$B$9*W$3) -> 61656.232 | X34: =IF(X$2="","",EMISSIONS_CALC!X352*PARAMETERS!$B$9*X$3) -> 78894.28108 | Y34: =IF(Y$2="","",EMISSIONS_CALC!Y352*PARAMETERS!$B$9*Y$3) -> 97018.52546 | Z34: =IF(Z$2="","",EMISSIONS_CALC!Z352*PARAMETERS!$B$9*Z$3) -> 117282.7868 | AA34: =IF(AA$2="","",EMISSIONS_CALC!AA352*PARAMETERS!$B$9*AA$3) -> 138578.616 | AB34: =IF(AB$2="","",EMISSIONS_CALC!AB352*PARAMETERS!$B$9*AB$3) -> 138829.9889 | AC34: =IF(AC$2="","",EMISSIONS_CALC!AC352*PARAMETERS!$B$9*AC$3) ->  | AD34: =IF(AD$2="","",EMISSIONS_CALC!AD352*PARAMETERS!$B$9*AD$3) ->  | AE34: =IF(AE$2="","",EMISSIONS_CALC!AE352*PARAMETERS!$B$9*AE$3) ->  | AF34: =IF(AF$2="","",EMISSIONS_CALC!AF352*PARAMETERS!$B$9*AF$3) ->  | AG34: =IF(AG$2="","",EMISSIONS_CALC!AG352*PARAMETERS!$B$9*AG$3) ->  | AH34: =IF(AH$2="","",EMISSIONS_CALC!AH352*PARAMETERS!$B$9*AH$3) ->  | AI34: =IF(AI$2="","",EMISSIONS_CALC!AI352*PARAMETERS!$B$9*AI$3) ->  | AJ34: =IF(AJ$2="","",EMISSIONS_CALC!AJ352*PARAMETERS!$B$9*AJ$3) ->  | AK34: =IF(AK$2="","",EMISSIONS_CALC!AK352*PARAMETERS!$B$9*AK$3) ->  | AL34: =IF(AL$2="","",EMISSIONS_CALC!AL352*PARAMETERS!$B$9*AL$3) ->  | AM34: =IF(AM$2="","",EMISSIONS_CALC!AM352*PARAMETERS!$B$9*AM$3) ->  | AN34: =IF(AN$2="","",EMISSIONS_CALC!AN352*PARAMETERS!$B$9*AN$3) ->  | AO34: =IF(AO$2="","",EMISSIONS_CALC!AO352*PARAMETERS!$B$9*AO$3) ->  | AP34: =IF(AP$2="","",EMISSIONS_CALC!AP352*PARAMETERS!$B$9*AP$3) ->  | AQ34: =IF(AQ$2="","",EMISSIONS_CALC!AQ352*PARAMETERS!$B$9*AQ$3) ->  | AR34: =IF(AR$2="","",EMISSIONS_CALC!AR352*PARAMETERS!$B$9*AR$3) ->  | AS34: =IF(AS$2="","",EMISSIONS_CALC!AS352*PARAMETERS!$B$9*AS$3) ->  | AT34: =IF(AT$2="","",EMISSIONS_CALC!AT352*PARAMETERS!$B$9*AT$3) ->  | AU34: =IF(AU$2="","",EMISSIONS_CALC!AU352*PARAMETERS!$B$9*AU$3) ->  | AV34: =IF(AV$2="","",EMISSIONS_CALC!AV352*PARAMETERS!$B$9*AV$3) ->  | AW34: =IF(AW$2="","",EMISSIONS_CALC!AW352*PARAMETERS!$B$9*AW$3) ->  | AX34: =IF(AX$2="","",EMISSIONS_CALC!AX352*PARAMETERS!$B$9*AX$3) ->  | AY34: =IF(AY$2="","",EMISSIONS_CALC!AY352*PARAMETERS!$B$9*AY$3) ->  | AZ34: =IF(AZ$2="","",EMISSIONS_CALC!AZ352*PARAMETERS!$B$9*AZ$3) ->  | BA34: =IF(BA$2="","",EMISSIONS_CALC!BA352*PARAMETERS!$B$9*BA$3) ->  | BB34: =IF(BB$2="","",EMISSIONS_CALC!BB352*PARAMETERS!$B$9*BB$3) ->  | BC34: =IF(BC$2="","",EMISSIONS_CALC!BC352*PARAMETERS!$B$9*BC$3) ->  | BD34: =IF(BD$2="","",EMISSIONS_CALC!BD352*PARAMETERS!$B$9*BD$3) ->  | BE34: =IF(BE$2="","",EMISSIONS_CALC!BE352*PARAMETERS!$B$9*BE$3) ->  | BF34: =IF(BF$2="","",EMISSIONS_CALC!BF352*PARAMETERS!$B$9*BF$3) ->  | BG34: =IF(BG$2="","",EMISSIONS_CALC!BG352*PARAMETERS!$B$9*BG$3) ->  | BH34: =IF(BH$2="","",EMISSIONS_CALC!BH352*PARAMETERS!$B$9*BH$3) ->  | BI34: =IF(BI$2="","",EMISSIONS_CALC!BI352*PARAMETERS!$B$9*BI$3) ->  | BJ34: =IF(BJ$2="","",EMISSIONS_CALC!BJ352*PARAMETERS!$B$9*BJ$3) ->  | BK34: =IF(BK$2="","",EMISSIONS_CALC!BK352*PARAMETERS!$B$9*BK$3) -> 
A35: SAFETY BENEFITS | B35: -87793546.4 | D35: =IF(D$2="","",SAFETY_CALC!D144*PARAMETERS!$B$9*D$3) -> 0 | E35: =IF(E$2="","",SAFETY_CALC!E144*PARAMETERS!$B$9*E$3) -> 0 | F35: =IF(F$2="","",SAFETY_CALC!F144*PARAMETERS!$B$9*F$3) -> 0 | G35: =IF(G$2="","",SAFETY_CALC!G144*PARAMETERS!$B$9*G$3) -> 0 | H35: =IF(H$2="","",SAFETY_CALC!H144*PARAMETERS!$B$9*H$3) -> 0 | I35: =IF(I$2="","",SAFETY_CALC!I144*PARAMETERS!$B$9*I$3) -> -1574305.699 | J35: =IF(J$2="","",SAFETY_CALC!J144*PARAMETERS!$B$9*J$3) -> -3253431.024 | K35: =IF(K$2="","",SAFETY_CALC!K144*PARAMETERS!$B$9*K$3) -> -5042633.948 | L35: =IF(L$2="","",SAFETY_CALC!L144*PARAMETERS!$B$9*L$3) -> -6947407.873 | M35: =IF(M$2="","",SAFETY_CALC!M144*PARAMETERS!$B$9*M$3) -> -6750311.423 | N35: =IF(N$2="","",SAFETY_CALC!N144*PARAMETERS!$B$9*N$3) -> -6535951.542 | O35: =IF(O$2="","",SAFETY_CALC!O144*PARAMETERS!$B$9*O$3) -> -6303491.698 | P35: =IF(P$2="","",SAFETY_CALC!P144*PARAMETERS!$B$9*P$3) -> -6052061.305 | Q35: =IF(Q$2="","",SAFETY_CALC!Q144*PARAMETERS!$B$9*Q$3) -> -5780754.453 | R35: =IF(R$2="","",SAFETY_CALC!R144*PARAMETERS!$B$9*R$3) -> -5488628.586 | S35: =IF(S$2="","",SAFETY_CALC!S144*PARAMETERS!$B$9*S$3) -> -5174703.137 | T35: =IF(T$2="","",SAFETY_CALC!T144*PARAMETERS!$B$9*T$3) -> -4837958.114 | U35: =IF(U$2="","",SAFETY_CALC!U144*PARAMETERS!$B$9*U$3) -> -4477332.638 | V35: =IF(V$2="","",SAFETY_CALC!V144*PARAMETERS!$B$9*V$3) -> -4091723.423 | W35: =IF(W$2="","",SAFETY_CALC!W144*PARAMETERS!$B$9*W$3) -> -3679983.207 | X35: =IF(X$2="","",SAFETY_CALC!X144*PARAMETERS!$B$9*X$3) -> -3240919.132 | Y35: =IF(Y$2="","",SAFETY_CALC!Y144*PARAMETERS!$B$9*Y$3) -> -2773291.055 | Z35: =IF(Z$2="","",SAFETY_CALC!Z144*PARAMETERS!$B$9*Z$3) -> -2275809.808 | AA35: =IF(AA$2="","",SAFETY_CALC!AA144*PARAMETERS!$B$9*AA$3) -> -1747135.398 | AB35: =IF(AB$2="","",SAFETY_CALC!AB144*PARAMETERS!$B$9*AB$3) -> -1765712.934 | AC35: =IF(AC$2="","",SAFETY_CALC!AC144*PARAMETERS!$B$9*AC$3) ->  | AD35: =IF(AD$2="","",SAFETY_CALC!AD144*PARAMETERS!$B$9*AD$3) ->  | AE35: =IF(AE$2="","",SAFETY_CALC!AE144*PARAMETERS!$B$9*AE$3) ->  | AF35: =IF(AF$2="","",SAFETY_CALC!AF144*PARAMETERS!$B$9*AF$3) ->  | AG35: =IF(AG$2="","",SAFETY_CALC!AG144*PARAMETERS!$B$9*AG$3) ->  | AH35: =IF(AH$2="","",SAFETY_CALC!AH144*PARAMETERS!$B$9*AH$3) ->  | AI35: =IF(AI$2="","",SAFETY_CALC!AI144*PARAMETERS!$B$9*AI$3) ->  | AJ35: =IF(AJ$2="","",SAFETY_CALC!AJ144*PARAMETERS!$B$9*AJ$3) ->  | AK35: =IF(AK$2="","",SAFETY_CALC!AK144*PARAMETERS!$B$9*AK$3) ->  | AL35: =IF(AL$2="","",SAFETY_CALC!AL144*PARAMETERS!$B$9*AL$3) ->  | AM35: =IF(AM$2="","",SAFETY_CALC!AM144*PARAMETERS!$B$9*AM$3) ->  | AN35: =IF(AN$2="","",SAFETY_CALC!AN144*PARAMETERS!$B$9*AN$3) ->  | AO35: =IF(AO$2="","",SAFETY_CALC!AO144*PARAMETERS!$B$9*AO$3) ->  | AP35: =IF(AP$2="","",SAFETY_CALC!AP144*PARAMETERS!$B$9*AP$3) ->  | AQ35: =IF(AQ$2="","",SAFETY_CALC!AQ144*PARAMETERS!$B$9*AQ$3) ->  | AR35: =IF(AR$2="","",SAFETY_CALC!AR144*PARAMETERS!$B$9*AR$3) ->  | AS35: =IF(AS$2="","",SAFETY_CALC!AS144*PARAMETERS!$B$9*AS$3) ->  | AT35: =IF(AT$2="","",SAFETY_CALC!AT144*PARAMETERS!$B$9*AT$3) ->  | AU35: =IF(AU$2="","",SAFETY_CALC!AU144*PARAMETERS!$B$9*AU$3) ->  | AV35: =IF(AV$2="","",SAFETY_CALC!AV144*PARAMETERS!$B$9*AV$3) ->  | AW35: =IF(AW$2="","",SAFETY_CALC!AW144*PARAMETERS!$B$9*AW$3) ->  | AX35: =IF(AX$2="","",SAFETY_CALC!AX144*PARAMETERS!$B$9*AX$3) ->  | AY35: =IF(AY$2="","",SAFETY_CALC!AY144*PARAMETERS!$B$9*AY$3) ->  | AZ35: =IF(AZ$2="","",SAFETY_CALC!AZ144*PARAMETERS!$B$9*AZ$3) ->  | BA35: =IF(BA$2="","",SAFETY_CALC!BA144*PARAMETERS!$B$9*BA$3) ->  | BB35: =IF(BB$2="","",SAFETY_CALC!BB144*PARAMETERS!$B$9*BB$3) ->  | BC35: =IF(BC$2="","",SAFETY_CALC!BC144*PARAMETERS!$B$9*BC$3) ->  | BD35: =IF(BD$2="","",SAFETY_CALC!BD144*PARAMETERS!$B$9*BD$3) ->  | BE35: =IF(BE$2="","",SAFETY_CALC!BE144*PARAMETERS!$B$9*BE$3) ->  | BF35: =IF(BF$2="","",SAFETY_CALC!BF144*PARAMETERS!$B$9*BF$3) ->  | BG35: =IF(BG$2="","",SAFETY_CALC!BG144*PARAMETERS!$B$9*BG$3) ->  | BH35: =IF(BH$2="","",SAFETY_CALC!BH144*PARAMETERS!$B$9*BH$3) ->  | BI35: =IF(BI$2="","",SAFETY_CALC!BI144*PARAMETERS!$B$9*BI$3) ->  | BJ35: =IF(BJ$2="","",SAFETY_CALC!BJ144*PARAMETERS!$B$9*BJ$3) ->  | BK35: =IF(BK$2="","",SAFETY_CALC!BK144*PARAMETERS!$B$9*BK$3) -> 
A36: FREIGHT LOGISTICS BENEFITS (NOT ESTIMATED) | B36: 0 | D36: =IF(D$2="","",'FREIGHT LOGISTICS_CALC'!D14*PARAMETERS!$B$9*D$3) -> 0 | E36: =IF(E$2="","",'FREIGHT LOGISTICS_CALC'!E14*PARAMETERS!$B$9*E$3) -> 0 | F36: =IF(F$2="","",'FREIGHT LOGISTICS_CALC'!F14*PARAMETERS!$B$9*F$3) -> 0 | G36: =IF(G$2="","",'FREIGHT LOGISTICS_CALC'!G14*PARAMETERS!$B$9*G$3) -> 0 | H36: =IF(H$2="","",'FREIGHT LOGISTICS_CALC'!H14*PARAMETERS!$B$9*H$3) -> 0 | I36: =IF(I$2="","",'FREIGHT LOGISTICS_CALC'!I14*PARAMETERS!$B$9*I$3) -> 0 | J36: =IF(J$2="","",'FREIGHT LOGISTICS_CALC'!J14*PARAMETERS!$B$9*J$3) -> 0 | K36: =IF(K$2="","",'FREIGHT LOGISTICS_CALC'!K14*PARAMETERS!$B$9*K$3) -> 0 | L36: =IF(L$2="","",'FREIGHT LOGISTICS_CALC'!L14*PARAMETERS!$B$9*L$3) -> 0 | M36: =IF(M$2="","",'FREIGHT LOGISTICS_CALC'!M14*PARAMETERS!$B$9*M$3) -> 0 | N36: =IF(N$2="","",'FREIGHT LOGISTICS_CALC'!N14*PARAMETERS!$B$9*N$3) -> 0 | O36: =IF(O$2="","",'FREIGHT LOGISTICS_CALC'!O14*PARAMETERS!$B$9*O$3) -> 0 | P36: =IF(P$2="","",'FREIGHT LOGISTICS_CALC'!P14*PARAMETERS!$B$9*P$3) -> 0 | Q36: =IF(Q$2="","",'FREIGHT LOGISTICS_CALC'!Q14*PARAMETERS!$B$9*Q$3) -> 0 | R36: =IF(R$2="","",'FREIGHT LOGISTICS_CALC'!R14*PARAMETERS!$B$9*R$3) -> 0 | S36: =IF(S$2="","",'FREIGHT LOGISTICS_CALC'!S14*PARAMETERS!$B$9*S$3) -> 0 | T36: =IF(T$2="","",'FREIGHT LOGISTICS_CALC'!T14*PARAMETERS!$B$9*T$3) -> 0 | U36: =IF(U$2="","",'FREIGHT LOGISTICS_CALC'!U14*PARAMETERS!$B$9*U$3) -> 0 | V36: =IF(V$2="","",'FREIGHT LOGISTICS_CALC'!V14*PARAMETERS!$B$9*V$3) -> 0 | W36: =IF(W$2="","",'FREIGHT LOGISTICS_CALC'!W14*PARAMETERS!$B$9*W$3) -> 0 | X36: =IF(X$2="","",'FREIGHT LOGISTICS_CALC'!X14*PARAMETERS!$B$9*X$3) -> 0 | Y36: =IF(Y$2="","",'FREIGHT LOGISTICS_CALC'!Y14*PARAMETERS!$B$9*Y$3) -> 0 | Z36: =IF(Z$2="","",'FREIGHT LOGISTICS_CALC'!Z14*PARAMETERS!$B$9*Z$3) -> 0 | AA36: =IF(AA$2="","",'FREIGHT LOGISTICS_CALC'!AA14*PARAMETERS!$B$9*AA$3) -> 0 | AB36: =IF(AB$2="","",'FREIGHT LOGISTICS_CALC'!AB14*PARAMETERS!$B$9*AB$3) -> 0 | AC36: =IF(AC$2="","",'FREIGHT LOGISTICS_CALC'!AC14*PARAMETERS!$B$9*AC$3) ->  | AD36: =IF(AD$2="","",'FREIGHT LOGISTICS_CALC'!AD14*PARAMETERS!$B$9*AD$3) ->  | AE36: =IF(AE$2="","",'FREIGHT LOGISTICS_CALC'!AE14*PARAMETERS!$B$9*AE$3) ->  | AF36: =IF(AF$2="","",'FREIGHT LOGISTICS_CALC'!AF14*PARAMETERS!$B$9*AF$3) ->  | AG36: =IF(AG$2="","",'FREIGHT LOGISTICS_CALC'!AG14*PARAMETERS!$B$9*AG$3) ->  | AH36: =IF(AH$2="","",'FREIGHT LOGISTICS_CALC'!AH14*PARAMETERS!$B$9*AH$3) ->  | AI36: =IF(AI$2="","",'FREIGHT LOGISTICS_CALC'!AI14*PARAMETERS!$B$9*AI$3) ->  | AJ36: =IF(AJ$2="","",'FREIGHT LOGISTICS_CALC'!AJ14*PARAMETERS!$B$9*AJ$3) ->  | AK36: =IF(AK$2="","",'FREIGHT LOGISTICS_CALC'!AK14*PARAMETERS!$B$9*AK$3) ->  | AL36: =IF(AL$2="","",'FREIGHT LOGISTICS_CALC'!AL14*PARAMETERS!$B$9*AL$3) ->  | AM36: =IF(AM$2="","",'FREIGHT LOGISTICS_CALC'!AM14*PARAMETERS!$B$9*AM$3) ->  | AN36: =IF(AN$2="","",'FREIGHT LOGISTICS_CALC'!AN14*PARAMETERS!$B$9*AN$3) ->  | AO36: =IF(AO$2="","",'FREIGHT LOGISTICS_CALC'!AO14*PARAMETERS!$B$9*AO$3) ->  | AP36: =IF(AP$2="","",'FREIGHT LOGISTICS_CALC'!AP14*PARAMETERS!$B$9*AP$3) ->  | AQ36: =IF(AQ$2="","",'FREIGHT LOGISTICS_CALC'!AQ14*PARAMETERS!$B$9*AQ$3) ->  | AR36: =IF(AR$2="","",'FREIGHT LOGISTICS_CALC'!AR14*PARAMETERS!$B$9*AR$3) ->  | AS36: =IF(AS$2="","",'FREIGHT LOGISTICS_CALC'!AS14*PARAMETERS!$B$9*AS$3) ->  | AT36: =IF(AT$2="","",'FREIGHT LOGISTICS_CALC'!AT14*PARAMETERS!$B$9*AT$3) ->  | AU36: =IF(AU$2="","",'FREIGHT LOGISTICS_CALC'!AU14*PARAMETERS!$B$9*AU$3) ->  | AV36: =IF(AV$2="","",'FREIGHT LOGISTICS_CALC'!AV14*PARAMETERS!$B$9*AV$3) ->  | AW36: =IF(AW$2="","",'FREIGHT LOGISTICS_CALC'!AW14*PARAMETERS!$B$9*AW$3) ->  | AX36: =IF(AX$2="","",'FREIGHT LOGISTICS_CALC'!AX14*PARAMETERS!$B$9*AX$3) ->  | AY36: =IF(AY$2="","",'FREIGHT LOGISTICS_CALC'!AY14*PARAMETERS!$B$9*AY$3) ->  | AZ36: =IF(AZ$2="","",'FREIGHT LOGISTICS_CALC'!AZ14*PARAMETERS!$B$9*AZ$3) ->  | BA36: =IF(BA$2="","",'FREIGHT LOGISTICS_CALC'!BA14*PARAMETERS!$B$9*BA$3) ->  | BB36: =IF(BB$2="","",'FREIGHT LOGISTICS_CALC'!BB14*PARAMETERS!$B$9*BB$3) ->  | BC36: =IF(BC$2="","",'FREIGHT LOGISTICS_CALC'!BC14*PARAMETERS!$B$9*BC$3) ->  | BD36: =IF(BD$2="","",'FREIGHT LOGISTICS_CALC'!BD14*PARAMETERS!$B$9*BD$3) ->  | BE36: =IF(BE$2="","",'FREIGHT LOGISTICS_CALC'!BE14*PARAMETERS!$B$9*BE$3) ->  | BF36: =IF(BF$2="","",'FREIGHT LOGISTICS_CALC'!BF14*PARAMETERS!$B$9*BF$3) ->  | BG36: =IF(BG$2="","",'FREIGHT LOGISTICS_CALC'!BG14*PARAMETERS!$B$9*BG$3) ->  | BH36: =IF(BH$2="","",'FREIGHT LOGISTICS_CALC'!BH14*PARAMETERS!$B$9*BH$3) ->  | BI36: =IF(BI$2="","",'FREIGHT LOGISTICS_CALC'!BI14*PARAMETERS!$B$9*BI$3) ->  | BJ36: =IF(BJ$2="","",'FREIGHT LOGISTICS_CALC'!BJ14*PARAMETERS!$B$9*BJ$3) ->  | BK36: =IF(BK$2="","",'FREIGHT LOGISTICS_CALC'!BK14*PARAMETERS!$B$9*BK$3) -> 
A37: LAND USE DEVELOPMENT BENEFITS | B37: 74151093.98 | D37: =IF(D$2="","",'HOUSING DEVELOPMENT BENEFITS'!D21*D3) -> 0 | E37: =IF(E$2="","",'HOUSING DEVELOPMENT BENEFITS'!E21*E3) -> 0 | F37: =IF(F$2="","",'HOUSING DEVELOPMENT BENEFITS'!F21*F3) -> 0 | G37: =IF(G$2="","",'HOUSING DEVELOPMENT BENEFITS'!G21*G3) -> 0 | H37: =IF(H$2="","",'HOUSING DEVELOPMENT BENEFITS'!H21*H3) -> 0 | I37: =IF(I$2="","",'HOUSING DEVELOPMENT BENEFITS'!I21*I3) -> 5641804.99 | J37: =IF(J$2="","",'HOUSING DEVELOPMENT BENEFITS'!J21*J3) -> 5641804.99 | K37: =IF(K$2="","",'HOUSING DEVELOPMENT BENEFITS'!K21*K3) -> 5641804.99 | L37: =IF(L$2="","",'HOUSING DEVELOPMENT BENEFITS'!L21*L3) -> 6071326.413 | M37: =IF(M$2="","",'HOUSING DEVELOPMENT BENEFITS'!M21*M3) -> 6071326.413 | N37: =IF(N$2="","",'HOUSING DEVELOPMENT BENEFITS'!N21*N3) -> 6071326.413 | O37: =IF(O$2="","",'HOUSING DEVELOPMENT BENEFITS'!O21*O3) -> 6071326.413 | P37: =IF(P$2="","",'HOUSING DEVELOPMENT BENEFITS'!P21*P3) -> 6071326.413 | Q37: =IF(Q$2="","",'HOUSING DEVELOPMENT BENEFITS'!Q21*Q3) -> 5373809.389 | R37: =IF(R$2="","",'HOUSING DEVELOPMENT BENEFITS'!R21*R3) -> 5373809.389 | S37: =IF(S$2="","",'HOUSING DEVELOPMENT BENEFITS'!S21*S3) -> 5373809.389 | T37: =IF(T$2="","",'HOUSING DEVELOPMENT BENEFITS'!T21*T3) -> 5373809.389 | U37: =IF(U$2="","",'HOUSING DEVELOPMENT BENEFITS'!U21*U3) -> 5373809.389 | V37: =IF(V$2="","",'HOUSING DEVELOPMENT BENEFITS'!V21*V3) -> 0 | W37: =IF(W$2="","",'HOUSING DEVELOPMENT BENEFITS'!W21*W3) -> 0 | X37: =IF(X$2="","",'HOUSING DEVELOPMENT BENEFITS'!X21*X3) -> 0 | Y37: =IF(Y$2="","",'HOUSING DEVELOPMENT BENEFITS'!Y21*Y3) -> 0 | Z37: =IF(Z$2="","",'HOUSING DEVELOPMENT BENEFITS'!Z21*Z3) -> 0 | AA37: =IF(AA$2="","",'HOUSING DEVELOPMENT BENEFITS'!AA21*AA3) -> 0 | AB37: =IF(AB$2="","",'HOUSING DEVELOPMENT BENEFITS'!AB21*AB3) -> 0 | AC37: =IF(AC$2="","",'TOLL REVENUE_CALC'!AC39*PARAMETERS!$B$9) ->  | AD37: =IF(AD$2="","",'TOLL REVENUE_CALC'!AD39*PARAMETERS!$B$9) ->  | AE37: =IF(AE$2="","",'TOLL REVENUE_CALC'!AE39*PARAMETERS!$B$9) ->  | AF37: =IF(AF$2="","",'TOLL REVENUE_CALC'!AF39*PARAMETERS!$B$9) ->  | AG37: =IF(AG$2="","",'TOLL REVENUE_CALC'!AG39*PARAMETERS!$B$9) ->  | AH37: =IF(AH$2="","",'TOLL REVENUE_CALC'!AH39*PARAMETERS!$B$9) ->  | AI37: =IF(AI$2="","",'TOLL REVENUE_CALC'!AI39*PARAMETERS!$B$9) ->  | AJ37: =IF(AJ$2="","",'TOLL REVENUE_CALC'!AJ39*PARAMETERS!$B$9) ->  | AK37: =IF(AK$2="","",'TOLL REVENUE_CALC'!AK39*PARAMETERS!$B$9) ->  | AL37: =IF(AL$2="","",'TOLL REVENUE_CALC'!AL39*PARAMETERS!$B$9) ->  | AM37: =IF(AM$2="","",'TOLL REVENUE_CALC'!AM39*PARAMETERS!$B$9) ->  | AN37: =IF(AN$2="","",'TOLL REVENUE_CALC'!AN39*PARAMETERS!$B$9) ->  | AO37: =IF(AO$2="","",'TOLL REVENUE_CALC'!AO39*PARAMETERS!$B$9) ->  | AP37: =IF(AP$2="","",'TOLL REVENUE_CALC'!AP39*PARAMETERS!$B$9) ->  | AQ37: =IF(AQ$2="","",'TOLL REVENUE_CALC'!AQ39*PARAMETERS!$B$9) ->  | AR37: =IF(AR$2="","",'TOLL REVENUE_CALC'!AR39*PARAMETERS!$B$9) ->  | AS37: =IF(AS$2="","",'TOLL REVENUE_CALC'!AS39*PARAMETERS!$B$9) ->  | AT37: =IF(AT$2="","",'TOLL REVENUE_CALC'!AT39*PARAMETERS!$B$9) ->  | AU37: =IF(AU$2="","",'TOLL REVENUE_CALC'!AU39*PARAMETERS!$B$9) ->  | AV37: =IF(AV$2="","",'TOLL REVENUE_CALC'!AV39*PARAMETERS!$B$9) ->  | AW37: =IF(AW$2="","",'TOLL REVENUE_CALC'!AW39*PARAMETERS!$B$9) ->  | AX37: =IF(AX$2="","",'TOLL REVENUE_CALC'!AX39*PARAMETERS!$B$9) ->  | AY37: =IF(AY$2="","",'TOLL REVENUE_CALC'!AY39*PARAMETERS!$B$9) ->  | AZ37: =IF(AZ$2="","",'TOLL REVENUE_CALC'!AZ39*PARAMETERS!$B$9) ->  | BA37: =IF(BA$2="","",'TOLL REVENUE_CALC'!BA39*PARAMETERS!$B$9) ->  | BB37: =IF(BB$2="","",'TOLL REVENUE_CALC'!BB39*PARAMETERS!$B$9) ->  | BC37: =IF(BC$2="","",'TOLL REVENUE_CALC'!BC39*PARAMETERS!$B$9) ->  | BD37: =IF(BD$2="","",'TOLL REVENUE_CALC'!BD39*PARAMETERS!$B$9) ->  | BE37: =IF(BE$2="","",'TOLL REVENUE_CALC'!BE39*PARAMETERS!$B$9) ->  | BF37: =IF(BF$2="","",'TOLL REVENUE_CALC'!BF39*PARAMETERS!$B$9) ->  | BG37: =IF(BG$2="","",'TOLL REVENUE_CALC'!BG39*PARAMETERS!$B$9) ->  | BH37: =IF(BH$2="","",'TOLL REVENUE_CALC'!BH39*PARAMETERS!$B$9) ->  | BI37: =IF(BI$2="","",'TOLL REVENUE_CALC'!BI39*PARAMETERS!$B$9) ->  | BJ37: =IF(BJ$2="","",'TOLL REVENUE_CALC'!BJ39*PARAMETERS!$B$9) ->  | BK37: =IF(BK$2="","",'TOLL REVENUE_CALC'!BK39*PARAMETERS!$B$9) -> 
A38: RESIDUAL VALUE | B38: 9050000 | D38: =IF(D$2="","",'RESIDUAL VALUE_CALC'!D8) -> 0 | E38: =IF(E$2="","",'RESIDUAL VALUE_CALC'!E8) -> 0 | F38: =IF(F$2="","",'RESIDUAL VALUE_CALC'!F8) -> 0 | G38: =IF(G$2="","",'RESIDUAL VALUE_CALC'!G8) -> 0 | H38: =IF(H$2="","",'RESIDUAL VALUE_CALC'!H8) -> 0 | I38: =IF(I$2="","",'RESIDUAL VALUE_CALC'!I8) -> 0 | J38: =IF(J$2="","",'RESIDUAL VALUE_CALC'!J8) -> 0 | K38: =IF(K$2="","",'RESIDUAL VALUE_CALC'!K8) -> 0 | L38: =IF(L$2="","",'RESIDUAL VALUE_CALC'!L8) -> 0 | M38: =IF(M$2="","",'RESIDUAL VALUE_CALC'!M8) -> 0 | N38: =IF(N$2="","",'RESIDUAL VALUE_CALC'!N8) -> 0 | O38: =IF(O$2="","",'RESIDUAL VALUE_CALC'!O8) -> 0 | P38: =IF(P$2="","",'RESIDUAL VALUE_CALC'!P8) -> 0 | Q38: =IF(Q$2="","",'RESIDUAL VALUE_CALC'!Q8) -> 0 | R38: =IF(R$2="","",'RESIDUAL VALUE_CALC'!R8) -> 0 | S38: =IF(S$2="","",'RESIDUAL VALUE_CALC'!S8) -> 0 | T38: =IF(T$2="","",'RESIDUAL VALUE_CALC'!T8) -> 0 | U38: =IF(U$2="","",'RESIDUAL VALUE_CALC'!U8) -> 0 | V38: =IF(V$2="","",'RESIDUAL VALUE_CALC'!V8) -> 0 | W38: =IF(W$2="","",'RESIDUAL VALUE_CALC'!W8) -> 0 | X38: =IF(X$2="","",'RESIDUAL VALUE_CALC'!X8) -> 0 | Y38: =IF(Y$2="","",'RESIDUAL VALUE_CALC'!Y8) -> 0 | Z38: =IF(Z$2="","",'RESIDUAL VALUE_CALC'!Z8) -> 0 | AA38: =IF(AA$2="","",'RESIDUAL VALUE_CALC'!AA8) -> 0 | AB38: =IF(AB$2="","",'RESIDUAL VALUE_CALC'!AB8) -> 9050000 | AC38: =IF(AC$2="","",'RESIDUAL VALUE_CALC'!AC8) ->  | AD38: =IF(AD$2="","",'RESIDUAL VALUE_CALC'!AD8) ->  | AE38: =IF(AE$2="","",'RESIDUAL VALUE_CALC'!AE8) ->  | AF38: =IF(AF$2="","",'RESIDUAL VALUE_CALC'!AF8) ->  | AG38: =IF(AG$2="","",'RESIDUAL VALUE_CALC'!AG8) ->  | AH38: =IF(AH$2="","",'RESIDUAL VALUE_CALC'!AH8) ->  | AI38: =IF(AI$2="","",'RESIDUAL VALUE_CALC'!AI8) ->  | AJ38: =IF(AJ$2="","",'RESIDUAL VALUE_CALC'!AJ8) ->  | AK38: =IF(AK$2="","",'RESIDUAL VALUE_CALC'!AK8) ->  | AL38: =IF(AL$2="","",'RESIDUAL VALUE_CALC'!AL8) ->  | AM38: =IF(AM$2="","",'RESIDUAL VALUE_CALC'!AM8) ->  | AN38: =IF(AN$2="","",'RESIDUAL VALUE_CALC'!AN8) ->  | AO38: =IF(AO$2="","",'RESIDUAL VALUE_CALC'!AO8) ->  | AP38: =IF(AP$2="","",'RESIDUAL VALUE_CALC'!AP8) ->  | AQ38: =IF(AQ$2="","",'RESIDUAL VALUE_CALC'!AQ8) ->  | AR38: =IF(AR$2="","",'RESIDUAL VALUE_CALC'!AR8) ->  | AS38: =IF(AS$2="","",'RESIDUAL VALUE_CALC'!AS8) ->  | AT38: =IF(AT$2="","",'RESIDUAL VALUE_CALC'!AT8) ->  | AU38: =IF(AU$2="","",'RESIDUAL VALUE_CALC'!AU8) ->  | AV38: =IF(AV$2="","",'RESIDUAL VALUE_CALC'!AV8) ->  | AW38: =IF(AW$2="","",'RESIDUAL VALUE_CALC'!AW8) ->  | AX38: =IF(AX$2="","",'RESIDUAL VALUE_CALC'!AX8) ->  | AY38: =IF(AY$2="","",'RESIDUAL VALUE_CALC'!AY8) ->  | AZ38: =IF(AZ$2="","",'RESIDUAL VALUE_CALC'!AZ8) ->  | BA38: =IF(BA$2="","",'RESIDUAL VALUE_CALC'!BA8) ->  | BB38: =IF(BB$2="","",'RESIDUAL VALUE_CALC'!BB8) ->  | BC38: =IF(BC$2="","",'RESIDUAL VALUE_CALC'!BC8) ->  | BD38: =IF(BD$2="","",'RESIDUAL VALUE_CALC'!BD8) ->  | BE38: =IF(BE$2="","",'RESIDUAL VALUE_CALC'!BE8) ->  | BF38: =IF(BF$2="","",'RESIDUAL VALUE_CALC'!BF8) ->  | BG38: =IF(BG$2="","",'RESIDUAL VALUE_CALC'!BG8) ->  | BH38: =IF(BH$2="","",'RESIDUAL VALUE_CALC'!BH8) ->  | BI38: =IF(BI$2="","",'RESIDUAL VALUE_CALC'!BI8) ->  | BJ38: =IF(BJ$2="","",'RESIDUAL VALUE_CALC'!BJ8) ->  | BK38: =IF(BK$2="","",'RESIDUAL VALUE_CALC'!BK8) -> 
A40: DISCOUNTED BENEFITS
A41: TOTAL DISCOUNTED BENEFITS | B41: =SUM(D41:BK41) -> 302105974.2 | D41: =IF(D$2="","",D42+D45+D48+D51+D54+D55+D56+D57) -> 0 | E41: =IF(E2="","",E42+E45+E48+E51+E54+E55+E56+E57) -> 0 | F41: 0 | G41: 0 | H41: 0 | I41: =IF(I2="","",I42+I45+I48+I51+I54+I55+I56+I57) -> 5041886.645 | J41: 6442558.075 | K41: 7441577.121 | L41: 8785257.093 | M41: 9836583.055 | N41: 11013166.43 | O41: 12382049.39 | P41: 13416595.67 | Q41: 14406739.55 | R41: 15510264.83 | S41: 16689859.7 | T41: 17424286.48 | U41: 18422664.15 | V41: 17796228.73 | W41: 18938003.56 | X41: 19909890.42 | Y41: 20857348.09 | Z41: 21817746.34 | AA41: 22633757.18 | AB41: 23339511.7 | AK41: =IF(AK2="","",AK42+AK45+AK48+AK51+AK54+AK55+AK56+AK57) -> 
A42: TRAVEL TIME SAVINGS FOR EXISTING USERS | B42: =SUM(D42:BK42) -> 392129237.6 | D42: =IF(D$2="","",SUM(D43:D44)) -> 0 | E42: =IF(E$2="","",SUM(E43:E44)) -> 0 | F42: 0 | G42: 0 | H42: 0 | I42: =IF(I$2="","",SUM(I43:I44)) -> 3958974.452 | J42: 7690662.029 | K42: 11205064.05 | L42: =IF(L$2="","",SUM(L43:L44)) -> 14511782.59 | M42: 15725721.14 | N42: 16871237.2 | O42: 17950977.35 | P42: 18967498.62 | Q42: 19923271.25 | R42: 20820681.51 | S42: 21662034.31 | T42: 22449555.82 | U42: 23185395.96 | V42: 23871630.84 | W42: 24510265.08 | X42: 25103234.16 | Y42: 25652406.57 | Z42: 26159585.98 | AA42: 26626513.32 | AB42: 25282745.36
A43: AUTO | D43: =IF(D$2="","",'TRAVEL TIME_CALC'!D260*PARAMETERS!$B$9*D3) -> 0 | E43: =IF(E$2="","",'TRAVEL TIME_CALC'!E260*PARAMETERS!$B$9*E3) -> 0 | F43: =IF(F$2="","",'TRAVEL TIME_CALC'!F260*PARAMETERS!$B$9*F3) -> 0 | G43: =IF(G$2="","",'TRAVEL TIME_CALC'!G260*PARAMETERS!$B$9*G3) -> 0 | H43: =IF(H$2="","",'TRAVEL TIME_CALC'!H260*PARAMETERS!$B$9*H3) -> 0 | I43: =IF(I$2="","",'TRAVEL TIME_CALC'!I260*PARAMETERS!$B$9*I3) -> 3367549.549 | J43: =IF(J$2="","",'TRAVEL TIME_CALC'!J260*PARAMETERS!$B$9*J3) -> 6541766.247 | K43: =IF(K$2="","",'TRAVEL TIME_CALC'!K260*PARAMETERS!$B$9*K3) -> 9531157.332 | L43: =IF(L$2="","",'TRAVEL TIME_CALC'!L260*PARAMETERS!$B$9*L3) -> 12343890.45 | M43: =IF(M$2="","",'TRAVEL TIME_CALC'!M260*PARAMETERS!$B$9*M3) -> 13376480.65 | N43: =IF(N$2="","",'TRAVEL TIME_CALC'!N260*PARAMETERS!$B$9*N3) -> 14350869.88 | O43: =IF(O$2="","",'TRAVEL TIME_CALC'!O260*PARAMETERS!$B$9*O3) -> 15269309.37 | P43: =IF(P$2="","",'TRAVEL TIME_CALC'!P260*PARAMETERS!$B$9*P3) -> 16133974.13 | Q43: =IF(Q$2="","",'TRAVEL TIME_CALC'!Q260*PARAMETERS!$B$9*Q3) -> 16946965.41 | R43: =IF(R$2="","",'TRAVEL TIME_CALC'!R260*PARAMETERS!$B$9*R3) -> 17710312.98 | S43: =IF(S$2="","",'TRAVEL TIME_CALC'!S260*PARAMETERS!$B$9*S3) -> 18425977.42 | T43: =IF(T$2="","",'TRAVEL TIME_CALC'!T260*PARAMETERS!$B$9*T3) -> 19095852.35 | U43: =IF(U$2="","",'TRAVEL TIME_CALC'!U260*PARAMETERS!$B$9*U3) -> 19721766.5 | V43: =IF(V$2="","",'TRAVEL TIME_CALC'!V260*PARAMETERS!$B$9*V3) -> 20305485.84 | W43: =IF(W$2="","",'TRAVEL TIME_CALC'!W260*PARAMETERS!$B$9*W3) -> 20848715.53 | X43: =IF(X$2="","",'TRAVEL TIME_CALC'!X260*PARAMETERS!$B$9*X3) -> 21353101.9 | Y43: =IF(Y$2="","",'TRAVEL TIME_CALC'!Y260*PARAMETERS!$B$9*Y3) -> 21820234.31 | Z43: =IF(Z$2="","",'TRAVEL TIME_CALC'!Z260*PARAMETERS!$B$9*Z3) -> 22251647 | AA43: =IF(AA$2="","",'TRAVEL TIME_CALC'!AA260*PARAMETERS!$B$9*AA3) -> 22648820.8 | AB43: =IF(AB$2="","",'TRAVEL TIME_CALC'!AB260*PARAMETERS!$B$9*AB3) -> 21505796.2 | AC43: =IF(AC$2="","",'TRAVEL TIME_CALC'!AC260*PARAMETERS!$B$9*AC3) ->  | AD43: =IF(AD$2="","",'TRAVEL TIME_CALC'!AD260*PARAMETERS!$B$9*AD3) ->  | AE43: =IF(AE$2="","",'TRAVEL TIME_CALC'!AE260*PARAMETERS!$B$9*AE3) ->  | AF43: =IF(AF$2="","",'TRAVEL TIME_CALC'!AF260*PARAMETERS!$B$9*AF3) ->  | AG43: =IF(AG$2="","",'TRAVEL TIME_CALC'!AG260*PARAMETERS!$B$9*AG3) ->  | AH43: =IF(AH$2="","",'TRAVEL TIME_CALC'!AH260*PARAMETERS!$B$9*AH3) ->  | AI43: =IF(AI$2="","",'TRAVEL TIME_CALC'!AI260*PARAMETERS!$B$9*AI3) ->  | AJ43: =IF(AJ$2="","",'TRAVEL TIME_CALC'!AJ260*PARAMETERS!$B$9*AJ3) ->  | AK43: =IF(AK$2="","",'TRAVEL TIME_CALC'!AK260*PARAMETERS!$B$9*AK3) ->  | AL43: =IF(AL$2="","",'TRAVEL TIME_CALC'!AL260*PARAMETERS!$B$9*AL3) ->  | AM43: =IF(AM$2="","",'TRAVEL TIME_CALC'!AM260*PARAMETERS!$B$9*AM3) ->  | AN43: =IF(AN$2="","",'TRAVEL TIME_CALC'!AN260*PARAMETERS!$B$9*AN3) ->  | AO43: =IF(AO$2="","",'TRAVEL TIME_CALC'!AO260*PARAMETERS!$B$9*AO3) ->  | AP43: =IF(AP$2="","",'TRAVEL TIME_CALC'!AP260*PARAMETERS!$B$9*AP3) ->  | AQ43: =IF(AQ$2="","",'TRAVEL TIME_CALC'!AQ260*PARAMETERS!$B$9*AQ3) ->  | AR43: =IF(AR$2="","",'TRAVEL TIME_CALC'!AR260*PARAMETERS!$B$9*AR3) ->  | AS43: =IF(AS$2="","",'TRAVEL TIME_CALC'!AS260*PARAMETERS!$B$9*AS3) ->  | AT43: =IF(AT$2="","",'TRAVEL TIME_CALC'!AT260*PARAMETERS!$B$9*AT3) ->  | AU43: =IF(AU$2="","",'TRAVEL TIME_CALC'!AU260*PARAMETERS!$B$9*AU3) ->  | AV43: =IF(AV$2="","",'TRAVEL TIME_CALC'!AV260*PARAMETERS!$B$9*AV3) ->  | AW43: =IF(AW$2="","",'TRAVEL TIME_CALC'!AW260*PARAMETERS!$B$9*AW3) ->  | AX43: =IF(AX$2="","",'TRAVEL TIME_CALC'!AX260*PARAMETERS!$B$9*AX3) ->  | AY43: =IF(AY$2="","",'TRAVEL TIME_CALC'!AY260*PARAMETERS!$B$9*AY3) ->  | AZ43: =IF(AZ$2="","",'TRAVEL TIME_CALC'!AZ260*PARAMETERS!$B$9*AZ3) ->  | BA43: =IF(BA$2="","",'TRAVEL TIME_CALC'!BA260*PARAMETERS!$B$9*BA3) ->  | BB43: =IF(BB$2="","",'TRAVEL TIME_CALC'!BB260*PARAMETERS!$B$9*BB3) ->  | BC43: =IF(BC$2="","",'TRAVEL TIME_CALC'!BC260*PARAMETERS!$B$9*BC3) ->  | BD43: =IF(BD$2="","",'TRAVEL TIME_CALC'!BD260*PARAMETERS!$B$9*BD3) ->  | BE43: =IF(BE$2="","",'TRAVEL TIME_CALC'!BE260*PARAMETERS!$B$9*BE3) ->  | BF43: =IF(BF$2="","",'TRAVEL TIME_CALC'!BF260*PARAMETERS!$B$9*BF3) ->  | BG43: =IF(BG$2="","",'TRAVEL TIME_CALC'!BG260*PARAMETERS!$B$9*BG3) ->  | BH43: =IF(BH$2="","",'TRAVEL TIME_CALC'!BH260*PARAMETERS!$B$9*BH3) ->  | BI43: =IF(BI$2="","",'TRAVEL TIME_CALC'!BI260*PARAMETERS!$B$9*BI3) ->  | BJ43: =IF(BJ$2="","",'TRAVEL TIME_CALC'!BJ260*PARAMETERS!$B$9*BJ3) ->  | BK43: =IF(BK$2="","",'TRAVEL TIME_CALC'!BK260*PARAMETERS!$B$9*BK3) -> 
A44: TRUCK | D44: =IF(D$2="","",'TRAVEL TIME_CALC'!D261*PARAMETERS!$B$9*D3) -> 0 | E44: =IF(E$2="","",'TRAVEL TIME_CALC'!E261*PARAMETERS!$B$9*E3) -> 0 | F44: =IF(F$2="","",'TRAVEL TIME_CALC'!F261*PARAMETERS!$B$9*F3) -> 0 | G44: =IF(G$2="","",'TRAVEL TIME_CALC'!G261*PARAMETERS!$B$9*G3) -> 0 | H44: =IF(H$2="","",'TRAVEL TIME_CALC'!H261*PARAMETERS!$B$9*H3) -> 0 | I44: =IF(I$2="","",'TRAVEL TIME_CALC'!I261*PARAMETERS!$B$9*I3) -> 591424.9031 | J44: =IF(J$2="","",'TRAVEL TIME_CALC'!J261*PARAMETERS!$B$9*J3) -> 1148895.781 | K44: =IF(K$2="","",'TRAVEL TIME_CALC'!K261*PARAMETERS!$B$9*K3) -> 1673906.715 | L44: =IF(L$2="","",'TRAVEL TIME_CALC'!L261*PARAMETERS!$B$9*L3) -> 2167892.145 | M44: =IF(M$2="","",'TRAVEL TIME_CALC'!M261*PARAMETERS!$B$9*M3) -> 2349240.495 | N44: =IF(N$2="","",'TRAVEL TIME_CALC'!N261*PARAMETERS!$B$9*N3) -> 2520367.318 | O44: =IF(O$2="","",'TRAVEL TIME_CALC'!O261*PARAMETERS!$B$9*O3) -> 2681667.985 | P44: =IF(P$2="","",'TRAVEL TIME_CALC'!P261*PARAMETERS!$B$9*P3) -> 2833524.481 | Q44: =IF(Q$2="","",'TRAVEL TIME_CALC'!Q261*PARAMETERS!$B$9*Q3) -> 2976305.837 | R44: =IF(R$2="","",'TRAVEL TIME_CALC'!R261*PARAMETERS!$B$9*R3) -> 3110368.53 | S44: =IF(S$2="","",'TRAVEL TIME_CALC'!S261*PARAMETERS!$B$9*S3) -> 3236056.888 | T44: =IF(T$2="","",'TRAVEL TIME_CALC'!T261*PARAMETERS!$B$9*T3) -> 3353703.475 | U44: =IF(U$2="","",'TRAVEL TIME_CALC'!U261*PARAMETERS!$B$9*U3) -> 3463629.465 | V44: =IF(V$2="","",'TRAVEL TIME_CALC'!V261*PARAMETERS!$B$9*V3) -> 3566145.002 | W44: =IF(W$2="","",'TRAVEL TIME_CALC'!W261*PARAMETERS!$B$9*W3) -> 3661549.558 | X44: =IF(X$2="","",'TRAVEL TIME_CALC'!X261*PARAMETERS!$B$9*X3) -> 3750132.266 | Y44: =IF(Y$2="","",'TRAVEL TIME_CALC'!Y261*PARAMETERS!$B$9*Y3) -> 3832172.26 | Z44: =IF(Z$2="","",'TRAVEL TIME_CALC'!Z261*PARAMETERS!$B$9*Z3) -> 3907938.986 | AA44: =IF(AA$2="","",'TRAVEL TIME_CALC'!AA261*PARAMETERS!$B$9*AA3) -> 3977692.52 | AB44: =IF(AB$2="","",'TRAVEL TIME_CALC'!AB261*PARAMETERS!$B$9*AB3) -> 3776949.159 | AC44: =IF(AC$2="","",'TRAVEL TIME_CALC'!AC261*PARAMETERS!$B$9*AC3) ->  | AD44: =IF(AD$2="","",'TRAVEL TIME_CALC'!AD261*PARAMETERS!$B$9*AD3) ->  | AE44: =IF(AE$2="","",'TRAVEL TIME_CALC'!AE261*PARAMETERS!$B$9*AE3) ->  | AF44: =IF(AF$2="","",'TRAVEL TIME_CALC'!AF261*PARAMETERS!$B$9*AF3) ->  | AG44: =IF(AG$2="","",'TRAVEL TIME_CALC'!AG261*PARAMETERS!$B$9*AG3) ->  | AH44: =IF(AH$2="","",'TRAVEL TIME_CALC'!AH261*PARAMETERS!$B$9*AH3) ->  | AI44: =IF(AI$2="","",'TRAVEL TIME_CALC'!AI261*PARAMETERS!$B$9*AI3) ->  | AJ44: =IF(AJ$2="","",'TRAVEL TIME_CALC'!AJ261*PARAMETERS!$B$9*AJ3) ->  | AK44: =IF(AK$2="","",'TRAVEL TIME_CALC'!AK261*PARAMETERS!$B$9*AK3) ->  | AL44: =IF(AL$2="","",'TRAVEL TIME_CALC'!AL261*PARAMETERS!$B$9*AL3) ->  | AM44: =IF(AM$2="","",'TRAVEL TIME_CALC'!AM261*PARAMETERS!$B$9*AM3) ->  | AN44: =IF(AN$2="","",'TRAVEL TIME_CALC'!AN261*PARAMETERS!$B$9*AN3) ->  | AO44: =IF(AO$2="","",'TRAVEL TIME_CALC'!AO261*PARAMETERS!$B$9*AO3) ->  | AP44: =IF(AP$2="","",'TRAVEL TIME_CALC'!AP261*PARAMETERS!$B$9*AP3) ->  | AQ44: =IF(AQ$2="","",'TRAVEL TIME_CALC'!AQ261*PARAMETERS!$B$9*AQ3) ->  | AR44: =IF(AR$2="","",'TRAVEL TIME_CALC'!AR261*PARAMETERS!$B$9*AR3) ->  | AS44: =IF(AS$2="","",'TRAVEL TIME_CALC'!AS261*PARAMETERS!$B$9*AS3) ->  | AT44: =IF(AT$2="","",'TRAVEL TIME_CALC'!AT261*PARAMETERS!$B$9*AT3) ->  | AU44: =IF(AU$2="","",'TRAVEL TIME_CALC'!AU261*PARAMETERS!$B$9*AU3) ->  | AV44: =IF(AV$2="","",'TRAVEL TIME_CALC'!AV261*PARAMETERS!$B$9*AV3) ->  | AW44: =IF(AW$2="","",'TRAVEL TIME_CALC'!AW261*PARAMETERS!$B$9*AW3) ->  | AX44: =IF(AX$2="","",'TRAVEL TIME_CALC'!AX261*PARAMETERS!$B$9*AX3) ->  | AY44: =IF(AY$2="","",'TRAVEL TIME_CALC'!AY261*PARAMETERS!$B$9*AY3) ->  | AZ44: =IF(AZ$2="","",'TRAVEL TIME_CALC'!AZ261*PARAMETERS!$B$9*AZ3) ->  | BA44: =IF(BA$2="","",'TRAVEL TIME_CALC'!BA261*PARAMETERS!$B$9*BA3) ->  | BB44: =IF(BB$2="","",'TRAVEL TIME_CALC'!BB261*PARAMETERS!$B$9*BB3) ->  | BC44: =IF(BC$2="","",'TRAVEL TIME_CALC'!BC261*PARAMETERS!$B$9*BC3) ->  | BD44: =IF(BD$2="","",'TRAVEL TIME_CALC'!BD261*PARAMETERS!$B$9*BD3) ->  | BE44: =IF(BE$2="","",'TRAVEL TIME_CALC'!BE261*PARAMETERS!$B$9*BE3) ->  | BF44: =IF(BF$2="","",'TRAVEL TIME_CALC'!BF261*PARAMETERS!$B$9*BF3) ->  | BG44: =IF(BG$2="","",'TRAVEL TIME_CALC'!BG261*PARAMETERS!$B$9*BG3) ->  | BH44: =IF(BH$2="","",'TRAVEL TIME_CALC'!BH261*PARAMETERS!$B$9*BH3) ->  | BI44: =IF(BI$2="","",'TRAVEL TIME_CALC'!BI261*PARAMETERS!$B$9*BI3) ->  | BJ44: =IF(BJ$2="","",'TRAVEL TIME_CALC'!BJ261*PARAMETERS!$B$9*BJ3) ->  | BK44: =IF(BK$2="","",'TRAVEL TIME_CALC'!BK261*PARAMETERS!$B$9*BK3) -> 
A45: OUT-OF-POCKET COST SAVINGS FOR EXISTING USERS | B45: =SUM(D45:BK45) -> -95653406.07 | D45: =IF(D$2="","",SUM(D46:D47)) -> 0 | E45: =IF(E$2="","",SUM(E46:E47)) -> 0 | F45: 0 | G45: 0 | H45: 0 | I45: -1718886.699 | J45: -3262657.523 | K45: -4474223.17 | L45: -5493244.501 | M45: -5806047.323 | N45: -5922562.165 | O45: -5775043.028 | P45: -5886052.179 | Q45: -5689290.819 | R45: -5618781.673 | S45: -5594358.492 | T45: -5329677.041 | U45: -5181318.982 | V45: -5010050.098 | W45: -4709948.967 | X45: -4519197.71 | Y45: -4295436.055 | Z45: -4004703.56 | AA45: -3805440.056 | AB45: -3556486.034
A46: AUTO | D46: =IF(D$2="","",VOC_CALC!D116*PARAMETERS!$B$9*D3) -> 0 | E46: =IF(E$2="","",VOC_CALC!E116*PARAMETERS!$B$9*E3) -> 0 | F46: =IF(F$2="","",VOC_CALC!F116*PARAMETERS!$B$9*F3) -> 0 | G46: =IF(G$2="","",VOC_CALC!G116*PARAMETERS!$B$9*G3) -> 0 | H46: =IF(H$2="","",VOC_CALC!H116*PARAMETERS!$B$9*H3) -> 0 | I46: =IF(I$2="","",VOC_CALC!I116*PARAMETERS!$B$9*I3) -> -1345033.659 | J46: =IF(J$2="","",VOC_CALC!J116*PARAMETERS!$B$9*J3) -> -2553232.586 | K46: =IF(K$2="","",VOC_CALC!K116*PARAMETERS!$B$9*K3) -> -3502742.962 | L46: =IF(L$2="","",VOC_CALC!L116*PARAMETERS!$B$9*L3) -> -4291298.831 | M46: =IF(M$2="","",VOC_CALC!M116*PARAMETERS!$B$9*M3) -> -4527406.318 | N46: =IF(N$2="","",VOC_CALC!N116*PARAMETERS!$B$9*N3) -> -4615470.95 | O46: =IF(O$2="","",VOC_CALC!O116*PARAMETERS!$B$9*O3) -> -4489804.685 | P46: =IF(P$2="","",VOC_CALC!P116*PARAMETERS!$B$9*P3) -> -4565334.468 | Q46: =IF(Q$2="","",VOC_CALC!Q116*PARAMETERS!$B$9*Q3) -> -4404036.711 | R46: =IF(R$2="","",VOC_CALC!R116*PARAMETERS!$B$9*R3) -> -4338687.043 | S46: =IF(S$2="","",VOC_CALC!S116*PARAMETERS!$B$9*S3) -> -4305745.092 | T46: =IF(T$2="","",VOC_CALC!T116*PARAMETERS!$B$9*T3) -> -4087069.15 | U46: =IF(U$2="","",VOC_CALC!U116*PARAMETERS!$B$9*U3) -> -3958669.809 | V46: =IF(V$2="","",VOC_CALC!V116*PARAMETERS!$B$9*V3) -> -3811828.761 | W46: =IF(W$2="","",VOC_CALC!W116*PARAMETERS!$B$9*W3) -> -3563800.775 | X46: =IF(X$2="","",VOC_CALC!X116*PARAMETERS!$B$9*X3) -> -3403789.161 | Y46: =IF(Y$2="","",VOC_CALC!Y116*PARAMETERS!$B$9*Y3) -> -3221765.525 | Z46: =IF(Z$2="","",VOC_CALC!Z116*PARAMETERS!$B$9*Z3) -> -2985124.151 | AA46: =IF(AA$2="","",VOC_CALC!AA116*PARAMETERS!$B$9*AA3) -> -2819836.668 | AB46: =IF(AB$2="","",VOC_CALC!AB116*PARAMETERS!$B$9*AB3) -> -2635361.372 | AC46: =IF(AC$2="","",VOC_CALC!AC116*PARAMETERS!$B$9*AC3) ->  | AD46: =IF(AD$2="","",VOC_CALC!AD116*PARAMETERS!$B$9*AD3) ->  | AE46: =IF(AE$2="","",VOC_CALC!AE116*PARAMETERS!$B$9*AE3) ->  | AF46: =IF(AF$2="","",VOC_CALC!AF116*PARAMETERS!$B$9*AF3) ->  | AG46: =IF(AG$2="","",VOC_CALC!AG116*PARAMETERS!$B$9*AG3) ->  | AH46: =IF(AH$2="","",VOC_CALC!AH116*PARAMETERS!$B$9*AH3) ->  | AI46: =IF(AI$2="","",VOC_CALC!AI116*PARAMETERS!$B$9*AI3) ->  | AJ46: =IF(AJ$2="","",VOC_CALC!AJ116*PARAMETERS!$B$9*AJ3) ->  | AK46: =IF(AK$2="","",VOC_CALC!AK116*PARAMETERS!$B$9*AK3) ->  | AL46: =IF(AL$2="","",VOC_CALC!AL116*PARAMETERS!$B$9*AL3) ->  | AM46: =IF(AM$2="","",VOC_CALC!AM116*PARAMETERS!$B$9*AM3) ->  | AN46: =IF(AN$2="","",VOC_CALC!AN116*PARAMETERS!$B$9*AN3) ->  | AO46: =IF(AO$2="","",VOC_CALC!AO116*PARAMETERS!$B$9*AO3) ->  | AP46: =IF(AP$2="","",VOC_CALC!AP116*PARAMETERS!$B$9*AP3) ->  | AQ46: =IF(AQ$2="","",VOC_CALC!AQ116*PARAMETERS!$B$9*AQ3) ->  | AR46: =IF(AR$2="","",VOC_CALC!AR116*PARAMETERS!$B$9*AR3) ->  | AS46: =IF(AS$2="","",VOC_CALC!AS116*PARAMETERS!$B$9*AS3) ->  | AT46: =IF(AT$2="","",VOC_CALC!AT116*PARAMETERS!$B$9*AT3) ->  | AU46: =IF(AU$2="","",VOC_CALC!AU116*PARAMETERS!$B$9*AU3) ->  | AV46: =IF(AV$2="","",VOC_CALC!AV116*PARAMETERS!$B$9*AV3) ->  | AW46: =IF(AW$2="","",VOC_CALC!AW116*PARAMETERS!$B$9*AW3) ->  | AX46: =IF(AX$2="","",VOC_CALC!AX116*PARAMETERS!$B$9*AX3) ->  | AY46: =IF(AY$2="","",VOC_CALC!AY116*PARAMETERS!$B$9*AY3) ->  | AZ46: =IF(AZ$2="","",VOC_CALC!AZ116*PARAMETERS!$B$9*AZ3) ->  | BA46: =IF(BA$2="","",VOC_CALC!BA116*PARAMETERS!$B$9*BA3) ->  | BB46: =IF(BB$2="","",VOC_CALC!BB116*PARAMETERS!$B$9*BB3) ->  | BC46: =IF(BC$2="","",VOC_CALC!BC116*PARAMETERS!$B$9*BC3) ->  | BD46: =IF(BD$2="","",VOC_CALC!BD116*PARAMETERS!$B$9*BD3) ->  | BE46: =IF(BE$2="","",VOC_CALC!BE116*PARAMETERS!$B$9*BE3) ->  | BF46: =IF(BF$2="","",VOC_CALC!BF116*PARAMETERS!$B$9*BF3) ->  | BG46: =IF(BG$2="","",VOC_CALC!BG116*PARAMETERS!$B$9*BG3) ->  | BH46: =IF(BH$2="","",VOC_CALC!BH116*PARAMETERS!$B$9*BH3) ->  | BI46: =IF(BI$2="","",VOC_CALC!BI116*PARAMETERS!$B$9*BI3) ->  | BJ46: =IF(BJ$2="","",VOC_CALC!BJ116*PARAMETERS!$B$9*BJ3) ->  | BK46: =IF(BK$2="","",VOC_CALC!BK116*PARAMETERS!$B$9*BK3) -> 
A47: TRUCK | D47: =IF(D$2="","",VOC_CALC!D117*PARAMETERS!$B$9*D3) -> 0 | E47: =IF(E$2="","",VOC_CALC!E117*PARAMETERS!$B$9*E3) -> 0 | F47: =IF(F$2="","",VOC_CALC!F117*PARAMETERS!$B$9*F3) -> 0 | G47: =IF(G$2="","",VOC_CALC!G117*PARAMETERS!$B$9*G3) -> 0 | H47: =IF(H$2="","",VOC_CALC!H117*PARAMETERS!$B$9*H3) -> 0 | I47: =IF(I$2="","",VOC_CALC!I117*PARAMETERS!$B$9*I3) -> -373853.0406 | J47: =IF(J$2="","",VOC_CALC!J117*PARAMETERS!$B$9*J3) -> -709424.9371 | K47: =IF(K$2="","",VOC_CALC!K117*PARAMETERS!$B$9*K3) -> -971480.208 | L47: =IF(L$2="","",VOC_CALC!L117*PARAMETERS!$B$9*L3) -> -1201945.67 | M47: =IF(M$2="","",VOC_CALC!M117*PARAMETERS!$B$9*M3) -> -1278641.005 | N47: =IF(N$2="","",VOC_CALC!N117*PARAMETERS!$B$9*N3) -> -1307091.215 | O47: =IF(O$2="","",VOC_CALC!O117*PARAMETERS!$B$9*O3) -> -1285238.344 | P47: =IF(P$2="","",VOC_CALC!P117*PARAMETERS!$B$9*P3) -> -1320717.712 | Q47: =IF(Q$2="","",VOC_CALC!Q117*PARAMETERS!$B$9*Q3) -> -1285254.108 | R47: =IF(R$2="","",VOC_CALC!R117*PARAMETERS!$B$9*R3) -> -1280094.63 | S47: =IF(S$2="","",VOC_CALC!S117*PARAMETERS!$B$9*S3) -> -1288613.399 | T47: =IF(T$2="","",VOC_CALC!T117*PARAMETERS!$B$9*T3) -> -1242607.891 | U47: =IF(U$2="","",VOC_CALC!U117*PARAMETERS!$B$9*U3) -> -1222649.173 | V47: =IF(V$2="","",VOC_CALC!V117*PARAMETERS!$B$9*V3) -> -1198221.337 | W47: =IF(W$2="","",VOC_CALC!W117*PARAMETERS!$B$9*W3) -> -1146148.192 | X47: =IF(X$2="","",VOC_CALC!X117*PARAMETERS!$B$9*X3) -> -1115408.549 | Y47: =IF(Y$2="","",VOC_CALC!Y117*PARAMETERS!$B$9*Y3) -> -1073670.53 | Z47: =IF(Z$2="","",VOC_CALC!Z117*PARAMETERS!$B$9*Z3) -> -1019579.409 | AA47: =IF(AA$2="","",VOC_CALC!AA117*PARAMETERS!$B$9*AA3) -> -985603.3878 | AB47: =IF(AB$2="","",VOC_CALC!AB117*PARAMETERS!$B$9*AB3) -> -921124.6615 | AC47: =IF(AC$2="","",VOC_CALC!AC117*PARAMETERS!$B$9*AC3) ->  | AD47: =IF(AD$2="","",VOC_CALC!AD117*PARAMETERS!$B$9*AD3) ->  | AE47: =IF(AE$2="","",VOC_CALC!AE117*PARAMETERS!$B$9*AE3) ->  | AF47: =IF(AF$2="","",VOC_CALC!AF117*PARAMETERS!$B$9*AF3) ->  | AG47: =IF(AG$2="","",VOC_CALC!AG117*PARAMETERS!$B$9*AG3) ->  | AH47: =IF(AH$2="","",VOC_CALC!AH117*PARAMETERS!$B$9*AH3) ->  | AI47: =IF(AI$2="","",VOC_CALC!AI117*PARAMETERS!$B$9*AI3) ->  | AJ47: =IF(AJ$2="","",VOC_CALC!AJ117*PARAMETERS!$B$9*AJ3) ->  | AK47: =IF(AK$2="","",VOC_CALC!AK117*PARAMETERS!$B$9*AK3) ->  | AL47: =IF(AL$2="","",VOC_CALC!AL117*PARAMETERS!$B$9*AL3) ->  | AM47: =IF(AM$2="","",VOC_CALC!AM117*PARAMETERS!$B$9*AM3) ->  | AN47: =IF(AN$2="","",VOC_CALC!AN117*PARAMETERS!$B$9*AN3) ->  | AO47: =IF(AO$2="","",VOC_CALC!AO117*PARAMETERS!$B$9*AO3) ->  | AP47: =IF(AP$2="","",VOC_CALC!AP117*PARAMETERS!$B$9*AP3) ->  | AQ47: =IF(AQ$2="","",VOC_CALC!AQ117*PARAMETERS!$B$9*AQ3) ->  | AR47: =IF(AR$2="","",VOC_CALC!AR117*PARAMETERS!$B$9*AR3) ->  | AS47: =IF(AS$2="","",VOC_CALC!AS117*PARAMETERS!$B$9*AS3) ->  | AT47: =IF(AT$2="","",VOC_CALC!AT117*PARAMETERS!$B$9*AT3) ->  | AU47: =IF(AU$2="","",VOC_CALC!AU117*PARAMETERS!$B$9*AU3) ->  | AV47: =IF(AV$2="","",VOC_CALC!AV117*PARAMETERS!$B$9*AV3) ->  | AW47: =IF(AW$2="","",VOC_CALC!AW117*PARAMETERS!$B$9*AW3) ->  | AX47: =IF(AX$2="","",VOC_CALC!AX117*PARAMETERS!$B$9*AX3) ->  | AY47: =IF(AY$2="","",VOC_CALC!AY117*PARAMETERS!$B$9*AY3) ->  | AZ47: =IF(AZ$2="","",VOC_CALC!AZ117*PARAMETERS!$B$9*AZ3) ->  | BA47: =IF(BA$2="","",VOC_CALC!BA117*PARAMETERS!$B$9*BA3) ->  | BB47: =IF(BB$2="","",VOC_CALC!BB117*PARAMETERS!$B$9*BB3) ->  | BC47: =IF(BC$2="","",VOC_CALC!BC117*PARAMETERS!$B$9*BC3) ->  | BD47: =IF(BD$2="","",VOC_CALC!BD117*PARAMETERS!$B$9*BD3) ->  | BE47: =IF(BE$2="","",VOC_CALC!BE117*PARAMETERS!$B$9*BE3) ->  | BF47: =IF(BF$2="","",VOC_CALC!BF117*PARAMETERS!$B$9*BF3) ->  | BG47: =IF(BG$2="","",VOC_CALC!BG117*PARAMETERS!$B$9*BG3) ->  | BH47: =IF(BH$2="","",VOC_CALC!BH117*PARAMETERS!$B$9*BH3) ->  | BI47: =IF(BI$2="","",VOC_CALC!BI117*PARAMETERS!$B$9*BI3) ->  | BJ47: =IF(BJ$2="","",VOC_CALC!BJ117*PARAMETERS!$B$9*BJ3) ->  | BK47: =IF(BK$2="","",VOC_CALC!BK117*PARAMETERS!$B$9*BK3) -> 
A48: ECONOMIC VALUE OF INDUCED TRIPS | B48: =SUM(D48:BK48) -> 1999624.438 | D48: =IF(D$2="","",SUM(D49:D50)) -> 0 | E48: =IF(E$2="","",SUM(E49:E50)) -> 0 | F48: 0 | G48: 0 | H48: 0 | I48: 7645.307604 | J48: 30328.27319 | K48: 69387.55564 | L48: 124385.6262 | M48: 129088.7914 | N48: 133965.6471 | O48: 139528.1744 | P48: 139763.1056 | Q48: 141058.4239 | R48: 138900.6232 | S48: 134411.0563 | T48: 130020.8374 | U48: 122883.5471 | V48: 114245.9718 | W48: 104743.5286 | X48: 93123.7289 | Y48: 80287.65736 | Z48: 66369.85303 | AA48: 50965.8786 | AB48: 48520.85098
A49: AUTO | D49: =IF(D$2="","",IF('INDUCED DEMAND_CALC'!D99>=0,1,$C$30)*'INDUCED DEMAND_CALC'!D99*PARAMETERS!$B$9*D$3) -> 0 | E49: =IF(E$2="","",IF('INDUCED DEMAND_CALC'!E99>=0,1,$C$30)*'INDUCED DEMAND_CALC'!E99*PARAMETERS!$B$9*E$3) -> 0 | F49: =IF(F$2="","",IF('INDUCED DEMAND_CALC'!F99>=0,1,$C$30)*'INDUCED DEMAND_CALC'!F99*PARAMETERS!$B$9*F$3) -> 0 | G49: =IF(G$2="","",IF('INDUCED DEMAND_CALC'!G99>=0,1,$C$30)*'INDUCED DEMAND_CALC'!G99*PARAMETERS!$B$9*G$3) -> 0 | H49: =IF(H$2="","",IF('INDUCED DEMAND_CALC'!H99>=0,1,$C$30)*'INDUCED DEMAND_CALC'!H99*PARAMETERS!$B$9*H$3) -> 0 | I49: =IF(I$2="","",IF('INDUCED DEMAND_CALC'!I99>=0,1,$C$30)*'INDUCED DEMAND_CALC'!I99*PARAMETERS!$B$9*I$3) -> 6902.745705 | J49: =IF(J$2="","",IF('INDUCED DEMAND_CALC'!J99>=0,1,$C$30)*'INDUCED DEMAND_CALC'!J99*PARAMETERS!$B$9*J$3) -> 27318.251 | K49: =IF(K$2="","",IF('INDUCED DEMAND_CALC'!K99>=0,1,$C$30)*'INDUCED DEMAND_CALC'!K99*PARAMETERS!$B$9*K$3) -> 62146.31206 | L49: =IF(L$2="","",IF('INDUCED DEMAND_CALC'!L99>=0,1,$C$30)*'INDUCED DEMAND_CALC'!L99*PARAMETERS!$B$9*L$3) -> 111063.0837 | M49: =IF(M$2="","",IF('INDUCED DEMAND_CALC'!M99>=0,1,$C$30)*'INDUCED DEMAND_CALC'!M99*PARAMETERS!$B$9*M$3) -> 115156.6403 | N49: =IF(N$2="","",IF('INDUCED DEMAND_CALC'!N99>=0,1,$C$30)*'INDUCED DEMAND_CALC'!N99*PARAMETERS!$B$9*N$3) -> 119120.26 | O49: =IF(O$2="","",IF('INDUCED DEMAND_CALC'!O99>=0,1,$C$30)*'INDUCED DEMAND_CALC'!O99*PARAMETERS!$B$9*O$3) -> 123526.012 | P49: =IF(P$2="","",IF('INDUCED DEMAND_CALC'!P99>=0,1,$C$30)*'INDUCED DEMAND_CALC'!P99*PARAMETERS!$B$9*P$3) -> 123600.1703 | Q49: =IF(Q$2="","",IF('INDUCED DEMAND_CALC'!Q99>=0,1,$C$30)*'INDUCED DEMAND_CALC'!Q99*PARAMETERS!$B$9*Q$3) -> 124300.1395 | R49: =IF(R$2="","",IF('INDUCED DEMAND_CALC'!R99>=0,1,$C$30)*'INDUCED DEMAND_CALC'!R99*PARAMETERS!$B$9*R$3) -> 122177.3065 | S49: =IF(S$2="","",IF('INDUCED DEMAND_CALC'!S99>=0,1,$C$30)*'INDUCED DEMAND_CALC'!S99*PARAMETERS!$B$9*S$3) -> 118120.0918 | T49: =IF(T$2="","",IF('INDUCED DEMAND_CALC'!T99>=0,1,$C$30)*'INDUCED DEMAND_CALC'!T99*PARAMETERS!$B$9*T$3) -> 113987.6388 | U49: =IF(U$2="","",IF('INDUCED DEMAND_CALC'!U99>=0,1,$C$30)*'INDUCED DEMAND_CALC'!U99*PARAMETERS!$B$9*U$3) -> 107588.1445 | V49: =IF(V$2="","",IF('INDUCED DEMAND_CALC'!V99>=0,1,$C$30)*'INDUCED DEMAND_CALC'!V99*PARAMETERS!$B$9*V$3) -> 99903.28527 | W49: =IF(W$2="","",IF('INDUCED DEMAND_CALC'!W99>=0,1,$C$30)*'INDUCED DEMAND_CALC'!W99*PARAMETERS!$B$9*W$3) -> 91437.07358 | X49: =IF(X$2="","",IF('INDUCED DEMAND_CALC'!X99>=0,1,$C$30)*'INDUCED DEMAND_CALC'!X99*PARAMETERS!$B$9*X$3) -> 81204.04067 | Y49: =IF(Y$2="","",IF('INDUCED DEMAND_CALC'!Y99>=0,1,$C$30)*'INDUCED DEMAND_CALC'!Y99*PARAMETERS!$B$9*Y$3) -> 69917.57039 | Z49: =IF(Z$2="","",IF('INDUCED DEMAND_CALC'!Z99>=0,1,$C$30)*'INDUCED DEMAND_CALC'!Z99*PARAMETERS!$B$9*Z$3) -> 57717.13274 | AA49: =IF(AA$2="","",IF('INDUCED DEMAND_CALC'!AA99>=0,1,$C$30)*'INDUCED DEMAND_CALC'!AA99*PARAMETERS!$B$9*AA$3) -> 44283.70157 | AB49: =IF(AB$2="","",IF('INDUCED DEMAND_CALC'!AB99>=0,1,$C$30)*'INDUCED DEMAND_CALC'!AB99*PARAMETERS!$B$9*AB$3) -> 42142.99123 | AC49: =IF(AC$2="","",'INDUCED DEMAND_CALC'!AC99*PARAMETERS!$B$9*AC3) ->  | AD49: =IF(AD$2="","",'INDUCED DEMAND_CALC'!AD99*PARAMETERS!$B$9*AD3) ->  | AE49: =IF(AE$2="","",'INDUCED DEMAND_CALC'!AE99*PARAMETERS!$B$9*AE3) ->  | AF49: =IF(AF$2="","",'INDUCED DEMAND_CALC'!AF99*PARAMETERS!$B$9*AF3) ->  | AG49: =IF(AG$2="","",'INDUCED DEMAND_CALC'!AG99*PARAMETERS!$B$9*AG3) ->  | AH49: =IF(AH$2="","",'INDUCED DEMAND_CALC'!AH99*PARAMETERS!$B$9*AH3) ->  | AI49: =IF(AI$2="","",'INDUCED DEMAND_CALC'!AI99*PARAMETERS!$B$9*AI3) ->  | AJ49: =IF(AJ$2="","",'INDUCED DEMAND_CALC'!AJ99*PARAMETERS!$B$9*AJ3) ->  | AK49: =IF(AK$2="","",'INDUCED DEMAND_CALC'!AK99*PARAMETERS!$B$9*AK3) ->  | AL49: =IF(AL$2="","",'INDUCED DEMAND_CALC'!AL99*PARAMETERS!$B$9*AL3) ->  | AM49: =IF(AM$2="","",'INDUCED DEMAND_CALC'!AM99*PARAMETERS!$B$9*AM3) ->  | AN49: =IF(AN$2="","",'INDUCED DEMAND_CALC'!AN99*PARAMETERS!$B$9*AN3) ->  | AO49: =IF(AO$2="","",'INDUCED DEMAND_CALC'!AO99*PARAMETERS!$B$9*AO3) ->  | AP49: =IF(AP$2="","",'INDUCED DEMAND_CALC'!AP99*PARAMETERS!$B$9*AP3) ->  | AQ49: =IF(AQ$2="","",'INDUCED DEMAND_CALC'!AQ99*PARAMETERS!$B$9*AQ3) ->  | AR49: =IF(AR$2="","",'INDUCED DEMAND_CALC'!AR99*PARAMETERS!$B$9*AR3) ->  | AS49: =IF(AS$2="","",'INDUCED DEMAND_CALC'!AS99*PARAMETERS!$B$9*AS3) ->  | AT49: =IF(AT$2="","",'INDUCED DEMAND_CALC'!AT99*PARAMETERS!$B$9*AT3) ->  | AU49: =IF(AU$2="","",'INDUCED DEMAND_CALC'!AU99*PARAMETERS!$B$9*AU3) ->  | AV49: =IF(AV$2="","",'INDUCED DEMAND_CALC'!AV99*PARAMETERS!$B$9*AV3) ->  | AW49: =IF(AW$2="","",'INDUCED DEMAND_CALC'!AW99*PARAMETERS!$B$9*AW3) ->  | AX49: =IF(AX$2="","",'INDUCED DEMAND_CALC'!AX99*PARAMETERS!$B$9*AX3) ->  | AY49: =IF(AY$2="","",'INDUCED DEMAND_CALC'!AY99*PARAMETERS!$B$9*AY3) ->  | AZ49: =IF(AZ$2="","",'INDUCED DEMAND_CALC'!AZ99*PARAMETERS!$B$9*AZ3) ->  | BA49: =IF(BA$2="","",'INDUCED DEMAND_CALC'!BA99*PARAMETERS!$B$9*BA3) ->  | BB49: =IF(BB$2="","",'INDUCED DEMAND_CALC'!BB99*PARAMETERS!$B$9*BB3) ->  | BC49: =IF(BC$2="","",'INDUCED DEMAND_CALC'!BC99*PARAMETERS!$B$9*BC3) ->  | BD49: =IF(BD$2="","",'INDUCED DEMAND_CALC'!BD99*PARAMETERS!$B$9*BD3) ->  | BE49: =IF(BE$2="","",'INDUCED DEMAND_CALC'!BE99*PARAMETERS!$B$9*BE3) ->  | BF49: =IF(BF$2="","",'INDUCED DEMAND_CALC'!BF99*PARAMETERS!$B$9*BF3) ->  | BG49: =IF(BG$2="","",'INDUCED DEMAND_CALC'!BG99*PARAMETERS!$B$9*BG3) ->  | BH49: =IF(BH$2="","",'INDUCED DEMAND_CALC'!BH99*PARAMETERS!$B$9*BH3) ->  | BI49: =IF(BI$2="","",'INDUCED DEMAND_CALC'!BI99*PARAMETERS!$B$9*BI3) ->  | BJ49: =IF(BJ$2="","",'INDUCED DEMAND_CALC'!BJ99*PARAMETERS!$B$9*BJ3) ->  | BK49: =IF(BK$2="","",'INDUCED DEMAND_CALC'!BK99*PARAMETERS!$B$9*BK3) -> 
A50: TRUCK | D50: =IF(D$2="","",IF('INDUCED DEMAND_CALC'!D100>=0,1,$C$31)*'INDUCED DEMAND_CALC'!D100*PARAMETERS!$B$9*D$3) -> 0 | E50: =IF(E$2="","",IF('INDUCED DEMAND_CALC'!E100>=0,1,$C$31)*'INDUCED DEMAND_CALC'!E100*PARAMETERS!$B$9*E$3) -> 0 | F50: =IF(F$2="","",IF('INDUCED DEMAND_CALC'!F100>=0,1,$C$31)*'INDUCED DEMAND_CALC'!F100*PARAMETERS!$B$9*F$3) -> 0 | G50: =IF(G$2="","",IF('INDUCED DEMAND_CALC'!G100>=0,1,$C$31)*'INDUCED DEMAND_CALC'!G100*PARAMETERS!$B$9*G$3) -> 0 | H50: =IF(H$2="","",IF('INDUCED DEMAND_CALC'!H100>=0,1,$C$31)*'INDUCED DEMAND_CALC'!H100*PARAMETERS!$B$9*H$3) -> 0 | I50: =IF(I$2="","",IF('INDUCED DEMAND_CALC'!I100>=0,1,$C$31)*'INDUCED DEMAND_CALC'!I100*PARAMETERS!$B$9*I$3) -> 742.5618989 | J50: =IF(J$2="","",IF('INDUCED DEMAND_CALC'!J100>=0,1,$C$31)*'INDUCED DEMAND_CALC'!J100*PARAMETERS!$B$9*J$3) -> 3010.022189 | K50: =IF(K$2="","",IF('INDUCED DEMAND_CALC'!K100>=0,1,$C$31)*'INDUCED DEMAND_CALC'!K100*PARAMETERS!$B$9*K$3) -> 7241.243583 | L50: =IF(L$2="","",IF('INDUCED DEMAND_CALC'!L100>=0,1,$C$31)*'INDUCED DEMAND_CALC'!L100*PARAMETERS!$B$9*L$3) -> 13322.54252 | M50: =IF(M$2="","",IF('INDUCED DEMAND_CALC'!M100>=0,1,$C$31)*'INDUCED DEMAND_CALC'!M100*PARAMETERS!$B$9*M$3) -> 13932.15108 | N50: =IF(N$2="","",IF('INDUCED DEMAND_CALC'!N100>=0,1,$C$31)*'INDUCED DEMAND_CALC'!N100*PARAMETERS!$B$9*N$3) -> 14845.38703 | O50: =IF(O$2="","",IF('INDUCED DEMAND_CALC'!O100>=0,1,$C$31)*'INDUCED DEMAND_CALC'!O100*PARAMETERS!$B$9*O$3) -> 16002.16241 | P50: =IF(P$2="","",IF('INDUCED DEMAND_CALC'!P100>=0,1,$C$31)*'INDUCED DEMAND_CALC'!P100*PARAMETERS!$B$9*P$3) -> 16162.9353 | Q50: =IF(Q$2="","",IF('INDUCED DEMAND_CALC'!Q100>=0,1,$C$31)*'INDUCED DEMAND_CALC'!Q100*PARAMETERS!$B$9*Q$3) -> 16758.28435 | R50: =IF(R$2="","",IF('INDUCED DEMAND_CALC'!R100>=0,1,$C$31)*'INDUCED DEMAND_CALC'!R100*PARAMETERS!$B$9*R$3) -> 16723.31669 | S50: =IF(S$2="","",IF('INDUCED DEMAND_CALC'!S100>=0,1,$C$31)*'INDUCED DEMAND_CALC'!S100*PARAMETERS!$B$9*S$3) -> 16290.9645 | T50: =IF(T$2="","",IF('INDUCED DEMAND_CALC'!T100>=0,1,$C$31)*'INDUCED DEMAND_CALC'!T100*PARAMETERS!$B$9*T$3) -> 16033.19855 | U50: =IF(U$2="","",IF('INDUCED DEMAND_CALC'!U100>=0,1,$C$31)*'INDUCED DEMAND_CALC'!U100*PARAMETERS!$B$9*U$3) -> 15295.40268 | V50: =IF(V$2="","",IF('INDUCED DEMAND_CALC'!V100>=0,1,$C$31)*'INDUCED DEMAND_CALC'!V100*PARAMETERS!$B$9*V$3) -> 14342.68654 | W50: =IF(W$2="","",IF('INDUCED DEMAND_CALC'!W100>=0,1,$C$31)*'INDUCED DEMAND_CALC'!W100*PARAMETERS!$B$9*W$3) -> 13306.45497 | X50: =IF(X$2="","",IF('INDUCED DEMAND_CALC'!X100>=0,1,$C$31)*'INDUCED DEMAND_CALC'!X100*PARAMETERS!$B$9*X$3) -> 11919.68823 | Y50: =IF(Y$2="","",IF('INDUCED DEMAND_CALC'!Y100>=0,1,$C$31)*'INDUCED DEMAND_CALC'!Y100*PARAMETERS!$B$9*Y$3) -> 10370.08697 | Z50: =IF(Z$2="","",IF('INDUCED DEMAND_CALC'!Z100>=0,1,$C$31)*'INDUCED DEMAND_CALC'!Z100*PARAMETERS!$B$9*Z$3) -> 8652.720287 | AA50: =IF(AA$2="","",IF('INDUCED DEMAND_CALC'!AA100>=0,1,$C$31)*'INDUCED DEMAND_CALC'!AA100*PARAMETERS!$B$9*AA$3) -> 6682.177024 | AB50: =IF(AB$2="","",IF('INDUCED DEMAND_CALC'!AB100>=0,1,$C$31)*'INDUCED DEMAND_CALC'!AB100*PARAMETERS!$B$9*AB$3) -> 6377.859749 | AC50: =IF(AC$2="","",'INDUCED DEMAND_CALC'!AC100*PARAMETERS!$B$9*AC3) ->  | AD50: =IF(AD$2="","",'INDUCED DEMAND_CALC'!AD100*PARAMETERS!$B$9*AD3) ->  | AE50: =IF(AE$2="","",'INDUCED DEMAND_CALC'!AE100*PARAMETERS!$B$9*AE3) ->  | AF50: =IF(AF$2="","",'INDUCED DEMAND_CALC'!AF100*PARAMETERS!$B$9*AF3) ->  | AG50: =IF(AG$2="","",'INDUCED DEMAND_CALC'!AG100*PARAMETERS!$B$9*AG3) ->  | AH50: =IF(AH$2="","",'INDUCED DEMAND_CALC'!AH100*PARAMETERS!$B$9*AH3) ->  | AI50: =IF(AI$2="","",'INDUCED DEMAND_CALC'!AI100*PARAMETERS!$B$9*AI3) ->  | AJ50: =IF(AJ$2="","",'INDUCED DEMAND_CALC'!AJ100*PARAMETERS!$B$9*AJ3) ->  | AK50: =IF(AK$2="","",'INDUCED DEMAND_CALC'!AK100*PARAMETERS!$B$9*AK3) ->  | AL50: =IF(AL$2="","",'INDUCED DEMAND_CALC'!AL100*PARAMETERS!$B$9*AL3) ->  | AM50: =IF(AM$2="","",'INDUCED DEMAND_CALC'!AM100*PARAMETERS!$B$9*AM3) ->  | AN50: =IF(AN$2="","",'INDUCED DEMAND_CALC'!AN100*PARAMETERS!$B$9*AN3) ->  | AO50: =IF(AO$2="","",'INDUCED DEMAND_CALC'!AO100*PARAMETERS!$B$9*AO3) ->  | AP50: =IF(AP$2="","",'INDUCED DEMAND_CALC'!AP100*PARAMETERS!$B$9*AP3) ->  | AQ50: =IF(AQ$2="","",'INDUCED DEMAND_CALC'!AQ100*PARAMETERS!$B$9*AQ3) ->  | AR50: =IF(AR$2="","",'INDUCED DEMAND_CALC'!AR100*PARAMETERS!$B$9*AR3) ->  | AS50: =IF(AS$2="","",'INDUCED DEMAND_CALC'!AS100*PARAMETERS!$B$9*AS3) ->  | AT50: =IF(AT$2="","",'INDUCED DEMAND_CALC'!AT100*PARAMETERS!$B$9*AT3) ->  | AU50: =IF(AU$2="","",'INDUCED DEMAND_CALC'!AU100*PARAMETERS!$B$9*AU3) ->  | AV50: =IF(AV$2="","",'INDUCED DEMAND_CALC'!AV100*PARAMETERS!$B$9*AV3) ->  | AW50: =IF(AW$2="","",'INDUCED DEMAND_CALC'!AW100*PARAMETERS!$B$9*AW3) ->  | AX50: =IF(AX$2="","",'INDUCED DEMAND_CALC'!AX100*PARAMETERS!$B$9*AX3) ->  | AY50: =IF(AY$2="","",'INDUCED DEMAND_CALC'!AY100*PARAMETERS!$B$9*AY3) ->  | AZ50: =IF(AZ$2="","",'INDUCED DEMAND_CALC'!AZ100*PARAMETERS!$B$9*AZ3) ->  | BA50: =IF(BA$2="","",'INDUCED DEMAND_CALC'!BA100*PARAMETERS!$B$9*BA3) ->  | BB50: =IF(BB$2="","",'INDUCED DEMAND_CALC'!BB100*PARAMETERS!$B$9*BB3) ->  | BC50: =IF(BC$2="","",'INDUCED DEMAND_CALC'!BC100*PARAMETERS!$B$9*BC3) ->  | BD50: =IF(BD$2="","",'INDUCED DEMAND_CALC'!BD100*PARAMETERS!$B$9*BD3) ->  | BE50: =IF(BE$2="","",'INDUCED DEMAND_CALC'!BE100*PARAMETERS!$B$9*BE3) ->  | BF50: =IF(BF$2="","",'INDUCED DEMAND_CALC'!BF100*PARAMETERS!$B$9*BF3) ->  | BG50: =IF(BG$2="","",'INDUCED DEMAND_CALC'!BG100*PARAMETERS!$B$9*BG3) ->  | BH50: =IF(BH$2="","",'INDUCED DEMAND_CALC'!BH100*PARAMETERS!$B$9*BH3) ->  | BI50: =IF(BI$2="","",'INDUCED DEMAND_CALC'!BI100*PARAMETERS!$B$9*BI3) ->  | BJ50: =IF(BJ$2="","",'INDUCED DEMAND_CALC'!BJ100*PARAMETERS!$B$9*BJ3) ->  | BK50: =IF(BK$2="","",'INDUCED DEMAND_CALC'!BK100*PARAMETERS!$B$9*BK3) -> 
A51: EMISSION COST SAVINGS | B51: =SUM(D51:BK51) -> 2840506.954 | D51: =IF(D$2="","",SUM(D52:D53)) -> 0 | E51: =IF(E$2="","",SUM(E52:E53)) -> 0 | F51: 0 | G51: 0 | H51: 0 | I51: -105917.1956 | J51: 392750.8771 | K51: 268215.0764 | L51: 152220.759 | M51: 157143.3018 | N51: 166717.6066 | O51: 176886.9487 | P51: 186832.1857 | Q51: 200568.4304 | R51: 213993.2355 | S51: 415607.5551 | T51: -7124.505731 | U51: 11902.04399 | V51: 30995.33589 | W51: 50489.93437 | X51: 70245.32213 | Y51: 89875.99591 | Z51: 110174.2967 | AA51: 130270.7986 | AB51: 128658.9518
A52: AUTO | D52: =IF(D$2="","",EMISSIONS_CALC!D357*PARAMETERS!$B$9*D$3) -> 0 | E52: =IF(E$2="","",EMISSIONS_CALC!E357*PARAMETERS!$B$9*E$3) -> 0 | F52: =IF(F$2="","",EMISSIONS_CALC!F357*PARAMETERS!$B$9*F$3) -> 0 | G52: =IF(G$2="","",EMISSIONS_CALC!G357*PARAMETERS!$B$9*G$3) -> 0 | H52: =IF(H$2="","",EMISSIONS_CALC!H357*PARAMETERS!$B$9*H$3) -> 0 | I52: =IF(I$2="","",EMISSIONS_CALC!I357*PARAMETERS!$B$9*I$3) -> -50241.27462 | J52: =IF(J$2="","",EMISSIONS_CALC!J357*PARAMETERS!$B$9*J$3) -> 84171.10264 | K52: =IF(K$2="","",EMISSIONS_CALC!K357*PARAMETERS!$B$9*K$3) -> 35933.52693 | L52: =IF(L$2="","",EMISSIONS_CALC!L357*PARAMETERS!$B$9*L$3) -> -10862.4673 | M52: =IF(M$2="","",EMISSIONS_CALC!M357*PARAMETERS!$B$9*M$3) -> 1384.809749 | N52: =IF(N$2="","",EMISSIONS_CALC!N357*PARAMETERS!$B$9*N$3) -> 12793.00535 | O52: =IF(O$2="","",EMISSIONS_CALC!O357*PARAMETERS!$B$9*O$3) -> 24087.17334 | P52: =IF(P$2="","",EMISSIONS_CALC!P357*PARAMETERS!$B$9*P$3) -> 35037.8089 | Q52: =IF(Q$2="","",EMISSIONS_CALC!Q357*PARAMETERS!$B$9*Q$3) -> 46074.84574 | R52: =IF(R$2="","",EMISSIONS_CALC!R357*PARAMETERS!$B$9*R$3) -> 56828.85015 | S52: =IF(S$2="","",EMISSIONS_CALC!S357*PARAMETERS!$B$9*S$3) -> 164304.0426 | T52: =IF(T$2="","",EMISSIONS_CALC!T357*PARAMETERS!$B$9*T$3) -> -5310.833469 | U52: =IF(U$2="","",EMISSIONS_CALC!U357*PARAMETERS!$B$9*U$3) -> 6270.071388 | V52: =IF(V$2="","",EMISSIONS_CALC!V357*PARAMETERS!$B$9*V$3) -> 17901.91812 | W52: =IF(W$2="","",EMISSIONS_CALC!W357*PARAMETERS!$B$9*W$3) -> 29493.94319 | X52: =IF(X$2="","",EMISSIONS_CALC!X357*PARAMETERS!$B$9*X$3) -> 41240.66957 | Y52: =IF(Y$2="","",EMISSIONS_CALC!Y357*PARAMETERS!$B$9*Y$3) -> 52826.11122 | Z52: =IF(Z$2="","",EMISSIONS_CALC!Z357*PARAMETERS!$B$9*Z$3) -> 64698.05329 | AA52: =IF(AA$2="","",EMISSIONS_CALC!AA357*PARAMETERS!$B$9*AA$3) -> 76373.74103 | AB52: =IF(AB$2="","",EMISSIONS_CALC!AB357*PARAMETERS!$B$9*AB$3) -> 76226.47419 | AC52: =IF(AC$2="","",EMISSIONS_CALC!AC357*PARAMETERS!$B$9*AC$3) ->  | AD52: =IF(AD$2="","",EMISSIONS_CALC!AD357*PARAMETERS!$B$9*AD$3) ->  | AE52: =IF(AE$2="","",EMISSIONS_CALC!AE357*PARAMETERS!$B$9*AE$3) ->  | AF52: =IF(AF$2="","",EMISSIONS_CALC!AF357*PARAMETERS!$B$9*AF$3) ->  | AG52: =IF(AG$2="","",EMISSIONS_CALC!AG357*PARAMETERS!$B$9*AG$3) ->  | AH52: =IF(AH$2="","",EMISSIONS_CALC!AH357*PARAMETERS!$B$9*AH$3) ->  | AI52: =IF(AI$2="","",EMISSIONS_CALC!AI357*PARAMETERS!$B$9*AI$3) ->  | AJ52: =IF(AJ$2="","",EMISSIONS_CALC!AJ357*PARAMETERS!$B$9*AJ$3) ->  | AK52: =IF(AK$2="","",EMISSIONS_CALC!AK357*PARAMETERS!$B$9*AK$3) ->  | AL52: =IF(AL$2="","",EMISSIONS_CALC!AL357*PARAMETERS!$B$9*AL$3) ->  | AM52: =IF(AM$2="","",EMISSIONS_CALC!AM357*PARAMETERS!$B$9*AM$3) ->  | AN52: =IF(AN$2="","",EMISSIONS_CALC!AN357*PARAMETERS!$B$9*AN$3) ->  | AO52: =IF(AO$2="","",EMISSIONS_CALC!AO357*PARAMETERS!$B$9*AO$3) ->  | AP52: =IF(AP$2="","",EMISSIONS_CALC!AP357*PARAMETERS!$B$9*AP$3) ->  | AQ52: =IF(AQ$2="","",EMISSIONS_CALC!AQ357*PARAMETERS!$B$9*AQ$3) ->  | AR52: =IF(AR$2="","",EMISSIONS_CALC!AR357*PARAMETERS!$B$9*AR$3) ->  | AS52: =IF(AS$2="","",EMISSIONS_CALC!AS357*PARAMETERS!$B$9*AS$3) ->  | AT52: =IF(AT$2="","",EMISSIONS_CALC!AT357*PARAMETERS!$B$9*AT$3) ->  | AU52: =IF(AU$2="","",EMISSIONS_CALC!AU357*PARAMETERS!$B$9*AU$3) ->  | AV52: =IF(AV$2="","",EMISSIONS_CALC!AV357*PARAMETERS!$B$9*AV$3) ->  | AW52: =IF(AW$2="","",EMISSIONS_CALC!AW357*PARAMETERS!$B$9*AW$3) ->  | AX52: =IF(AX$2="","",EMISSIONS_CALC!AX357*PARAMETERS!$B$9*AX$3) ->  | AY52: =IF(AY$2="","",EMISSIONS_CALC!AY357*PARAMETERS!$B$9*AY$3) ->  | AZ52: =IF(AZ$2="","",EMISSIONS_CALC!AZ357*PARAMETERS!$B$9*AZ$3) ->  | BA52: =IF(BA$2="","",EMISSIONS_CALC!BA357*PARAMETERS!$B$9*BA$3) ->  | BB52: =IF(BB$2="","",EMISSIONS_CALC!BB357*PARAMETERS!$B$9*BB$3) ->  | BC52: =IF(BC$2="","",EMISSIONS_CALC!BC357*PARAMETERS!$B$9*BC$3) ->  | BD52: =IF(BD$2="","",EMISSIONS_CALC!BD357*PARAMETERS!$B$9*BD$3) ->  | BE52: =IF(BE$2="","",EMISSIONS_CALC!BE357*PARAMETERS!$B$9*BE$3) ->  | BF52: =IF(BF$2="","",EMISSIONS_CALC!BF357*PARAMETERS!$B$9*BF$3) ->  | BG52: =IF(BG$2="","",EMISSIONS_CALC!BG357*PARAMETERS!$B$9*BG$3) ->  | BH52: =IF(BH$2="","",EMISSIONS_CALC!BH357*PARAMETERS!$B$9*BH$3) ->  | BI52: =IF(BI$2="","",EMISSIONS_CALC!BI357*PARAMETERS!$B$9*BI$3) ->  | BJ52: =IF(BJ$2="","",EMISSIONS_CALC!BJ357*PARAMETERS!$B$9*BJ$3) ->  | BK52: =IF(BK$2="","",EMISSIONS_CALC!BK357*PARAMETERS!$B$9*BK$3) -> 
A53: TRUCK | D53: =IF(D$2="","",EMISSIONS_CALC!D360*PARAMETERS!$B$9*D$3) -> 0 | E53: =IF(E$2="","",EMISSIONS_CALC!E360*PARAMETERS!$B$9*E$3) -> 0 | F53: =IF(F$2="","",EMISSIONS_CALC!F360*PARAMETERS!$B$9*F$3) -> 0 | G53: =IF(G$2="","",EMISSIONS_CALC!G360*PARAMETERS!$B$9*G$3) -> 0 | H53: =IF(H$2="","",EMISSIONS_CALC!H360*PARAMETERS!$B$9*H$3) -> 0 | I53: =IF(I$2="","",EMISSIONS_CALC!I360*PARAMETERS!$B$9*I$3) -> -55675.92097 | J53: =IF(J$2="","",EMISSIONS_CALC!J360*PARAMETERS!$B$9*J$3) -> 308579.7744 | K53: =IF(K$2="","",EMISSIONS_CALC!K360*PARAMETERS!$B$9*K$3) -> 232281.5495 | L53: =IF(L$2="","",EMISSIONS_CALC!L360*PARAMETERS!$B$9*L$3) -> 163083.2263 | M53: =IF(M$2="","",EMISSIONS_CALC!M360*PARAMETERS!$B$9*M$3) -> 155758.4921 | N53: =IF(N$2="","",EMISSIONS_CALC!N360*PARAMETERS!$B$9*N$3) -> 153924.6012 | O53: =IF(O$2="","",EMISSIONS_CALC!O360*PARAMETERS!$B$9*O$3) -> 152799.7754 | P53: =IF(P$2="","",EMISSIONS_CALC!P360*PARAMETERS!$B$9*P$3) -> 151794.3768 | Q53: =IF(Q$2="","",EMISSIONS_CALC!Q360*PARAMETERS!$B$9*Q$3) -> 154493.5847 | R53: =IF(R$2="","",EMISSIONS_CALC!R360*PARAMETERS!$B$9*R$3) -> 157164.3854 | S53: =IF(S$2="","",EMISSIONS_CALC!S360*PARAMETERS!$B$9*S$3) -> 251303.5125 | T53: =IF(T$2="","",EMISSIONS_CALC!T360*PARAMETERS!$B$9*T$3) -> -1813.672262 | U53: =IF(U$2="","",EMISSIONS_CALC!U360*PARAMETERS!$B$9*U$3) -> 5631.972602 | V53: =IF(V$2="","",EMISSIONS_CALC!V360*PARAMETERS!$B$9*V$3) -> 13093.41777 | W53: =IF(W$2="","",EMISSIONS_CALC!W360*PARAMETERS!$B$9*W$3) -> 20995.99118 | X53: =IF(X$2="","",EMISSIONS_CALC!X360*PARAMETERS!$B$9*X$3) -> 29004.65255 | Y53: =IF(Y$2="","",EMISSIONS_CALC!Y360*PARAMETERS!$B$9*Y$3) -> 37049.88468 | Z53: =IF(Z$2="","",EMISSIONS_CALC!Z360*PARAMETERS!$B$9*Z$3) -> 45476.24344 | AA53: =IF(AA$2="","",EMISSIONS_CALC!AA360*PARAMETERS!$B$9*AA$3) -> 53897.05754 | AB53: =IF(AB$2="","",EMISSIONS_CALC!AB360*PARAMETERS!$B$9*AB$3) -> 52432.47756 | AC53: =IF(AC$2="","",EMISSIONS_CALC!AC360*PARAMETERS!$B$9*AC$3) ->  | AD53: =IF(AD$2="","",EMISSIONS_CALC!AD360*PARAMETERS!$B$9*AD$3) ->  | AE53: =IF(AE$2="","",EMISSIONS_CALC!AE360*PARAMETERS!$B$9*AE$3) ->  | AF53: =IF(AF$2="","",EMISSIONS_CALC!AF360*PARAMETERS!$B$9*AF$3) ->  | AG53: =IF(AG$2="","",EMISSIONS_CALC!AG360*PARAMETERS!$B$9*AG$3) ->  | AH53: =IF(AH$2="","",EMISSIONS_CALC!AH360*PARAMETERS!$B$9*AH$3) ->  | AI53: =IF(AI$2="","",EMISSIONS_CALC!AI360*PARAMETERS!$B$9*AI$3) ->  | AJ53: =IF(AJ$2="","",EMISSIONS_CALC!AJ360*PARAMETERS!$B$9*AJ$3) ->  | AK53: =IF(AK$2="","",EMISSIONS_CALC!AK360*PARAMETERS!$B$9*AK$3) ->  | AL53: =IF(AL$2="","",EMISSIONS_CALC!AL360*PARAMETERS!$B$9*AL$3) ->  | AM53: =IF(AM$2="","",EMISSIONS_CALC!AM360*PARAMETERS!$B$9*AM$3) ->  | AN53: =IF(AN$2="","",EMISSIONS_CALC!AN360*PARAMETERS!$B$9*AN$3) ->  | AO53: =IF(AO$2="","",EMISSIONS_CALC!AO360*PARAMETERS!$B$9*AO$3) ->  | AP53: =IF(AP$2="","",EMISSIONS_CALC!AP360*PARAMETERS!$B$9*AP$3) ->  | AQ53: =IF(AQ$2="","",EMISSIONS_CALC!AQ360*PARAMETERS!$B$9*AQ$3) ->  | AR53: =IF(AR$2="","",EMISSIONS_CALC!AR360*PARAMETERS!$B$9*AR$3) ->  | AS53: =IF(AS$2="","",EMISSIONS_CALC!AS360*PARAMETERS!$B$9*AS$3) ->  | AT53: =IF(AT$2="","",EMISSIONS_CALC!AT360*PARAMETERS!$B$9*AT$3) ->  | AU53: =IF(AU$2="","",EMISSIONS_CALC!AU360*PARAMETERS!$B$9*AU$3) ->  | AV53: =IF(AV$2="","",EMISSIONS_CALC!AV360*PARAMETERS!$B$9*AV$3) ->  | AW53: =IF(AW$2="","",EMISSIONS_CALC!AW360*PARAMETERS!$B$9*AW$3) ->  | AX53: =IF(AX$2="","",EMISSIONS_CALC!AX360*PARAMETERS!$B$9*AX$3) ->  | AY53: =IF(AY$2="","",EMISSIONS_CALC!AY360*PARAMETERS!$B$9*AY$3) ->  | AZ53: =IF(AZ$2="","",EMISSIONS_CALC!AZ360*PARAMETERS!$B$9*AZ$3) ->  | BA53: =IF(BA$2="","",EMISSIONS_CALC!BA360*PARAMETERS!$B$9*BA$3) ->  | BB53: =IF(BB$2="","",EMISSIONS_CALC!BB360*PARAMETERS!$B$9*BB$3) ->  | BC53: =IF(BC$2="","",EMISSIONS_CALC!BC360*PARAMETERS!$B$9*BC$3) ->  | BD53: =IF(BD$2="","",EMISSIONS_CALC!BD360*PARAMETERS!$B$9*BD$3) ->  | BE53: =IF(BE$2="","",EMISSIONS_CALC!BE360*PARAMETERS!$B$9*BE$3) ->  | BF53: =IF(BF$2="","",EMISSIONS_CALC!BF360*PARAMETERS!$B$9*BF$3) ->  | BG53: =IF(BG$2="","",EMISSIONS_CALC!BG360*PARAMETERS!$B$9*BG$3) ->  | BH53: =IF(BH$2="","",EMISSIONS_CALC!BH360*PARAMETERS!$B$9*BH$3) ->  | BI53: =IF(BI$2="","",EMISSIONS_CALC!BI360*PARAMETERS!$B$9*BI$3) ->  | BJ53: =IF(BJ$2="","",EMISSIONS_CALC!BJ360*PARAMETERS!$B$9*BJ$3) ->  | BK53: =IF(BK$2="","",EMISSIONS_CALC!BK360*PARAMETERS!$B$9*BK$3) -> 
A54: SAFETY BENEFITS | B54: =SUM(D54:BK54) -> -37575223.31 | D54: =IF(D2="","",SAFETY_CALC!D145*PARAMETERS!$B$9*D3) -> 0 | E54: =IF(E2="","",SAFETY_CALC!E145*PARAMETERS!$B$9*E3) -> 0 | F54: =IF(F2="","",SAFETY_CALC!F145*PARAMETERS!$B$9*F3) -> 0 | G54: =IF(G2="","",SAFETY_CALC!G145*PARAMETERS!$B$9*G3) -> 0 | H54: =IF(H2="","",SAFETY_CALC!H145*PARAMETERS!$B$9*H3) -> 0 | I54: =IF(I2="","",SAFETY_CALC!I145*PARAMETERS!$B$9*I3) -> -1122458.205 | J54: =IF(J2="","",SAFETY_CALC!J145*PARAMETERS!$B$9*J3) -> -2167898.463 | K54: =IF(K2="","",SAFETY_CALC!K145*PARAMETERS!$B$9*K3) -> -3140298.989 | L54: =IF(L2="","",SAFETY_CALC!L145*PARAMETERS!$B$9*L3) -> -4043454.635 | M54: =IF(M2="","",SAFETY_CALC!M145*PARAMETERS!$B$9*M3) -> -3671722.156 | N54: =IF(N2="","",SAFETY_CALC!N145*PARAMETERS!$B$9*N3) -> -3322546.34 | O54: =IF(O2="","",SAFETY_CALC!O145*PARAMETERS!$B$9*O3) -> -2994743.498 | P54: =IF(P2="","",SAFETY_CALC!P145*PARAMETERS!$B$9*P3) -> -2687187.597 | Q54: =IF(Q2="","",SAFETY_CALC!Q145*PARAMETERS!$B$9*Q3) -> -2398807.58 | R54: =IF(R2="","",SAFETY_CALC!R145*PARAMETERS!$B$9*R3) -> -2128584.795 | S54: =IF(S2="","",SAFETY_CALC!S145*PARAMETERS!$B$9*S3) -> -1875550.555 | T54: =IF(T2="","",SAFETY_CALC!T145*PARAMETERS!$B$9*T3) -> -1638783.796 | U54: =IF(U2="","",SAFETY_CALC!U145*PARAMETERS!$B$9*U3) -> -1417408.851 | V54: =IF(V2="","",SAFETY_CALC!V145*PARAMETERS!$B$9*V3) -> -1210593.316 | W54: =IF(W2="","",SAFETY_CALC!W145*PARAMETERS!$B$9*W3) -> -1017546.022 | X54: =IF(X2="","",SAFETY_CALC!X145*PARAMETERS!$B$9*X3) -> -837515.0904 | Y54: =IF(Y2="","",SAFETY_CALC!Y145*PARAMETERS!$B$9*Y3) -> -669786.0831 | Z54: =IF(Z2="","",SAFETY_CALC!Z145*PARAMETERS!$B$9*Z3) -> -513680.2351 | AA54: =IF(AA2="","",SAFETY_CALC!AA145*PARAMETERS!$B$9*AA3) -> -368552.767 | AB54: =IF(AB2="","",SAFETY_CALC!AB145*PARAMETERS!$B$9*AB3) -> -348104.3366 | AC54: =IF(AC2="","",SAFETY_CALC!AC145*PARAMETERS!$B$9*AC3) ->  | AD54: =IF(AD2="","",SAFETY_CALC!AD145*PARAMETERS!$B$9*AD3) ->  | AE54: =IF(AE2="","",SAFETY_CALC!AE145*PARAMETERS!$B$9*AE3) ->  | AF54: =IF(AF2="","",SAFETY_CALC!AF145*PARAMETERS!$B$9*AF3) ->  | AG54: =IF(AG2="","",SAFETY_CALC!AG145*PARAMETERS!$B$9*AG3) ->  | AH54: =IF(AH2="","",SAFETY_CALC!AH145*PARAMETERS!$B$9*AH3) ->  | AI54: =IF(AI2="","",SAFETY_CALC!AI145*PARAMETERS!$B$9*AI3) ->  | AJ54: =IF(AJ2="","",SAFETY_CALC!AJ145*PARAMETERS!$B$9*AJ3) ->  | AK54: =IF(AK2="","",SAFETY_CALC!AK145*PARAMETERS!$B$9*AK3) ->  | AL54: =IF(AL2="","",SAFETY_CALC!AL145*PARAMETERS!$B$9*AL3) ->  | AM54: =IF(AM2="","",SAFETY_CALC!AM145*PARAMETERS!$B$9*AM3) ->  | AN54: =IF(AN2="","",SAFETY_CALC!AN145*PARAMETERS!$B$9*AN3) ->  | AO54: =IF(AO2="","",SAFETY_CALC!AO145*PARAMETERS!$B$9*AO3) ->  | AP54: =IF(AP2="","",SAFETY_CALC!AP145*PARAMETERS!$B$9*AP3) ->  | AQ54: =IF(AQ2="","",SAFETY_CALC!AQ145*PARAMETERS!$B$9*AQ3) ->  | AR54: =IF(AR2="","",SAFETY_CALC!AR145*PARAMETERS!$B$9*AR3) ->  | AS54: =IF(AS2="","",SAFETY_CALC!AS145*PARAMETERS!$B$9*AS3) ->  | AT54: =IF(AT2="","",SAFETY_CALC!AT145*PARAMETERS!$B$9*AT3) ->  | AU54: =IF(AU2="","",SAFETY_CALC!AU145*PARAMETERS!$B$9*AU3) ->  | AV54: =IF(AV2="","",SAFETY_CALC!AV145*PARAMETERS!$B$9*AV3) ->  | AW54: =IF(AW2="","",SAFETY_CALC!AW145*PARAMETERS!$B$9*AW3) ->  | AX54: =IF(AX2="","",SAFETY_CALC!AX145*PARAMETERS!$B$9*AX3) ->  | AY54: =IF(AY2="","",SAFETY_CALC!AY145*PARAMETERS!$B$9*AY3) ->  | AZ54: =IF(AZ2="","",SAFETY_CALC!AZ145*PARAMETERS!$B$9*AZ3) ->  | BA54: =IF(BA2="","",SAFETY_CALC!BA145*PARAMETERS!$B$9*BA3) ->  | BB54: =IF(BB2="","",SAFETY_CALC!BB145*PARAMETERS!$B$9*BB3) ->  | BC54: =IF(BC2="","",SAFETY_CALC!BC145*PARAMETERS!$B$9*BC3) ->  | BD54: =IF(BD2="","",SAFETY_CALC!BD145*PARAMETERS!$B$9*BD3) ->  | BE54: =IF(BE2="","",SAFETY_CALC!BE145*PARAMETERS!$B$9*BE3) ->  | BF54: =IF(BF2="","",SAFETY_CALC!BF145*PARAMETERS!$B$9*BF3) ->  | BG54: =IF(BG2="","",SAFETY_CALC!BG145*PARAMETERS!$B$9*BG3) ->  | BH54: =IF(BH2="","",SAFETY_CALC!BH145*PARAMETERS!$B$9*BH3) ->  | BI54: =IF(BI2="","",SAFETY_CALC!BI145*PARAMETERS!$B$9*BI3) ->  | BJ54: =IF(BJ2="","",SAFETY_CALC!BJ145*PARAMETERS!$B$9*BJ3) ->  | BK54: =IF(BK2="","",SAFETY_CALC!BK145*PARAMETERS!$B$9*BK3) -> 
A55: FREIGHT LOGISTICS BENEFITS (NOT ESTIMATED) | B55: =SUM(D55:BK55) -> 0 | D55: =IF(D2="","",'FREIGHT LOGISTICS_CALC'!D16*PARAMETERS!$B$9*D3) -> 0 | E55: =IF(E2="","",'FREIGHT LOGISTICS_CALC'!E16*PARAMETERS!$B$9*E3) -> 0 | F55: =IF(F2="","",'FREIGHT LOGISTICS_CALC'!F16*PARAMETERS!$B$9*F3) -> 0 | G55: =IF(G2="","",'FREIGHT LOGISTICS_CALC'!G16*PARAMETERS!$B$9*G3) -> 0 | H55: =IF(H2="","",'FREIGHT LOGISTICS_CALC'!H16*PARAMETERS!$B$9*H3) -> 0 | I55: =IF(I2="","",'FREIGHT LOGISTICS_CALC'!I16*PARAMETERS!$B$9*I3) -> 0 | J55: =IF(J2="","",'FREIGHT LOGISTICS_CALC'!J16*PARAMETERS!$B$9*J3) -> 0 | K55: =IF(K2="","",'FREIGHT LOGISTICS_CALC'!K16*PARAMETERS!$B$9*K3) -> 0 | L55: =IF(L2="","",'FREIGHT LOGISTICS_CALC'!L16*PARAMETERS!$B$9*L3) -> 0 | M55: =IF(M2="","",'FREIGHT LOGISTICS_CALC'!M16*PARAMETERS!$B$9*M3) -> 0 | N55: =IF(N2="","",'FREIGHT LOGISTICS_CALC'!N16*PARAMETERS!$B$9*N3) -> 0 | O55: =IF(O2="","",'FREIGHT LOGISTICS_CALC'!O16*PARAMETERS!$B$9*O3) -> 0 | P55: =IF(P2="","",'FREIGHT LOGISTICS_CALC'!P16*PARAMETERS!$B$9*P3) -> 0 | Q55: =IF(Q2="","",'FREIGHT LOGISTICS_CALC'!Q16*PARAMETERS!$B$9*Q3) -> 0 | R55: =IF(R2="","",'FREIGHT LOGISTICS_CALC'!R16*PARAMETERS!$B$9*R3) -> 0 | S55: =IF(S2="","",'FREIGHT LOGISTICS_CALC'!S16*PARAMETERS!$B$9*S3) -> 0 | T55: =IF(T2="","",'FREIGHT LOGISTICS_CALC'!T16*PARAMETERS!$B$9*T3) -> 0 | U55: =IF(U2="","",'FREIGHT LOGISTICS_CALC'!U16*PARAMETERS!$B$9*U3) -> 0 | V55: =IF(V2="","",'FREIGHT LOGISTICS_CALC'!V16*PARAMETERS!$B$9*V3) -> 0 | W55: =IF(W2="","",'FREIGHT LOGISTICS_CALC'!W16*PARAMETERS!$B$9*W3) -> 0 | X55: =IF(X2="","",'FREIGHT LOGISTICS_CALC'!X16*PARAMETERS!$B$9*X3) -> 0 | Y55: =IF(Y2="","",'FREIGHT LOGISTICS_CALC'!Y16*PARAMETERS!$B$9*Y3) -> 0 | Z55: =IF(Z2="","",'FREIGHT LOGISTICS_CALC'!Z16*PARAMETERS!$B$9*Z3) -> 0 | AA55: =IF(AA2="","",'FREIGHT LOGISTICS_CALC'!AA16*PARAMETERS!$B$9*AA3) -> 0 | AB55: =IF(AB2="","",'FREIGHT LOGISTICS_CALC'!AB16*PARAMETERS!$B$9*AB3) -> 0 | AC55: =IF(AC2="","",'FREIGHT LOGISTICS_CALC'!AC16*PARAMETERS!$B$9*AC3) ->  | AD55: =IF(AD2="","",'FREIGHT LOGISTICS_CALC'!AD16*PARAMETERS!$B$9*AD3) ->  | AE55: =IF(AE2="","",'FREIGHT LOGISTICS_CALC'!AE16*PARAMETERS!$B$9*AE3) ->  | AF55: =IF(AF2="","",'FREIGHT LOGISTICS_CALC'!AF16*PARAMETERS!$B$9*AF3) ->  | AG55: =IF(AG2="","",'FREIGHT LOGISTICS_CALC'!AG16*PARAMETERS!$B$9*AG3) ->  | AH55: =IF(AH2="","",'FREIGHT LOGISTICS_CALC'!AH16*PARAMETERS!$B$9*AH3) ->  | AI55: =IF(AI2="","",'FREIGHT LOGISTICS_CALC'!AI16*PARAMETERS!$B$9*AI3) ->  | AJ55: =IF(AJ2="","",'FREIGHT LOGISTICS_CALC'!AJ16*PARAMETERS!$B$9*AJ3) ->  | AK55: =IF(AK2="","",'FREIGHT LOGISTICS_CALC'!AK16*PARAMETERS!$B$9*AK3) ->  | AL55: =IF(AL2="","",'FREIGHT LOGISTICS_CALC'!AL16*PARAMETERS!$B$9*AL3) ->  | AM55: =IF(AM2="","",'FREIGHT LOGISTICS_CALC'!AM16*PARAMETERS!$B$9*AM3) ->  | AN55: =IF(AN2="","",'FREIGHT LOGISTICS_CALC'!AN16*PARAMETERS!$B$9*AN3) ->  | AO55: =IF(AO2="","",'FREIGHT LOGISTICS_CALC'!AO16*PARAMETERS!$B$9*AO3) ->  | AP55: =IF(AP2="","",'FREIGHT LOGISTICS_CALC'!AP16*PARAMETERS!$B$9*AP3) ->  | AQ55: =IF(AQ2="","",'FREIGHT LOGISTICS_CALC'!AQ16*PARAMETERS!$B$9*AQ3) ->  | AR55: =IF(AR2="","",'FREIGHT LOGISTICS_CALC'!AR16*PARAMETERS!$B$9*AR3) ->  | AS55: =IF(AS2="","",'FREIGHT LOGISTICS_CALC'!AS16*PARAMETERS!$B$9*AS3) ->  | AT55: =IF(AT2="","",'FREIGHT LOGISTICS_CALC'!AT16*PARAMETERS!$B$9*AT3) ->  | AU55: =IF(AU2="","",'FREIGHT LOGISTICS_CALC'!AU16*PARAMETERS!$B$9*AU3) ->  | AV55: =IF(AV2="","",'FREIGHT LOGISTICS_CALC'!AV16*PARAMETERS!$B$9*AV3) ->  | AW55: =IF(AW2="","",'FREIGHT LOGISTICS_CALC'!AW16*PARAMETERS!$B$9*AW3) ->  | AX55: =IF(AX2="","",'FREIGHT LOGISTICS_CALC'!AX16*PARAMETERS!$B$9*AX3) ->  | AY55: =IF(AY2="","",'FREIGHT LOGISTICS_CALC'!AY16*PARAMETERS!$B$9*AY3) ->  | AZ55: =IF(AZ2="","",'FREIGHT LOGISTICS_CALC'!AZ16*PARAMETERS!$B$9*AZ3) ->  | BA55: =IF(BA2="","",'FREIGHT LOGISTICS_CALC'!BA16*PARAMETERS!$B$9*BA3) ->  | BB55: =IF(BB2="","",'FREIGHT LOGISTICS_CALC'!BB16*PARAMETERS!$B$9*BB3) ->  | BC55: =IF(BC2="","",'FREIGHT LOGISTICS_CALC'!BC16*PARAMETERS!$B$9*BC3) ->  | BD55: =IF(BD2="","",'FREIGHT LOGISTICS_CALC'!BD16*PARAMETERS!$B$9*BD3) ->  | BE55: =IF(BE2="","",'FREIGHT LOGISTICS_CALC'!BE16*PARAMETERS!$B$9*BE3) ->  | BF55: =IF(BF2="","",'FREIGHT LOGISTICS_CALC'!BF16*PARAMETERS!$B$9*BF3) ->  | BG55: =IF(BG2="","",'FREIGHT LOGISTICS_CALC'!BG16*PARAMETERS!$B$9*BG3) ->  | BH55: =IF(BH2="","",'FREIGHT LOGISTICS_CALC'!BH16*PARAMETERS!$B$9*BH3) ->  | BI55: =IF(BI2="","",'FREIGHT LOGISTICS_CALC'!BI16*PARAMETERS!$B$9*BI3) ->  | BJ55: =IF(BJ2="","",'FREIGHT LOGISTICS_CALC'!BJ16*PARAMETERS!$B$9*BJ3) ->  | BK55: =IF(BK2="","",'FREIGHT LOGISTICS_CALC'!BK16*PARAMETERS!$B$9*BK3) -> 
A56: LAND USE DEVELOPMENT BENEFITS | B56: =SUM(D56:BK56) -> 36581057.68 | D56: =IF(D$2="","",'HOUSING DEVELOPMENT BENEFITS'!D21*D3*D4) -> 0 | E56: =IF(E$2="","",'HOUSING DEVELOPMENT BENEFITS'!E21*E3*E4) -> 0 | F56: =IF(F$2="","",'HOUSING DEVELOPMENT BENEFITS'!F21*F3*F4) -> 0 | G56: =IF(G$2="","",'HOUSING DEVELOPMENT BENEFITS'!G21*G3*G4) -> 0 | H56: =IF(H$2="","",'HOUSING DEVELOPMENT BENEFITS'!H21*H3*H4) -> 0 | I56: =IF(I$2="","",'HOUSING DEVELOPMENT BENEFITS'!I21*I3*I4) -> 4022528.985 | J56: =IF(J$2="","",'HOUSING DEVELOPMENT BENEFITS'!J21*J3*J4) -> 3759372.883 | K56: =IF(K$2="","",'HOUSING DEVELOPMENT BENEFITS'!K21*K3*K4) -> 3513432.601 | L56: =IF(L$2="","",'HOUSING DEVELOPMENT BENEFITS'!L21*L3*L4) -> 3533567.249 | M56: =IF(M$2="","",'HOUSING DEVELOPMENT BENEFITS'!M21*M3*M4) -> 3302399.298 | N56: =IF(N$2="","",'HOUSING DEVELOPMENT BENEFITS'!N21*N3*N4) -> 3086354.485 | O56: =IF(O$2="","",'HOUSING DEVELOPMENT BENEFITS'!O21*O3*O4) -> 2884443.443 | P56: =IF(P$2="","",'HOUSING DEVELOPMENT BENEFITS'!P21*P3*P4) -> 2695741.536 | Q56: =IF(Q$2="","",'HOUSING DEVELOPMENT BENEFITS'!Q21*Q3*Q4) -> 2229939.846 | R56: =IF(R$2="","",'HOUSING DEVELOPMENT BENEFITS'!R21*R3*R4) -> 2084055.931 | S56: =IF(S$2="","",'HOUSING DEVELOPMENT BENEFITS'!S21*S3*S4) -> 1947715.824 | T56: =IF(T$2="","",'HOUSING DEVELOPMENT BENEFITS'!T21*T3*T4) -> 1820295.162 | U56: =IF(U$2="","",'HOUSING DEVELOPMENT BENEFITS'!U21*U3*U4) -> 1701210.432 | V56: =IF(V$2="","",'HOUSING DEVELOPMENT BENEFITS'!V21*V3*V4) -> 0 | W56: =IF(W$2="","",'HOUSING DEVELOPMENT BENEFITS'!W21*W3*W4) -> 0 | X56: =IF(X$2="","",'HOUSING DEVELOPMENT BENEFITS'!X21*X3*X4) -> 0 | Y56: =IF(Y$2="","",'HOUSING DEVELOPMENT BENEFITS'!Y21*Y3*Y4) -> 0 | Z56: =IF(Z$2="","",'HOUSING DEVELOPMENT BENEFITS'!Z21*Z3*Z4) -> 0 | AA56: =IF(AA$2="","",'HOUSING DEVELOPMENT BENEFITS'!AA21*AA3*AA4) -> 0 | AB56: =IF(AB$2="","",'HOUSING DEVELOPMENT BENEFITS'!AB21*AB3*AB4) -> 0 | AC56: =IF(AC$2="","",'TOLL REVENUE_CALC'!AC43*PARAMETERS!$B$9*AC3) ->  | AD56: =IF(AD$2="","",'TOLL REVENUE_CALC'!AD43*PARAMETERS!$B$9*AD3) ->  | AE56: =IF(AE$2="","",'TOLL REVENUE_CALC'!AE43*PARAMETERS!$B$9*AE3) ->  | AF56: =IF(AF$2="","",'TOLL REVENUE_CALC'!AF43*PARAMETERS!$B$9*AF3) ->  | AG56: =IF(AG$2="","",'TOLL REVENUE_CALC'!AG43*PARAMETERS!$B$9*AG3) ->  | AH56: =IF(AH$2="","",'TOLL REVENUE_CALC'!AH43*PARAMETERS!$B$9*AH3) ->  | AI56: =IF(AI$2="","",'TOLL REVENUE_CALC'!AI43*PARAMETERS!$B$9*AI3) ->  | AJ56: =IF(AJ$2="","",'TOLL REVENUE_CALC'!AJ43*PARAMETERS!$B$9*AJ3) ->  | AK56: =IF(AK$2="","",'TOLL REVENUE_CALC'!AK43*PARAMETERS!$B$9*AK3) ->  | AL56: =IF(AL$2="","",'TOLL REVENUE_CALC'!AL43*PARAMETERS!$B$9*AL3) ->  | AM56: =IF(AM$2="","",'TOLL REVENUE_CALC'!AM43*PARAMETERS!$B$9*AM3) ->  | AN56: =IF(AN$2="","",'TOLL REVENUE_CALC'!AN43*PARAMETERS!$B$9*AN3) ->  | AO56: =IF(AO$2="","",'TOLL REVENUE_CALC'!AO43*PARAMETERS!$B$9*AO3) ->  | AP56: =IF(AP$2="","",'TOLL REVENUE_CALC'!AP43*PARAMETERS!$B$9*AP3) ->  | AQ56: =IF(AQ$2="","",'TOLL REVENUE_CALC'!AQ43*PARAMETERS!$B$9*AQ3) ->  | AR56: =IF(AR$2="","",'TOLL REVENUE_CALC'!AR43*PARAMETERS!$B$9*AR3) ->  | AS56: =IF(AS$2="","",'TOLL REVENUE_CALC'!AS43*PARAMETERS!$B$9*AS3) ->  | AT56: =IF(AT$2="","",'TOLL REVENUE_CALC'!AT43*PARAMETERS!$B$9*AT3) ->  | AU56: =IF(AU$2="","",'TOLL REVENUE_CALC'!AU43*PARAMETERS!$B$9*AU3) ->  | AV56: =IF(AV$2="","",'TOLL REVENUE_CALC'!AV43*PARAMETERS!$B$9*AV3) ->  | AW56: =IF(AW$2="","",'TOLL REVENUE_CALC'!AW43*PARAMETERS!$B$9*AW3) ->  | AX56: =IF(AX$2="","",'TOLL REVENUE_CALC'!AX43*PARAMETERS!$B$9*AX3) ->  | AY56: =IF(AY$2="","",'TOLL REVENUE_CALC'!AY43*PARAMETERS!$B$9*AY3) ->  | AZ56: =IF(AZ$2="","",'TOLL REVENUE_CALC'!AZ43*PARAMETERS!$B$9*AZ3) ->  | BA56: =IF(BA$2="","",'TOLL REVENUE_CALC'!BA43*PARAMETERS!$B$9*BA3) ->  | BB56: =IF(BB$2="","",'TOLL REVENUE_CALC'!BB43*PARAMETERS!$B$9*BB3) ->  | BC56: =IF(BC$2="","",'TOLL REVENUE_CALC'!BC43*PARAMETERS!$B$9*BC3) ->  | BD56: =IF(BD$2="","",'TOLL REVENUE_CALC'!BD43*PARAMETERS!$B$9*BD3) ->  | BE56: =IF(BE$2="","",'TOLL REVENUE_CALC'!BE43*PARAMETERS!$B$9*BE3) ->  | BF56: =IF(BF$2="","",'TOLL REVENUE_CALC'!BF43*PARAMETERS!$B$9*BF3) ->  | BG56: =IF(BG$2="","",'TOLL REVENUE_CALC'!BG43*PARAMETERS!$B$9*BG3) ->  | BH56: =IF(BH$2="","",'TOLL REVENUE_CALC'!BH43*PARAMETERS!$B$9*BH3) ->  | BI56: =IF(BI$2="","",'TOLL REVENUE_CALC'!BI43*PARAMETERS!$B$9*BI3) ->  | BJ56: =IF(BJ$2="","",'TOLL REVENUE_CALC'!BJ43*PARAMETERS!$B$9*BJ3) ->  | BK56: =IF(BK$2="","",'TOLL REVENUE_CALC'!BK43*PARAMETERS!$B$9*BK3) -> 
A57: RESIDUAL VALUE | B57: =SUM(D57:BK57) -> 1784176.911 | D57: =IF(D$2="","",'RESIDUAL VALUE_CALC'!D10) -> 0 | E57: =IF(E$2="","",'RESIDUAL VALUE_CALC'!E10) -> 0 | F57: =IF(F$2="","",'RESIDUAL VALUE_CALC'!F10) -> 0 | G57: =IF(G$2="","",'RESIDUAL VALUE_CALC'!G10) -> 0 | H57: =IF(H$2="","",'RESIDUAL VALUE_CALC'!H10) -> 0 | I57: =IF(I$2="","",'RESIDUAL VALUE_CALC'!I10) -> 0 | J57: =IF(J$2="","",'RESIDUAL VALUE_CALC'!J10) -> 0 | K57: =IF(K$2="","",'RESIDUAL VALUE_CALC'!K10) -> 0 | L57: =IF(L$2="","",'RESIDUAL VALUE_CALC'!L10) -> 0 | M57: =IF(M$2="","",'RESIDUAL VALUE_CALC'!M10) -> 0 | N57: =IF(N$2="","",'RESIDUAL VALUE_CALC'!N10) -> 0 | O57: =IF(O$2="","",'RESIDUAL VALUE_CALC'!O10) -> 0 | P57: =IF(P$2="","",'RESIDUAL VALUE_CALC'!P10) -> 0 | Q57: =IF(Q$2="","",'RESIDUAL VALUE_CALC'!Q10) -> 0 | R57: =IF(R$2="","",'RESIDUAL VALUE_CALC'!R10) -> 0 | S57: =IF(S$2="","",'RESIDUAL VALUE_CALC'!S10) -> 0 | T57: =IF(T$2="","",'RESIDUAL VALUE_CALC'!T10) -> 0 | U57: =IF(U$2="","",'RESIDUAL VALUE_CALC'!U10) -> 0 | V57: =IF(V$2="","",'RESIDUAL VALUE_CALC'!V10) -> 0 | W57: =IF(W$2="","",'RESIDUAL VALUE_CALC'!W10) -> 0 | X57: =IF(X$2="","",'RESIDUAL VALUE_CALC'!X10) -> 0 | Y57: =IF(Y$2="","",'RESIDUAL VALUE_CALC'!Y10) -> 0 | Z57: =IF(Z$2="","",'RESIDUAL VALUE_CALC'!Z10) -> 0 | AA57: =IF(AA$2="","",'RESIDUAL VALUE_CALC'!AA10) -> 0 | AB57: =IF(AB$2="","",'RESIDUAL VALUE_CALC'!AB10) -> 1784176.911 | AC57: =IF(AC$2="","",'RESIDUAL VALUE_CALC'!AC10) ->  | AD57: =IF(AD$2="","",'RESIDUAL VALUE_CALC'!AD10) ->  | AE57: =IF(AE$2="","",'RESIDUAL VALUE_CALC'!AE10) ->  | AF57: =IF(AF$2="","",'RESIDUAL VALUE_CALC'!AF10) ->  | AG57: =IF(AG$2="","",'RESIDUAL VALUE_CALC'!AG10) ->  | AH57: =IF(AH$2="","",'RESIDUAL VALUE_CALC'!AH10) ->  | AI57: =IF(AI$2="","",'RESIDUAL VALUE_CALC'!AI10) ->  | AJ57: =IF(AJ$2="","",'RESIDUAL VALUE_CALC'!AJ10) ->  | AK57: =IF(AK$2="","",'RESIDUAL VALUE_CALC'!AK10) ->  | AL57: =IF(AL$2="","",'RESIDUAL VALUE_CALC'!AL10) ->  | AM57: =IF(AM$2="","",'RESIDUAL VALUE_CALC'!AM10) ->  | AN57: =IF(AN$2="","",'RESIDUAL VALUE_CALC'!AN10) ->  | AO57: =IF(AO$2="","",'RESIDUAL VALUE_CALC'!AO10) ->  | AP57: =IF(AP$2="","",'RESIDUAL VALUE_CALC'!AP10) ->  | AQ57: =IF(AQ$2="","",'RESIDUAL VALUE_CALC'!AQ10) ->  | AR57: =IF(AR$2="","",'RESIDUAL VALUE_CALC'!AR10) ->  | AS57: =IF(AS$2="","",'RESIDUAL VALUE_CALC'!AS10) ->  | AT57: =IF(AT$2="","",'RESIDUAL VALUE_CALC'!AT10) ->  | AU57: =IF(AU$2="","",'RESIDUAL VALUE_CALC'!AU10) ->  | AV57: =IF(AV$2="","",'RESIDUAL VALUE_CALC'!AV10) ->  | AW57: =IF(AW$2="","",'RESIDUAL VALUE_CALC'!AW10) ->  | AX57: =IF(AX$2="","",'RESIDUAL VALUE_CALC'!AX10) ->  | AY57: =IF(AY$2="","",'RESIDUAL VALUE_CALC'!AY10) ->  | AZ57: =IF(AZ$2="","",'RESIDUAL VALUE_CALC'!AZ10) ->  | BA57: =IF(BA$2="","",'RESIDUAL VALUE_CALC'!BA10) ->  | BB57: =IF(BB$2="","",'RESIDUAL VALUE_CALC'!BB10) ->  | BC57: =IF(BC$2="","",'RESIDUAL VALUE_CALC'!BC10) ->  | BD57: =IF(BD$2="","",'RESIDUAL VALUE_CALC'!BD10) ->  | BE57: =IF(BE$2="","",'RESIDUAL VALUE_CALC'!BE10) ->  | BF57: =IF(BF$2="","",'RESIDUAL VALUE_CALC'!BF10) ->  | BG57: =IF(BG$2="","",'RESIDUAL VALUE_CALC'!BG10) ->  | BH57: =IF(BH$2="","",'RESIDUAL VALUE_CALC'!BH10) ->  | BI57: =IF(BI$2="","",'RESIDUAL VALUE_CALC'!BI10) ->  | BJ57: =IF(BJ$2="","",'RESIDUAL VALUE_CALC'!BJ10) ->  | BK57: =IF(BK$2="","",'RESIDUAL VALUE_CALC'!BK10) -> 
A59: BCA RESULTS
A60: BENEFIT COST RATIO (B/C) | B60: ='BENEFITS & COSTS'!B41/'BENEFITS & COSTS'!B17 -> 5.131316895
A61: NET PRESENT VALUE (NPV), $M | B61: =SUM('BENEFITS & COSTS'!D61:BK61) -> 243.2310342 | D61: =IF(D2="","",(D41-D17)/1000000) -> 0 | E61: =IF(E2="","",(E41-E17)/1000000) -> -11.77102804 | F61: =IF(F2="","",(F41-F17)/1000000) -> -10.39182243 | G61: -28.11557839 | H61: =IF(H2="","",(H41-H17)/1000000) -> -4.768095075 | I61: 4.786637592 | J61: 6.195957245 | K61: 7.203221815 | L61: 8.554767652 | M61: 9.613601422 | N61: 10.7973548 | O61: 12.17308896 | P61: 13.21418543 | Q61: 14.21059523 | R61: 15.3201178 | S61: 16.50545607 | T61: 17.24538615 | U61: 18.24903999 | V61: 17.62766576 | W61: 18.77429825 | X61: 19.75084995 | Y61: 20.70278974 | Z61: 21.66749685 | AA61: 22.4876522 | AB61: 23.19739526 | AJ61: =IF(AJ2="","",(AJ41-AJ17)/1000000) -> 
A62: INTERNAL RATE OF RETURN (IRR) | B62: =IFERROR(IRR('BENEFITS & COSTS'!D62:BK62,0.03),"N/A") -> 0.2287331526 | D62: =IF(D2="","",(D22-D14)/1000000) -> 0 | E62: -12.595 | F62: -11.8975975 | G62: -34.4427925 | H62: -6.25 | I62: 6.731471559 | J62: 9.230800447 | K62: 11.51178037 | L62: 14.66635029 | M62: 17.62648299 | N62: 21.17324779 | O62: 25.53218949 | P62: 29.64245752 | Q62: 34.09283301 | R62: 39.31124378 | S62: 45.08696208 | T62: 50.91085668 | U62: 57.61778668 | V62: 59.51889082 | W62: 67.79503339 | X62: 76.27671425 | Y62: 85.50915113 | Z62: 95.71292086 | AA62: 106.2385663 | AB62: 117.2692438 | AJ62: =IF(AJ2="","",(AJ22-AJ14)/1000000) -> 
A63: PAYBACK PERIOD | B63: =IF(SUM('BENEFITS & COSTS'!D63:BK63)>0,MAX('BENEFITS & COSTS'!D63:BK63),"N/A") -> 2023 | D63: =IF(C65>0,"",IF(D65>0,D$2,"")) ->  | O63: 2023 | AJ63: =IF(AI65>0,"",IF(AJ65>0,AJ$2,"")) -> 
A65: CUMULATIVE NET PRESENT VALUE | D65: =IF(D2="","",D61) -> 0 | E65: =IF(E2="","",D65+E61) -> -11.77102804 | F65: -22.16285047 | G65: -50.27842886 | H65: -55.04652393 | I65: -50.25988634 | J65: -44.0639291 | K65: -36.86070728 | L65: -28.30593963 | M65: -18.69233821 | N65: -7.894983406 | O65: 4.278105552 | P65: 17.49229098 | Q65: 31.70288621 | R65: 47.02300401 | S65: 63.52846008 | T65: 80.77384623 | U65: 99.02288622 | V65: 116.650552 | W65: 135.4248502 | X65: 155.1757002 | Y65: 175.8784899 | Z65: 197.5459868 | AA65: 220.033639 | AB65: 243.2310342 | AK65: =IF(AK2="","",AJ65+AK61) -> 
A69: SERIES FOR SUMMARY CHARTS
A71: DISCOUNTED PROJECT COSTS, MILLIONS OF DOLLARS | D71: =IF(D$2="","",-D$17/1000000) -> 0 | E71: -11.77102804 | F71: -10.39182243 | G71: -28.11557839 | H71: -4.768095075 | I71: -0.2552490523 | J71: -0.2466008298 | K71: -0.2383553066 | L71: -0.2304894413 | M71: -0.2229816326 | N71: -0.2158116273 | O71: -0.2089604325 | P71: -0.2024102352 | Q71: -0.196144326 | R71: -0.1901470282 | S71: -0.1844036316 | T71: -0.1789003301 | U71: -0.1736241643 | V71: -0.1685629668 | W71: -0.1637053116 | X71: -0.1590404671 | Y71: -0.1545583509 | Z71: -0.1502494895 | AA71: -0.1461049784 | AB71: -0.1421164467 | AJ71: =IF(AJ$2="","",-AJ$17/1000000) -> 
A72: DISCOUNTED PROJECT BENEFITS, MILLIONS OF DOLLARS | D72: =IF(D$2="","",D$41/1000000) -> 0 | E72: 0 | F72: 0 | G72: 0 | H72: 0 | I72: =IF(I$2="","",I$41/1000000) -> 5.041886645 | J72: 6.442558075 | K72: 7.441577121 | L72: 8.785257093 | M72: 9.836583055 | N72: 11.01316643 | O72: 12.38204939 | P72: 13.41659567 | Q72: 14.40673955 | R72: 15.51026483 | S72: 16.6898597 | T72: 17.42428648 | U72: 18.42266415 | V72: 17.79622873 | W72: 18.93800356 | X72: 19.90989042 | Y72: 20.85734809 | Z72: 21.81774634 | AA72: 22.63375718 | AB72: 23.3395117 | AJ72: =IF(AJ$2="","",AJ$41/1000000) -> 

Sheet HOUSING DEVELOPMENT BENEFITS
A1: This sheet calculates development benefits for the MINEOLA Projects | D1: 1 | E1: 1 | F1: 1 | G1: 1 | H1: 1 | I1: 1 | J1: 1 | K1: 1 | L1: 1 | M1: 1 | N1: 1 | O1: 1 | P1: 1 | Q1: 1 | R1: 1 | S1: 1 | T1: 1 | U1: 1 | V1: 1 | W1: 1 | X1: 1 | Y1: 1 | Z1: 1 | AA1: 1 | AB1: 1 | AC1: 1 | AD1: 1 | AE1: 1 | AF1: 1 | AG1: 1 | AH1: 1 | AI1: 1 | AJ1: 1 | AK1: 1 | AL1: 1 | AM1: 1 | AN1: 1 | AO1: 1 | AP1: 1 | AQ1: 1 | AR1: 1 | AS1: 1 | AT1: 1 | AU1: 1 | AV1: 1 | AW1: 1 | AX1: 1 | AY1: 1 | AZ1: 1 | BA1: 1 | BB1: 1 | BC1: 1 | BD1: 1 | BE1: 1 | BF1: 1 | BG1: 1 | BH1: 1 | BI1: 1 | BJ1: 1 | BK1: 1
D3: ='PROJECT SPECIFIC INPUTS'!$C$16 -> 2012 | E3: =IF(D3="","",IF(D3+1<='PROJECT SPECIFIC INPUTS'!$C$21,D3+1,"")) -> 2013 | F3: =IF(E3="","",IF(E3+1<='PROJECT SPECIFIC INPUTS'!$C$21,E3+1,"")) -> 2014 | G3: =IF(F3="","",IF(F3+1<='PROJECT SPECIFIC INPUTS'!$C$21,F3+1,"")) -> 2015 | H3: =IF(G3="","",IF(G3+1<='PROJECT SPECIFIC INPUTS'!$C$21,G3+1,"")) -> 2016 | I3: =IF(H3="","",IF(H3+1<='PROJECT SPECIFIC INPUTS'!$C$21,H3+1,"")) -> 2017 | J3: =IF(I3="","",IF(I3+1<='PROJECT SPECIFIC INPUTS'!$C$21,I3+1,"")) -> 2018 | K3: =IF(J3="","",IF(J3+1<='PROJECT SPECIFIC INPUTS'!$C$21,J3+1,"")) -> 2019 | L3: =IF(K3="","",IF(K3+1<='PROJECT SPECIFIC INPUTS'!$C$21,K3+1,"")) -> 2020 | M3: =IF(L3="","",IF(L3+1<='PROJECT SPECIFIC INPUTS'!$C$21,L3+1,"")) -> 2021 | N3: =IF(M3="","",IF(M3+1<='PROJECT SPECIFIC INPUTS'!$C$21,M3+1,"")) -> 2022 | O3: =IF(N3="","",IF(N3+1<='PROJECT SPECIFIC INPUTS'!$C$21,N3+1,"")) -> 2023 | P3: =IF(O3="","",IF(O3+1<='PROJECT SPECIFIC INPUTS'!$C$21,O3+1,"")) -> 2024 | Q3: =IF(P3="","",IF(P3+1<='PROJECT SPECIFIC INPUTS'!$C$21,P3+1,"")) -> 2025 | R3: =IF(Q3="","",IF(Q3+1<='PROJECT SPECIFIC INPUTS'!$C$21,Q3+1,"")) -> 2026 | S3: =IF(R3="","",IF(R3+1<='PROJECT SPECIFIC INPUTS'!$C$21,R3+1,"")) -> 2027 | T3: =IF(S3="","",IF(S3+1<='PROJECT SPECIFIC INPUTS'!$C$21,S3+1,"")) -> 2028 | U3: =IF(T3="","",IF(T3+1<='PROJECT SPECIFIC INPUTS'!$C$21,T3+1,"")) -> 2029 | V3: =IF(U3="","",IF(U3+1<='PROJECT SPECIFIC INPUTS'!$C$21,U3+1,"")) -> 2030 | W3: =IF(V3="","",IF(V3+1<='PROJECT SPECIFIC INPUTS'!$C$21,V3+1,"")) -> 2031 | X3: =IF(W3="","",IF(W3+1<='PROJECT SPECIFIC INPUTS'!$C$21,W3+1,"")) -> 2032 | Y3: =IF(X3="","",IF(X3+1<='PROJECT SPECIFIC INPUTS'!$C$21,X3+1,"")) -> 2033 | Z3: =IF(Y3="","",IF(Y3+1<='PROJECT SPECIFIC INPUTS'!$C$21,Y3+1,"")) -> 2034 | AA3: =IF(Z3="","",IF(Z3+1<='PROJECT SPECIFIC INPUTS'!$C$21,Z3+1,"")) -> 2035 | AB3: =IF(AA3="","",IF(AA3+1<='PROJECT SPECIFIC INPUTS'!$C$21,AA3+1,"")) -> 2036 | AC3: =IF(AB3="","",IF(AB3+1<='PROJECT SPECIFIC INPUTS'!$C$21,AB3+1,"")) ->  | AD3: =IF(AC3="","",IF(AC3+1<='PROJECT SPECIFIC INPUTS'!$C$21,AC3+1,"")) ->  | AE3: =IF(AD3="","",IF(AD3+1<='PROJECT SPECIFIC INPUTS'!$C$21,AD3+1,"")) ->  | AF3: =IF(AE3="","",IF(AE3+1<='PROJECT SPECIFIC INPUTS'!$C$21,AE3+1,"")) ->  | AG3: =IF(AF3="","",IF(AF3+1<='PROJECT SPECIFIC INPUTS'!$C$21,AF3+1,"")) ->  | AH3: =IF(AG3="","",IF(AG3+1<='PROJECT SPECIFIC INPUTS'!$C$21,AG3+1,"")) ->  | AI3: =IF(AH3="","",IF(AH3+1<='PROJECT SPECIFIC INPUTS'!$C$21,AH3+1,"")) ->  | AJ3: =IF(AI3="","",IF(AI3+1<='PROJECT SPECIFIC INPUTS'!$C$21,AI3+1,"")) ->  | AK3: =IF(AJ3="","",IF(AJ3+1<='PROJECT SPECIFIC INPUTS'!$C$21,AJ3+1,"")) ->  | AL3: =IF(AK3="","",IF(AK3+1<='PROJECT SPECIFIC INPUTS'!$C$21,AK3+1,"")) ->  | AM3: =IF(AL3="","",IF(AL3+1<='PROJECT SPECIFIC INPUTS'!$C$21,AL3+1,"")) ->  | AN3: =IF(AM3="","",IF(AM3+1<='PROJECT SPECIFIC INPUTS'!$C$21,AM3+1,"")) ->  | AO3: =IF(AN3="","",IF(AN3+1<='PROJECT SPECIFIC INPUTS'!$C$21,AN3+1,"")) ->  | AP3: =IF(AO3="","",IF(AO3+1<='PROJECT SPECIFIC INPUTS'!$C$21,AO3+1,"")) ->  | AQ3: =IF(AP3="","",IF(AP3+1<='PROJECT SPECIFIC INPUTS'!$C$21,AP3+1,"")) ->  | AR3: =IF(AQ3="","",IF(AQ3+1<='PROJECT SPECIFIC INPUTS'!$C$21,AQ3+1,"")) ->  | AS3: =IF(AR3="","",IF(AR3+1<='PROJECT SPECIFIC INPUTS'!$C$21,AR3+1,"")) ->  | AT3: =IF(AS3="","",IF(AS3+1<='PROJECT SPECIFIC INPUTS'!$C$21,AS3+1,"")) ->  | AU3: =IF(AT3="","",IF(AT3+1<='PROJECT SPECIFIC INPUTS'!$C$21,AT3+1,"")) ->  | AV3: =IF(AU3="","",IF(AU3+1<='PROJECT SPECIFIC INPUTS'!$C$21,AU3+1,"")) ->  | AW3: =IF(AV3="","",IF(AV3+1<='PROJECT SPECIFIC INPUTS'!$C$21,AV3+1,"")) ->  | AX3: =IF(AW3="","",IF(AW3+1<='PROJECT SPECIFIC INPUTS'!$C$21,AW3+1,"")) ->  | AY3: =IF(AX3="","",IF(AX3+1<='PROJECT SPECIFIC INPUTS'!$C$21,AX3+1,"")) ->  | AZ3: =IF(AY3="","",IF(AY3+1<='PROJECT SPECIFIC INPUTS'!$C$21,AY3+1,"")) ->  | BA3: =IF(AZ3="","",IF(AZ3+1<='PROJECT SPECIFIC INPUTS'!$C$21,AZ3+1,"")) ->  | BB3: =IF(BA3="","",IF(BA3+1<='PROJECT SPECIFIC INPUTS'!$C$21,BA3+1,"")) ->  | BC3: =IF(BB3="","",IF(BB3+1<='PROJECT SPECIFIC INPUTS'!$C$21,BB3+1,"")) ->  | BD3: =IF(BC3="","",IF(BC3+1<='PROJECT SPECIFIC INPUTS'!$C$21,BC3+1,"")) ->  | BE3: =IF(BD3="","",IF(BD3+1<='PROJECT SPECIFIC INPUTS'!$C$21,BD3+1,"")) ->  | BF3: =IF(BE3="","",IF(BE3+1<='PROJECT SPECIFIC INPUTS'!$C$21,BE3+1,"")) ->  | BG3: =IF(BF3="","",IF(BF3+1<='PROJECT SPECIFIC INPUTS'!$C$21,BF3+1,"")) ->  | BH3: =IF(BG3="","",IF(BG3+1<='PROJECT SPECIFIC INPUTS'!$C$21,BG3+1,"")) ->  | BI3: =IF(BH3="","",IF(BH3+1<='PROJECT SPECIFIC INPUTS'!$C$21,BH3+1,"")) ->  | BJ3: =IF(BI3="","",IF(BI3+1<='PROJECT SPECIFIC INPUTS'!$C$21,BI3+1,"")) ->  | BK3: =IF(BJ3="","",IF(BJ3+1<='PROJECT SPECIFIC INPUTS'!$C$21,BJ3+1,"")) -> 
C4: Benefit Index | D4: =IF(AND(D$3>='PROJECT SPECIFIC INPUTS'!$C$20,D$3<='PROJECT SPECIFIC INPUTS'!$C$21),1,0) -> 0 | E4: =IF(AND(E$3>='PROJECT SPECIFIC INPUTS'!$C$20,E$3<='PROJECT SPECIFIC INPUTS'!$C$21),1,0) -> 0 | F4: =IF(AND(F$3>='PROJECT SPECIFIC INPUTS'!$C$20,F$3<='PROJECT SPECIFIC INPUTS'!$C$21),1,0) -> 0 | G4: =IF(AND(G$3>='PROJECT SPECIFIC INPUTS'!$C$20,G$3<='PROJECT SPECIFIC INPUTS'!$C$21),1,0) -> 0 | H4: =IF(AND(H$3>='PROJECT SPECIFIC INPUTS'!$C$20,H$3<='PROJECT SPECIFIC INPUTS'!$C$21),1,0) -> 0 | I4: =IF(AND(I$3>='PROJECT SPECIFIC INPUTS'!$C$20,I$3<='PROJECT SPECIFIC INPUTS'!$C$21),1,0) -> 1 | J4: =IF(AND(J$3>='PROJECT SPECIFIC INPUTS'!$C$20,J$3<='PROJECT SPECIFIC INPUTS'!$C$21),1,0) -> 1 | K4: =IF(AND(K$3>='PROJECT SPECIFIC INPUTS'!$C$20,K$3<='PROJECT SPECIFIC INPUTS'!$C$21),1,0) -> 1 | L4: =IF(AND(L$3>='PROJECT SPECIFIC INPUTS'!$C$20,L$3<='PROJECT SPECIFIC INPUTS'!$C$21),1,0) -> 1 | M4: =IF(AND(M$3>='PROJECT SPECIFIC INPUTS'!$C$20,M$3<='PROJECT SPECIFIC INPUTS'!$C$21),1,0) -> 1 | N4: =IF(AND(N$3>='PROJECT SPECIFIC INPUTS'!$C$20,N$3<='PROJECT SPECIFIC INPUTS'!$C$21),1,0) -> 1 | O4: =IF(AND(O$3>='PROJECT SPECIFIC INPUTS'!$C$20,O$3<='PROJECT SPECIFIC INPUTS'!$C$21),1,0) -> 1 | P4: =IF(AND(P$3>='PROJECT SPECIFIC INPUTS'!$C$20,P$3<='PROJECT SPECIFIC INPUTS'!$C$21),1,0) -> 1 | Q4: =IF(AND(Q$3>='PROJECT SPECIFIC INPUTS'!$C$20,Q$3<='PROJECT SPECIFIC INPUTS'!$C$21),1,0) -> 1 | R4: =IF(AND(R$3>='PROJECT SPECIFIC INPUTS'!$C$20,R$3<='PROJECT SPECIFIC INPUTS'!$C$21),1,0) -> 1 | S4: =IF(AND(S$3>='PROJECT SPECIFIC INPUTS'!$C$20,S$3<='PROJECT SPECIFIC INPUTS'!$C$21),1,0) -> 1 | T4: =IF(AND(T$3>='PROJECT SPECIFIC INPUTS'!$C$20,T$3<='PROJECT SPECIFIC INPUTS'!$C$21),1,0) -> 1 | U4: =IF(AND(U$3>='PROJECT SPECIFIC INPUTS'!$C$20,U$3<='PROJECT SPECIFIC INPUTS'!$C$21),1,0) -> 1 | V4: =IF(AND(V$3>='PROJECT SPECIFIC INPUTS'!$C$20,V$3<='PROJECT SPECIFIC INPUTS'!$C$21),1,0) -> 1 | W4: =IF(AND(W$3>='PROJECT SPECIFIC INPUTS'!$C$20,W$3<='PROJECT SPECIFIC INPUTS'!$C$21),1,0) -> 1 | X4: =IF(AND(X$3>='PROJECT SPECIFIC INPUTS'!$C$20,X$3<='PROJECT SPECIFIC INPUTS'!$C$21),1,0) -> 1 | Y4: =IF(AND(Y$3>='PROJECT SPECIFIC INPUTS'!$C$20,Y$3<='PROJECT SPECIFIC INPUTS'!$C$21),1,0) -> 1 | Z4: =IF(AND(Z$3>='PROJECT SPECIFIC INPUTS'!$C$20,Z$3<='PROJECT SPECIFIC INPUTS'!$C$21),1,0) -> 1 | AA4: =IF(AND(AA$3>='PROJECT SPECIFIC INPUTS'!$C$20,AA$3<='PROJECT SPECIFIC INPUTS'!$C$21),1,0) -> 1 | AB4: =IF(AND(AB$3>='PROJECT SPECIFIC INPUTS'!$C$20,AB$3<='PROJECT SPECIFIC INPUTS'!$C$21),1,0) -> 1 | AC4: =IF(AND(AC$3>='PROJECT SPECIFIC INPUTS'!$C$20,AC$3<='PROJECT SPECIFIC INPUTS'!$C$21),1,0) -> 0 | AD4: =IF(AND(AD$3>='PROJECT SPECIFIC INPUTS'!$C$20,AD$3<='PROJECT SPECIFIC INPUTS'!$C$21),1,0) -> 0 | AE4: =IF(AND(AE$3>='PROJECT SPECIFIC INPUTS'!$C$20,AE$3<='PROJECT SPECIFIC INPUTS'!$C$21),1,0) -> 0 | AF4: =IF(AND(AF$3>='PROJECT SPECIFIC INPUTS'!$C$20,AF$3<='PROJECT SPECIFIC INPUTS'!$C$21),1,0) -> 0 | AG4: =IF(AND(AG$3>='PROJECT SPECIFIC INPUTS'!$C$20,AG$3<='PROJECT SPECIFIC INPUTS'!$C$21),1,0) -> 0 | AH4: =IF(AND(AH$3>='PROJECT SPECIFIC INPUTS'!$C$20,AH$3<='PROJECT SPECIFIC INPUTS'!$C$21),1,0) -> 0 | AI4: =IF(AND(AI$3>='PROJECT SPECIFIC INPUTS'!$C$20,AI$3<='PROJECT SPECIFIC INPUTS'!$C$21),1,0) -> 0 | AJ4: =IF(AND(AJ$3>='PROJECT SPECIFIC INPUTS'!$C$20,AJ$3<='PROJECT SPECIFIC INPUTS'!$C$21),1,0) -> 0 | AK4: =IF(AND(AK$3>='PROJECT SPECIFIC INPUTS'!$C$20,AK$3<='PROJECT SPECIFIC INPUTS'!$C$21),1,0) -> 0 | AL4: =IF(AND(AL$3>='PROJECT SPECIFIC INPUTS'!$C$20,AL$3<='PROJECT SPECIFIC INPUTS'!$C$21),1,0) -> 0 | AM4: =IF(AND(AM$3>='PROJECT SPECIFIC INPUTS'!$C$20,AM$3<='PROJECT SPECIFIC INPUTS'!$C$21),1,0) -> 0 | AN4: =IF(AND(AN$3>='PROJECT SPECIFIC INPUTS'!$C$20,AN$3<='PROJECT SPECIFIC INPUTS'!$C$21),1,0) -> 0 | AO4: =IF(AND(AO$3>='PROJECT SPECIFIC INPUTS'!$C$20,AO$3<='PROJECT SPECIFIC INPUTS'!$C$21),1,0) -> 0 | AP4: =IF(AND(AP$3>='PROJECT SPECIFIC INPUTS'!$C$20,AP$3<='PROJECT SPECIFIC INPUTS'!$C$21),1,0) -> 0 | AQ4: =IF(AND(AQ$3>='PROJECT SPECIFIC INPUTS'!$C$20,AQ$3<='PROJECT SPECIFIC INPUTS'!$C$21),1,0) -> 0 | AR4: =IF(AND(AR$3>='PROJECT SPECIFIC INPUTS'!$C$20,AR$3<='PROJECT SPECIFIC INPUTS'!$C$21),1,0) -> 0 | AS4: =IF(AND(AS$3>='PROJECT SPECIFIC INPUTS'!$C$20,AS$3<='PROJECT SPECIFIC INPUTS'!$C$21),1,0) -> 0 | AT4: =IF(AND(AT$3>='PROJECT SPECIFIC INPUTS'!$C$20,AT$3<='PROJECT SPECIFIC INPUTS'!$C$21),1,0) -> 0 | AU4: =IF(AND(AU$3>='PROJECT SPECIFIC INPUTS'!$C$20,AU$3<='PROJECT SPECIFIC INPUTS'!$C$21),1,0) -> 0 | AV4: =IF(AND(AV$3>='PROJECT SPECIFIC INPUTS'!$C$20,AV$3<='PROJECT SPECIFIC INPUTS'!$C$21),1,0) -> 0 | AW4: =IF(AND(AW$3>='PROJECT SPECIFIC INPUTS'!$C$20,AW$3<='PROJECT SPECIFIC INPUTS'!$C$21),1,0) -> 0 | AX4: =IF(AND(AX$3>='PROJECT SPECIFIC INPUTS'!$C$20,AX$3<='PROJECT SPECIFIC INPUTS'!$C$21),1,0) -> 0 | AY4: =IF(AND(AY$3>='PROJECT SPECIFIC INPUTS'!$C$20,AY$3<='PROJECT SPECIFIC INPUTS'!$C$21),1,0) -> 0 | AZ4: =IF(AND(AZ$3>='PROJECT SPECIFIC INPUTS'!$C$20,AZ$3<='PROJECT SPECIFIC INPUTS'!$C$21),1,0) -> 0 | BA4: =IF(AND(BA$3>='PROJECT SPECIFIC INPUTS'!$C$20,BA$3<='PROJECT SPECIFIC INPUTS'!$C$21),1,0) -> 0 | BB4: =IF(AND(BB$3>='PROJECT SPECIFIC INPUTS'!$C$20,BB$3<='PROJECT SPECIFIC INPUTS'!$C$21),1,0) -> 0 | BC4: =IF(AND(BC$3>='PROJECT SPECIFIC INPUTS'!$C$20,BC$3<='PROJECT SPECIFIC INPUTS'!$C$21),1,0) -> 0 | BD4: =IF(AND(BD$3>='PROJECT SPECIFIC INPUTS'!$C$20,BD$3<='PROJECT SPECIFIC INPUTS'!$C$21),1,0) -> 0 | BE4: =IF(AND(BE$3>='PROJECT SPECIFIC INPUTS'!$C$20,BE$3<='PROJECT SPECIFIC INPUTS'!$C$21),1,0) -> 0 | BF4: =IF(AND(BF$3>='PROJECT SPECIFIC INPUTS'!$C$20,BF$3<='PROJECT SPECIFIC INPUTS'!$C$21),1,0) -> 0 | BG4: =IF(AND(BG$3>='PROJECT SPECIFIC INPUTS'!$C$20,BG$3<='PROJECT SPECIFIC INPUTS'!$C$21),1,0) -> 0 | BH4: =IF(AND(BH$3>='PROJECT SPECIFIC INPUTS'!$C$20,BH$3<='PROJECT SPECIFIC INPUTS'!$C$21),1,0) -> 0 | BI4: =IF(AND(BI$3>='PROJECT SPECIFIC INPUTS'!$C$20,BI$3<='PROJECT SPECIFIC INPUTS'!$C$21),1,0) -> 0 | BJ4: =IF(AND(BJ$3>='PROJECT SPECIFIC INPUTS'!$C$20,BJ$3<='PROJECT SPECIFIC INPUTS'!$C$21),1,0) -> 0 | BK4: =IF(AND(BK$3>='PROJECT SPECIFIC INPUTS'!$C$20,BK$3<='PROJECT SPECIFIC INPUTS'!$C$21),1,0) -> 0
C5: ="Discount Factor - " & TEXT(PARAMETERS!$B$7,"0%") -> Discount Factor - 7% | D5: =IF(D$3="","",1/(1+PARAMETERS!$B$7)^(D$3-PARAMETERS!$B$6)) -> 1 | E5: =IF(E$3="","",1/(1+PARAMETERS!$B$7)^(E$3-PARAMETERS!$B$6)) -> 0.9345794393 | F5: =IF(F$3="","",1/(1+PARAMETERS!$B$7)^(F$3-PARAMETERS!$B$6)) -> 0.8734387283 | G5: =IF(G$3="","",1/(1+PARAMETERS!$B$7)^(G$3-PARAMETERS!$B$6)) -> 0.8162978769 | H5: =IF(H$3="","",1/(1+PARAMETERS!$B$7)^(H$3-PARAMETERS!$B$6)) -> 0.762895212 | I5: =IF(I$3="","",1/(1+PARAMETERS!$B$7)^(I$3-PARAMETERS!$B$6)) -> 0.7129861795 | J5: =IF(J$3="","",1/(1+PARAMETERS!$B$7)^(J$3-PARAMETERS!$B$6)) -> 0.6663422238 | K5: =IF(K$3="","",1/(1+PARAMETERS!$B$7)^(K$3-PARAMETERS!$B$6)) -> 0.6227497419 | L5: =IF(L$3="","",1/(1+PARAMETERS!$B$7)^(L$3-PARAMETERS!$B$6)) -> 0.5820091046 | M5: =IF(M$3="","",1/(1+PARAMETERS!$B$7)^(M$3-PARAMETERS!$B$6)) -> 0.5439337426 | N5: =IF(N$3="","",1/(1+PARAMETERS!$B$7)^(N$3-PARAMETERS!$B$6)) -> 0.5083492921 | O5: =IF(O$3="","",1/(1+PARAMETERS!$B$7)^(O$3-PARAMETERS!$B$6)) -> 0.4750927964 | P5: =IF(P$3="","",1/(1+PARAMETERS!$B$7)^(P$3-PARAMETERS!$B$6)) -> 0.4440119592 | Q5: =IF(Q$3="","",1/(1+PARAMETERS!$B$7)^(Q$3-PARAMETERS!$B$6)) -> 0.4149644479 | R5: =IF(R$3="","",1/(1+PARAMETERS!$B$7)^(R$3-PARAMETERS!$B$6)) -> 0.387817241 | S5: =IF(S$3="","",1/(1+PARAMETERS!$B$7)^(S$3-PARAMETERS!$B$6)) -> 0.3624460196 | T5: =IF(T$3="","",1/(1+PARAMETERS!$B$7)^(T$3-PARAMETERS!$B$6)) -> 0.3387345978 | U5: =IF(U$3="","",1/(1+PARAMETERS!$B$7)^(U$3-PARAMETERS!$B$6)) -> 0.3165743905 | V5: =IF(V$3="","",1/(1+PARAMETERS!$B$7)^(V$3-PARAMETERS!$B$6)) -> 0.2958639163 | W5: =IF(W$3="","",1/(1+PARAMETERS!$B$7)^(W$3-PARAMETERS!$B$6)) -> 0.276508333 | X5: =IF(X$3="","",1/(1+PARAMETERS!$B$7)^(X$3-PARAMETERS!$B$6)) -> 0.2584190028 | Y5: =IF(Y$3="","",1/(1+PARAMETERS!$B$7)^(Y$3-PARAMETERS!$B$6)) -> 0.2415130867 | Z5: =IF(Z$3="","",1/(1+PARAMETERS!$B$7)^(Z$3-PARAMETERS!$B$6)) -> 0.2257131652 | AA5: =IF(AA$3="","",1/(1+PARAMETERS!$B$7)^(AA$3-PARAMETERS!$B$6)) -> 0.2109468833 | AB5: =IF(AB$3="","",1/(1+PARAMETERS!$B$7)^(AB$3-PARAMETERS!$B$6)) -> 0.1971466199 | AC5: =IF(AC$3="","",1/(1+PARAMETERS!$B$7)^(AC$3-PARAMETERS!$B$6)) ->  | AD5: =IF(AD$3="","",1/(1+PARAMETERS!$B$7)^(AD$3-PARAMETERS!$B$6)) ->  | AE5: =IF(AE$3="","",1/(1+PARAMETERS!$B$7)^(AE$3-PARAMETERS!$B$6)) ->  | AF5: =IF(AF$3="","",1/(1+PARAMETERS!$B$7)^(AF$3-PARAMETERS!$B$6)) ->  | AG5: =IF(AG$3="","",1/(1+PARAMETERS!$B$7)^(AG$3-PARAMETERS!$B$6)) ->  | AH5: =IF(AH$3="","",1/(1+PARAMETERS!$B$7)^(AH$3-PARAMETERS!$B$6)) ->  | AI5: =IF(AI$3="","",1/(1+PARAMETERS!$B$7)^(AI$3-PARAMETERS!$B$6)) ->  | AJ5: =IF(AJ$3="","",1/(1+PARAMETERS!$B$7)^(AJ$3-PARAMETERS!$B$6)) ->  | AK5: =IF(AK$3="","",1/(1+PARAMETERS!$B$7)^(AK$3-PARAMETERS!$B$6)) ->  | AL5: =IF(AL$3="","",1/(1+PARAMETERS!$B$7)^(AL$3-PARAMETERS!$B$6)) ->  | AM5: =IF(AM$3="","",1/(1+PARAMETERS!$B$7)^(AM$3-PARAMETERS!$B$6)) ->  | AN5: =IF(AN$3="","",1/(1+PARAMETERS!$B$7)^(AN$3-PARAMETERS!$B$6)) ->  | AO5: =IF(AO$3="","",1/(1+PARAMETERS!$B$7)^(AO$3-PARAMETERS!$B$6)) ->  | AP5: =IF(AP$3="","",1/(1+PARAMETERS!$B$7)^(AP$3-PARAMETERS!$B$6)) ->  | AQ5: =IF(AQ$3="","",1/(1+PARAMETERS!$B$7)^(AQ$3-PARAMETERS!$B$6)) ->  | AR5: =IF(AR$3="","",1/(1+PARAMETERS!$B$7)^(AR$3-PARAMETERS!$B$6)) ->  | AS5: =IF(AS$3="","",1/(1+PARAMETERS!$B$7)^(AS$3-PARAMETERS!$B$6)) ->  | AT5: =IF(AT$3="","",1/(1+PARAMETERS!$B$7)^(AT$3-PARAMETERS!$B$6)) ->  | AU5: =IF(AU$3="","",1/(1+PARAMETERS!$B$7)^(AU$3-PARAMETERS!$B$6)) ->  | AV5: =IF(AV$3="","",1/(1+PARAMETERS!$B$7)^(AV$3-PARAMETERS!$B$6)) ->  | AW5: =IF(AW$3="","",1/(1+PARAMETERS!$B$7)^(AW$3-PARAMETERS!$B$6)) ->  | AX5: =IF(AX$3="","",1/(1+PARAMETERS!$B$7)^(AX$3-PARAMETERS!$B$6)) ->  | AY5: =IF(AY$3="","",1/(1+PARAMETERS!$B$7)^(AY$3-PARAMETERS!$B$6)) ->  | AZ5: =IF(AZ$3="","",1/(1+PARAMETERS!$B$7)^(AZ$3-PARAMETERS!$B$6)) ->  | BA5: =IF(BA$3="","",1/(1+PARAMETERS!$B$7)^(BA$3-PARAMETERS!$B$6)) ->  | BB5: =IF(BB$3="","",1/(1+PARAMETERS!$B$7)^(BB$3-PARAMETERS!$B$6)) ->  | BC5: =IF(BC$3="","",1/(1+PARAMETERS!$B$7)^(BC$3-PARAMETERS!$B$6)) ->  | BD5: =IF(BD$3="","",1/(1+PARAMETERS!$B$7)^(BD$3-PARAMETERS!$B$6)) ->  | BE5: =IF(BE$3="","",1/(1+PARAMETERS!$B$7)^(BE$3-PARAMETERS!$B$6)) ->  | BF5: =IF(BF$3="","",1/(1+PARAMETERS!$B$7)^(BF$3-PARAMETERS!$B$6)) ->  | BG5: =IF(BG$3="","",1/(1+PARAMETERS!$B$7)^(BG$3-PARAMETERS!$B$6)) ->  | BH5: =IF(BH$3="","",1/(1+PARAMETERS!$B$7)^(BH$3-PARAMETERS!$B$6)) ->  | BI5: =IF(BI$3="","",1/(1+PARAMETERS!$B$7)^(BI$3-PARAMETERS!$B$6)) ->  | BJ5: =IF(BJ$3="","",1/(1+PARAMETERS!$B$7)^(BJ$3-PARAMETERS!$B$6)) ->  | BK5: =IF(BK$3="","",1/(1+PARAMETERS!$B$7)^(BK$3-PARAMETERS!$B$6)) -> 
B7: TOTAL | C7: Phase 1 | D7: Phase 2 | E7: Phase 3
A8: Total Residential | B8: 67064152.57 | C8: 16707600.03 | D8: 27219210.09 | E8: 23137342.45
A9: Total Commercial | B9: 7086941.409 | C9: 217814.9375 | D9: 3137421.976 | E9: 3731704.496
A10: Grand Total | B10: 74151093.98 | C10: 16925414.97 | D10: 30356632.07 | E10: 26869046.95
B13: ORIGINAL | C13: REVISED | D13: NB. YEARS
A14: Phase 1 | B14: 2008-2010 | C14: 2017-2019 | D14: 3
A15: Phase 2 | B15: 2011-2015 | C15: 2020-2024 | D15: 5
A16: Phase 3 | B16: 2016-2020 | C16: 2025-2029 | D16: 5
A18: ANNUAL DEVELOPMENT BENEFITS, NON-DISCOUNTED
A19: Total Residential | B19: =SUM(D19:BK19) -> 67064152.57 | D19: 0 | E19: 0 | F19: 0 | G19: 0 | H19: 0 | I19: =$C$8/$D$14 -> 5569200.011 | J19: =$C$8/$D$14 -> 5569200.011 | K19: 5569200.011 | L19: =$D$8/$D$15 -> 5443842.018 | M19: =$D$8/$D$15 -> 5443842.018 | N19: 5443842.018 | O19: 5443842.018 | P19: 5443842.018 | Q19: =$E$8/$D$16 -> 4627468.49 | R19: =$E$8/$D$16 -> 4627468.49 | S19: 4627468.49 | T19: 4627468.49 | U19: 4627468.49 | V19: 0 | W19: 0 | X19: 0 | Y19: 0 | Z19: 0 | AA19: 0 | AB19: 0
A20: Total Commercial | B20: =SUM(D20:BK20) -> 7086941.409 | D20: 0 | E20: 0 | F20: 0 | G20: 0 | H20: 0 | I20: =$C$9/$D$14 -> 72604.97917 | J20: =$C$9/$D$14 -> 72604.97917 | K20: 72604.97917 | L20: =$D$9/$D$15 -> 627484.3951 | M20: =$D$9/$D$15 -> 627484.3951 | N20: 627484.3951 | O20: 627484.3951 | P20: 627484.3951 | Q20: =$E$9/$D$16 -> 746340.8993 | R20: =$E$9/$D$16 -> 746340.8993 | S20: 746340.8993 | T20: 746340.8993 | U20: 746340.8993 | V20: 0 | W20: 0 | X20: 0 | Y20: 0 | Z20: 0 | AA20: 0 | AB20: 0
A21: Grand Total | B21: 74151093.98 | D21: 0 | E21: 0 | F21: 0 | G21: 0 | H21: 0 | I21: =SUM(I19:I20) -> 5641804.99 | J21: =SUM(J19:J20) -> 5641804.99 | K21: 5641804.99 | L21: 6071326.413 | M21: 6071326.413 | N21: 6071326.413 | O21: 6071326.413 | P21: 6071326.413 | Q21: 5373809.389 | R21: 5373809.389 | S21: 5373809.389 | T21: 5373809.389 | U21: 5373809.389 | V21: 0 | W21: 0 | X21: 0 | Y21: 0 | Z21: 0 | AA21: 0 | AB21: 0
A23: ANNUAL DEVELOPMENT BENEFITS, NON-DISCOUNTED
A24: Total Residential | B24: =SUM(D24:BK24) -> 33474739.13 | D24: =D19*D$5 -> 0 | E24: =E19*E$5 -> 0 | F24: 0 | G24: 0 | H24: 0 | I24: 3970762.638 | J24: 3710993.12 | K24: 3468217.869 | L24: 3168365.618 | M24: 2961089.363 | N24: 2767373.236 | O24: 2586330.128 | P24: 2417130.96 | Q24: 1920234.907 | R24: 1794612.063 | S24: 1677207.535 | T24: 1567483.678 | U24: 1464938.017 | V24: 0 | W24: 0 | X24: 0 | Y24: 0 | Z24: 0 | AA24: 0 | AB24: 0
A25: Total Commercial | B25: =SUM(D25:BK25) -> 3106318.544 | D25: =D20*D$5 -> 0 | E25: 0 | F25: 0 | G25: 0 | H25: 0 | I25: 51766.34671 | J25: 48379.76328 | K25: 45214.73204 | L25: 365201.6309 | M25: 341309.9355 | N25: 318981.2481 | O25: 298113.316 | P25: 278610.5757 | Q25: 309704.9392 | R25: 289443.8684 | S25: 270508.2882 | T25: 252811.4843 | U25: 236272.4153 | V25: 0 | W25: 0 | X25: 0 | Y25: 0 | Z25: 0 | AA25: 0 | AB25: 0
A26: Grand Total | B26: 36581057.68 | D26: 0 | E26: 0 | F26: 0 | G26: 0 | H26: 0 | I26: 4022528.985 | J26: 3759372.883 | K26: 3513432.601 | L26: 3533567.249 | M26: 3302399.298 | N26: 3086354.485 | O26: 2884443.443 | P26: 2695741.536 | Q26: 2229939.846 | R26: 2084055.931 | S26: 1947715.824 | T26: 1820295.162 | U26: 1701210.432 | V26: 0 | W26: 0 | X26: 0 | Y26: 0 | Z26: 0 | AA26: 0 | AB26: 0

Sheet TRAFFIC & SPEED_CALC
A1: This sheet calculates No Build and Build VMT, VHT, speed, and volume to capacity ratio.
A2: Calculations from Travel Demand Model Runs
A3: 1 | C3: Year | D3: ='PROJECT SPECIFIC INPUTS'!$C$59 -> 2016 | E3: =IF(D3="","",IF(D3+1<='PROJECT SPECIFIC INPUTS'!$C$21,D3+1,"")) -> 2017 | F3: =IF(E3="","",IF(E3+1<='PROJECT SPECIFIC INPUTS'!$C$21,E3+1,"")) -> 2018 | G3: =IF(F3="","",IF(F3+1<='PROJECT SPECIFIC INPUTS'!$C$21,F3+1,"")) -> 2019 | H3: =IF(G3="","",IF(G3+1<='PROJECT SPECIFIC INPUTS'!$C$21,G3+1,"")) -> 2020 | I3: =IF(H3="","",IF(H3+1<='PROJECT SPECIFIC INPUTS'!$C$21,H3+1,"")) -> 2021 | J3: =IF(I3="","",IF(I3+1<='PROJECT SPECIFIC INPUTS'!$C$21,I3+1,"")) -> 2022 | K3: =IF(J3="","",IF(J3+1<='PROJECT SPECIFIC INPUTS'!$C$21,J3+1,"")) -> 2023 | L3: =IF(K3="","",IF(K3+1<='PROJECT SPECIFIC INPUTS'!$C$21,K3+1,"")) -> 2024 | M3: =IF(L3="","",IF(L3+1<='PROJECT SPECIFIC INPUTS'!$C$21,L3+1,"")) -> 2025 | N3: =IF(M3="","",IF(M3+1<='PROJECT SPECIFIC INPUTS'!$C$21,M3+1,"")) -> 2026 | O3: =IF(N3="","",IF(N3+1<='PROJECT SPECIFIC INPUTS'!$C$21,N3+1,"")) -> 2027 | P3: =IF(O3="","",IF(O3+1<='PROJECT SPECIFIC INPUTS'!$C$21,O3+1,"")) -> 2028 | Q3: =IF(P3="","",IF(P3+1<='PROJECT SPECIFIC INPUTS'!$C$21,P3+1,"")) -> 2029 | R3: =IF(Q3="","",IF(Q3+1<='PROJECT SPECIFIC INPUTS'!$C$21,Q3+1,"")) -> 2030 | S3: =IF(R3="","",IF(R3+1<='PROJECT SPECIFIC INPUTS'!$C$21,R3+1,"")) -> 2031 | T3: =IF(S3="","",IF(S3+1<='PROJECT SPECIFIC INPUTS'!$C$21,S3+1,"")) -> 2032 | U3: =IF(T3="","",IF(T3+1<='PROJECT SPECIFIC INPUTS'!$C$21,T3+1,"")) -> 2033 | V3: =IF(U3="","",IF(U3+1<='PROJECT SPECIFIC INPUTS'!$C$21,U3+1,"")) -> 2034 | W3: =IF(V3="","",IF(V3+1<='PROJECT SPECIFIC INPUTS'!$C$21,V3+1,"")) -> 2035 | X3: =IF(W3="","",IF(W3+1<='PROJECT SPECIFIC INPUTS'!$C$21,W3+1,"")) -> 2036 | Y3: =IF(X3="","",IF(X3+1<='PROJECT SPECIFIC INPUTS'!$C$21,X3+1,"")) ->  | Z3: =IF(Y3="","",IF(Y3+1<='PROJECT SPECIFIC INPUTS'!$C$21,Y3+1,"")) ->  | AA3: =IF(Z3="","",IF(Z3+1<='PROJECT SPECIFIC INPUTS'!$C$21,Z3+1,"")) ->  | AB3: =IF(AA3="","",IF(AA3+1<='PROJECT SPECIFIC INPUTS'!$C$21,AA3+1,"")) ->  | AC3: =IF(AB3="","",IF(AB3+1<='PROJECT SPECIFIC INPUTS'!$C$21,AB3+1,"")) ->  | AD3: =IF(AC3="","",IF(AC3+1<='PROJECT SPECIFIC INPUTS'!$C$21,AC3+1,"")) ->  | AE3: =IF(AD3="","",IF(AD3+1<='PROJECT SPECIFIC INPUTS'!$C$21,AD3+1,"")) ->  | AF3: =IF(AE3="","",IF(AE3+1<='PROJECT SPECIFIC INPUTS'!$C$21,AE3+1,"")) ->  | AG3: =IF(AF3="","",IF(AF3+1<='PROJECT SPECIFIC INPUTS'!$C$21,AF3+1,"")) ->  | AH3: =IF(AG3="","",IF(AG3+1<='PROJECT SPECIFIC INPUTS'!$C$21,AG3+1,"")) ->  | AI3: =IF(AH3="","",IF(AH3+1<='PROJECT SPECIFIC INPUTS'!$C$21,AH3+1,"")) ->  | AJ3: =IF(AI3="","",IF(AI3+1<='PROJECT SPECIFIC INPUTS'!$C$21,AI3+1,"")) ->  | AK3: =IF(AJ3="","",IF(AJ3+1<='PROJECT SPECIFIC INPUTS'!$C$21,AJ3+1,"")) ->  | AL3: =IF(AK3="","",IF(AK3+1<='PROJECT SPECIFIC INPUTS'!$C$21,AK3+1,"")) ->  | AM3: =IF(AL3="","",IF(AL3+1<='PROJECT SPECIFIC INPUTS'!$C$21,AL3+1,"")) ->  | AN3: =IF(AM3="","",IF(AM3+1<='PROJECT SPECIFIC INPUTS'!$C$21,AM3+1,"")) ->  | AO3: =IF(AN3="","",IF(AN3+1<='PROJECT SPECIFIC INPUTS'!$C$21,AN3+1,"")) ->  | AP3: =IF(AO3="","",IF(AO3+1<='PROJECT SPECIFIC INPUTS'!$C$21,AO3+1,"")) ->  | AQ3: =IF(AP3="","",IF(AP3+1<='PROJECT SPECIFIC INPUTS'!$C$21,AP3+1,"")) ->  | AR3: =IF(AQ3="","",IF(AQ3+1<='PROJECT SPECIFIC INPUTS'!$C$21,AQ3+1,"")) ->  | AS3: =IF(AR3="","",IF(AR3+1<='PROJECT SPECIFIC INPUTS'!$C$21,AR3+1,"")) ->  | AT3: =IF(AS3="","",IF(AS3+1<='PROJECT SPECIFIC INPUTS'!$C$21,AS3+1,"")) ->  | AU3: =IF(AT3="","",IF(AT3+1<='PROJECT SPECIFIC INPUTS'!$C$21,AT3+1,"")) ->  | AV3: =IF(AU3="","",IF(AU3+1<='PROJECT SPECIFIC INPUTS'!$C$21,AU3+1,"")) ->  | AW3: =IF(AV3="","",IF(AV3+1<='PROJECT SPECIFIC INPUTS'!$C$21,AV3+1,"")) ->  | AX3: =IF(AW3="","",IF(AW3+1<='PROJECT SPECIFIC INPUTS'!$C$21,AW3+1,"")) ->  | AY3: =IF(AX3="","",IF(AX3+1<='PROJECT SPECIFIC INPUTS'!$C$21,AX3+1,"")) ->  | AZ3: =IF(AY3="","",IF(AY3+1<='PROJECT SPECIFIC INPUTS'!$C$21,AY3+1,"")) ->  | BA3: =IF(AZ3="","",IF(AZ3+1<='PROJECT SPECIFIC INPUTS'!$C$21,AZ3+1,"")) ->  | BB3: =IF(BA3="","",IF(BA3+1<='PROJECT SPECIFIC INPUTS'!$C$21,BA3+1,"")) ->  | BC3: =IF(BB3="","",IF(BB3+1<='PROJECT SPECIFIC INPUTS'!$C$21,BB3+1,"")) ->  | BD3: =IF(BC3="","",IF(BC3+1<='PROJECT SPECIFIC INPUTS'!$C$21,BC3+1,"")) ->  | BE3: =IF(BD3="","",IF(BD3+1<='PROJECT SPECIFIC INPUTS'!$C$21,BD3+1,"")) ->  | BF3: =IF(BE3="","",IF(BE3+1<='PROJECT SPECIFIC INPUTS'!$C$21,BE3+1,"")) ->  | BG3: =IF(BF3="","",IF(BF3+1<='PROJECT SPECIFIC INPUTS'!$C$21,BF3+1,"")) ->  | BH3: =IF(BG3="","",IF(BG3+1<='PROJECT SPECIFIC INPUTS'!$C$21,BG3+1,"")) ->  | BI3: =IF(BH3="","",IF(BH3+1<='PROJECT SPECIFIC INPUTS'!$C$21,BH3+1,"")) ->  | BJ3: =IF(BI3="","",IF(BI3+1<='PROJECT SPECIFIC INPUTS'!$C$21,BI3+1,"")) ->  | BK3: =IF(BJ3="","",IF(BJ3+1<='PROJECT SPECIFIC INPUTS'!$C$21,BJ3+1,"")) -> 
